Workbook

Sheet 
B4: UniRat 2022
B6: Rationsberechnung für
B7: Milchvieh, Aufzuchtrinder, Mastbullen
B8: Milchziegen, Milchschafe

Sheet Anleitung
B2: Futterrationsplanung mit dem "Uni_Rat"-Programm
B4: "Uni-Rat" ist ein einfach zu bedienendes, auf der Basis der Tabellenkalkulation MS-Excel programmiertes Rationsberechnungsprogramm für Rinder, Schafe und Ziegen. Das Programm umfasst Möglichkeiten der Berechnung von Einzelkomponentenrationen, aufgewerteten Trogrationen (TR) in Kombination mit einer Abruffütterung bis hin zur Totalen Mischration (TMR). Ergänzend können Kraftfutterlisten und Mischpläne erstellt werden. "Uni-Rat" ist mit seiner Nutzerführung und den eingebundenen Darstellungen für den schulischen Einsatz in der landwirtschaftlichen Aus- und Fortbildung konzipiert.
B6: Bedienung
B7: Nachfolgend werden die einzelnen Arbeitsblätter und deren Verknüpfung untereinander dargestellt.
B9: Arbeitsblatt | D9: Funktion | F9: Verknüpfungen (Datenübergabe)
B10: Futterwerte | D10: Das Arbeitsblatt "Futterwerte" bietet die Möglichkeit auf tabellierte Futterwerte zurückzugreifen, betriebseigene Futtermittel anzulegen und eigene Futterwertananlysen aufzunehmen. Von allen Kalkulationsseiten wird auf diese Werte zurückgegriffen. Eigenmischungen der Seiten "Eigenmischungen" und "TMR Mischplan" werden an die Stelle übernommen und stehen so für die weitere Rationsplanung zur Verfügung (Vorsicht! Keine Weiterverwendung auf der Ursprungsseite möglich!). Beim Anlegen eigener Futtermittel können die Daten vorhandener Futtermittel kopiert werden. Hierdurch lassen sich Datenlücken, die zu Fehlern in den Berechnungen führen können, vermieden. | F10: Auf den Seiten "Eigenmischungen" und "TMR Mischplan" berechnete Daten werden übernommen. Eine Datenübergabe findet zu den Arbeitsblättern "Eigenmischungen", "Ration Milch", "Ration Milch - Mineralstoffe", "Zuteilung-Milchleistungsfutter", "TMR-Mischplan" und "Ration Aufzucht-Mast" statt.
B12: Eigenmischungen | D12: Die Eingabemaske "Eigenmischung" erlaubt es, betriebseigene Mischungen zu erstellen und zugekaufte Mischfutter anhand einer offenen Deklaration zu kalkulieren. Die benötigten Komponenten werden aus dem Datenbestand der "Futterwerte" ausgewählt. Eine Plausibilitätsprüfung kontrolliert die Vollständigkeit der Mischung. Energiestufe und Nährstoffgehalte werden in einer Übersicht zusammengefasst. Die Seite kann als Mischanweisung ausgedruckt werden. | F12: Die Nährstoffgehalte werden aus der Eingabemaske "Futterwerte" übernommen. Die berechneten Daten werden an "Futterwerte" übergeben.
B14: Ration Milch | D14: Im Arbeitsblatt "Ration Milch" können einfache Futterrationen berechnet werden. Der Rationsberechnung liegt ein dreistufiger Aufbau aus Grobfutter, Rationsausgleich und Milchleistungsfutter zugrunde. Als Tierarten können Milchkühe, Milchschafe oder Milchziegen ausgewählt werden. Die Dateneingabe kann nach Auswahl entweder in Frischmasse oder als Trockenmasse erfolgen. Die Berechnungen erfolgen dabei grundsätzlich auf der Basis der Trockenmasse. Zur Vorhersage der Futteraufnahme ist es notwendig, Fütterungssystem (TMR oder Einzelkomponenten), die Rasse, die Latation und das Laktationsstadium einzugeben. Gewicht, Milchleistung, sowie Milchinhaltsstoffe dienen der Bedarfsermittlung. Bei Trockensteherrationen ist hier der Buchstabe T einzugeben um den Leistungsbedarf abzubilden. Die Auswahl der Futtermittel erfolgt über Auswahlfelder. Sofern betriebsspezifische Futterwerte angenommen werden sollen, sind die Futtermittel in der Futterwerttabelle "Futterwerte" anzulegen. Die entsprechenden Mengen werden in der 1. Spalte eingegeben. Nach erfolgter Eingabe werden die Rationskennzahlen als Summe und je kg Trockenmasse ausgewiesen. Die theoretische Futteraufnahme wird der eingegebenen gegenüber gestellt. Die Mineralstoffversorgung wird als Bilanz dargestellt. Eine Ampelfunktion zeigt die Plausibilität, bzw. Zulässigkeit wesentlicher Kennzahlen an. Lückenhafte Datensätze werden gekennzeichnet. Die Daten sind hier auf Plausibilität zu prüfen, evtl. fehlende Daten sind in der Futterwerttabelle "Futterwerte" zu ergänzen. Über die Gliederungsfunktion (+) lassen sich weitere Kennzahlen der Futterration ein- bzw. ausblenden. Die ermittelten Ergebnisse lassen sich als festgelegter Druckbereich ausdrucken. | F14: Die Nährstoffgehalte werden aus der Eingabemaske "Futterwerte" übernommen. Die Daten aus Grobfutter und Rationsausgleich werden an die Maske "Zuteilung-Milchleistungsfutter" weitergegeben. Die Futtermengen der Seite "Ration Milch-Mineralstoffe" basieren auf den auf Arbeitsblatt "Ration Milch" gemachten Angaben. Die Toleranzbereiche der Rationskennzahlen können auf der Seite "Einstellungen" angepasst werden.
B16: Ration Milch-Mineralstoffe | D16: Im Arbeitsblatt "Ration Milch - Mineralstoffe" erfolgt die Bilanzierung der Mineralstoffgehalte. Die im Arbeitsblatt "Ration Milch" ausgewählten Futtermittel und die in der Futterwerttabelle "Futterwerte" gemachten Angaben werden übernommen. Unvollständige Datensätze werden markiert und sind ggf. auf der Seite "Futterwerte" zu vervollständigen. | F16: Die Ergebnisse werden zur Seite "Ration Milch" übergeben. Mineralstoffgehalte werden aus dem Arbeitsblatt "Futterwerte" übernommen.
B18: Zuteilung Milchleistungsfutter | D18: Das Arbeitsblatt "Zuteilung Milchleistungsfutter" dient der Erstellung einer Kraftfutterliste als Grundlage der tierindividuellen Kraftfutterzuteilung. Die Kalkulation erfolgt auf der Basis der in "Ration Milch" angelegten Ration aus Grobfutter und Rationsausgleich. Wird mit einem Futtermischwagen nach dem Konzept der Aufgewerteten Mischration gearbeitet, so ist diese auf der Seite "Ration Milch" anzulegen. Ergänzend hierzu werden im Spaltenkopf ergänzende Angaben zum Kraftfuttereinsatz gemacht. Es kann mit zwei verschiedenen Leistungsfuttern gearbeitet werden. Das ausgewählte Ausgleichkraftfutter wird ab der festgelegten Leistungsuntergrenze fix zugeteilt. Ein zweites ausgewähltes Leistungsfutter wird je nach Milchleistung und zu erwartenden Futteraufnahme automatisch zugeteilt. Bei Nutzung eines AMS kann die Lockfuttergabe als Minimalmenge vorgegeben werden. Es besteht darüber hinaus die Möglichkeit das das automatisch zugeteilte Milchleistungsfutter als Rationsanteil zu begrenzen. Einflüsse von Managementniveau, Haltungs- und klimatischen Bedingungen können über die Korrektur der Tm-Aufnahme berücksichtigt werden. Über die Gliederungsfunktion (+) lassen sich weitere Kennzahlen der Futterration ein- bzw. ausblenden. Die ermittelten Ergebnisse lassen sich als festgelegter Druckbereich ausdrucken. | F18: Die Kennzahlen zur Trogration basieren auf den Seiten "Ration Milch" und "Ration Milch - Mineralstoffe". Die Futterwerte Die ausgewählten Leistungsfutter werden aus der "Futterwerttabelle" übernommen.Die Markierung kritischer Werte erfolgt auf Basis der "Einstellungen".
B20: TMR-Mischplan | D20: Die Seite "TMR-Mischplan" dient der Erstellung von Mischplänen. Nach Auswahl der benötigten betriebseigenen und zugekauften Komponenten werden die Rationsanteile eingegeben. Nach Festlegung "TM/FM" im Rationskopf können die Mengen sowohl in Frischmasse als auch in Trockenmasse eingegeben werden. Mischplan und Nährstoffübersicht können ausgedruckt werden. Die freigehaltenen Bereiche "peNDF" dienen dem Eintrag von Siebungsergebnissen (Schüttelbox). | F20: Grundlage der Berechnungen ist die Tabelle "Futterwerte". Die Ergebnisse werden an "Futterwerte" übergeben.
B22: Ration Aufzucht-Mast | D22: Das Arbeitsblatt "Ration Aufzucht-Mast" bietet die Möglichkeit Rationen für Aufzuchtrinder und Mastbullen zu berechnen. Nach Auswahl der in "Futterwerte" hinterlegten Futtermittel können deren Mengen für den zuvor festgelegten Gewichtsabschnitt eingegeben werden. Hierbei können variable und fixe Komponenten festgelegt werden. Neben den Kennzahlen für den ausgewählten Gewichtsbereich werden zu erwartende Futteraufnahme und Tageszunahmen für abweichende Lebendmassebereiche dargestellt. Die Proteinversorgung wird visualisiert. | F22: Die Übernahme der Nährstoffgehalte erfolgt von der Seite "Futterwerte". Die Bedarfswerte sind aus verschiedenen Quellen (GfE, Gruber) abgeleitet und auf der Seite "Info" dargestellt.

Sheet Futterwerte
B1: Futterwerttabelle
B3: Futtermittel | C3: Trocken- | D3: Netto- | E3: Umsetzb. | F3: Roh- | H3: nutzb. | I3: rum. | J3: Struktur- | K3: Faser | M3: Nicht- | N3: Stärke | O3: Zucker | P3: Rohfett | Q3: Rohfaser | T3: Mineralstoffe
C4: substanz | D4: Energie- | E4: Energie | F4: protein | H4: Roh- | I4: N- | J4: wert | K4: kohlenhydrate | M4: FaserKH
D5: Laktation | H5: protein | I5: Bilanz
C6: TS | D6: NEL | E6: ME | F6: XP | G6: UDP | H6: nXP | I6: RNB | J6: SW | K6: ADF | L6: NDF | M6: NFC | N6: XS | O6: XZ | P6: XL | Q6: XF | R6: sXF | S6: XA | T6: Ca | U6: P | V6: Na | W6: Mg | X6: K | Y6: Se | Z6: DCAB | AA6: Kosten | AC6: XF | AD6: XS | AE6: Beständigkeit XS | AF6: bXS | AG6: XZ | AH6: a
C7: g/kg FM | D7: MJ/kg TM | E7: MJ/kg TM | F7: g / kg TM | S7: g/TM | T7: g / kg TM | Y7: mg/kg TM | Z7: meq/kg TM | AA7: €/dt FM
A8: Eigene Analysen | C8: 0.001 | D8: 0 | E8: 0 | F8: 0 | G8: 0 | H8: 0 | I8: 0 | J8: 0 | K8: 0 | L8: 0 | M8: 0 | N8: 0 | Q8: 0 | R8: 0 | S8: 0 | T8: 0 | U8: 0 | V8: 0 | W8: 0 | X8: 0
AB30: =IF(COUNTA(B30:Y30)<21,"x","") -> x
AB32: =IF(COUNTA(B32:Y32)<21,"x","") -> x
A34: Eigenmischungen
B35: =Eigenmischungen!AC2 -> Mischung ... | C35: =ROUND(Eigenmischungen!AC27*10,-1) -> 0 | D35: =ROUND(Eigenmischungen!AC28,1) -> 0.0 | E35: =ROUND(Eigenmischungen!AC29,1) -> 0.0 | F35: =ROUND(Eigenmischungen!AC30,0) -> 0 | G35: =ROUND(Eigenmischungen!AC31,2) -> 0% | H35: =ROUND(Eigenmischungen!AC32,0) -> 0 | I35: =ROUND(Eigenmischungen!AC33,1) -> 0.0 | J35: =ROUND(Eigenmischungen!AC34,1) -> 0.0 | K35: =ROUND(Eigenmischungen!AC35,0) -> 0 | L35: =ROUND(Eigenmischungen!AC36,0) -> 0 | M35: =ROUND(Eigenmischungen!AC37,0) -> 0 | N35: =ROUND(Eigenmischungen!AC38,0) -> 0 | O35: =ROUND(Eigenmischungen!AC39,0) -> 0 | P35: =ROUND(Eigenmischungen!AC40,0) -> 0 | Q35: =ROUND(Eigenmischungen!AC41,0) -> 0 | R35: =ROUND(Eigenmischungen!AC42,2) -> 0% | S35: =ROUND(Eigenmischungen!AC43,0) -> 0 | T35: =ROUND(Eigenmischungen!AC44,1) -> 0.0 | U35: =ROUND(Eigenmischungen!AC45,1) -> 0.0 | V35: =ROUND(Eigenmischungen!AC46,1) -> 0.0 | W35: =ROUND(Eigenmischungen!AC47,1) -> 0.0 | X35: =ROUND(Eigenmischungen!AC48,1) -> 0.0 | Y35: =ROUND(Eigenmischungen!AC49,1) -> 0.0 | Z35: =ROUND(Eigenmischungen!AC50,1) -> 0.0 | AA35: =ROUND(Eigenmischungen!AC26,1) -> 0.0 | AB35: =ROUND(Eigenmischungen!AF47,1) -> 0.0 | AC35: =ROUND(Eigenmischungen!AG47,1) -> 0.0 | AD35: =ROUND(Eigenmischungen!AH47,1) -> 0.0 | AE35: =ROUND(Eigenmischungen!AI47,1) -> 0.0 | AF35: =ROUND(Eigenmischungen!AJ47,1) -> 0.0 | AG35: =ROUND(Eigenmischungen!AK47,1) -> 0.0 | AH35: =ROUND(Eigenmischungen!AL47,1) -> 0.0
B36: =Eigenmischungen!AD2 -> Mischung ... | C36: =ROUND(Eigenmischungen!AD27*10,-1) -> 0 | D36: =ROUND(Eigenmischungen!AD28,1) -> 0.0 | E36: =ROUND(Eigenmischungen!AD29,1) -> 0.0 | F36: =ROUND(Eigenmischungen!AD30,0) -> 0 | G36: =ROUND(Eigenmischungen!AD31,2) -> 0% | H36: =ROUND(Eigenmischungen!AD32,0) -> 0 | I36: =ROUND(Eigenmischungen!AD33,1) -> 0.0 | J36: -0.0 | K36: =ROUND(Eigenmischungen!AD35,0) -> 0 | L36: =ROUND(Eigenmischungen!AD36,0) -> 0 | M36: =ROUND(Eigenmischungen!AD37,0) -> 0 | N36: =ROUND(Eigenmischungen!AD38,0) -> 0 | O36: =ROUND(Eigenmischungen!AD39,0) -> 0 | P36: =ROUND(Eigenmischungen!AD40,0) -> 0 | Q36: =ROUND(Eigenmischungen!AD41,0) -> 0 | R36: =ROUND(Eigenmischungen!AD42,2) -> 0% | S36: =ROUND(Eigenmischungen!AD43,0) -> 0 | T36: =ROUND(Eigenmischungen!AD44,1) -> 0.0 | U36: =ROUND(Eigenmischungen!AD45,1) -> 0.0 | V36: =ROUND(Eigenmischungen!AD46,1) -> 0.0 | W36: =ROUND(Eigenmischungen!AD47,1) -> 0.0 | X36: =ROUND(Eigenmischungen!AD48,1) -> 0.0 | Y36: =ROUND(Eigenmischungen!AD49,1) -> 0.0 | Z36: =ROUND(Eigenmischungen!AE50,1) -> 0.0 | AA36: =ROUND(Eigenmischungen!AD26,1) -> 0.0 | AB36: =ROUND(Eigenmischungen!AG47,1) -> 0.0 | AC36: =ROUND(Eigenmischungen!AH47,1) -> 0.0 | AD36: =ROUND(Eigenmischungen!AI47,1) -> 0.0 | AE36: =ROUND(Eigenmischungen!AJ47,1) -> 0.0 | AF36: =ROUND(Eigenmischungen!AK47,1) -> 0.0 | AG36: =ROUND(Eigenmischungen!AL47,1) -> 0.0 | AH36: =ROUND(Eigenmischungen!AM47,1) -> 0.0
B37: =Eigenmischungen!AE2 -> Mischung ... | C37: =ROUND(Eigenmischungen!AE27*10,-1) -> 0 | D37: =ROUND(Eigenmischungen!AE28,1) -> 0.0 | E37: =ROUND(Eigenmischungen!AE29,1) -> 0.0 | F37: =ROUND(Eigenmischungen!AE30,0) -> 0 | G37: =ROUND(Eigenmischungen!AE31,2) -> 0% | H37: =ROUND(Eigenmischungen!AE32,0) -> 0 | I37: =ROUND(Eigenmischungen!AE33,1) -> 0.0 | J37: =ROUND(Eigenmischungen!AE34,1) -> 0.0 | K37: =ROUND(Eigenmischungen!AE35,0) -> 0 | L37: =ROUND(Eigenmischungen!AE36,0) -> 0 | M37: =ROUND(Eigenmischungen!AE37,0) -> 0 | N37: =ROUND(Eigenmischungen!AE38,0) -> 0 | O37: =ROUND(Eigenmischungen!AE39,0) -> 0 | P37: =ROUND(Eigenmischungen!AE40,0) -> 0 | Q37: =ROUND(Eigenmischungen!AE41,0) -> 0 | R37: =ROUND(Eigenmischungen!AE42,2) -> 0% | S37: =ROUND(Eigenmischungen!AE43,0) -> 0 | T37: =ROUND(Eigenmischungen!AE44,1) -> 0.0 | U37: =ROUND(Eigenmischungen!AE45,1) -> 0.0 | V37: =ROUND(Eigenmischungen!AE46,1) -> 0.0 | W37: =ROUND(Eigenmischungen!AE47,1) -> 0.0 | X37: =ROUND(Eigenmischungen!AE48,1) -> 0.0 | Y37: =ROUND(Eigenmischungen!AE49,1) -> 0.0 | Z37: =ROUND(Eigenmischungen!AF50,1) -> 0.0 | AA37: =ROUND(Eigenmischungen!AE26,1) -> 0.0 | AB37: =ROUND(Eigenmischungen!AH47,1) -> 0.0 | AC37: =ROUND(Eigenmischungen!AI47,1) -> 0.0 | AD37: =ROUND(Eigenmischungen!AJ47,1) -> 0.0 | AE37: =ROUND(Eigenmischungen!AK47,1) -> 0.0 | AF37: =ROUND(Eigenmischungen!AL47,1) -> 0.0 | AG37: =ROUND(Eigenmischungen!AM47,1) -> 0.0 | AH37: =ROUND(Eigenmischungen!AN47,1) -> 0.0
B38: =Eigenmischungen!AF2 -> Mischung ... | C38: =ROUND(Eigenmischungen!AF27*10,-1) -> 0 | D38: =ROUND(Eigenmischungen!AF28,1) -> 0.0 | E38: =ROUND(Eigenmischungen!AF29,1) -> 0.0 | F38: =ROUND(Eigenmischungen!AF30,0) -> 0 | G38: =ROUND(Eigenmischungen!AF31,2) -> 0% | H38: =ROUND(Eigenmischungen!AF32,0) -> 0 | I38: =ROUND(Eigenmischungen!AF33,1) -> 0.0 | J38: =ROUND(Eigenmischungen!AF34,1) -> 0.0 | K38: =ROUND(Eigenmischungen!AF35,0) -> 0 | L38: =ROUND(Eigenmischungen!AF36,0) -> 0 | M38: =ROUND(Eigenmischungen!AF37,0) -> 0 | N38: =ROUND(Eigenmischungen!AF38,0) -> 0 | O38: =ROUND(Eigenmischungen!AF39,0) -> 0 | P38: =ROUND(Eigenmischungen!AF40,0) -> 0 | Q38: =ROUND(Eigenmischungen!AF41,0) -> 0 | R38: =ROUND(Eigenmischungen!AF42,2) -> 0% | S38: =ROUND(Eigenmischungen!AF43,0) -> 0 | T38: =ROUND(Eigenmischungen!AF44,1) -> 0.0 | U38: =ROUND(Eigenmischungen!AF45,1) -> 0.0 | V38: =ROUND(Eigenmischungen!AF46,1) -> 0.0 | W38: =ROUND(Eigenmischungen!AF47,1) -> 0.0 | X38: =ROUND(Eigenmischungen!AF48,1) -> 0.0 | Y38: =ROUND(Eigenmischungen!AF49,1) -> 0.0 | Z38: =ROUND(Eigenmischungen!AG50,1) -> 0.0 | AA38: =ROUND(Eigenmischungen!AF26,1) -> 0.0 | AB38: =ROUND(Eigenmischungen!AI47,1) -> 0.0 | AC38: =ROUND(Eigenmischungen!AJ47,1) -> 0.0 | AD38: =ROUND(Eigenmischungen!AK47,1) -> 0.0 | AE38: =ROUND(Eigenmischungen!AL47,1) -> 0.0 | AF38: =ROUND(Eigenmischungen!AM47,1) -> 0.0 | AG38: =ROUND(Eigenmischungen!AN47,1) -> 0.0 | AH38: =ROUND(Eigenmischungen!AO47,1) -> 0.0
B39: =Eigenmischungen!AG2 -> Mischung ... | C39: =ROUND(Eigenmischungen!AG27*10,-1) -> 0 | D39: =ROUND(Eigenmischungen!AG28,1) -> 0.0 | E39: =ROUND(Eigenmischungen!AG29,1) -> 0.0 | F39: =ROUND(Eigenmischungen!AG30,0) -> 0 | G39: =ROUND(Eigenmischungen!AG31,2) -> 0% | H39: =ROUND(Eigenmischungen!AG32,0) -> 0 | I39: =ROUND(Eigenmischungen!AG33,1) -> 0.0 | J39: =ROUND(Eigenmischungen!AG34,1) -> 0.0 | K39: =ROUND(Eigenmischungen!AG35,0) -> 0 | L39: =ROUND(Eigenmischungen!AG36,0) -> 0 | M39: =ROUND(Eigenmischungen!AG37,0) -> 0 | N39: =ROUND(Eigenmischungen!AG38,0) -> 0 | O39: =ROUND(Eigenmischungen!AG39,0) -> 0 | P39: =ROUND(Eigenmischungen!AG40,0) -> 0 | Q39: =ROUND(Eigenmischungen!AG41,0) -> 0 | R39: =ROUND(Eigenmischungen!AG42,2) -> 0% | S39: =ROUND(Eigenmischungen!AG43,0) -> 0 | T39: =ROUND(Eigenmischungen!AG44,1) -> 0.0 | U39: =ROUND(Eigenmischungen!AG45,1) -> 0.0 | V39: =ROUND(Eigenmischungen!AG46,1) -> 0.0 | W39: =ROUND(Eigenmischungen!AG47,1) -> 0.0 | X39: =ROUND(Eigenmischungen!AG48,1) -> 0.0 | Y39: =ROUND(Eigenmischungen!AG49,1) -> 0.0 | Z39: =ROUND(Eigenmischungen!AH50,1) -> 0.0 | AA39: =ROUND(Eigenmischungen!AG26,1) -> 0.0 | AB39: =ROUND(Eigenmischungen!AJ47,1) -> 0.0 | AC39: =ROUND(Eigenmischungen!AK47,1) -> 0.0 | AD39: =ROUND(Eigenmischungen!AL47,1) -> 0.0 | AE39: =ROUND(Eigenmischungen!AM47,1) -> 0.0 | AF39: =ROUND(Eigenmischungen!AN47,1) -> 0.0 | AG39: =ROUND(Eigenmischungen!AO47,1) -> 0.0 | AH39: =ROUND(Eigenmischungen!AP47,1) -> 0.0
B40: =Eigenmischungen!AH2 -> Mischung ... | C40: =ROUND(Eigenmischungen!AH27*10,-1) -> 0 | D40: =ROUND(Eigenmischungen!AH28,1) -> 0.0 | E40: =ROUND(Eigenmischungen!AH29,1) -> 0.0 | F40: =ROUND(Eigenmischungen!AH30,0) -> 0 | G40: =ROUND(Eigenmischungen!AH31,2) -> 0% | H40: =ROUND(Eigenmischungen!AH32,0) -> 0 | I40: =ROUND(Eigenmischungen!AH33,1) -> 0.0 | J40: =ROUND(Eigenmischungen!AH34,1) -> 0.0 | K40: =ROUND(Eigenmischungen!AH35,0) -> 0 | L40: =ROUND(Eigenmischungen!AH36,0) -> 0 | M40: =ROUND(Eigenmischungen!AH37,0) -> 0 | N40: =ROUND(Eigenmischungen!AH38,0) -> 0 | O40: =ROUND(Eigenmischungen!AH39,0) -> 0 | P40: =ROUND(Eigenmischungen!AH40,0) -> 0 | Q40: =ROUND(Eigenmischungen!AH41,0) -> 0 | R40: =ROUND(Eigenmischungen!AH42,2) -> 0% | S40: =ROUND(Eigenmischungen!AH43,0) -> 0 | T40: =ROUND(Eigenmischungen!AH44,1) -> 0.0 | U40: =ROUND(Eigenmischungen!AH45,1) -> 0.0 | V40: =ROUND(Eigenmischungen!AH46,1) -> 0.0 | W40: =ROUND(Eigenmischungen!AH47,1) -> 0.0 | X40: =ROUND(Eigenmischungen!AH48,1) -> 0.0 | Y40: =ROUND(Eigenmischungen!AH49,1) -> 0.0 | Z40: =ROUND(Eigenmischungen!AI50,1) -> 0.0 | AA40: =ROUND(Eigenmischungen!AH26,1) -> 0.0 | AB40: =ROUND(Eigenmischungen!AK47,1) -> 0.0 | AC40: =ROUND(Eigenmischungen!AL47,1) -> 0.0 | AD40: =ROUND(Eigenmischungen!AM47,1) -> 0.0 | AE40: =ROUND(Eigenmischungen!AN47,1) -> 0.0 | AF40: =ROUND(Eigenmischungen!AO47,1) -> 0.0 | AG40: =ROUND(Eigenmischungen!AP47,1) -> 0.0 | AH40: =ROUND(Eigenmischungen!AQ47,1) -> 0.0
B41: =Eigenmischungen!AI2 -> Mischung ... | C41: =ROUND(Eigenmischungen!AI27*10,-1) -> 0 | D41: =ROUND(Eigenmischungen!AI28,1) -> 0.0 | E41: =ROUND(Eigenmischungen!AI29,1) -> 0.0 | F41: =ROUND(Eigenmischungen!AI30,0) -> 0 | G41: =ROUND(Eigenmischungen!AI31,2) -> 0% | H41: =ROUND(Eigenmischungen!AI32,0) -> 0 | I41: =ROUND(Eigenmischungen!AI33,1) -> 0.0 | J41: =ROUND(Eigenmischungen!AI34,1) -> 0.0 | K41: =ROUND(Eigenmischungen!AI35,0) -> 0 | L41: =ROUND(Eigenmischungen!AI36,0) -> 0 | M41: =ROUND(Eigenmischungen!AI37,0) -> 0 | N41: =ROUND(Eigenmischungen!AI38,0) -> 0 | O41: =ROUND(Eigenmischungen!AI39,0) -> 0 | P41: =ROUND(Eigenmischungen!AI40,0) -> 0 | Q41: =ROUND(Eigenmischungen!AI41,0) -> 0 | R41: =ROUND(Eigenmischungen!AI42,2) -> 0% | S41: =ROUND(Eigenmischungen!AI43,0) -> 0 | T41: =ROUND(Eigenmischungen!AI44,1) -> 0.0 | U41: =ROUND(Eigenmischungen!AI45,1) -> 0.0 | V41: =ROUND(Eigenmischungen!AI46,1) -> 0.0 | W41: =ROUND(Eigenmischungen!AI47,1) -> 0.0 | X41: =ROUND(Eigenmischungen!AI48,1) -> 0.0 | Y41: =ROUND(Eigenmischungen!AI49,1) -> 0.0 | Z41: =ROUND(Eigenmischungen!AJ50,1) -> 0.0 | AA41: =ROUND(Eigenmischungen!AI26,1) -> 0.0 | AB41: =ROUND(Eigenmischungen!AL47,1) -> 0.0 | AC41: =ROUND(Eigenmischungen!AM47,1) -> 0.0 | AD41: =ROUND(Eigenmischungen!AN47,1) -> 0.0 | AE41: =ROUND(Eigenmischungen!AO47,1) -> 0.0 | AF41: =ROUND(Eigenmischungen!AP47,1) -> 0.0 | AG41: =ROUND(Eigenmischungen!AQ47,1) -> 0.0 | AH41: =ROUND(Eigenmischungen!AR47,1) -> 0.0
B42: =Eigenmischungen!AJ2 -> Mischung ... | C42: =ROUND(Eigenmischungen!AJ27*10,-1) -> 0 | D42: =ROUND(Eigenmischungen!AJ28,1) -> 0.0 | E42: =ROUND(Eigenmischungen!AJ29,1) -> 0.0 | F42: =ROUND(Eigenmischungen!AJ30,0) -> 0 | G42: =ROUND(Eigenmischungen!AJ31,2) -> 0% | H42: =ROUND(Eigenmischungen!AJ32,0) -> 0 | I42: =ROUND(Eigenmischungen!AJ33,1) -> 0.0 | J42: =ROUND(Eigenmischungen!AJ34,1) -> 0.0 | K42: =ROUND(Eigenmischungen!AJ35,0) -> 0 | L42: =ROUND(Eigenmischungen!AJ36,0) -> 0 | M42: =ROUND(Eigenmischungen!AJ37,0) -> 0 | N42: =ROUND(Eigenmischungen!AJ38,0) -> 0 | O42: =ROUND(Eigenmischungen!AJ39,0) -> 0 | P42: =ROUND(Eigenmischungen!AJ40,0) -> 0 | Q42: =ROUND(Eigenmischungen!AJ41,0) -> 0 | R42: =ROUND(Eigenmischungen!AJ42,2) -> 0% | S42: =ROUND(Eigenmischungen!AJ43,0) -> 0 | T42: =ROUND(Eigenmischungen!AJ44,1) -> 0.0 | U42: =ROUND(Eigenmischungen!AJ45,1) -> 0.0 | V42: =ROUND(Eigenmischungen!AJ46,1) -> 0.0 | W42: =ROUND(Eigenmischungen!AJ47,1) -> 0.0 | X42: =ROUND(Eigenmischungen!AJ48,1) -> 0.0 | Y42: =ROUND(Eigenmischungen!AJ49,1) -> 0.0 | Z42: =ROUND(Eigenmischungen!AK50,1) -> 0.0 | AA42: =ROUND(Eigenmischungen!AJ26,1) -> 0.0 | AB42: =ROUND(Eigenmischungen!AM47,1) -> 0.0 | AC42: =ROUND(Eigenmischungen!AN47,1) -> 0.0 | AD42: =ROUND(Eigenmischungen!AO47,1) -> 0.0 | AE42: =ROUND(Eigenmischungen!AP47,1) -> 0.0 | AF42: =ROUND(Eigenmischungen!AQ47,1) -> 0.0 | AG42: =ROUND(Eigenmischungen!AR47,1) -> 0.0 | AH42: =ROUND(Eigenmischungen!AS47,1) -> 0.0
B43: =Eigenmischungen!AK2 -> Mischung ... | C43: =ROUND(Eigenmischungen!AK27*10,-1) -> 0 | D43: =ROUND(Eigenmischungen!AK28,1) -> 0.0 | E43: =ROUND(Eigenmischungen!AK29,1) -> 0.0 | F43: =ROUND(Eigenmischungen!AK30,0) -> 0 | G43: =ROUND(Eigenmischungen!AK31,2) -> 0% | H43: =ROUND(Eigenmischungen!AK32,0) -> 0 | I43: =ROUND(Eigenmischungen!AK33,1) -> 0.0 | J43: =ROUND(Eigenmischungen!AK34,1) -> 0.0 | K43: =ROUND(Eigenmischungen!AK35,0) -> 0 | L43: =ROUND(Eigenmischungen!AK36,0) -> 0 | M43: =ROUND(Eigenmischungen!AK37,0) -> 0 | N43: =ROUND(Eigenmischungen!AK38,0) -> 0 | O43: =ROUND(Eigenmischungen!AK39,0) -> 0 | P43: =ROUND(Eigenmischungen!AK40,0) -> 0 | Q43: =ROUND(Eigenmischungen!AK41,0) -> 0 | R43: =ROUND(Eigenmischungen!AK42,2) -> 0% | S43: =ROUND(Eigenmischungen!AK43,0) -> 0 | T43: =ROUND(Eigenmischungen!AK44,1) -> 0.0 | U43: =ROUND(Eigenmischungen!AK45,1) -> 0.0 | V43: =ROUND(Eigenmischungen!AK46,1) -> 0.0 | W43: =ROUND(Eigenmischungen!AK47,1) -> 0.0 | X43: =ROUND(Eigenmischungen!AK48,1) -> 0.0 | Y43: =ROUND(Eigenmischungen!AK49,1) -> 0.0 | Z43: =ROUND(Eigenmischungen!AL50,1) -> 0.0 | AA43: =ROUND(Eigenmischungen!AK26,1) -> 0.0 | AB43: =ROUND(Eigenmischungen!AN47,1) -> 0.0 | AC43: =ROUND(Eigenmischungen!AO47,1) -> 0.0 | AD43: =ROUND(Eigenmischungen!AP47,1) -> 0.0 | AE43: =ROUND(Eigenmischungen!AQ47,1) -> 0.0 | AF43: =ROUND(Eigenmischungen!AR47,1) -> 0.0 | AG43: =ROUND(Eigenmischungen!AS47,1) -> 0.0 | AH43: =ROUND(Eigenmischungen!AT47,1) -> 0.0
B45: ='TMR-Mischplan'!AN2 -> Mischung 1 | C45: =ROUND('TMR-Mischplan'!AN42*1000,-1) -> 0 | D45: =ROUND('TMR-Mischplan'!AN30,1) -> 0.0 | E45: =ROUND('TMR-Mischplan'!AN31,1) -> 0.0 | F45: =ROUND('TMR-Mischplan'!AN46,0) -> 0 | G45: ='TMR-Mischplan'!AN47 -> 0% | H45: =ROUND('TMR-Mischplan'!AN32,0) -> 0 | I45: =ROUND('TMR-Mischplan'!AN33,1) -> 0.0 | J45: =ROUND('TMR-Mischplan'!AN37,1) -> 0.0 | K45: =ROUND('TMR-Mischplan'!AN35,0) -> 0 | L45: =ROUND('TMR-Mischplan'!AN36,0) -> 0 | M45: =ROUND('TMR-Mischplan'!AX26,0) -> 0 | O45: =ROUND('TMR-Mischplan'!AX27,0) -> 0 | P45: =ROUND('TMR-Mischplan'!AX28,0) -> 0 | Q45: =ROUND('TMR-Mischplan'!AN58,0) -> 0 | S45: =ROUND('TMR-Mischplan'!AN60,0) -> 0 | T45: =ROUND('TMR-Mischplan'!AX29,1) -> 0.0 | U45: =ROUND('TMR-Mischplan'!AX30,1) -> 0.0 | V45: =ROUND('TMR-Mischplan'!AX31,1) -> 0.0 | W45: =ROUND('TMR-Mischplan'!AX32,1) -> 0.0 | X45: =ROUND('TMR-Mischplan'!AX33,1) -> 0.0 | Y45: =ROUND('TMR-Mischplan'!AX34,1) -> 0.0 | Z45: =ROUND('TMR-Mischplan'!AY35,1) -> 0.0
B46: ='TMR-Mischplan'!AO2 -> Mischung 2 | C46: =ROUND('TMR-Mischplan'!AO42*1000,-1) -> 0 | D46: =ROUND('TMR-Mischplan'!AO30,1) -> 0.0 | E46: =ROUND('TMR-Mischplan'!AO31,1) -> 0.0 | F46: =ROUND('TMR-Mischplan'!AO46,0) -> 0 | G46: ='TMR-Mischplan'!AO47 -> 0% | H46: =ROUND('TMR-Mischplan'!AO32,0) -> 0 | I46: =ROUND('TMR-Mischplan'!AO33,1) -> 0.0 | J46: =ROUND('TMR-Mischplan'!AO37,1) -> 0.0 | K46: =ROUND('TMR-Mischplan'!AO35,0) -> 0 | L46: =ROUND('TMR-Mischplan'!AO36,0) -> 0 | M46: =ROUND('TMR-Mischplan'!AY26,0) -> 0 | O46: =ROUND('TMR-Mischplan'!AY27,0) -> 0 | P46: =ROUND('TMR-Mischplan'!AY28,0) -> 0 | Q46: =ROUND('TMR-Mischplan'!AO58,0) -> 0 | S46: =ROUND('TMR-Mischplan'!AO60,0) -> 0 | T46: =ROUND('TMR-Mischplan'!AY29,1) -> 0.0 | U46: =ROUND('TMR-Mischplan'!AY30,1) -> 0.0 | V46: =ROUND('TMR-Mischplan'!AY31,1) -> 0.0 | W46: =ROUND('TMR-Mischplan'!AY32,1) -> 0.0 | X46: =ROUND('TMR-Mischplan'!AY33,1) -> 0.0 | Y46: =ROUND('TMR-Mischplan'!AY34,1) -> 0.0 | Z46: =ROUND('TMR-Mischplan'!AZ35,1) -> 0.0
B47: ='TMR-Mischplan'!AP2 -> Mischung 3 | C47: =ROUND('TMR-Mischplan'!AP42*1000,-1) -> 0 | D47: =ROUND('TMR-Mischplan'!AP30,1) -> 0.0 | E47: =ROUND('TMR-Mischplan'!AP31,1) -> 0.0 | F47: =ROUND('TMR-Mischplan'!AP46,0) -> 0 | G47: ='TMR-Mischplan'!AP47 -> 0% | H47: =ROUND('TMR-Mischplan'!AP32,0) -> 0 | I47: =ROUND('TMR-Mischplan'!AP33,1) -> 0.0 | J47: =ROUND('TMR-Mischplan'!AP37,1) -> 0.0 | K47: =ROUND('TMR-Mischplan'!AP35,0) -> 0 | L47: =ROUND('TMR-Mischplan'!AP36,0) -> 0 | M47: =ROUND('TMR-Mischplan'!AZ26,0) -> 0 | O47: =ROUND('TMR-Mischplan'!AZ27,0) -> 0 | P47: =ROUND('TMR-Mischplan'!AZ28,0) -> 0 | Q47: =ROUND('TMR-Mischplan'!AP58,0) -> 0 | S47: =ROUND('TMR-Mischplan'!AP60,0) -> 0 | T47: =ROUND('TMR-Mischplan'!AZ29,1) -> 0.0 | U47: =ROUND('TMR-Mischplan'!AZ30,1) -> 0.0 | V47: =ROUND('TMR-Mischplan'!AZ31,1) -> 0.0 | W47: =ROUND('TMR-Mischplan'!AZ32,1) -> 0.0 | X47: =ROUND('TMR-Mischplan'!AZ33,1) -> 0.0 | Y47: =ROUND('TMR-Mischplan'!AZ34,1) -> 0.0 | Z47: =ROUND('TMR-Mischplan'!BA35,1) -> 0.0
B48: ='TMR-Mischplan'!AQ2 -> Mischung 4 | C48: =ROUND('TMR-Mischplan'!AQ42*1000,-1) -> 0 | D48: =ROUND('TMR-Mischplan'!AQ30,1) -> 0.0 | E48: =ROUND('TMR-Mischplan'!AQ31,1) -> 0.0 | F48: =ROUND('TMR-Mischplan'!AQ46,0) -> 0 | G48: ='TMR-Mischplan'!AQ47 -> 0% | H48: =ROUND('TMR-Mischplan'!AQ32,0) -> 0 | I48: =ROUND('TMR-Mischplan'!AQ33,1) -> 0.0 | J48: =ROUND('TMR-Mischplan'!AQ37,1) -> 0.0 | K48: =ROUND('TMR-Mischplan'!AQ35,0) -> 0 | L48: =ROUND('TMR-Mischplan'!AQ36,0) -> 0 | M48: =ROUND('TMR-Mischplan'!BA26,0) -> 0 | O48: =ROUND('TMR-Mischplan'!BA27,0) -> 0 | P48: =ROUND('TMR-Mischplan'!BA28,0) -> 0 | Q48: =ROUND('TMR-Mischplan'!AQ58,0) -> 0 | S48: =ROUND('TMR-Mischplan'!AQ60,0) -> 0 | T48: =ROUND('TMR-Mischplan'!BA29,1) -> 0.0 | U48: =ROUND('TMR-Mischplan'!BA30,1) -> 0.0 | V48: =ROUND('TMR-Mischplan'!BA31,1) -> 0.0 | W48: =ROUND('TMR-Mischplan'!BA32,1) -> 0.0 | X48: =ROUND('TMR-Mischplan'!BA33,1) -> 0.0 | Y48: =ROUND('TMR-Mischplan'!BA34,1) -> 0.0 | Z48: =ROUND('TMR-Mischplan'!BB35,1) -> 0.0
B49: ='TMR-Mischplan'!AR2 -> Mischung 5 | C49: =ROUND('TMR-Mischplan'!AR42*1000,-1) -> 0 | D49: =ROUND('TMR-Mischplan'!AR30,1) -> 0.0 | E49: =ROUND('TMR-Mischplan'!AR31,1) -> 0.0 | F49: =ROUND('TMR-Mischplan'!AR46,0) -> 0 | G49: ='TMR-Mischplan'!AR47 -> 0% | H49: =ROUND('TMR-Mischplan'!AR32,0) -> 0 | I49: =ROUND('TMR-Mischplan'!AR33,1) -> 0.0 | J49: =ROUND('TMR-Mischplan'!AR37,1) -> 0.0 | K49: =ROUND('TMR-Mischplan'!AR34,0) -> 0 | L49: =ROUND('TMR-Mischplan'!AR35,0) -> 0 | M49: =ROUND('TMR-Mischplan'!BB26,0) -> 0 | O49: =ROUND('TMR-Mischplan'!BB27,0) -> 0 | P49: =ROUND('TMR-Mischplan'!BB28,0) -> 0 | Q49: =ROUND('TMR-Mischplan'!AR58,0) -> 0 | S49: =ROUND('TMR-Mischplan'!AR60,0) -> 0 | T49: =ROUND('TMR-Mischplan'!BB29,1) -> 0.0 | U49: =ROUND('TMR-Mischplan'!BB30,1) -> 0.0 | V49: =ROUND('TMR-Mischplan'!BB31,1) -> 0.0 | W49: =ROUND('TMR-Mischplan'!BB32,1) -> 0.0 | X49: =ROUND('TMR-Mischplan'!BB33,1) -> 0.0 | Y49: =ROUND('TMR-Mischplan'!BB34,1) -> 0.0 | Z49: =ROUND('TMR-Mischplan'!BC35,1) -> 0.0
B50: ='TMR-Mischplan'!AS2 -> Mischung 6 | C50: =ROUND('TMR-Mischplan'!AS42*1000,-1) -> 0 | D50: =ROUND('TMR-Mischplan'!AS30,1) -> 0.0 | E50: =ROUND('TMR-Mischplan'!AS31,1) -> 0.0 | F50: =ROUND('TMR-Mischplan'!AS46,0) -> 0 | G50: ='TMR-Mischplan'!AS47 -> 0% | H50: =ROUND('TMR-Mischplan'!AS32,0) -> 0 | I50: =ROUND('TMR-Mischplan'!AS33,1) -> 0.0 | J50: =ROUND('TMR-Mischplan'!AS37,1) -> 0.0 | K50: =ROUND('TMR-Mischplan'!AS34,0) -> 0 | L50: =ROUND('TMR-Mischplan'!AS35,0) -> 0 | M50: =ROUND('TMR-Mischplan'!BC26,0) -> 0 | O50: =ROUND('TMR-Mischplan'!BC27,0) -> 0 | P50: =ROUND('TMR-Mischplan'!BC28,0) -> 0 | Q50: =ROUND('TMR-Mischplan'!AS58,0) -> 0 | S50: =ROUND('TMR-Mischplan'!AS60,0) -> 0 | T50: =ROUND('TMR-Mischplan'!BC29,1) -> 0.0 | U50: =ROUND('TMR-Mischplan'!BC30,1) -> 0.0 | V50: =ROUND('TMR-Mischplan'!BC31,1) -> 0.0 | W50: =ROUND('TMR-Mischplan'!BC32,1) -> 0.0 | X50: =ROUND('TMR-Mischplan'!BC33,1) -> 0.0 | Y50: =ROUND('TMR-Mischplan'!BC34,1) -> 0.0 | Z50: =ROUND('TMR-Mischplan'!BD35,1) -> 0.0
B51: ='TMR-Mischplan'!AT2 -> Mischung 7 | C51: =ROUND('TMR-Mischplan'!AT42*1000,-1) -> 0 | D51: =ROUND('TMR-Mischplan'!AT30,1) -> 0.0 | E51: =ROUND('TMR-Mischplan'!AT31,1) -> 0.0 | F51: =ROUND('TMR-Mischplan'!AT46,0) -> 0 | G51: ='TMR-Mischplan'!AT47 -> 0% | H51: =ROUND('TMR-Mischplan'!AT32,0) -> 0 | I51: =ROUND('TMR-Mischplan'!AT33,1) -> 0.0 | J51: =ROUND('TMR-Mischplan'!AT37,1) -> 0.0 | K51: =ROUND('TMR-Mischplan'!AT34,0) -> 0 | L51: =ROUND('TMR-Mischplan'!AT35,0) -> 0 | M51: =ROUND('TMR-Mischplan'!BD26,0) -> 0 | O51: =ROUND('TMR-Mischplan'!BD27,0) -> 0 | P51: =ROUND('TMR-Mischplan'!BD28,0) -> 0 | Q51: =ROUND('TMR-Mischplan'!AT58,0) -> 0 | S51: =ROUND('TMR-Mischplan'!AT60,0) -> 0 | T51: =ROUND('TMR-Mischplan'!BD29,1) -> 0.0 | U51: =ROUND('TMR-Mischplan'!BD30,1) -> 0.0 | V51: =ROUND('TMR-Mischplan'!BD31,1) -> 0.0 | W51: =ROUND('TMR-Mischplan'!BD32,1) -> 0.0 | X51: =ROUND('TMR-Mischplan'!BD33,1) -> 0.0 | Y51: =ROUND('TMR-Mischplan'!BD34,1) -> 0.0 | Z51: =ROUND('TMR-Mischplan'!BE35,1) -> 0.0
B52: ='TMR-Mischplan'!AU2 -> Mischung 8 | C52: =ROUND('TMR-Mischplan'!AU42*1000,-1) -> 0 | D52: =ROUND('TMR-Mischplan'!AU30,1) -> 0.0 | E52: =ROUND('TMR-Mischplan'!AU31,1) -> 0.0 | F52: =ROUND('TMR-Mischplan'!AU46,0) -> 0 | G52: ='TMR-Mischplan'!AU47 -> 0% | H52: =ROUND('TMR-Mischplan'!AU32,0) -> 0 | I52: =ROUND('TMR-Mischplan'!AU33,1) -> 0.0 | J52: =ROUND('TMR-Mischplan'!AU37,1) -> 0.0 | K52: =ROUND('TMR-Mischplan'!AU34,0) -> 0 | L52: =ROUND('TMR-Mischplan'!AU35,0) -> 0 | M52: =ROUND('TMR-Mischplan'!BE26,0) -> 0 | O52: =ROUND('TMR-Mischplan'!BE27,0) -> 0 | P52: =ROUND('TMR-Mischplan'!BE28,0) -> 0 | Q52: =ROUND('TMR-Mischplan'!AU58,0) -> 0 | S52: =ROUND('TMR-Mischplan'!AU60,0) -> 0 | T52: =ROUND('TMR-Mischplan'!BE29,1) -> 0.0 | U52: =ROUND('TMR-Mischplan'!BE30,1) -> 0.0 | V52: =ROUND('TMR-Mischplan'!BE31,1) -> 0.0 | W52: =ROUND('TMR-Mischplan'!BE32,1) -> 0.0 | X52: =ROUND('TMR-Mischplan'!BE33,1) -> 0.0 | Y52: =ROUND('TMR-Mischplan'!BE34,1) -> 0.0 | Z52: =ROUND('TMR-Mischplan'!BF35,1) -> 0.0
B53: ='TMR-Mischplan'!AV2 -> Mischung 9 | C53: =ROUND('TMR-Mischplan'!AV42*1000,-1) -> 0 | D53: =ROUND('TMR-Mischplan'!AV30,1) -> 0.0 | E53: =ROUND('TMR-Mischplan'!AV31,1) -> 0.0 | F53: =ROUND('TMR-Mischplan'!AV46,0) -> 0 | G53: ='TMR-Mischplan'!AV47 -> 0% | H53: =ROUND('TMR-Mischplan'!AV32,0) -> 0 | I53: =ROUND('TMR-Mischplan'!AV33,1) -> 0.0 | J53: =ROUND('TMR-Mischplan'!AV37,1) -> 0.0 | K53: =ROUND('TMR-Mischplan'!AV34,0) -> 0 | L53: =ROUND('TMR-Mischplan'!AV35,0) -> 0 | M53: =ROUND('TMR-Mischplan'!BF26,0) -> 0 | O53: =ROUND('TMR-Mischplan'!BF27,0) -> 0 | P53: =ROUND('TMR-Mischplan'!BF28,0) -> 0 | Q53: =ROUND('TMR-Mischplan'!AV58,0) -> 0 | S53: =ROUND('TMR-Mischplan'!AV60,0) -> 0 | T53: =ROUND('TMR-Mischplan'!BF29,1) -> 0.0 | U53: =ROUND('TMR-Mischplan'!BF30,1) -> 0.0 | V53: =ROUND('TMR-Mischplan'!BF31,1) -> 0.0 | W53: =ROUND('TMR-Mischplan'!BF32,1) -> 0.0 | X53: =ROUND('TMR-Mischplan'!BF33,1) -> 0.0 | Y53: =ROUND('TMR-Mischplan'!BF34,1) -> 0.0 | Z53: =ROUND('TMR-Mischplan'!BG35,1) -> 0.0
A55: Frischfutter | C55: 0.0001 | D55: 0.0001 | E55: 0.0001 | F55: 0.0001 | G55: 0.0001 | H55: 0.0001 | I55: 0.0001 | J55: 0.0001 | K55: 0.0001 | L55: 0.0001 | M55: 0.0001 | N55: 0.0001 | O55: 0.0001 | P55: 0.0001 | Q55: 0.0001 | R55: 0.0001 | S55: 0.0001 | T55: 0.0001 | U55: 0.0001 | V55: 0.0001 | W55: 0.0001 | X55: 0.0001 | Y55: 0.0001
B56: Futterrübe (gehaltvolle), sauber | C56: 190 | D56: 7.9 | E56: =D56/0.6 -> 13.2 | F56: 68 | G56: 20% | H56: =ROUND((11.93-(6.82*G56))*E56+1.03*G56*F56,0) -> 153 | I56: =IF((F56-H56)/6.25<0,ROUND((F56-H56)/6.25,0),"+"&ROUND(((F56-H56)/6.25),0)) -> -14 | J56: 1.05 | K56: =11/0.19 -> 58 | L56: =18/0.19 -> 95 | M56: =IF(AND(S56<>"",F56<>"",L56<>"",P56<>""),1000-F56-L56-P56-S56,"Fehler") -> 651 | N56: 0 | O56: 615 | P56: 5 | Q56: 47 | R56: 0 | S56: 181 | T56: 2.1 | U56: =0.4/0.19 -> 2.1 | V56: =0.1/0.19 -> 0.5 | W56: =0.2/0.19 -> 1.1 | X56: =3.4/0.19 -> 17.9 | Y56: ... | Z56: 470 | AB56: =IF(COUNTA(B56:Y56)<21,"x","") -> 
B57: Grünland, 2. Nutzung, BW extensiv, gut | C57: 172 | D57: 6.1 | E57: 10.2 | F57: 158 | G57: 10% | H57: 131 | I57: =IF((F57-H57)/6.25<0,ROUND((F57-H57)/6.25,0),"+"&ROUND(((F57-H57)/6.25),0)) -> +4 | J57: =ROUND(L57*0.006+0.15,1) -> 3.30 | K57: 301 | L57: 522 | M57: =IF(AND(S57<>"",F57<>"",L57<>"",P57<>""),1000-F57-L57-P57-S57,"Fehler") -> 190 | N57: 0 | O57: 92 | P57: 32 | Q57: 238 | R57: 75% | S57: 98 | T57: 4.4 | U57: 4.4 | V57: 0.6 | W57: 2.4 | X57: 26.4 | Z57: =14*X57+3.5 -> 373
B58: Grünland, 2. Nutzung, BW extensiv, mittel | C58: 220 | D58: 5.8 | E58: 9.8 | F58: 134 | G58: 15% | H58: 127 | I58: =IF((F58-H58)/6.25<0,ROUND((F58-H58)/6.25,0),"+"&ROUND(((F58-H58)/6.25),0)) -> +1 | J58: =ROUND(L58*0.006+0.15,1) -> 3.50 | K58: 340 | L58: 559 | M58: =IF(AND(S58<>"",F58<>"",L58<>"",P58<>""),1000-F58-L58-P58-S58,"Fehler") -> 202 | N58: 0 | O58: 95 | P58: 28 | Q58: 316 | R58: 80% | S58: 77 | T58: 4.4 | U58: 4.4 | V58: 0.6 | W58: 2.4 | X58: 26.4 | Z58: =14*X58+3.5 -> 373
B59: Grünland, 2. Nutzung, BW extensiv, gering | C59: =C58+C58-C57 -> 268 | D59: =D58+D58-D57 -> 5.4 | E59: =E58+E58-E57 -> 9.3 | F59: 110 | G59: 15% | H59: 119 | I59: -1 | J59: 3.70 | K59: =K58+K58-K57 -> 379 | L59: 596 | M59: 186 | N59: 0 | O59: 90 | P59: 28 | Q59: =Q58+Q58-Q57 -> 394 | R59: 100% | S59: 80 | T59: 4.4 | U59: 4.4 | V59: 0.6 | W59: 1.9 | X59: 26.7 | Z59: 377
B60: Grünland, 1. Nutzung, BW intensiv, gut | C60: 180 | D60: 6.7 | E60: 11.0 | F60: 157 | G60: 10% | H60: =ROUND((11.93-(6.82*G60))*E60+1.03*G60*F60,0) -> 140 | I60: +3 | J60: 2.70 | K60: 238 | L60: 425 | M60: =IF(AND(S60<>"",F60<>"",L60<>"",P60<>""),1000-F60-L60-P60-S60,"Fehler") -> 302 | N60: 0 | O60: 189 | P60: 29 | Q60: 208 | R60: 75% | S60: 87 | T60: 6.9 | U60: 4.3 | V60: 0.7 | W60: 2.1 | X60: 23.9 | Z60: 338
B61: Grünland, 1. Nutzung, BW intensiv, mittel | C61: 240 | D61: 6.2 | E61: 10.4 | F61: 168 | G61: 15% | H61: 139 | I61: =IF((F61-H61)/6.25<0,ROUND((F61-H61)/6.25,0),"+"&ROUND(((F61-H61)/6.25),0)) -> +5 | J61: =ROUND(L61*0.006+0.15,1) -> 3.20 | K61: 294 | L61: 502 | M61: =IF(AND(S61<>"",F61<>"",L61<>"",P61<>""),1000-F61-L61-P61-S61,"Fehler") -> 221 | N61: 0 | O61: =(O60+O62)/2 -> 158 | P61: 27 | Q61: 237 | R61: 80% | S61: 82 | T61: 6.8 | U61: 2.9 | V61: 0.6 | W61: 2.0 | X61: 25.0 | Z61: 354
B62: Grünland, 1. Nutzung, BW intensiv, gering | C62: 270 | D62: 6.0 | E62: 10.0 | F62: 132 | G62: 15% | H62: 130 | I62: +0 | J62: 3.60 | K62: 296 | L62: =L61+L61-L60 -> 579 | M62: 184 | N62: 0 | O62: 127 | P62: 27 | Q62: 229 | R62: 100% | S62: 78 | T62: 7.0 | U62: 2.1 | V62: 0.5 | W62: 2.0 | X62: 27.4 | Z62: 387
B63: Grünland, 2. Nutzung, BW intensiv, gut | C63: 180 | D63: 6.5 | E63: 10.7 | F63: 201 | G63: 10% | H63: =ROUND((11.93-(6.82*G63))*E63+1.03*G63*F63,0) -> 141 | I63: +10 | J63: 2.50 | K63: 261 | L63: 387 | M63: =IF(AND(S63<>"",F63<>"",L63<>"",P63<>""),1000-F63-L63-P63-S63,"Fehler") -> 253 | N63: 0 | O63: 62 | P63: 35 | Q63: 183 | R63: 75% | S63: 124 | T63: 6.2 | U63: 3.8 | V63: 0.5 | W63: 1.9 | X63: 28.8 | Z63: 407
B64: Grünland, 2. Nutzung, BW intensiv, mittel | C64: 240 | D64: 6.1 | E64: 10.2 | F64: 162 | G64: 15% | H64: 136 | I64: =IF((F64-H64)/6.25<0,ROUND((F64-H64)/6.25,0),"+"&ROUND(((F64-H64)/6.25),0)) -> +4 | J64: =ROUND(L64*0.006+0.15,1) -> 2.90 | K64: 294 | L64: 450 | M64: =IF(AND(S64<>"",F64<>"",L64<>"",P64<>""),1000-F64-L64-P64-S64,"Fehler") -> 248 | N64: 0 | O64: 62 | P64: 30 | Q64: 226 | R64: 80% | S64: 110 | T64: 6.2 | U64: 3.8 | V64: 0.5 | W64: 1.9 | X64: 28.8 | Z64: 407
B65: Grünland, 2. Nutzung, BW intensiv, gering | C65: 270 | D65: 5.9 | E65: 9.9 | F65: 164 | G65: 15% | H65: 133 | I65: +5 | J65: 3.00 | K65: 300 | L65: 479 | M65: 211 | N65: 0 | O65: 62 | P65: 29 | Q65: 234 | R65: 100% | S65: 117 | T65: 6.2 | U65: 3.8 | V65: 0.5 | W65: 1.9 | X65: 28.8 | Z65: 407
B66: Grünland, Folgenutzung, BW intensiv, gut | C66: 230 | D66: =(5.74+6.41)/2 -> 6.1 | E66: =(10.58+9.72)/2 -> 10.2 | F66: =(177+148)/2 -> 163 | G66: 10% | H66: =ROUND((11.93-(6.82*G66))*E66+1.03*G66*F66,0) -> 131 | I66: +5 | J66: 3.00 | K66: =(255+316)/2 -> 286 | L66: =(417+522)/2 -> 470 | M66: =IF(AND(S66<>"",F66<>"",L66<>"",P66<>""),1000-F66-L66-P66-S66,"Fehler") -> 225 | N66: 0 | O66: 75 | P66: =(31+33)/2 -> 32 | Q66: =(217+279)/2 -> 248 | R66: 75% | S66: =(131+92)/2 -> 111.5 | T66: =(8.8+8.1)/2 -> 8.5 | U66: =(5.1+5)/2 -> 5.1 | V66: =(1.4+1.2)/2 -> 1.3 | W66: =(2.3+2.5)/2 -> 2.4 | X66: =(31.2+19.8)/2 -> 25.5 | Z66: 361
B67: Grünland, Folgenutzung, BW intensiv, gering | C67: 250 | D67: =(5.23+5.74)/2 -> 5.5 | E67: =(9.65+9)/2 -> 9.3 | F67: =(155+128)/2 -> 142 | G67: 15% | H67: 124 | I67: =IF((F67-H67)/6.25<0,ROUND((F67-H67)/6.25,0),"+"&ROUND(((F67-H67)/6.25),0)) -> +3 | J67: =ROUND(L67*0.006+0.15,1) -> 3.10 | K67: =(277+395)/2 -> 336 | L67: =(425+559)/2 -> 492 | M67: =IF(AND(S67<>"",F67<>"",L67<>"",P67<>""),1000-F67-L67-P67-S67,"Fehler") -> 215 | N67: 0 | O67: 75 | P67: =(21+35)/2 -> 28 | Q67: =(248+335)/2 -> 291.5 | R67: 80% | S67: =(81+166)/2 -> 123.5 | T67: =(7.8+9.2)/2 -> 8.5 | U67: =(5.5+4.9)/2 -> 5.2 | V67: =(1.2+1.5)/2 -> 1.4 | W67: =(2.5+3.8)/2 -> 3.2 | X67: =(26.8+12.1)/2 -> 19.5 | Z67: 276
B68: Karotten | C68: 120 | D68: 7.7 | E68: 12.2 | F68: 100 | G68: 15% | H68: =ROUND((11.93-(6.82*G68))*E68+1.03*G68*F68,0) -> 148 | I68: =IF((F68-H68)/6.25<0,ROUND((F68-H68)/6.25,0),"+"&ROUND(((F68-H68)/6.25),0)) -> -8 | J68: =ROUND((+Q68*0.0125-0.2)*0.95,1) -> 0.90 | K68: 95 | L68: 96 | M68: =IF(AND(S68<>"",F68<>"",L68<>"",P68<>""),1000-F68-L68-P68-S68,"Fehler") -> 694 | N68: 0 | O68: 500 | P68: 15 | Q68: 95 | R68: 50% | S68: 95 | T68: 3.5 | U68: 3.5 | V68: 3.5 | W68: 1.5 | X68: 26.0 | Y68: ... | Z68: ...
B69: Kartoffeln | C69: 220 | D69: 8.5 | E69: 13.1 | F69: 96 | G69: 35% | H69: =ROUND((11.93-(6.82*G69))*E69+1.03*G69*F69,0) -> 160 | I69: -10 | J69: 0.70 | K69: 45 | L69: 75 | M69: 764 | N69: 710 | O69: 30 | P69: 5 | Q69: 27 | R69: 0 | S69: 60 | T69: =0.1/0.22 -> 0.5 | U69: =0.6/0.22 -> 2.7 | V69: =0.1/0.22 -> 0.5 | W69: =0.2/0.22 -> 0.9 | X69: =4.7/0.22 -> 21.4 | Y69: ... | Z69: 365 | AC69: =+Q69 -> 27 | AD69: =IF(M69=0,0.0001,M69) -> 764 | AE69: 10% | AF69: =+AD69*AE69 -> 76.4 | AG69: =+O69 -> 30 | AH69: =0.9-1.3*AE69 -> 0.770
B70: Kleegras 1. Aufwuchs - vor der Knospe | C70: 150 | D70: 6.7 | E70: 11.1 | F70: 230 | G70: 15% | H70: 156 | I70: +12 | J70: =ROUND((+Q70*0.0125-0.2)*0.95,1) -> 2.00 | K70: =Q70*1.2 -> 222 | L70: =Q70*1.9 -> 352 | M70: 279 | N70: 0 | O70: 80 | P70: 35 | Q70: 185 | R70: 50% | S70: 105 | T70: 13.0 | U70: 4.5 | V70: 0.3 | W70: 2.4 | X70: 36.0 | Y70: ... | Z70: 500
B71: Kleegras 1. Aufwuchs - in der Knospe | C71: 160 | D71: 6.4 | E71: 10.6 | F71: 215 | G71: 15% | H71: 149 | I71: =IF((F71-H71)/6.25<0,ROUND((F71-H71)/6.25,0),"+"&ROUND(((F71-H71)/6.25),0)) -> +11 | J71: 2.40 | K71: 270 | L71: 435 | M71: 220 | N71: 0 | O71: 80 | P71: 30 | Q71: 220 | R71: 60% | S71: 100 | T71: 10.0 | U71: 4.4 | V71: 0.5 | W71: 2.3 | X71: 35.0 | Y71: ... | Z71: 500
B72: Kleegras, Folgeaufwuchs - in der Knospe | C72: 170 | D72: 5.9 | E72: 9.9 | F72: 205 | G72: 15% | H72: 140 | I72: +10 | J72: 2.70 | K72: =Q72*1.2 -> 288 | L72: =Q72*1.9 -> 456 | M72: 204 | N72: 0 | O72: 70 | P72: 30 | Q72: 240 | R72: 60% | S72: 105 | T72: =2.4/0.21 -> 11.4 | U72: =0.9/0.21 -> 4.3 | V72: =0.15/0.21 -> 0.7 | W72: =0.5/0.21 -> 2.4 | X72: =6.7/0.21 -> 31.9 | Y72: ... | Z72: 500
B73: Kleegras, Folgeaufwuchs - Beginn der Blüte | C73: 180 | D73: 5.5 | E73: 9.3 | F73: 170 | G73: 20% | H73: 134 | I73: +6 | J73: 2.90 | K73: 305 | L73: 520 | M73: 175 | N73: 0 | O73: 70 | P73: 30 | Q73: 260 | R73: 80% | S73: 105 | T73: 8.0 | U73: 4.0 | V73: 0.3 | W73: 2.0 | X73: 35.0 | Y73: ... | Z73: ...
B74: Luzerne, Beginn Knospenbildung | C74: 170 | D74: 6.2 | E74: 10.4 | F74: 240 | G74: 15% | H74: 151 | I74: +14 | J74: 2.30 | K74: 285 | L74: 340 | M74: 285 | N74: 0 | O74: 15 | P74: 30 | Q74: 210 | R74: 75% | S74: 105 | T74: 18.0 | U74: 3.0 | V74: 0.5 | W74: 3.2 | X74: 30.0 | Y74: ... | Z74: ...
B75: Luzerne, Beginn Blüte | C75: 200 | D75: 5.5 | E75: 9.3 | F75: 190 | G75: 20% | H75: 138 | I75: +8 | J75: 3.10 | K75: 330 | L75: 385 | M75: 290 | N75: 0 | O75: 25 | P75: 30 | Q75: 275 | R75: 75% | S75: 105 | T75: 20.0 | U75: 2.8 | V75: 1.0 | W75: 2.7 | X75: 26.0 | Y75: ... | Z75: ...
B76: Mais | C76: 358 | D76: 7.1 | E76: 11.6 | F76: 63 | G76: 15% | H76: =ROUND((11.93-(6.82*G76))*E76+1.03*G76*F76,0) -> 136 | I76: =IF((F76-H76)/6.25<0,ROUND((F76-H76)/6.25,0),"+"&ROUND(((F76-H76)/6.25),0)) -> -12 | J76: =ROUND((+Q76*0.0125-0.2)*0.95,1) -> 1.70 | K76: 180 | L76: 306 | M76: =IF(AND(S76<>"",F76<>"",L76<>"",P76<>""),1000-F76-L76-P76-S76,"Fehler") -> 564 | N76: 357 | O76: 110 | P76: 32 | Q76: 157 | R76: 75% | S76: 35 | T76: 2.1 | U76: 2.6 | V76: 0.1 | W76: 1.4 | X76: 9.2
B77: Raps, v.d. Blüte | C77: 120 | D77: 6.8 | E77: 11.0 | F77: 210 | G77: 15% | H77: 153 | I77: +9 | J77: 1.40 | K77: 155 | L77: 235 | M77: 375 | N77: 0 | O77: 110 | P77: 35 | Q77: 130 | R77: 50% | S77: 145 | T77: 17.0 | U77: 4.5 | V77: 1.3 | W77: 2.6 | X77: 32.0 | Y77: ... | Z77: 305
B78: Roggen, Schossen | C78: 220 | D78: 6.9 | E78: 11.3 | F78: 185 | G78: 15% | H78: 152 | I78: +5 | J78: 2.50 | K78: =1.2*Q78 -> 276 | L78: =1.9*Q78 -> 437 | M78: 238 | N78: 0 | O78: 120 | P78: 40 | Q78: 230 | R78: 75% | S78: 100 | T78: 7.5 | U78: 6.6 | V78: 1.0 | W78: 1.6 | X78: 28.0 | Y78: ... | Z78: ...
B79: Rübenblatt, sauber | C79: 160 | D79: 6.5 | E79: 10.5 | F79: 160 | G79: 15% | H79: 139 | I79: +3 | J79: 1.50 | K79: 125 | L79: 310 | M79: 345 | N79: 0 | O79: 220 | P79: 20 | Q79: 110 | R79: 50% | S79: 165 | T79: =2.1/0.16 -> 13.1 | U79: =0.4/0.16 -> 2.5 | V79: =0.9/0.16 -> 5.6 | W79: =0.7/0.16 -> 4.4 | X79: =5/0.16 -> 31.3 | Y79: ... | Z79: ...
B80: Schlempe, Weizen | C80: 60 | D80: 7.9 | E80: 12.9 | F80: 360 | G80: 30% | H80: 239 | I80: +19 | J80: 0.00 | K80: 130 | L80: 430 | M80: 90 | N80: 175 | O80: 20 | P80: 70 | Q80: 100 | R80: 0% | S80: 50 | T80: 3.5 | U80: 5.3 | V80: 3.1 | W80: 2.4 | X80: 8.0 | Y80: ... | Z80: ... | AC80: =+Q80 -> 100 | AD80: =IF(M80=0,0.0001,M80) -> 90 | AE80: 10% | AF80: =+AD80*AE80 -> 9 | AG80: =+O80 -> 20 | AH80: =0.9-1.3*AE80 -> 0.770
B81: Schlempe, Kartoffel | C81: 60 | D81: 7.5 | E81: 12.0 | F81: 308 | G81: 30% | H81: 214 | I81: +15 | J81: 0.00 | K81: 70 | L81: 90 | M81: 452 | N81: 27 | O81: 0 | P81: 15 | Q81: 70 | R81: 0% | S81: 135 | T81: 2.8 | U81: 7.3 | V81: 0.6 | W81: 0.5 | X81: 55.0 | Y81: ... | Z81: ... | AC81: =+Q81 -> 70 | AD81: =IF(M81=0,0.0001,M81) -> 452 | AE81: 10% | AF81: =+AD81*AE81 -> 45.2 | AG81: =+O81 -> 0 | AH81: =0.9-1.3*AE81 -> 0.770
B82: Zuckerrüben, sauber | C82: 230 | D82: 8.0 | E82: 12.6 | F82: 60 | G82: 20% | H82: 145 | I82: -14 | J82: 0.80 | K82: 250 | L82: 110 | M82: 760 | N82: 0 | O82: 695 | P82: 20 | Q82: 52 | R82: 0% | S82: 50 | T82: 2.6 | U82: 1.7 | V82: 0.9 | W82: 1.7 | X82: 15.0 | Y82: ... | Z82: 100
A84: Silagen | C84: 0.0001 | D84: 0.0001 | E84: 0.0001 | F84: 0.0001 | G84: 0.0001 | H84: 0.0001 | I84: 0.0001 | J84: 0.0001 | K84: 0.0001 | L84: 0.0001 | M84: 0.0001 | N84: 0.0001 | O84: 0.0001 | P84: 0.0001 | Q84: 0.0001 | R84: 0.0001 | S84: 0.0001 | T84: 0.0001 | U84: 0.0001 | V84: 0.0001 | W84: 0.0001 | X84: 0.0001 | Y84: 0.0001
B85: Biertrebersilage | C85: 230 | D85: 6.7 | E85: 11.3 | F85: 235 | G85: 40% | H85: =ROUND((11.93-(6.82*G85))*E85+1.03*G85*F85,0) -> 200 | I85: =IF((F85-H85)/6.25<0,ROUND((F85-H85)/6.25,0),"+"&ROUND(((F85-H85)/6.25),0)) -> +6 | J85: 1.05 | K85: 299 | L85: 581 | M85: 57 | N85: 20 | O85: 6 | P85: 83 | Q85: 215 | R85: 25% | S85: 45 | T85: 4.3 | U85: 8.5 | V85: 0.2 | W85: 2.1 | X85: 2.2 | Y85: ... | Z85: -70 | AB85: =IF(COUNTA(B85:Y85)<21,"x","") ->  | AC85: =+Q85 -> 215 | AD85: =IF(N85=0,0.0001,N85) -> 20 | AE85: 10% | AF85: =+AD85*AE85 -> 2 | AG85: =+O85 -> 6 | AH85: =0.9-1.3*AE85 -> 0.770
B86: CCM | C86: 600 | D86: 8.0 | E86: 12.8 | F86: 100 | G86: 35% | H86: 158 | I86: =IF((F86-H86)/6.25<0,ROUND((F86-H86)/6.25,0),"+"&ROUND(((F86-H86)/6.25),0)) -> -9 | J86: =ROUND(0.321+0.00098*AC86+0.00025*AF86-(0.00112*(AG86+AH86*(AD86-AF86))),2) -> 0.17 | K86: =Q86*1.16 -> 64 | L86: =Q86*3 -> 165 | M86: =IF(AND(S86<>"",F86<>"",L86<>"",P86<>""),1000-F86-L86-P86-S86,"Fehler") -> 670 | N86: 630 | O86: 4 | P86: 45 | Q86: 55 | R86: 0% | S86: 20 | T86: 0.4 | U86: 3.5 | V86: 0.2 | W86: 1.3 | X86: 4.0 | Y86: ... | Z86: -60 | AC86: =+Q86 -> 55 | AD86: =IF(N86=0,0.0001,N86) -> 630 | AE86: 30% | AF86: =+AD86*AE86 -> 189 | AG86: =+O86 -> 4 | AH86: =0.9-1.3*AE86 -> 0.510
B87: GPS, Ackerbohne | C87: 350 | D87: 5.7 | E87: 9.7 | F87: 180 | G87: 15% | H87: 133 | I87: =IF((F87-H87)/6.25<0,ROUND((F87-H87)/6.25,0),"+"&ROUND(((F87-H87)/6.25),0)) -> +8 | J87: =L87*0.006-0.57 -> 3.13 | K87: =Q87*1.3 -> 364 | L87: =Q87*2.2 -> 616 | M87: 104 | N87: 120 | O87: 30 | P87: 20 | Q87: 280 | R87: 100% | S87: 80 | T87: 10.0 | U87: 3.6 | V87: 2.0 | W87: 3.3 | X87: 20.0 | Y87: ... | Z87: ... | AC87: =+Q87 -> 280 | AD87: =IF(N87=0,0.0001,N87) -> 120 | AE87: 10% | AF87: =+AD87*AE87 -> 12 | AG87: =+O87 -> 30 | AH87: =0.9-1.3*AE87 -> 0.770
B88: GPS, Gerste, BW gut | C88: 430 | D88: 5.8 | E88: 9.9 | F88: 96 | G88: 20% | H88: 124 | I88: =IF((F88-H88)/6.25<0,ROUND((F88-H88)/6.25,0),"+"&ROUND(((F88-H88)/6.25),0)) -> -4 | J88: =L88*0.006-0.57 -> 1.94 | K88: 233 | L88: 418 | M88: 418 | N88: 263 | O88: 30 | P88: 23 | Q88: 203 | R88: 100% | S88: 45 | T88: 3.2 | U88: 2.4 | V88: 0.2 | W88: 1.3 | X88: 14.6 | Y88: ... | Z88: 120 | AC88: =+Q88 -> 203 | AD88: =IF(N88=0,0.0001,N88) -> 263 | AE88: 10% | AF88: =+AD88*AE88 -> 26.3 | AG88: =+O88 -> 30 | AH88: =0.9-1.3*AE88 -> 0.770
B89: GPS, Gerste, BW gering | C89: 370 | D89: 5.2 | E89: 9.0 | F89: 75 | G89: 20% | H89: 110 | I89: =IF((F89-H89)/6.25<0,ROUND((F89-H89)/6.25,0),"+"&ROUND(((F89-H89)/6.25),0)) -> -6 | J89: 2.49 | K89: 305 | L89: 510 | M89: =IF(AND(S89<>"",F89<>"",L89<>"",P89<>""),1000-F89-L89-P89-S89,"Fehler") -> 325 | N89: 230 | O89: 30 | P89: 20 | Q89: 264 | R89: 100% | S89: 70 | T89: 3.2 | U89: 2.4 | V89: 0.2 | W89: 1.3 | X89: 14.6 | Y89: ... | Z89: 120
B90: GPS, Hafer, BW | C90: 410 | D90: 4.9 | E90: 8.5 | F90: 106 | G90: 20% | H90: 116 | I90: -2 | J90: 3.21 | K90: 365 | L90: 630 | M90: 149 | N90: 240 | O90: 30 | P90: 25 | Q90: 325 | R90: 100% | S90: 90 | T90: 5.3 | U90: 5.7 | V90: 0.2 | W90: 2.2 | X90: 20.0 | Y90: ... | Z90: 120
B91: GPS, Weizen, BW | C91: 440 | D91: 5.6 | E91: 9.6 | F91: 92 | G91: 20% | H91: 119 | I91: -4 | J91: 2.02 | K91: 262 | L91: 432 | M91: 406 | N91: 249 | O91: 2 | P91: 20 | Q91: 220 | R91: 100% | S91: 50 | T91: 2.2 | U91: 3.0 | V91: 0.1 | W91: 1.1 | X91: 11.9 | Y91: ... | Z91: 120
B92: Grassilage, 1. S, BW extensiv, gut | C92: 362 | D92: 6.4 | E92: 10.7 | F92: 157 | G92: 15% | H92: =ROUND((11.93-(6.82*G92))*E92+1.03*G92*F92,0) -> 141 | I92: +3 | J92: =ROUND(L92*0.006+0.15,1) -> 2.60 | K92: 263 | L92: 408 | M92: 303 | N92: 0 | O92: 66 | P92: 37 | Q92: 222 | R92: 100% | S92: 95 | T92: 7.4 | U92: 3.6 | V92: 0.4 | W92: 2.2 | X92: 27.6 | Y92: ... | Z92: =14*X92+3.5 -> 390
B93: Grassilage, 1. S, BW extensiv, mittel | C93: 344 | D93: 6.0 | E93: 10.1 | F93: 145 | G93: 15% | H93: 132 | I93: +2 | J93: 2.80 | K93: 288 | L93: 445 | M93: 275 | N93: 0 | O93: 48 | P93: 36 | Q93: 244 | R93: 100% | S93: 99 | T93: 7.6 | U93: 3.5 | V93: 0.3 | W93: 2.1 | X93: 26.9 | Y93: ... | Z93: =14*X93+3.5 -> 380
B94: Grassilage, 1. S, BW extensiv, gering | C94: 253 | D94: 5.5 | E94: 9.4 | F94: 130 | G94: 15% | H94: 123 | I94: +1 | J94: 3.00 | K94: 318 | L94: 479 | M94: 253 | N94: 0 | O94: 39 | P94: 32 | Q94: 269 | R94: 100% | S94: 106 | T94: 7.8 | U94: 3.1 | V94: 0.4 | W94: 2.1 | X94: 23.6 | Y94: ... | Z94: 334
B95: Grassilage, 2. S, BW extensiv, gut | C95: 418 | D95: 6.2 | E95: 10.4 | F95: 156 | G95: 15% | H95: 137 | I95: =IF((F95-H95)/6.25<0,ROUND((F95-H95)/6.25,0),"+"&ROUND(((F95-H95)/6.25),0)) -> +3 | J95: =ROUND(L95*0.006+0.15,1) -> 2.70 | K95: 275 | L95: 432 | M95: =IF(AND(S95<>"",F95<>"",L95<>"",P95<>""),1000-F95-L95-P95-S95,"Fehler") -> 275 | N95: 0 | O95: 72 | P95: 37 | Q95: 228 | R95: 100% | S95: 100 | T95: 9.2 | U95: 3.8 | V95: 0.5 | W95: 2.7 | X95: 26.3 | Y95: ... | Z95: 372
B96: Grassilage, 2. S, BW extensiv, mittel | C96: 413 | D96: 5.8 | E96: 9.8 | F96: 140 | G96: 15% | H96: 129 | I96: +2 | J96: 2.80 | K96: 292 | L96: 444 | M96: 275 | N96: 0 | O96: 59 | P96: 34 | Q96: 240 | R96: 100% | S96: 107 | T96: 9.9 | U96: 3.5 | V96: 0.5 | W96: 2.7 | X96: 25.0 | Y96: ... | Z96: 354
B97: Grassilage, 2. S, BW extensiv, gering | C97: 405 | D97: 5.4 | E97: 9.2 | F97: 135 | G97: 15% | H97: 121 | I97: +2 | J97: 3.00 | K97: 319 | L97: 476 | M97: 245 | N97: 0 | O97: 45 | P97: 31 | Q97: 262 | R97: 100% | S97: 113 | T97: 10.4 | U97: 3.3 | V97: 0.4 | W97: 2.7 | X97: 22.1 | Y97: ... | Z97: 313
B98: Grassilage, 3. S, BW extensiv, gut | C98: 396 | D98: 6.1 | E98: 10.2 | F98: 161 | G98: 15% | H98: 137 | I98: =IF((F98-H98)/6.25<0,ROUND((F98-H98)/6.25,0),"+"&ROUND(((F98-H98)/6.25),0)) -> +4 | J98: =ROUND(L98*0.006+0.15,1) -> 2.60 | K98: 264 | L98: 404 | M98: =IF(AND(S98<>"",F98<>"",L98<>"",P98<>""),1000-F98-L98-P98-S98,"Fehler") -> 287 | N98: 0 | O98: 61 | P98: 37 | Q98: 210 | R98: 100% | S98: 111 | T98: 12.0 | U98: 3.9 | V98: 0.6 | W98: 3.0 | X98: 25.4 | Y98: ... | Z98: 359
B99: Grassilage, 3. S, BW extensiv, mittel | C99: 385 | D99: 5.8 | E99: 9.7 | F99: 147 | G99: 15% | H99: 129 | I99: +3 | J99: 2.70 | K99: 289 | L99: 423 | M99: 277 | N99: 0 | O99: 44 | P99: 35 | Q99: 231 | R99: 100% | S99: 118 | T99: 11.3 | U99: 3.8 | V99: 0.6 | W99: 2.8 | X99: 25.3 | Y99: ... | Z99: 358
B100: Grassilage, 3. S, BW extensiv, gering | C100: 352 | D100: 5.5 | E100: 9.2 | F100: 142 | G100: 15% | H100: 123 | I100: +3 | J100: 2.80 | K100: 303 | L100: 449 | M100: 234 | N100: 0 | O100: 27 | P100: 34 | Q100: 241 | R100: 100% | S100: 141 | T100: 11.8 | U100: 3.5 | V100: 0.4 | W100: 2.8 | X100: 25.1 | Y100: ... | Z100: 355
B101: Grassilage, 1. S, BW intensiv, gut | C101: 356 | D101: 6.6 | E101: 10.9 | F101: 164 | G101: 15% | H101: 144 | I101: +3 | J101: 2.50 | K101: 246 | L101: 396 | M101: 306 | N101: 0 | O101: 76 | P101: 38 | Q101: 212 | R101: 100% | S101: 96 | T101: 6.8 | U101: 3.6 | V101: 0.6 | W101: 2.1 | X101: 28.3 | Y101: 0.06 | Z101: 400
B102: Grassilage, 1. S, BW intensiv, mittel | C102: 333 | D102: 6.2 | E102: 10.3 | F102: 155 | G102: 15% | H102: 137 | I102: +3 | J102: 2.70 | K102: 274 | L102: 429 | M102: 278 | N102: 0 | O102: 46 | P102: 37 | Q102: 235 | R102: 100% | S102: 101 | T102: 6.9 | U102: 3.6 | V102: 0.5 | W102: 2.1 | X102: 27.8 | Y102: 0.05 | Z102: 393
B103: Grassilage, 1. S, BW intensiv, gering | C103: 324 | D103: 5.8 | E103: 9.7 | F103: 141 | G103: 15% | H103: 128 | I103: +2 | J103: 2.90 | K103: 298 | L103: 454 | M103: 262 | N103: 0 | O103: 38 | P103: 35 | Q103: 252 | R103: 100% | S103: 108 | T103: 7.1 | U103: 3.4 | V103: 0.4 | W103: 2.1 | X103: 26.6 | Y103: 0.05 | Z103: 376
B104: Grassilage, 2. S, BW intensiv, gut | C104: 401 | D104: 6.4 | E104: 10.6 | F104: 161 | G104: 15% | H104: 140 | I104: =IF((F104-H104)/6.25<0,ROUND((F104-H104)/6.25,0),"+"&ROUND(((F104-H104)/6.25),0)) -> +3 | J104: =ROUND(L104*0.006+0.15,1) -> 2.60 | K104: 263 | L104: 413 | M104: =IF(AND(S104<>"",F104<>"",L104<>"",P104<>""),1000-F104-L104-P104-S104,"Fehler") -> 288 | N104: 0 | O104: 73 | P104: 37 | Q104: 220 | R104: 100% | S104: 101 | T104: 7.9 | U104: 3.8 | V104: 0.9 | W104: 2.6 | X104: 26.5 | Y104: 0.07 | Z104: 375
B105: Grassilage, 2. S, BW intensiv, mittel | C105: 385 | D105: 6.1 | E105: 10.1 | F105: 152 | G105: 15% | H105: 134 | I105: +3 | J105: 2.80 | K105: 279 | L105: 434 | M105: 275 | N105: 0 | O105: 59 | P105: 36 | Q105: 234 | R105: 100% | S105: 103 | T105: 8.4 | U105: 3.6 | V105: 0.7 | W105: 2.6 | X105: 26.1 | Y105: 0.07 | Z105: 369
B106: Grassilage, 2. S, BW intensiv, gering | C106: 380 | D106: 5.7 | E106: 9.7 | F106: 142 | G106: 15% | H106: 127 | I106: +2 | J106: 2.90 | K106: 296 | L106: 457 | M106: 257 | N106: 0 | O106: 48 | P106: 34 | Q106: 247 | R106: 100% | S106: 110 | T106: 8.6 | U106: 3.6 | V106: 0.6 | W106: 2.6 | X106: 24.7 | Y106: 0.07 | Z106: 349
B107: Grassilage, 3. S, BW intensiv, gut | C107: 405 | D107: 6.3 | E107: 10.4 | F107: 168 | G107: 15% | H107: =ROUND((11.93-(6.82*G107))*E107+1.03*G107*F107,0) -> 140 | I107: =IF((F107-H107)/6.25<0,ROUND((F107-H107)/6.25,0),"+"&ROUND(((F107-H107)/6.25),0)) -> +4 | J107: =ROUND(L107*0.006+0.15,1) -> 2.60 | K107: 262 | L107: 415 | M107: =IF(AND(S107<>"",F107<>"",L107<>"",P107<>""),1000-F107-L107-P107-S107,"Fehler") -> 269 | N107: 0 | O107: 63 | P107: 39 | Q107: 216 | R107: 100% | S107: 109 | T107: 8.3 | U107: 3.8 | V107: 0.7 | W107: 2.8 | X107: 27.1 | Y107: 0.08 | Z107: 383
B108: Grassilage, 3. S, BW intensiv, mittel | C108: 375 | D108: 6.0 | E108: 10.0 | F108: 163 | G108: 15% | H108: 134 | I108: +5 | J108: 2.70 | K108: 279 | L108: 425 | M108: 263 | N108: 0 | O108: 43 | P108: 38 | Q108: 227 | R108: 100% | S108: 111 | T108: 9.6 | U108: 4.0 | V108: 0.7 | W108: 3.0 | X108: 26.1 | Y108: 0.07 | Z108: 369
B109: Grassilage, 3. S, BW intensiv, gering | C109: 361 | D109: 5.6 | E109: 9.5 | F109: 153 | G109: 15% | H109: 127 | I109: +4 | J109: 2.80 | K109: 298 | L109: 443 | M109: 247 | N109: 0 | O109: 33 | P109: 35 | Q109: 240 | R109: 100% | S109: 122 | T109: 9.7 | U109: 3.8 | V109: 0.6 | W109: 3.1 | X109: 24.6 | Y109: 0.07 | Z109: 348
B110: Grassilage, 4. S, BW intensiv, gut | C110: 379 | D110: 6.4 | E110: 10.6 | F110: 176 | G110: 15% | H110: =ROUND((11.93-(6.82*G110))*E110+1.03*G110*F110,0) -> 142 | I110: =IF((F110-H110)/6.25<0,ROUND((F110-H110)/6.25,0),"+"&ROUND(((F110-H110)/6.25),0)) -> +5 | J110: =ROUND(L110*0.006+0.15,1) -> 2.50 | K110: 247 | L110: 386 | M110: =IF(AND(S110<>"",F110<>"",L110<>"",P110<>""),1000-F110-L110-P110-S110,"Fehler") -> 277 | N110: 0 | O110: 55 | P110: 39 | Q110: 200 | R110: 100% | S110: 122 | T110: 9.1 | U110: 4.4 | V110: 0.6 | W110: 2.9 | X110: 29.6 | Y110: 0.07 | Z110: 418
B111: Grassilage, 4. S, BW intensiv, mittel | C111: 373 | D111: 6.1 | E111: 10.1 | F111: 170 | G111: 15% | H111: 137 | I111: +5 | J111: 2.60 | K111: 266 | L111: 406 | M111: 257 | N111: 0 | O111: 44 | P111: 38 | Q111: 216 | R111: 100% | S111: 129 | T111: 8.9 | U111: 4.1 | V111: 0.7 | W111: 3.0 | X111: 25.8 | Y111: 0.07 | Z111: 365
B112: Grassilage, 4. S, BW intensiv, gering | C112: 337 | D112: 5.8 | E112: 9.7 | F112: 173 | G112: 15% | H112: 132 | I112: +7 | J112: 2.60 | K112: 264 | L112: 415 | M112: 216 | N112: 0 | O112: 28 | P112: 38 | Q112: 211 | R112: 100% | S112: 158 | T112: 7.8 | U112: 4.2 | V112: 0.9 | W112: 3.1 | X112: 28.9 | Y112: 0.07 | Z112: 408
B113: Hafer, grün | C113: 190 | D113: 6.3 | E113: 10.4 | F113: 115 | G113: 15% | H113: 130 | I113: =IF((F113-H113)/6.25<0,ROUND((F113-H113)/6.25,0),"+"&ROUND(((F113-H113)/6.25),0)) -> -2 | J113: =ROUND(L113*0.006+0.15,1) -> 3.30 | K113: 305 | L113: 525 | M113: =IF(AND(S113<>"",F113<>"",L113<>"",P113<>""),1000-F113-L113-P113-S113,"Fehler") -> 169 | N113: 0 | O113: 2 | P113: 40 | Q113: 260 | R113: 80% | S113: 151 | T113: 5.7 | U113: 4.0 | V113: 1.0 | W113: 2.0 | X113: 22.0 | Y113: ... | Z113: ...
B114: Hirse | C114: 280 | D114: 6.2 | E114: 10.4 | F114: 98 | G114: 20% | H114: 110 | I114: =IF((F114-H114)/6.25<0,ROUND((F114-H114)/6.25,0),"+"&ROUND(((F114-H114)/6.25),0)) -> -2 | J114: =ROUND(L114*0.006+0.15,1) -> 2.40 | K114: 240 | L114: 380 | M114: 455 | N114: 215 | O114: 60 | P114: 25 | Q114: 200 | R114: 80% | S114: 45 | Y114: ... | Z114: ...
B115: Kartoffelpülpe | C115: 180 | D115: 7.1 | E115: 11.5 | F115: 49 | G115: 25% | H115: =ROUND((11.93-(6.82*G115))*E115+1.03*G115*F115,0) -> 130 | I115: =IF((F115-H115)/6.25<0,ROUND((F115-H115)/6.25,0),"+"&ROUND(((F115-H115)/6.25),0)) -> -13 | J115: 0.70 | K115: 315 | L115: 365 | M115: 546 | N115: 380 | O115: 15 | P115: 5 | Q115: 208 | R115: 0% | S115: 35 | T115: 0.7 | U115: 2.7 | V115: 0.1 | W115: 0.7 | X115: 22.0 | Y115: ... | Z115: ... | AC115: =+Q115 -> 208 | AD115: =IF(N115=0,0.0001,N115) -> 380 | AE115: 10% | AF115: =+AD115*AE115 -> 38 | AG115: =+O115 -> 15 | AH115: =0.9-1.3*AE115 -> 0.770
B116: Kleegras, grasreich, 1. S., BW gut | C116: 317 | D116: 6.4 | E116: 10.6 | F116: 151 | G116: 15% | H116: 138 | I116: +2 | J116: =ROUND(L116*0.006+0.15,1) -> 2.60 | K116: 257 | L116: 402 | M116: 305 | N116: 0 | O116: 37 | P116: 36 | Q116: 223 | R116: 80% | S116: 106 | T116: 7.8 | U116: 4.1 | V116: 0.7 | W116: 1.9 | X116: 29.5 | Y116: ... | Z116: 520
B117: Kleegras, grasreich, 1. S., BW mittel | C117: 310 | D117: 6.0 | E117: 10.0 | F117: 154 | G117: 15% | H117: 133 | I117: +3 | J117: 2.70 | K117: 289 | L117: 418 | M117: 295 | N117: 0 | O117: 27 | P117: 32 | Q117: 244 | R117: 80% | S117: 101 | T117: 10.0 | U117: 3.9 | V117: 0.7 | W117: 1.4 | X117: 30.1 | Y117: ... | Z117: 550
B118: Kleegras, grasreich, 1. S., BW gering | C118: 303 | D118: 5.4 | E118: 9.2 | F118: 139 | G118: 15% | H118: 121 | I118: +3 | J118: 3.20 | K118: 339 | L118: 504 | M118: 223 | N118: 0 | O118: 14 | P118: 35 | Q118: 289 | R118: 80% | S118: 99 | T118: 9.0 | U118: 3.0 | V118: 1.6 | W118: 2.3 | X118: 20.0 | Y118: ... | Z118: 400
B119: Kleegras, grasreich, Folgeaufwuchs, BW gut | C119: =(413*3+398*1)/4 -> 409 | D119: =(6.12*3+5.9*1)/4 -> 6.1 | E119: =(10.23*3+9.9*1)/4 -> 10.1 | F119: =(126*3+163*1)/4 -> 135 | G119: 15% | H119: 132 | I119: +1 | J119: 2.70 | K119: =(284*3+290*1)/4 -> 286 | L119: =(426*3+425*1)/4 -> 426 | M119: 301 | N119: 0 | O119: =(49*3+56*1)/4 -> 51 | P119: =(35*3+35*1)/4 -> 35 | Q119: =(243*3+248*1)/4 -> 244 | R119: 80% | S119: =(102*3+105*1)/4 -> 103 | T119: 6.6 | U119: 4.1 | V119: 0.4 | W119: 1.6 | X119: 29.5 | Y119: ... | Z119: 445
B120: Kleegras, grasreich, Folgeaufwuchs, BW mittel | C120: =(397*12+342*4)/16 -> 383 | D120: =(5.79*12+5.73*4)/16 -> 5.8 | E120: =(9.75*12+9.66*4)/16 -> 9.7 | F120: =(142*12+161*4)/16 -> 147 | G120: 15% | H120: =ROUND((11.93-(6.82*G120))*E120+1.03*G120*F120,0) -> 129 | I120: =IF((F120-H120)/6.25<0,ROUND((F120-H120)/6.25,0),"+"&ROUND(((F120-H120)/6.25),0)) -> +3 | J120: =ROUND(L120*0.006+0.15,1) -> 2.90 | K120: =(304*12+292*4)/16 -> 301 | L120: =(458*12+457*4)/16 -> 458 | M120: =IF(AND(S120<>"",F120<>"",L120<>"",P120<>""),1000-F120-L120-P120-S120,"Fehler") -> 261 | N120: 0 | O120: =(54*12+26*4)/16 -> 47 | P120: =(31*12+36*4)/16 -> 32 | Q120: =(262*12+246*4)/16 -> 258 | R120: 80% | S120: =(98*12+116*4)/16 -> 103 | T120: 6.6 | U120: 4.1 | V120: 0.4 | W120: 1.6 | X120: 29.5 | Y120: ... | Z120: 445
B121: Kleegras, grasreich, Folgeaufwuchs, BW gering | C121: =(402*3+382*2)/5 -> 394 | D121: =(5.34*3+5.6*2)/5 -> 5.4 | E121: =(9.06*3+9.45*2)/5 -> 9.2 | F121: =(132*3+152*2)/5 -> 140 | G121: 15% | H121: 122 | I121: +3 | J121: 3.00 | K121: =(341*3+301*2)/5 -> 325 | L121: =(478*3+458*2)/5 -> 470 | M121: 236 | N121: 0 | O121: =(56*3+21*2)/5 -> 42 | P121: =(28*3+34*2)/5 -> 30 | Q121: =(278*3+249*2)/5 -> 266 | R121: 80% | S121: =(124*3+122*2)/5 -> 123 | T121: 11.8 | U121: 4.5 | V121: 0.5 | W121: 2.4 | X121: 34.6 | Z121: 580
B122: LKS | C122: 480 | D122: 7.5 | E122: 12.1 | F122: 95 | G122: 35% | H122: 150 | I122: -9 | J122: =ROUND(L122*0.006-0.57,1) -> 2.00 | K122: =Q122*1.16 -> 162 | L122: =Q122*3 -> 420 | M122: 425 | N122: 445 | O122: 10 | P122: 35 | Q122: 140 | R122: 25% | S122: 25 | T122: 1.0 | U122: 2.5 | V122: 0.3 | W122: 1.2 | X122: 6.0 | Y122: ... | Z122: ... | AC122: =+Q122 -> 140 | AD122: =IF(N122=0,0.0001,N122) -> 445 | AE122: 30% | AF122: =+AD122*AE122 -> 133.5 | AG122: =+O122 -> 10 | AH122: =0.9-1.3*AE122 -> 0.510
B123: Luzerne, 1. S., BW gut | C123: 335 | D123: 6.1 | E123: 10.2 | F123: 166 | G123: 20% | H123: 135 | I123: +5 | J123: =L123*0.006+0.15 -> 2.63 | K123: 308 | L123: 414 | M123: 285 | N123: 0 | O123: 36 | P123: 32 | Q123: 247 | R123: 80% | S123: 103 | T123: 12.0 | U123: 3.3 | V123: 0.5 | W123: 2.3 | X123: 27.0 | Y123: ... | Z123: =14*X123+3.5 -> 382
B124: Luzerne, 1. S., BW mittel | C124: 360 | D124: 5.7 | E124: 9.5 | F124: 176 | G124: 20% | H124: 131 | I124: =IF((F124-H124)/6.25<0,ROUND((F124-H124)/6.25,0),"+"&ROUND(((F124-H124)/6.25),0)) -> +7 | J124: =L124*0.006+0.15 -> 2.42 | K124: 318 | L124: 379 | M124: =IF(AND(S124<>"",F124<>"",L124<>"",P124<>""),1000-F124-L124-P124-S124,"Fehler") -> 298 | N124: 0 | O124: 26 | P124: 31 | Q124: 252 | R124: 80% | S124: 116 | T124: 15.6 | U124: 3.6 | V124: 0.5 | W124: 2.4 | X124: 27.0 | Y124: ... | Z124: =14*X124+3.5 -> 382
B125: Luzerne, 1. S., BW gering | C125: 450 | D125: 5.1 | E125: 8.8 | F125: 160 | G125: 20% | H125: 122 | I125: +6 | J125: =L125*0.006+0.15 -> 2.71 | K125: 357 | L125: 427 | M125: 273 | N125: 0 | O125: 49 | P125: 25 | Q125: 275 | R125: 80% | S125: 115 | T125: 12.8 | U125: 3.4 | V125: 0.5 | W125: 2.1 | X125: 25.0 | Y125: ... | Z125: 354
B126: Luzerne, Folgeschnitt, BW gut | C126: =(377*4+334)/5 -> 368 | D126: =(5.55*4+5.67)/5 -> 5.6 | E126: =(9.41*4+9.57)/5 -> 9.4 | F126: =(174*4+196)/5 -> 178 | G126: 20% | H126: =(129*4+128)/5 -> 129 | I126: +8 | J126: 2.46 | K126: =(313*4+309)/5 -> 312 | L126: =(395*4+348)/5 -> 386 | M126: 283 | N126: 0 | O126: =(32*4+17)/5 -> 29 | P126: =(32*4+38)/5 -> 33 | Q126: =(252*4+221)/5 -> 245.8 | R126: 80% | S126: =(121*4+114)/5 -> 120 | T126: 11.0 | U126: 3.7 | V126: 0.1 | W126: 2.1 | X126: 25.0 | Y126: ... | Z126: 354
B127: Luzerne, Folgeschnitt, BW mittel | C127: =(382*4+436*3)/7 -> 405 | D127: =(5.22*4+5.27*3)/7 -> 5.2 | E127: =(8.93*4+9*3)/7 -> 9.0 | F127: =(176*4+204*3)/7 -> 188 | G127: 20% | H127: =(126*4+127*3)/7 -> 126 | I127: =IF((F127-H127)/6.25<0,ROUND((F127-H127)/6.25,0),"+"&ROUND(((F127-H127)/6.25),0)) -> +10 | J127: =L127*0.006+0.15 -> 2.64 | K127: =(342*4+350*3)/7 -> 345 | L127: =(398*4+439*3)/7 -> 416 | M127: =IF(AND(S127<>"",F127<>"",L127<>"",P127<>""),1000-F127-L127-P127-S127,"Fehler") -> 258 | N127: 0 | O127: =(27*4+45*3)/7 -> 35 | P127: =(32*4+22*3)/7 -> 28 | Q127: =(267*4+298*3)/7 -> 280.2857143 | R127: 80% | S127: =(121*4+98*3)/7 -> 111 | T127: 14.4 | U127: 2.9 | V127: 0.3 | W127: 2.3 | X127: 25.0 | Y127: ... | Z127: 354
B128: Luzerne, Folgeschnitt, BW gering | C128: =(406*3+312*3)/6 -> 359 | D128: =(4.87*3+5.1*3)/6 -> 5.0 | E128: =(8.37*3+8.8*3)/6 -> 8.6 | F128: =(166*3+191*3)/6 -> 179 | G128: 20% | H128: =(118*3+123*3)/6 -> 121 | I128: +9 | J128: 2.82 | K128: =(371*3+334*3)/6 -> 353 | L128: =(474*3+416*3)/6 -> 445 | M128: 242 | N128: 0 | O128: =(22*3+0*3)/6 -> 11 | P128: =(21*3+27*3)/6 -> 24 | Q128: =(311*3+285*3)/6 -> 298 | R128: 80% | S128: =(110*3+112*3)/6 -> 111 | T128: 17.0 | U128: 3.5 | V128: 0.2 | W128: 2.6 | X128: 28.0 | Y128: ... | Z128: 396
B129: Luzerne-Gras-Gemenge, 1. S. BW gut | C129: 360 | D129: 6.2 | E129: 10.3 | F129: 176 | G129: 20% | H129: 141 | I129: =IF((F129-H129)/6.25<0,ROUND((F129-H129)/6.25,0),"+"&ROUND(((F129-H129)/6.25),0)) -> +6 | J129: =L129*0.006+0.15 -> 2.37 | K129: 296 | L129: 370 | M129: =IF(AND(S129<>"",F129<>"",L129<>"",P129<>""),1000-F129-L129-P129-S129,"Fehler") -> 302 | N129: 0 | O129: 31 | P129: 37 | Q129: 213 | R129: 80% | S129: 115 | T129: 15.1 | U129: 3.7 | V129: 0.3 | W129: 2.1 | X129: 30.0 | Y129: ... | Z129: 424
B130: Luzerne-Gras-Gemenge, 1. S. BW mittel | C130: 360 | D130: 5.9 | E130: 9.9 | F130: 169 | G130: 20% | H130: 137 | I130: +5 | J130: 2.58 | K130: 307 | L130: 405 | M130: 285 | N130: 0 | O130: 37 | P130: 32 | Q130: 251 | R130: 80% | S130: 109 | T130: 15.7 | U130: 3.1 | V130: 0.8 | W130: 2.5 | X130: 26.0 | Y130: ... | Z130: 368
B131: Luzerne-Gras-Gemenge, 1. S. BW gering | C131: 310 | D131: 5.5 | E131: 9.3 | F131: 178 | G131: 20% | H131: 133 | I131: +7 | J131: 2.42 | K131: 305 | L131: 378 | M131: 284 | N131: 0 | O131: 10 | P131: 35 | Q131: 248 | R131: 80% | S131: 125 | T131: 14.6 | U131: 3.9 | V131: 0.2 | W131: 1.8 | X131: 31.0 | Y131: ... | Z131: 438
B132: Luzerne-Gras-Gemenge, Folgeschnitt BW gut | C132: 450 | D132: 5.9 | E132: 9.9 | F132: 141 | G132: 20% | H132: 131 | I132: +2 | J132: 2.86 | K132: 298 | L132: 451 | M132: 274 | N132: 0 | O132: 61 | P132: 31 | Q132: 246 | R132: 80% | S132: 103 | T132: 10.2 | U132: 3.0 | V132: 0.7 | W132: 3.1 | X132: 22.0 | Y132: ... | Z132: 312
B133: Luzerne-Gras-Gemenge, Folgeschnitt BW mittel | C133: =(350*7+313*2)/9 -> 342 | D133: =(5.66*7+5.65313*2)/9 -> 5.7 | E133: =(9.59*7+9.5*2)/9 -> 9.6 | F133: =(171*7+164*2)/9 -> 169 | G133: 20% | H133: =(136*7+132*2)/9 -> 135 | I133: =IF((F133-H133)/6.25<0,ROUND((F133-H133)/6.25,0),"+"&ROUND(((F133-H133)/6.25),0)) -> +5 | J133: =L133*0.006+0.15 -> 2.53 | K133: =(316*7+322*2)/9 -> 317 | L133: =(377*7+464*2)/9 -> 396 | M133: 288 | N133: 0 | O133: =(42*7+43*2)/9 -> 42 | P133: =(32*7+37*2)/9 -> 33 | Q133: =(253*7+266*2)/9 -> 255.8888889 | R133: 80% | S133: =(116*7+105*2)/9 -> 114 | T133: =(T132+T134)/2 -> 13.5 | U133: =(U132+U134)/2 -> 3.3 | V133: 0.6 | W133: 3.0 | X133: 22.6 | Y133: ... | Z133: 320
B134: Luzerne-Gras-Gemenge, Folgeschnitt BW gering | C134: =(374*2+399*2)/4 -> 387 | D134: =(5.19*2+5.25399*2)/4 -> 5.2 | E134: =(8.92*2+9*2)/4 -> 9.0 | F134: =(161*2+176*2)/4 -> 169 | G134: 20% | H134: =(121*2+127*2)/4 -> 124 | I134: =IF((F134-H134)/6.25<0,ROUND((F134-H134)/6.25,0),"+"&ROUND(((F134-H134)/6.25),0)) -> +7 | J134: =L134*0.006+0.15 -> 2.63 | K134: =(335*2+336*2)/4 -> 336 | L134: =(397*2+431*2)/4 -> 414 | M134: 283 | N134: 0 | O134: =(16*2+35*2)/4 -> 26 | P134: =(31*2+27*2)/4 -> 29 | Q134: =(260*2+280*2)/4 -> 270 | R134: 80% | S134: =(117*2+94*2)/4 -> 106 | T134: =(18.4*2+15.1*2)/4 -> 16.8 | U134: =(3.7*2+3.4*2)/4 -> 3.6 | V134: =(0.7*2+0.2*2)/4 -> 0.5 | W134: =(2.8*2+2.9*2)/4 -> 2.9 | X134: =(22.4*2+24.1*2)/4 -> 23.3 | Y134: ... | Z134: 329
B135: Maiskleberfutter | C135: 440 | D135: 8.1 | E135: 12.8 | F135: 170 | G135: 30% | H135: 179 | I135: -1 | J135: =ROUND(0.321+0.00098*AC135+0.00025*AF135-(0.00112*(AG135+AH135*(AD135-AF135))),2) -> 0.17 | K135: 110 | L135: 240 | M135: 505 | N135: 340 | O135: 15 | P135: 30 | Q135: 85 | R135: 0% | S135: 55 | T135: 1.5 | U135: 9.5 | V135: 2.8 | W135: 4.8 | X135: 14.0 | Y135: ... | Z135: 215 | AC135: =+Q135 -> 85 | AD135: =IF(N135=0,0.0001,N135) -> 340 | AE135: 15% | AF135: =+AD135*AE135 -> 51 | AG135: =+O135 -> 15 | AH135: =0.9-1.3*AE135 -> 0.705
B136: Maissilage, BW gut | C136: 348 | D136: 7.0 | E136: 11.5 | F136: 75 | G136: 25% | H136: =ROUND((11.93-(6.82*G136))*E136+1.03*G136*F136,0) -> 137 | I136: =IF((F136-H136)/6.25<0,ROUND((F136-H136)/6.25,0),"+"&ROUND(((F136-H136)/6.25),0)) -> -10 | J136: =L136*0.006-0.57 -> 1.50 | K136: 198 | L136: 345 | M136: 509 | N136: 353 | O136: 10 | P136: 35 | Q136: 164 | R136: 80% | S136: 36 | T136: 2.0 | U136: 2.4 | V136: 0.1 | W136: 1.2 | X136: 11.0 | Y136: ... | Z136: 130 | AC136: =+Q136 -> 164 | AD136: =IF(N136=0,0.0001,N136) -> 353 | AE136: 15% | AF136: =+AD136*AE136 -> 52.95 | AG136: =+O136 -> 10 | AH136: =0.9-1.3*AE136 -> 0.705
B137: Maissilage, BW mittel | C137: 341 | D137: 6.7 | E137: 11.1 | F137: 75 | G137: 25% | H137: 135 | I137: -10 | J137: =L137*0.006-0.57 -> 1.66 | K137: 212 | L137: 372 | M137: 485 | N137: 327 | O137: 10 | P137: 32 | Q137: 179 | R137: 80% | S137: 36 | T137: 2.1 | U137: 2.2 | V137: 0.1 | W137: 1.2 | X137: 10.0 | Y137: ... | Z137: 130 | AC137: =+Q137 -> 179 | AD137: =IF(N137=0,0.0001,N137) -> 327 | AE137: 15% | AF137: =+AD137*AE137 -> 49.05 | AG137: =+O137 -> 10 | AH137: =0.9-1.3*AE137 -> 0.705
B138: Maissilage, BW gering | C138: 325 | D138: 6.5 | E138: 10.8 | F138: 76 | G138: 25% | H138: 130 | I138: -9 | J138: 1.86 | K138: 233 | L138: 405 | M138: 453 | N138: 285 | O138: 10 | P138: 29 | Q138: 200 | R138: 80% | S138: 37 | T138: 2.4 | U138: 2.2 | V138: 0.1 | W138: 1.2 | X138: 11.0 | Y138: ... | Z138: 130 | AC138: =+Q138 -> 200 | AD138: =IF(N138=0,0.0001,N138) -> 285 | AE138: 15% | AF138: =+AD138*AE138 -> 42.75 | AG138: =+O138 -> 10 | AH138: =0.9-1.3*AE138 -> 0.705
B139: Pressschnitzel | C139: 320 | D139: 7.2 | E139: =D139/0.62 -> 11.6 | F139: 85 | G139: 30% | H139: 141 | I139: -9 | J139: 1.05 | K139: 217 | L139: 483 | M139: 349 | N139: 0 | O139: 31 | P139: 6 | Q139: 233 | R139: 25% | S139: 77 | T139: 9.9 | U139: 1.3 | V139: 0.3 | W139: 2.1 | X139: 4.0 | Y139: ... | Z139: -60 | AC139: =+Q139 -> 233 | AD139: =IF(N139=0,0.0001,N139) -> 0.0001 | AE139: 10% | AF139: =+AD139*AE139 -> 1e-05 | AG139: =+O139 -> 31 | AH139: =0.9-1.3*AE139 -> 0.770
B140: Raps, jung, blattreich | C140: 150 | D140: 6.7 | E140: 10.8 | F140: 195 | G140: 15% | H140: 148 | I140: +8 | J140: =L140*0.006+0.15 -> 1.69 | K140: =Q140*1.2 -> 170 | L140: 257 | M140: 328 | N140: 0 | O140: 5 | P140: 50 | Q140: 142 | R140: 50% | S140: 170 | T140: 17.0 | U140: 4.5 | V140: 1.3 | W140: 2.6 | X140: 32.0 | Y140: ... | Z140: ...
B141: Roggen, BW gut | C141: 200 | D141: 6.1 | E141: 10.3 | F141: 115 | G141: 15% | H141: 130 | I141: -2 | J141: =L141*0.006+0.15 -> 3.37 | K141: 338 | L141: 536 | M141: 235 | N141: 0 | O141: 17 | P141: 36 | Q141: 305 | R141: 80% | S141: 78 | T141: 2.7 | U141: 3.6 | V141: 0.2 | W141: 1.1 | X141: 27.0 | Y141: ... | Z141: =14*X141+3.5 -> 382
B142: Roggen, BW mittel | C142: 315 | D142: 5.6 | E142: 9.5 | F142: 116 | G142: 15% | H142: 122 | I142: =IF((F142-H142)/6.25<0,ROUND((F142-H142)/6.25,0),"+"&ROUND(((F142-H142)/6.25),0)) -> -1 | J142: 3.44 | K142: 342 | L142: 549 | M142: =IF(AND(S142<>"",F142<>"",L142<>"",P142<>""),1000-F142-L142-P142-S142,"Fehler") -> 192 | N142: 0 | O142: 26 | P142: 31 | Q142: 296 | R142: 80% | S142: 112 | T142: 2.7 | U142: 3.6 | V142: 0.2 | W142: 1.1 | X142: 27.0 | Z142: =14*X142+3.5 -> 382
B143: Roggen, BW gering | C143: 245 | D143: 5.1 | E143: 8.8 | F143: 102 | G143: 15% | H143: 113 | I143: -2 | J143: 3.61 | K143: 350 | L143: 577 | M143: 199 | N143: 0 | O143: 0 | P143: 31 | Q143: 322 | R143: 80% | S143: 91 | T143: 2.7 | U143: 3.6 | V143: 0.2 | W143: 1.1 | X143: 27.0 | Z143: 382
B144: Rotklee-Gras-Gemenge, 1. S. BW gut | C144: 380 | D144: 6.4 | E144: 10.6 | F144: 147 | G144: 15% | H144: 140 | I144: +1 | J144: 2.55 | K144: 258 | L144: 400 | M144: 317 | N144: 0 | O144: 60 | P144: 34 | Q144: 224 | R144: 80% | S144: 102 | T144: 8.4 | U144: 4.1 | V144: 0.6 | W144: 2.1 | X144: 33.0 | Z144: 466
B145: Rotklee-Gras-Gemenge, 1. S. BW mittel | C145: 390 | D145: 5.6 | E145: 9.6 | F145: 146 | G145: 15% | H145: 128 | I145: +3 | J145: 2.73 | K145: 313 | L145: 430 | M145: 282 | N145: 0 | O145: 57 | P145: 31 | Q145: 249 | R145: 80% | S145: 111 | T145: 13.4 | U145: 3.1 | V145: 0.5 | W145: 2.5 | X145: 25.1 | Z145: 355
B146: Rotklee-Gras-Gemenge, 1. S. BW gering | C146: 350 | D146: 5.2 | E146: 8.9 | F146: 154 | G146: 15% | H146: 125 | I146: +5 | J146: 2.79 | K146: 348 | L146: 440 | M146: 265 | N146: 0 | O146: 20 | P146: 30 | Q146: 289 | R146: 80% | S146: 111 | T146: 15.5 | U146: 3.4 | V146: 0.2 | W146: 2.4 | X146: 31.5 | Z146: 445
B147: Rotklee-Gras-Gemenge, Folgeschnitt, BW gut | C147: =(332*4+387*3)/7 -> 356 | D147: =(6.03*4+5.93*3)/7 -> 6.0 | E147: =(10.8*4+9.9*3)/7 -> 10.4 | F147: =(148*4+151*3)/7 -> 149 | G147: 15% | H147: =(134*4+131*3)/7 -> 133 | I147: +3 | J147: 2.76 | K147: =(288*4+286*3)/7 -> 287 | L147: =(453*4+412*3)/7 -> 435 | M147: 272 | N147: 0 | O147: =(60*4+47*3)/7 -> 54 | P147: =(36*4+33*3)/7 -> 35 | Q147: =(253*4+239*3)/7 -> 247 | R147: 80% | S147: =(103*4+115*3)/7 -> 108 | T147: =(6*4+7.8*3)/7 -> 6.8 | U147: =(3.6*4+3.6*3)/7 -> 3.6 | V147: =(0.7*4+1.8*3)/7 -> 1.2 | W147: =(2.3*4+3.3*3)/7 -> 2.7 | X147: =(25.6*4+30.7*3)/7 -> 27.8 | Z147: 393
B148: Rotklee-Gras-Gemenge, Folgeschnitt, BW mittel | C148: =(394*19+324*4)/23 -> 382 | D148: =(5.64*19+5.65*4)/23 -> 5.6 | E148: =(9.57*19+9.52*4)/23 -> 9.6 | F148: =(146*19+165*4)/23 -> 149 | G148: 15% | H148: =(128*19+129*4)/23 -> 128 | I148: =IF((F148-H148)/6.25<0,ROUND((F148-H148)/6.25,0),"+"&ROUND(((F148-H148)/6.25),0)) -> +3 | J148: =L148*0.006+0.15 -> 2.74 | K148: =(313*19+291*4)/23 -> 309 | L148: =(430*19+435*4)/23 -> 431 | M148: 275 | N148: 0 | O148: =(57*19+12*4)/23 -> 49 | P148: =(31*19+38*4)/23 -> 32 | Q148: =(249*19+243*4)/23 -> 248 | R148: 80% | S148: =(111*19+119*4)/23 -> 112 | T148: =(13.4*19+7.8*4)/23 -> 12.4 | U148: =(3.1*19+3.6*4)/23 -> 3.2 | V148: =(0*19+1.8*4)/23 -> 0.3 | W148: =(2.5*19+3.3*4)/23 -> 2.6 | X148: =(25.1*19+30.7*4)/23 -> 26.1 | Z148: 369
B149: Rotklee-Gras-Gemenge, Folgeschnitt, BW gering | C149: =(353*7+391*2)/9 -> 361 | D149: =(5.19*7+5.45*2)/9 -> 5.2 | E149: =(8.87*7+9.25*2)/9 -> 9.0 | F149: =(154*7+208*2)/9 -> 166 | G149: 15% | H149: =(125*7+141*2)/9 -> 129 | I149: +6 | J149: 2.72 | K149: =(348*7+318*2)/9 -> 341 | L149: =(440*7+386*2)/9 -> 428 | M149: 261 | N149: 0 | O149: =(20*7+23*2)/9 -> 21 | P149: =(30*7+34*2)/9 -> 31 | Q149: =(289*7+245*2)/9 -> 279 | R149: 80% | S149: =(111*7+123*2)/9 -> 114 | T149: =(15.5*7+7.8*2)/9 -> 13.8 | U149: =(3.4*7+3.6*2)/9 -> 3.4 | V149: =(0.2*7+1.8*2)/9 -> 0.6 | W149: =(2.4*7+3.3*2)/9 -> 2.6 | X149: =(31.5*7+30.7*2)/9 -> 31.3 | Z149: 442
B150: Silphie, Ende Blüte | C150: 270 | D150: 3.6 | E150: 6.6 | F150: 72 | G150: 15% | H150: =(11.93-(6.82*(G150)))*E150+1.03*G150*F150 -> 83 | I150: =(F150-H150)/6.25 -> -2 | J150: 2.90 | K150: 399 | L150: 458 | M150: 320 | O150: 0 | P150: 33 | Q150: 337 | R150: 80% | S150: 117 | T150: 30.0 | U150: 2.2 | V150: 0.0 | W150: 4.4 | X150: 19.0
B151: Trester, Apfel | C151: 250 | D151: 6.4 | E151: 10.5 | F151: 69 | G151: 60% | H151: 125 | I151: -9 | J151: =ROUND(0.321+0.00098*AC151+0.00025*AF151-(0.00112*(AG151+AH151*(AD151-AF151))),2) -> 0.40 | K151: 375 | L151: 470 | M151: 411 | N151: 0 | O151: 150 | P151: 20 | Q151: 248 | R151: 0% | S151: 30 | T151: 1.8 | U151: 1.5 | V151: 0.9 | W151: 0.7 | X151: =6.1/0.92 -> 6.6 | Y151: ... | Z151: ... | AC151: =+Q151 -> 248 | AD151: =IF(N151=0,0.0001,N151) -> 0.0001 | AE151: 10% | AF151: =+AD151*AE151 -> 1e-05 | AG151: =+O151 -> 150 | AH151: =0.9-1.3*AE151 -> 0.770
B152: Weidelgras, Deutsches, 1 S., BW gut | C152: 386 | D152: 6.9 | E152: 11.3 | F152: 165 | G152: 15% | H152: 148 | I152: +3 | J152: 2.56 | K152: 234 | L152: 401 | M152: 299 | N152: 0 | O152: 108 | P152: 35 | Q152: 217 | R152: 80% | S152: 100 | T152: 5.6 | U152: 4.4 | V152: 1.0 | W152: 1.6 | X152: 32.2 | Z152: =14.01*X152+3.5 -> 455
B153: Weidelgras, Deutsches, 1 S., BW mittel | C153: 322 | D153: 6.4 | E153: 10.6 | F153: 151 | G153: 15% | H153: 139 | I153: +2 | J153: 2.54 | K153: 258 | L153: 398 | M153: 310 | N153: 0 | O153: 59 | P153: 35 | Q153: 229 | R153: 80% | S153: 106 | T153: 6.5 | U153: 3.6 | V153: 0.4 | W153: 1.6 | X153: 29.7 | Z153: =14.01*X153+3.5 -> 420
B154: Weidelgras, Deutsches, 1 S., BW gering | C154: 313 | D154: 5.9 | E154: 9.9 | F154: 130 | G154: 15% | H154: 127 | I154: +0 | J154: 2.87 | K154: 292 | L154: 453 | M154: 269 | N154: 0 | O154: 49 | P154: 34 | Q154: 259 | R154: 80% | S154: 114 | T154: 6.2 | U154: 4.0 | V154: 0.2 | W154: 1.5 | X154: 32.4 | Z154: 457
B155: Weidelgras, Deutsches, Folgeaufwuchs, BW gut | C155: =(363+404)/2 -> 384 | D155: =(6.51+5.94)/2 -> 6.2 | E155: =(10.73+9.99)/2 -> 10.4 | F155: =(165+171)/2 -> 168 | G155: 15% | H155: =(142+135)/2 -> 139 | I155: +5 | J155: 2.79 | K155: =(297+284)/2 -> 291 | L155: =(450+429)/2 -> 440 | M155: 242 | N155: 0 | O155: =(55+41)/2 -> 48 | P155: =(42+40)/2 -> 41 | Q155: =(328+226)/2 -> 277 | R155: 80% | S155: =(123+97)/2 -> 110 | T155: =(5.8+11.8)/2 -> 8.8 | U155: =(6.3+3.3)/2 -> 4.8 | V155: =(0.8+0.3)/2 -> 0.6 | W155: =(1.6+2.9)/2 -> 2.3 | X155: =(38.5+21.4)/2 -> 30.0 | Z155: 423
B156: Weidelgras, Deutsches, Folgeaufwuchs, BW mittel | C156: 302 | D156: 5.8 | E156: 9.7 | F156: 143 | G156: 15% | H156: 125 | I156: +3 | J156: 2.88 | K156: 299 | L156: 455 | M156: 261 | N156: 0 | O156: 51 | P156: 32 | Q156: 249 | R156: 80% | S156: 109 | T156: 11.8 | U156: 3.5 | V156: 0.1 | W156: 2.3 | X156: 34.1 | Z156: 481
B157: Weidelgras, Deutsches, Folgeaufwuchs, BW gering | C157: =(371*3+457)/4 -> 393 | D157: =(5.07*3+5.5)/4 -> 5.2 | E157: =(8.8*3+9.4)/4 -> 9.0 | F157: =(113*3+126)/4 -> 116 | G157: 15% | H157: =(114*3+122)/4 -> 116 | I157: +0 | J157: 3.17 | K157: =(379*3+322)/4 -> 365 | L157: 503 | M157: 267 | N157: 0 | O157: =(49*3+60)/4 -> 52 | P157: =(23*3+32)/4 -> 25 | Q157: =(335*3+242)/4 -> 312 | R157: 80% | S157: =(82*3+107)/4 -> 88 | T157: =(4*3+12)/4 -> 6.0 | U157: =(2.9*3+2.4)/4 -> 2.8 | V157: 0.1 | W157: 1.1 | X157: 19.4 | Z157: 275
B158: Weidelgras, Welsches, BW gut | C158: 388 | D158: 7.0 | E158: 11.4 | F158: 171 | G158: 15% | H158: 149 | I158: +4 | J158: =ROUND(L158*0.006+0.15,1) -> 2.20 | K158: 219 | L158: 349 | M158: =IF(AND(S158<>"",F158<>"",L158<>"",P158<>""),1000-F158-L158-P158-S158,"Fehler") -> 335 | N158: 0 | O158: 123 | P158: 36 | Q158: 189 | R158: 80% | S158: 109 | T158: 5.1 | U158: 2.7 | V158: 0.1 | W158: 1.0 | X158: 28.5 | Z158: 403
B159: Weidelgras, Welsches, BW mittel | C159: 296 | D159: 6.3 | E159: 10.6 | F159: 133 | G159: 15% | H159: 135 | I159: =IF((F159-H159)/6.25<0,ROUND((F159-H159)/6.25,0),"+"&ROUND(((F159-H159)/6.25),0)) -> 0 | J159: =ROUND(L159*0.006+0.15,1) -> 2.80 | K159: 272 | L159: 436 | M159: =IF(AND(S159<>"",F159<>"",L159<>"",P159<>""),1000-F159-L159-P159-S159,"Fehler") -> 303 | N159: 0 | O159: 54 | P159: 32 | Q159: 246 | R159: 80% | S159: 96 | T159: 5.1 | U159: 3.8 | V159: 0.2 | W159: 1.4 | X159: 33.0 | Z159: 466
B160: Weidelgras, Welsches, BW gering | C160: 394 | D160: 5.4 | E160: 9.1 | F160: 70 | G160: 15% | H160: 110 | I160: -6 | J160: 3.80 | K160: 287 | L160: 604 | M160: 165 | N160: 0 | O160: 118 | P160: 23 | Q160: 305 | R160: 80% | S160: 138 | T160: 5.0 | U160: 2.0 | V160: 0.1 | W160: 1.0 | X160: 28.5 | Z160: 403
B161: Zuckerrübenblatt, sauber | C161: 180 | D161: 6.0 | E161: 9.8 | F161: 150 | G161: 15% | H161: 130 | I161: +3 | J161: 2.01 | K161: 125 | L161: 310 | M161: 340 | N161: 0 | O161: 16 | P161: 30 | Q161: 145 | R161: 50% | S161: 170 | T161: =2.1/0.16 -> 13.1 | U161: =0.4/0.16 -> 2.5 | V161: =0.9/0.16 -> 5.6 | W161: =0.5/0.16 -> 3.1 | X161: =4.2/0.16 -> 26.3 | Y161: ... | Z161: ...
AB162: x
A163: Heu/Stroh | C163: 0.0001 | D163: 0.0001 | E163: 0.0001 | F163: 0.0001 | G163: 0.0001 | H163: 0.0001 | I163: 0.0001 | J163: 0.0001 | K163: 0.0001 | L163: 0.0001 | M163: 0.0001 | N163: 0.0001 | O163: 0.0001 | P163: 0.0001 | Q163: 0.0001 | R163: 0.0001 | S163: 0.0001 | T163: 0.0001 | U163: 0.0001 | V163: 0.0001 | W163: 0.0001 | X163: 0.0001 | Y163: 0.0001
B164: Gerste, Stroh | C164: 860 | D164: 3.8 | E164: 6.9 | F164: 32 | G164: 45% | H164: 75 | I164: =IF((F164-H164)/6.25<0,ROUND((F164-H164)/6.25,0),"+"&ROUND(((F164-H164)/6.25),0)) -> -7 | J164: 4.30 | K164: 522 | L164: 790 | M164: 110 | N164: 0 | O164: 7 | P164: 14 | Q164: 471 | R164: 150% | S164: 54 | T164: 3.4 | U164: 1.1 | V164: 0.3 | W164: 0.8 | X164: 14.1 | Y164: ... | Z164: 110 | AB164: =IF(COUNTA(B164:Y164)<21,"x","") -> 
B165: Grassamenstroh, D. Weidelgras | C165: 860 | D165: 4.2 | E165: 7.4 | F165: 54 | G165: 40% | H165: 91 | I165: =IF((F165-H165)/6.25<0,ROUND((F165-H165)/6.25,0),"+"&ROUND(((F165-H165)/6.25),0)) -> -6 | J165: 4.30 | K165: 400 | L165: 709 | M165: =IF(AND(S165<>"",F165<>"",L165<>"",P165<>""),1000-F165-L165-P165-S165,"Fehler") -> 151 | N165: 0 | O165: 10 | P165: 16 | Q165: 380 | R165: 125% | S165: 70 | T165: 4.7 | U165: 1.6 | V165: 0.7 | W165: 1.8 | X165: 18.9 | Y165: ... | Z165: ...
B166: Hafer, Stroh | C166: 860 | D166: 3.7 | E166: 6.7 | F166: 36 | G166: 40% | H166: =ROUND((11.93-(6.82*G166))*E166+1.03*G166*F166,0) -> 76 | I166: -6 | J166: 4.30 | K166: =1.1*Q166 -> 484 | L166: =1.8*Q166 -> 792 | M166: 91 | N166: 0 | O166: 14 | P166: 15 | Q166: 440 | R166: 150% | S166: 66 | T166: 4.0 | U166: 1.4 | V166: 2.0 | W166: 1.0 | X166: 21.0 | Y166: ... | Z166: 115 | AB166: =IF(COUNTA(B166:Y166)<21,"x","") -> 
B167: Heu, 1. S., Bodentrocknung, BW extensiv, gut | C167: 880 | D167: 5.3 | E167: 9.2 | F167: 91 | G167: 20% | H167: =ROUND((11.93-(6.82*G167))*E167+1.03*G167*F167,0) -> 116 | I167: -4 | J167: =ROUND(L167*0.006+0.15,1) -> 3.60 | K167: 350 | L167: 581 | M167: 241 | N167: 0 | O167: 124 | P167: 19 | Q167: 299 | R167: 100% | S167: 68 | T167: 4.7 | U167: 2.3 | V167: 0.2 | W167: 1.9 | X167: 19.6 | Y167: ... | Z167: =14.01*X167+3.5 -> 278
B168: Heu, 1. S., Bodentrocknung, BW extensiv, mittel | C168: 880 | D168: 5.0 | E168: 8.6 | F168: 84 | G168: 20% | H168: 108 | I168: -4 | J168: 3.70 | K168: 372 | L168: 596 | M168: 236 | N168: 0 | O168: 112 | P168: 17 | Q168: 318 | R168: 100% | S168: 67 | T168: 4.9 | U168: 2.4 | V168: 0.1 | W168: 2.1 | X168: 14.6 | Y168: ... | Z168: =14.01*X168+3.5 -> 208
B169: Heu, 1. S., Bodentrocknung, BW extensiv, gering | C169: 880 | D169: 4.6 | E169: 8.0 | F169: 74 | G169: 20% | H169: 100 | I169: -4 | J169: 3.80 | K169: 394 | L169: 615 | M169: 226 | N169: 0 | O169: 100 | P169: 14 | Q169: 337 | R169: 100% | S169: 71 | T169: 4.4 | U169: 2.1 | V169: 0.2 | W169: 1.4 | X169: 16.9 | Y169: ... | Z169: 240
B170: Heu, 2. S., Bodentrocknung, BW extensiv, gut | C170: 880 | D170: 5.8 | E170: 9.7 | F170: 125 | G170: 20% | H170: =ROUND((11.93-(6.82*G170))*E170+1.03*G170*F170,0) -> 129 | I170: =IF((F170-H170)/6.25<0,ROUND((F170-H170)/6.25,0),"+"&ROUND(((F170-H170)/6.25),0)) -> -1 | J170: =ROUND(L170*0.006+0.15,1) -> 3.30 | K170: 316 | L170: 528 | M170: 241 | N170: 0 | O170: 110 | P170: 24 | Q170: 261 | R170: 100% | S170: 82 | T170: 6.3 | U170: 3.2 | V170: 0.3 | W170: 2.5 | X170: 21.9 | Z170: 310
B171: Heu, 2. S., Bodentrocknung, BW extensiv, mittel | C171: 880 | D171: 5.4 | E171: 9.2 | F171: 119 | G171: 20% | H171: 122 | I171: 0 | J171: 3.40 | K171: 325 | L171: 537 | M171: 229 | N171: 0 | O171: 106 | P171: 24 | Q171: 267 | R171: 100% | S171: 91 | T171: 7.9 | U171: 2.9 | V171: 0.4 | W171: 2.4 | X171: 19.8 | Z171: 281
B172: Heu, 2. S., Bodentrocknung, BW extensiv, gering | C172: 880 | D172: 5.0 | E172: 8.6 | F172: 110 | G172: 20% | H172: 114 | I172: -1 | J172: 3.60 | K172: 358 | L172: 571 | M172: 216 | N172: 0 | O172: 100 | P172: 20 | Q172: 293 | R172: 100% | S172: 83 | T172: 7.9 | U172: 2.9 | V172: 0.4 | W172: 2.4 | X172: 19.8 | Z172: 281
B173: Heu, 3. S., Bodentrocknung, BW extensiv, gut | C173: 880 | D173: 5.9 | E173: 9.9 | F173: 140 | G173: 20% | H173: =ROUND((11.93-(6.82*G173))*E173+1.03*G173*F173,0) -> 134 | I173: =IF((F173-H173)/6.25<0,ROUND((F173-H173)/6.25,0),"+"&ROUND(((F173-H173)/6.25),0)) -> +1 | J173: =ROUND(L173*0.006+0.15,1) -> 3.10 | K173: 296 | L173: 487 | M173: =IF(AND(S173<>"",F173<>"",L173<>"",P173<>""),1000-F173-L173-P173-S173,"Fehler") -> 255 | N173: 0 | O173: 99 | P173: 27 | Q173: 243 | R173: 100% | S173: 91 | T173: 7.5 | U173: 3.9 | V173: 0.1 | W173: 2.9 | X173: 24.7 | Z173: 350
B174: Heu, 3. S., Bodentrocknung, BW extensiv, mittel | C174: 880 | D174: 5.5 | E174: 9.3 | F174: 134 | G174: 20% | H174: 126 | I174: +1 | J174: 3.50 | K174: 329 | L174: 563 | M174: 186 | N174: 0 | O174: 91 | P174: 26 | Q174: 262 | R174: 100% | S174: 91 | T174: 5.6 | U174: 3.3 | V174: 0.2 | W174: 2.0 | X174: 26.7 | Z174: 378
B175: Heu, 3. S., Bodentrocknung, BW intensiv, gering | C175: 880 | D175: 4.9 | E175: 8.5 | F175: 107 | G175: 20% | H175: 112 | I175: -1 | J175: 3.90 | K175: 387 | L175: 622 | M175: 155 | N175: 0 | O175: 84 | P175: 18 | Q175: 332 | R175: 100% | S175: 98 | T175: 5.6 | U175: 3.3 | V175: 0.2 | W175: 2.0 | X175: 26.7 | Z175: 378
B176: Heu, 1. S., Bodentrocknung, BW intensiv, gut | C176: 880 | D176: 5.9 | E176: 10.0 | F176: 122 | G176: 20% | H176: =ROUND((11.93-(6.82*G176))*E176+1.03*G176*F176,0) -> 131 | I176: =IF((F176-H176)/6.25<0,ROUND((F176-H176)/6.25,0),"+"&ROUND(((F176-H176)/6.25),0)) -> -1 | J176: =ROUND(L176*0.006+0.15,1) -> 3.30 | K176: 301 | L176: 524 | M176: 248 | N176: 0 | O176: 141 | P176: 24 | Q176: 257 | R176: 100% | S176: 82 | T176: 3.9 | U176: 2.7 | V176: 0.3 | W176: 1.8 | X176: 17.0 | Z176: 242
B177: Heu, 1. S., Bodentrocknung, BW intensiv, mittel | C177: 880 | D177: 5.3 | E177: 9.1 | F177: 94 | G177: 20% | H177: 116 | I177: -4 | J177: 3.70 | K177: 346 | L177: 588 | M177: 228 | N177: 0 | O177: 126 | P177: 19 | Q177: 301 | R177: 100% | S177: 71 | T177: 4.0 | U177: 23.6 | V177: 0.2 | W177: 1.4 | X177: 21.4 | Z177: 303
B178: Heu, 1. S., Bodentrocknung, BW intensiv, gering | C178: 880 | D178: 4.8 | E178: 8.4 | F178: 77 | G178: 20% | H178: 104 | I178: -4 | J178: 3.80 | K178: 380 | L178: 608 | M178: 232 | N178: 0 | O178: 103 | P178: 16 | Q178: 330 | R178: 100% | S178: 67 | T178: 4.3 | U178: 1.9 | V178: 0.2 | W178: 1.3 | X178: 17.9 | Z178: 254
B179: Heu, 2. S., Bodentrocknung, BW intensiv, gut | C179: 880 | D179: 6.1 | E179: 10.2 | F179: 123 | G179: 20% | H179: =ROUND((11.93-(6.82*G179))*E179+1.03*G179*F179,0) -> 133 | I179: =IF((F179-H179)/6.25<0,ROUND((F179-H179)/6.25,0),"+"&ROUND(((F179-H179)/6.25),0)) -> -2 | J179: =ROUND(L179*0.006+0.15,1) -> 3.40 | K179: 304 | L179: 545 | M179: =IF(AND(S179<>"",F179<>"",L179<>"",P179<>""),1000-F179-L179-P179-S179,"Fehler") -> 228 | N179: 0 | O179: 138 | P179: 25 | Q179: 250 | R179: 100% | S179: 79 | T179: 5.2 | U179: 3.2 | V179: 0.3 | W179: 2.0 | X179: 21.4 | Z179: 303
B180: Heu, 2. S., Bodentrocknung, BW intensiv, mittel | C180: 880 | D180: 5.7 | E180: 9.6 | F180: 129 | G180: 20% | H180: 128 | I180: +0 | J180: 3.50 | K180: 320 | L180: 556 | M180: 209 | N180: 0 | O180: 119 | P180: 23 | Q180: 276 | R180: 100% | S180: 83 | T180: 5.8 | U180: 2.7 | V180: 0.3 | W180: 2.0 | X180: 21.4 | Z180: 303
B181: Heu, 2. S., Bodentrocknung, BW intensiv, gering | C181: 880 | D181: 5.3 | E181: 9.0 | F181: 124 | G181: 20% | H181: 121 | I181: +0 | J181: 3.40 | K181: 340 | L181: 544 | M181: 209 | N181: 0 | O181: 91 | P181: 23 | Q181: 276 | R181: 100% | S181: 100 | T181: 4.0 | U181: 3.3 | V181: 0.3 | W181: 2.0 | X181: 21.4 | Z181: 303
B182: Heu, 1. S., Unterdachtrocknung, BW intensiv, gut | C182: 880 | D182: 6.2 | E182: 10.3 | F182: 146 | G182: 20% | H182: =ROUND((11.93-(6.82*G182))*E182+1.03*G182*F182,0) -> 139 | I182: =IF((F182-H182)/6.25<0,ROUND((F182-H182)/6.25,0),"+"&ROUND(((F182-H182)/6.25),0)) -> +1 | J182: =ROUND(L182*0.006+0.15,1) -> 3.10 | K182: 282 | L182: 486 | M182: 256 | N182: 0 | O182: 128 | P182: 24 | Q182: 243 | R182: 100% | S182: 88 | T182: 4.0 | U182: 2.5 | V182: 0.2 | W182: 1.3 | X182: 22.9 | Z182: 324
B183: Heu, 1. S., Unterdachtrocknung, BW intensiv, mittel | C183: 880 | D183: 5.6 | E183: 9.6 | F183: 100 | G183: 20% | H183: 122 | I183: -4 | J183: 3.60 | K183: 335 | L183: 577 | M183: 236 | N183: 0 | O183: 143 | P183: 20 | Q183: 284 | R183: 100% | S183: 67 | T183: 4.0 | U183: 2.5 | V183: 0.2 | W183: 1.3 | X183: 22.9 | Z183: 324
B184: Heu, 1. S., Unterdachtrocknung, BW intensiv, gering | C184: 880 | D184: 5.4 | E184: 9.2 | F184: 105 | G184: 20% | H184: 119 | I184: -2 | J184: 3.50 | K184: 335 | L184: 564 | M184: 240 | N184: 0 | O184: 132 | P184: 19 | Q184: 284 | R184: 100% | S184: 72 | T184: 4.0 | U184: 2.5 | V184: 0.2 | W184: 1.3 | X184: 22.9 | Z184: 324
B185: Heu, 2. S., Unterdachtrocknung, BW intensiv, gut | C185: 880 | D185: 6.4 | E185: 10.6 | F185: 197 | G185: 20% | H185: =ROUND((11.93-(6.82*G185))*E185+1.03*G185*F185,0) -> 152 | I185: =IF((F185-H185)/6.25<0,ROUND((F185-H185)/6.25,0),"+"&ROUND(((F185-H185)/6.25),0)) -> +7 | J185: =ROUND(L185*0.006+0.15,1) -> 2.80 | K185: 261 | L185: 446 | M185: 216 | N185: 0 | O185: 89 | P185: 29 | Q185: 202 | R185: 100% | S185: 112 | T185: 8.4 | U185: 3.9 | V185: 1.0 | W185: 3.5 | X185: 20.7 | Z185: 294
B186: Heu, 2. S., Unterdachtrocknung, BW intensiv, mittel | C186: 880 | D186: 6.1 | E186: 10.2 | F186: 134 | G186: 20% | H186: 136 | I186: 0 | J186: 3.00 | K186: 285 | L186: 478 | M186: 274 | N186: 0 | O186: 159 | P186: 24 | Q186: 231 | R186: 100% | S186: 90 | T186: 10.0 | U186: 3.5 | V186: 1.0 | W186: 2.1 | X186: 26.0 | Z186: 368
B187: Heu, 2. S., Unterdachtrocknung, BW intensiv, gering | C187: 880 | D187: 5.9 | E187: 9.9 | F187: 134 | G187: 20% | H187: 132 | I187: +0 | J187: 3.30 | K187: 307 | L187: 522 | M187: 240 | N187: 0 | O187: 124 | P187: 26 | Q187: 242 | R187: 100% | S187: 78 | T187: 7.4 | U187: 3.3 | V187: 1.0 | W187: 2.8 | X187: 21.0 | Z187: 298
B188: Heu, 3. S., Unterdachtrocknung, BW intensiv, gut | C188: 880 | D188: 6.3 | E188: 10.5 | F188: 156 | G188: 20% | H188: =ROUND((11.93-(6.82*G188))*E188+1.03*G188*F188,0) -> 143 | I188: =IF((F188-H188)/6.25<0,ROUND((F188-H188)/6.25,0),"+"&ROUND(((F188-H188)/6.25),0)) -> +2 | J188: =ROUND(L188*0.006+0.15,1) -> 3.10 | K188: 276 | L188: 497 | M188: =IF(AND(S188<>"",F188<>"",L188<>"",P188<>""),1000-F188-L188-P188-S188,"Fehler") -> 214 | N188: 0 | O188: 115 | P188: 30 | Q188: 226 | R188: 100% | S188: 103 | T188: 6.6 | U188: 3.9 | V188: 0.2 | W188: 2.6 | X188: 35.8 | Z188: 505
B189: Heu, 3. S., Unterdachtrocknung, BW intensiv, mittel | C189: 880 | D189: 5.7 | E189: 9.6 | F189: 146 | G189: 20% | H189: 132 | I189: +2 | J189: 3.10 | K189: 296 | L189: 484 | M189: 219 | N189: 0 | O189: 110 | P189: 28 | Q189: 257 | R189: 100% | S189: 123 | T189: 5.7 | U189: 4.5 | V189: 0.2 | W189: 1.9 | X189: 21.1 | Z189: 299
B190: Heu, 3. S., Unterdachtrocknung, BW intensiv, gering | C190: 880 | D190: 5.4 | E190: 9.3 | F190: 121 | G190: 20% | H190: 123 | I190: 0 | J190: 3.40 | K190: 330 | L190: 536 | M190: 236 | N190: 0 | O190: 123 | P190: 22 | Q190: 276 | R190: 100% | S190: 85 | T190: 6.6 | U190: 4.1 | V190: 0.2 | W190: 2.1 | X190: 21.4 | Z190: 303
B191: Heu, 3. S., Heißlufttrocknung, BW intensiv | C191: 920 | D191: 7.3 | E191: 11.8 | F191: 188 | G191: 40% | H191: =ROUND((11.93-(6.82*G191))*E191+1.03*G191*F191,0) -> 186 | I191: =IF((F191-H191)/6.25<0,ROUND((F191-H191)/6.25,0),"+"&ROUND(((F191-H191)/6.25),0)) -> +0 | J191: =ROUND(L191*0.006+0.15,1) -> 2.50 | K191: 189 | L191: 393 | M191: =IF(AND(S191<>"",F191<>"",L191<>"",P191<>""),1000-F191-L191-P191-S191,"Fehler") -> 288 | N191: 0 | O191: 184 | P191: 36 | Q191: 146 | R191: 100% | S191: 95 | T191: 10.0 | U191: 4.0 | V191: 0.8 | W191: 3.6 | X191: 25.0 | Z191: 354
B192: Heu, 3. S., Heißlufttrocknung, BW mittel | C192: 920 | D192: 6.6 | E192: 10.8 | F192: 183 | G192: 40% | H192: 175 | I192: +1 | J192: 2.90 | K192: 250 | L192: 455 | M192: 222 | N192: 0 | O192: 117 | P192: 38 | Q192: 209 | R192: 100% | S192: 102 | T192: 10.0 | U192: 4.0 | V192: 0.8 | W192: 3.6 | X192: 25.0 | Z192: 354
B193: Heu, 3. S., Heißlufttrocknung, BW gering | C193: 920 | D193: 5.9 | E193: 9.8 | F193: 152 | G193: 40% | H193: 153 | I193: 0 | J193: 2.90 | K193: 285 | L193: 459 | M193: 243 | N193: 0 | O193: 102 | P193: 28 | Q193: 235 | R193: 100% | S193: 118 | T193: 10.0 | U193: 4.0 | V193: 0.8 | W193: 3.6 | X193: 25.0 | Z193: 354
B194: Kleegras, 1. S., i. d. Knospe | C194: 860 | D194: 5.9 | E194: 10.0 | F194: 140 | G194: 20% | H194: 135 | I194: +1 | J194: =ROUND((+Q194*0.0125-0.2)*1.05,1) -> 3.20 | K194: =Q194*1.05 -> 273 | L194: =Q194*2.3 -> 598 | M194: 143 | N194: 0 | O194: 30 | P194: 25 | Q194: 260 | R194: 100% | S194: 94 | T194: 15.0 | U194: 2.5 | V194: 0.5 | W194: 3.2 | X194: 20.0 | Y194: ... | Z194: 415
B195: Kleegras, Mitte-Ende Blüte | C195: 860 | D195: 5.1 | E195: 8.7 | F195: 125 | G195: 20% | H195: 118 | I195: +1 | J195: 4.10 | K195: =Q195*1.05 -> 347 | L195: =Q195*2.3 -> 759 | M195: 8 | N195: 0 | O195: 25 | P195: 25 | Q195: 330 | R195: 100% | S195: 83 | T195: 15.0 | U195: 2.5 | V195: 0.5 | W195: 3.2 | X195: 20.0 | Y195: ... | Z195: 415
B196: Luzerne, 1. S. Beginn Blüte | C196: 860 | D196: 4.9 | E196: 8.5 | F196: 185 | G196: 25% | H196: =ROUND((11.93-(6.82*G196))*E196+1.03*G196*F196,0) -> 135 | I196: =IF((F196-H196)/6.25<0,ROUND((F196-H196)/6.25,0),"+"&ROUND(((F196-H196)/6.25),0)) -> +8 | J196: =ROUND((+Q196*0.0125-0.2)*1.05,1) -> 3.80 | K196: =1.35*Q196 -> 412 | L196: =1.6*Q196 -> 488 | M196: =IF(AND(S196<>"",F196<>"",L196<>"",P196<>""),1000-F196-L196-P196-S196,"Fehler") -> 219 | N196: 0 | O196: 60 | P196: 20 | Q196: 305 | R196: 100% | S196: 88 | T196: 16.0 | U196: 3.5 | V196: 0.8 | W196: 3.1 | X196: 30.0 | Y196: ... | Z196: =14.01*X196+3.5 -> 424
B197: Luzerne, Folgeaufwuchs, Beginn Blüte | C197: 860 | D197: 4.6 | E197: 8.1 | F197: 180 | G197: 25% | H197: =ROUND((11.93-(6.82*G197))*E197+1.03*G197*F197,0) -> 129 | I197: =IF((F197-H197)/6.25<0,ROUND((F197-H197)/6.25,0),"+"&ROUND(((F197-H197)/6.25),0)) -> +8 | J197: =ROUND((+Q197*0.0125-0.2)*1.05,1) -> 3.70 | K197: =1.35*Q197 -> 405 | L197: =1.6*Q197 -> 480 | M197: =IF(AND(S197<>"",F197<>"",L197<>"",P197<>""),1000-F197-L197-P197-S197,"Fehler") -> 224 | N197: 0 | O197: 50 | P197: 20 | Q197: 300 | R197: 100% | S197: 96 | T197: 18.0 | U197: 3.1 | V197: 0.8 | W197: 3.9 | X197: 27.0 | Y197: ... | Z197: =14.01*X197+3.5 -> 382
B198: Weizen, Stroh | C198: 860 | D198: 4.0 | E198: =D198/0.63 -> 6.3 | F198: 48 | G198: 45% | H198: 80 | I198: -5 | J198: 4.30 | K198: 480 | L198: 753 | M198: 121 | N198: 0 | O198: 8 | P198: 16 | Q198: 442 | R198: 150% | S198: 62 | T198: 2.9 | U198: 1.5 | V198: 0.2 | W198: 0.8 | X198: 12.3 | Y198: ... | Z198: 95
AB199: x
A200: Handelsfuttermittel | C200: 0.0001 | D200: 0.0001 | E200: 0.0001 | F200: 0.0001 | G200: 0.0001 | H200: 0.0001 | I200: 0.0001 | J200: 0.0001 | K200: 0.0001 | L200: 0.0001 | M200: 0.0001 | N200: 0.0001 | O200: 0.0001 | P200: 0.0001 | Q200: 0.0001 | R200: 0.0001 | S200: 0.0001 | T200: 0.0001 | U200: 0.0001 | V200: 0.0001 | W200: 0.0001 | X200: 0.0001 | Y200: 0.0001
B201: Ackerbohnen | C201: 880 | D201: 8.5 | E201: =D201/0.63 -> 13.5 | F201: 272 | G201: 15% | H201: =ROUND((11.93-(6.82*G201))*E201+1.03*G201*F201,0) -> 189 | I201: =IF((F201-H201)/6.25<0,ROUND((F201-H201)/6.25,0),"+"&ROUND(((F201-H201)/6.25),0)) -> +13 | J201: =ROUND(0.321+0.00098*AC201+0.00025*AF201-(0.00112*(AG201+AH201*(AD201-AF201))),2) -> 0.27 | K201: 185 | L201: 313 | M201: =IF(AND(S201<>"",F201<>"",L201<>"",P201<>""),1000-F201-L201-P201-S201,"Fehler") -> 360 | N201: 410 | O201: 40 | P201: 15 | Q201: 170 | R201: 0% | S201: 40 | T201: 1.8 | U201: 9.0 | V201: 0.3 | W201: 1.5 | X201: 14.0 | Y201: ... | Z201: 5 | AB201: =IF(COUNTA(B201:Y201)<21,"x","") ->  | AC201: =+Q201 -> 170 | AD201: =IF(N201=0,0.0001,N201) -> 410 | AE201: 25% | AF201: =+AD201*AE201 -> 102.5 | AG201: =+O201 -> 40 | AH201: =0.9-1.3*AE201 -> 0.575
B202: Baumwollextraktionsschrot, teilgesch. | C202: 900 | D202: 6.5 | E202: 11.0 | F202: 445 | G202: 40% | H202: =ROUND((11.93-(6.82*G202))*E202+1.03*G202*F202,0) -> 285 | I202: =IF((F202-H202)/6.25<0,ROUND((F202-H202)/6.25,0),"+"&ROUND(((F202-H202)/6.25),0)) -> +26 | J202: 0.41 | K202: 205 | L202: 310 | M202: 161 | N202: 0 | O202: 55 | P202: 15 | Q202: 150 | R202: 0% | S202: 69 | T202: 2.3 | U202: 12.0 | V202: 0.6 | W202: =4.9/0.9 -> 5.4 | X202: 15.0 | Y202: ... | Z202: ... | AB202: =IF(COUNTA(B202:Y202)<21,"x","") ->  | AC202: 150 | AD202: 0.0001 | AE202: 100% | AF202: 0.0001 | AG202: 55 | AH202: -0.400
B203: Bierhefe, getr. | C203: 930 | D203: 7.3 | E203: =D203/0.63 -> 11.6 | F203: 495 | G203: 20% | H203: =ROUND((11.93-(6.82*G203))*E203+1.03*G203*F203,0) -> 224 | I203: =IF((F203-H203)/6.25<0,ROUND((F203-H203)/6.25,0),"+"&ROUND(((F203-H203)/6.25),0)) -> +43 | J203: 0.31 | K203: 4 | L203: 8 | M203: 386 | N203: 0 | O203: 15 | P203: 30 | Q203: 3 | R203: 0% | S203: 81 | T203: 1.5 | U203: 16.0 | V203: 0.1 | W203: 2.2 | X203: 24.0 | Y203: ... | Z203: ... | AB203: =IF(COUNTA(B203:Y203)<21,"x","") ->  | AC203: 3 | AD203: 0.0001 | AE203: 10% | AF203: 1e-05 | AG203: 15 | AH203: 0.770
B204: DDGS (Trockenschlempe) | C204: 940 | D204: =7/0.94 -> 7.4 | E204: =D204/0.6 -> 12.4 | F204: =312/0.94 -> 332 | G204: 40% | H204: =ROUND((11.93-(6.82*G204))*E204+1.03*G204*F204,0) -> 251 | I204: =IF((F204-H204)/6.25<0,ROUND((F204-H204)/6.25,0),"+"&ROUND(((F204-H204)/6.25),0)) -> +13 | J204: =ROUND(0.321+0.00098*AC204+0.00025*AF204-(0.00112*(AG204+AH204*(AD204-AF204))),2) -> 0.39 | K204: =175/0.94 -> 186 | L204: =306/0.94 -> 326 | M204: 216 | N204: 0 | O204: 0 | P204: =62/0.94 -> 66 | Q204: =70/0.94 -> 74 | R204: 0% | S204: =57/0.94 -> 61 | T204: =0.8/0.94 -> 0.9 | U204: =8.2/0.94 -> 8.7 | V204: =4.71/0.94 -> 5.0 | W204: =2.8/0.94 -> 3.0 | X204: =14.1/0.94 -> 15.0 | Y204: ... | Z204: -310 | AC204: 74.46808511 | AD204: 0.0001 | AE204: 10% | AF204: =+AD204*AE204 -> 1e-05 | AG204: 0 | AH204: =0.9-1.3*AE204 -> 0.770
B205: Erbsen | C205: 880 | D205: 8.5 | E205: 13.4 | F205: 235 | G205: 15% | H205: =ROUND((11.93-(6.82*G205))*E205+1.03*G205*F205,0) -> 183 | I205: =IF((F205-H205)/6.25<0,ROUND((F205-H205)/6.25,0),"+"&ROUND(((F205-H205)/6.25),0)) -> +8 | J205: -0.04 | K205: =1.5*Q205 -> 98 | L205: =3.1*Q205 -> 202 | M205: 515 | N205: 480 | O205: 60 | P205: 15 | Q205: 65 | R205: 0% | S205: 34 | T205: 0.9 | U205: 4.8 | V205: 0.3 | W205: 1.3 | X205: 11.0 | Y205: ... | Z205: 140 | AB205: =IF(COUNTA(B205:Y205)<21,"x","") ->  | AC205: 65 | AD205: 480 | AE205: 10% | AF205: 48 | AG205: 60 | AH205: 0.770
B206: Erdnußextraktionsschrot, enthülst | C206: 890 | D206: 8.6 | E206: 13.8 | F206: 570 | G206: 30% | H206: =ROUND((11.93-(6.82*G206))*E206+1.03*G206*F206,0) -> 313 | I206: =IF((F206-H206)/6.25<0,ROUND((F206-H206)/6.25,0),"+"&ROUND(((F206-H206)/6.25),0)) -> +41 | J206: 0.26 | K206: =Q206*1.25 -> 75 | L206: =2.1*Q206 -> 126 | M206: 224 | N206: 100 | O206: 115 | P206: 15 | Q206: 60 | R206: 0% | S206: 65 | T206: =1.4/0.92 -> 1.5 | U206: =5.9/0.92 -> 6.4 | V206: =0.4/0.92 -> 0.4 | W206: =3.3/0.92 -> 3.6 | X206: =11.4/0.92 -> 12.4 | Y206: ... | Z206: ... | AC206: 60 | AD206: 100 | AE206: 125% | AF206: 125 | AG206: 115 | AH206: -0.725
B207: Gerste (Winter), Körner | C207: 880 | D207: 7.9 | E207: =D207/0.63 -> 12.5 | F207: 100 | G207: 25% | H207: 154 | I207: -9 | J207: -0.08 | K207: 85 | L207: 225 | M207: 618 | N207: 605 | O207: 20 | P207: 25 | Q207: 80 | R207: 0% | S207: 32 | T207: 1.2 | U207: 4.9 | V207: 0.1 | W207: 1.1 | X207: 8.4 | Y207: ... | Z207: 5 | AC207: 80 | AD207: 605 | AE207: 10% | AF207: 60.5 | AG207: 20 | AH207: 0.770
B208: Grünmehl, Gras, 1. Aufwuchs, Schossen | C208: 890 | D208: 6.6 | E208: 10.8 | F208: 185 | G208: 40% | H208: 176 | I208: +1 | J208: 0.41 | K208: =1.2*Q208 -> 240 | L208: =1.8*Q208 -> 360 | M208: 309 | N208: 0 | O208: 100 | P208: 35 | Q208: 200 | R208: 0% | S208: 111 | T208: 10.0 | U208: 4.0 | V208: 0.8 | W208: 3.6 | X208: 25.0 | Y208: ... | Z208: ... | AC208: 200 | AD208: 0.0001 | AE208: 100% | AF208: 0.0001 | AG208: 100 | AH208: -0.400
B209: Grünmehl, Gras, Folgeaufwuchs, Herbst | C209: 890 | D209: 5.9 | E209: 9.8 | F209: 200 | G209: 40% | H209: 173 | I209: +4 | J209: 0.41 | K209: =1.2*Q209 -> 246 | L209: =1.8*Q209 -> 369 | M209: 298 | N209: 0 | O209: 100 | P209: 35 | Q209: 205 | R209: 0% | S209: 98 | T209: 10.0 | U209: 4.0 | V209: 0.8 | W209: 3.6 | X209: 25.0 | Y209: ... | Z209: ... | AC209: 205 | AD209: 0.0001 | AE209: 100% | AF209: =+AD209*AE209 -> 0.0001 | AG209: 100 | AH209: =0.9-1.3*AE209 -> -0.400
B210: Grünmehl, Luzerne, v.d. Knospe | C210: 890 | D210: 5.9 | E210: 9.8 | F210: 210 | G210: 40% | H210: 177 | I210: +5 | J210: 0.45 | K210: =1.1*Q210 -> 204 | L210: =1.5*Q210 -> 278 | M210: 365 | N210: 0 | O210: 50 | P210: 30 | Q210: 185 | R210: 0% | S210: 118 | T210: 18.0 | U210: 3.8 | V210: 0.5 | W210: 3.0 | X210: 27.0 | Y210: ... | Z210: ... | AC210: 185 | AD210: 0.0001 | AE210: 100% | AF210: 0.0001 | AG210: 50 | AH210: -0.400
B211: Hafer, Körner | C211: 880 | D211: 7.0 | E211: 11.5 | F211: 123 | G211: 15% | H211: 145 | I211: -4 | J211: 0.13 | K211: =1.4*Q211 -> 154 | L211: =2.8*Q211 -> 308 | M211: 486 | N211: 450 | O211: 15 | P211: 50 | Q211: 110 | R211: 0% | S211: 33 | T211: 1.2 | U211: 3.6 | V211: 0.4 | W211: =1.136*1.1 -> 1.2 | X211: =4.4/0.88 -> 5.0 | Y211: ... | Z211: -40 | AC211: 110 | AD211: 450 | AE211: 15% | AF211: 67.5 | AG211: 15 | AH211: 0.705
B212: Haferschälkleie | C212: 910 | D212: 4.0 | E212: =D212/0.6 -> 6.7 | F212: 90 | G212: 15% | H212: 87 | I212: +0 | J212: 0.42 | K212: =1.2*Q212 -> 264 | L212: =2.3*Q212 -> 506 | M212: 331 | N212: 170 | O212: 10 | P212: 30 | Q212: 220 | R212: 0% | S212: 43 | T212: 1.1 | U212: 3.0 | V212: 0.1 | W212: 1.1 | X212: 5.1 | Y212: ... | Z212: ... | AC212: 220 | AD212: 170 | AE212: 15% | AF212: 25.5 | AG212: 10 | AH212: 0.705
B213: Kokosextraktionsschrot | C213: 900 | D213: 6.7 | E213: =D213/0.6 -> 11.2 | F213: 235 | G213: 50% | H213: =ROUND((11.93-(6.82*G213))*E213+1.03*G213*F213,0) -> 216 | I213: =IF((F213-H213)/6.25<0,ROUND((F213-H213)/6.25,0),"+"&ROUND(((F213-H213)/6.25),0)) -> +3 | J213: 0.35 | K213: 350 | L213: 665 | M213: 0 | N213: 0 | O213: 120 | P213: 25 | Q213: 170 | R213: 0% | S213: 75 | T213: 1.8 | U213: =5.9/0.9 -> 6.6 | V213: =0.85/0.9 -> 0.9 | W213: 3.9 | X213: 18.0 | Y213: ... | Z213: ... | AC213: 170 | AD213: 0.0001 | AE213: 100% | AF213: =+AD213*AE213 -> 0.0001 | AG213: 120 | AH213: =0.9-1.3*AE213 -> -0.400
B214: Leinextraktionsschrot | C214: 890 | D214: 7.3 | E214: 12.0 | F214: 385 | G214: 30% | H214: 238 | I214: +24 | J214: 0.35 | K214: 185 | L214: 310 | M214: 199 | N214: 0 | O214: 65 | P214: 40 | Q214: 105 | R214: 0% | S214: 66 | T214: 4.0 | U214: 9.7 | V214: 1.0 | W214: 5.6 | X214: 12.0 | Y214: ... | Z214: 80 | AC214: 105 | AD214: 0.0001 | AE214: 100% | AF214: 0.0001 | AG214: 65 | AH214: -0.400
B215: Lupine, süß, Körner | C215: 880 | D215: 8.9 | E215: 14.7 | F215: 376 | G215: 20% | H215: =ROUND((11.93-(6.82*G215))*E215+1.03*G215*F215,0) -> 233 | I215: =IF((F215-H215)/6.25<0,ROUND((F215-H215)/6.25,0),"+"&ROUND(((F215-H215)/6.25),0)) -> +23 | J215: =ROUND(0.321+0.00098*AC215+0.00025*AF215-(0.00112*(AG215+AH215*(AD215-AF215))),2) -> 0.32 | K215: =1.2*Q215 -> 162 | L215: =1.7*Q215 -> 230 | M215: =IF(AND(S215<>"",F215<>"",L215<>"",P215<>""),1000-F215-L215-P215-S215,"Fehler") -> 270 | N215: 73 | O215: 74 | P215: 90 | Q215: 135 | R215: 0% | S215: 35 | T215: 2.9 | U215: 5.1 | V215: 0.6 | W215: 2.0 | X215: 10.0 | Y215: ... | Z215: ... | AC215: 135 | AD215: 73 | AE215: 15% | AF215: =+AD215*AE215 -> 10.95 | AG215: 74 | AH215: =0.9-1.3*AE215 -> 0.705
B216: Mais, Körner | C216: 880 | D216: 8.4 | E216: 13.3 | F216: 102 | G216: 50% | H216: 166 | I216: -10 | J216: 0.22 | K216: =1.1*Q216 -> 28 | L216: =4.4*Q216 -> 110 | M216: 726 | N216: 695 | O216: 20 | P216: 45 | Q216: 25 | R216: 0% | S216: 17 | T216: 0.4 | U216: 3.5 | V216: 0.2 | W216: 1.3 | X216: 4.0 | Y216: ... | Z216: -35 | AC216: 25 | AD216: 695 | AE216: 40% | AF216: 278 | AG216: 20 | AH216: 0.380
B217: Maiskeime | C217: 890 | D217: =8.6/0.89 -> 9.7 | E217: =D217/0.6 -> 16.1 | F217: =126/0.89 -> 142 | G217: 40% | H217: =ROUND((11.93-(6.82*G217))*E217+1.03*G217*F217,0) -> 207 | I217: =IF((F217-H217)/6.25<0,ROUND((F217-H217)/6.25,0),"+"&ROUND(((F217-H217)/6.25),0)) -> -10 | J217: =ROUND(0.321+0.00098*AC217+0.00025*AF217-(0.00112*(AG217+AH217*(AD217-AF217))),2) -> 0.21 | K217: =93/0.89 -> 104 | L217: =253/0.89 -> 284 | M217: 307 | N217: 500 | O217: 70 | P217: =189/0.89 -> 212 | Q217: =43/0.89 -> 48 | R217: 0% | S217: =49/0.89 -> 55 | T217: =0.6/0.89 -> 0.7 | U217: =12.3/0.89 -> 13.8 | V217: =0.03/0.89 -> 0.0 | W217: =5/0.89 -> 5.6 | X217: =10.9/0.89 -> 12.2 | Y217: ... | Z217: ... | AC217: 48.31460674 | AD217: 500 | AE217: 40% | AF217: =+AD217*AE217 -> 200 | AG217: 70 | AH217: =0.9-1.3*AE217 -> 0.380
B218: Maiskleber | C218: 900 | D218: 8.5 | E218: =D218*0.63 -> 5.4 | F218: 600 | G218: 70% | H218: 471 | I218: +21 | J218: 0.23 | K218: 90 | L218: 320 | M218: 5 | N218: 145 | O218: 5 | P218: 55 | Q218: 10 | R218: 0% | S218: 20 | T218: 0.8 | U218: 4.6 | V218: 0.2 | W218: =0.3/0.9 -> 0.3 | X218: 1.0 | Y218: ... | Z218: ... | AB218: =IF(COUNTA(B218:Y218)<21,"x","") ->  | AC218: 10 | AD218: 145 | AE218: 15% | AF218: 21.75 | AG218: 5 | AH218: 0.705
B219: Maiskleberfutter | C219: 890 | D219: 7.7 | E219: 12.4 | F219: 260 | G219: 25% | H219: 194 | I219: +11 | J219: 0.26 | K219: =1.3*Q219 -> 117 | L219: =2.8*Q219 -> 252 | M219: 388 | N219: 205 | O219: 20 | P219: 40 | Q219: 90 | R219: 0% | S219: 60 | T219: 1.5 | U219: 9.5 | V219: 2.8 | W219: 4.8 | X219: 14.0 | Y219: ... | Z219: 100 | AC219: 90 | AD219: 205 | AE219: 15% | AF219: 30.75 | AG219: 20 | AH219: 0.705
B220: Maiskobs | C220: 890 | D220: 6.6 | E220: 10.9 | F220: 85 | G220: 30% | H220: 134 | I220: -8 | J220: 0.36 | K220: =1.1*Q220 -> 209 | L220: =2*Q220 -> 380 | M220: 454 | N220: 400 | O220: 15 | P220: 25 | Q220: 190 | R220: 0% | S220: 56 | T220: 2.0 | U220: 2.1 | V220: 0.3 | W220: 1.3 | X220: 11.0 | Y220: ... | Z220: ... | AC220: 190 | AD220: 400 | AE220: 30% | AF220: 120 | AG220: 15 | AH220: 0.510
B221: Malzkeime | C221: 920 | D221: 5.9 | E221: 10.0 | F221: 297 | G221: 25% | H221: 179 | I221: +19 | J221: 0.28 | K221: =181/1.06 -> 171 | L221: =433/1.06 -> 408 | M221: 227 | N221: 46 | O221: 139 | P221: 11 | Q221: 150 | R221: 0% | S221: 57 | T221: 0.7 | U221: 5.6 | V221: 0.5 | W221: 0.4 | X221: 2.6 | Y221: ... | Z221: ... | AC221: 150 | AD221: 46 | AE221: 10% | AF221: =+AD221*AE221 -> 4.6 | AG221: 139 | AH221: =0.9-1.3*AE221 -> 0.770
B222: Melasse | C222: 786 | D222: 7.6 | E222: 11.9 | F222: 135 | G222: 20% | H222: 153 | I222: -3 | J222: -0.40 | K222: 0 | L222: 0 | M222: 746 | N222: 0 | O222: 652 | P222: 3 | Q222: 5 | R222: 0% | S222: 116 | T222: 2.5 | U222: 0.5 | V222: 7.6 | W222: 0.2 | X222: 54.1 | Y222: ... | Z222: 1150 | AC222: 5 | AD222: =IF(N222=0,0.0001,N222) -> 0.0001 | AE222: 100% | AF222: 0.0001 | AG222: 652 | AH222: -0.400
B223: Melasseschnitzel | C223: 900 | D223: 7.7 | E223: 12.2 | F223: 97 | G223: 30% | H223: 150 | I223: -8 | J223: 0.24 | K223: 184 | L223: 315 | M223: 504 | N223: 0 | O223: 200 | P223: 8 | Q223: 146 | R223: 0% | S223: 76 | T223: 10.6 | U223: 0.8 | V223: 1.7 | W223: 1.8 | X223: 14.4 | Y223: ... | Z223: 190 | AC223: 146 | AD223: 0.0001 | AE223: 100% | AF223: 0.0001 | AG223: 200 | AH223: -0.400
B224: Palmkernkuchen, 8-12 % Fett | C224: 910 | D224: 7.5 | E224: 12.3 | F224: 205 | G224: 40% | H224: 198 | I224: +1 | J224: 0.46 | K224: 350 | L224: 550 | M224: 135 | N224: 0 | O224: 25 | P224: 65 | Q224: 170 | R224: 0% | S224: 45 | T224: =2.2/0.9 -> 2.4 | U224: 6.6 | V224: =0.48/0.9 -> 0.5 | W224: =3/0.9 -> 3.3 | X224: =6.7/0.9 -> 7.4 | Y224: ... | Z224: ... | AC224: 170 | AD224: 0.0001 | AE224: 100% | AF224: 0.0001 | AG224: 25 | AH224: -0.400
B225: Rapsextraktionsschrot | C225: 890 | D225: 7.3 | E225: 12.0 | F225: 385 | G225: 35% | H225: 253 | I225: +21 | J225: 0.38 | K225: 226 | L225: 315 | M225: 204 | N225: 0 | O225: 80 | P225: 20 | Q225: 150 | R225: 0% | S225: 77 | T225: 7.8 | U225: 15.7 | V225: 0.6 | W225: 4.8 | X225: 14.4 | Y225: ... | Z225: -110 | AC225: 150 | AD225: 0.0001 | AE225: 100% | AF225: 0.0001 | AG225: 80 | AH225: -0.400
B226: Rapsextraktionsschrot, geschützt | C226: 900 | D226: 7.3 | E226: =D226/0.63 -> 11.7 | F226: 388 | G226: 60% | H226: 331 | I226: +9 | J226: 0.39 | K226: 244 | L226: 367 | M226: 147 | N226: 0 | O226: 75 | P226: 21 | Q226: 157 | R226: 0% | S226: 78 | T226: 7.6 | U226: 16.9 | V226: 0.8 | W226: 4.9 | X226: 15.1 | Y226: ... | Z226: -110 | AC226: 157 | AD226: 0.0001 | AE226: 100% | AF226: =+AD226*AE226 -> 0.0001 | AG226: 75 | AH226: -0.400
B227: Rapskuchen /-expeller , 15% Fett, kaltgepresst | C227: 900 | D227: 8.7 | E227: 14.2 | F227: 340 | G227: 15% | H227: 207 | I227: +21 | J227: 0.37 | K227: =1.9*Q227 -> 238 | L227: =2.2*Q227 -> 275 | M227: 150 | N227: 0 | O227: 70 | P227: 165 | Q227: 125 | R227: 0% | S227: 70 | T227: 7.5 | U227: 11.6 | V227: 0.4 | W227: 5.1 | X227: 13.0 | Y227: ... | Z227: -200 | AC227: 125 | AD227: 0.0001 | AE227: 100% | AF227: 0.0001 | AG227: 70 | AH227: -0.400
... 40 more rows

Sheet Eigenmischungen
B2: Komponenten | D2: =Futterwerte!C6 -> TS | E2: =Futterwerte!D6 -> NEL | F2: =Futterwerte!E6 -> ME | G2: =Futterwerte!F6 -> XP | H2: =Futterwerte!G6 -> UDP | I2: =Futterwerte!H6 -> nXP | J2: =Futterwerte!I6 -> RNB | K2: =Futterwerte!J6 -> SW | L2: =Futterwerte!K6 -> ADF | M2: =Futterwerte!L6 -> NDF | N2: =Futterwerte!M6 -> NFC | O2: =Futterwerte!N6 -> XS | P2: =Futterwerte!O6 -> XZ | Q2: =Futterwerte!P6 -> XL | R2: =Futterwerte!Q6 -> XF | S2: =Futterwerte!R6 -> sXF | T2: =Futterwerte!S6 -> XA | U2: =Futterwerte!T6 -> Ca | V2: =Futterwerte!U6 -> P | W2: =Futterwerte!V6 -> Na | X2: =Futterwerte!W6 -> Mg | Y2: =Futterwerte!X6 -> K | Z2: =Futterwerte!Y6 -> Se | AA2: =Futterwerte!Z6 -> DCAB | AB2: =Futterwerte!AA6 -> Kosten | AC2: Mischung ... | AD2: Mischung ... | AE2: Mischung ... | AF2: Mischung ... | AG2: Mischung ... | AH2: Mischung ... | AI2: Mischung ... | AJ2: Mischung ... | AK2: Mischung ...
A3: 233 | B3: =INDEX(Tabelle,$A3,1) -> 0 | D3: =IF(INDEX(Tabelle,$A3,2)="","",INDEX(Tabelle,$A3,2)/10) -> 0.0 | E3: =INDEX(Tabelle,$A3,3) -> 0.0 | F3: =INDEX(Tabelle,$A3,4) -> 0.0 | G3: =INDEX(Tabelle,$A3,5) -> 0.0 | H3: =INDEX(Tabelle,$A3,6) -> 0.0 | I3: =INDEX(Tabelle,$A3,7) -> 0.0 | J3: =INDEX(Tabelle,$A3,8) -> 0.0 | K3: =INDEX(Tabelle,$A3,9) -> 0.0 | L3: =INDEX(Tabelle,$A3,10) -> 0.0 | M3: =INDEX(Tabelle,$A3,11) -> 0.0 | N3: =INDEX(Tabelle,$A3,12) -> 0.0 | O3: =INDEX(Tabelle,$A3,13) -> 0.0 | P3: =INDEX(Tabelle,$A3,14) -> 0.0 | Q3: =INDEX(Tabelle,$A3,15) -> 0.0 | R3: =INDEX(Tabelle,$A3,16) -> 0.0 | S3: =INDEX(Tabelle,$A3,17) -> 0.0 | T3: =INDEX(Tabelle,$A3,18) -> 0.0 | U3: =INDEX(Tabelle,$A3,19) -> 0.0 | V3: =INDEX(Tabelle,$A3,20) -> 0.0 | W3: =INDEX(Tabelle,$A3,21) -> 0.0 | X3: =INDEX(Tabelle,$A3,22) -> 0.0 | Y3: =INDEX(Tabelle,$A3,23) -> 0.0 | Z3: =INDEX(Tabelle,$A3,24) -> 0.0 | AA3: =INDEX(Tabelle,$A3,25) -> 0.0 | AB3: =INDEX(Tabelle,$A3,26) -> 0.0
A4: 233 | B4: 0 | D4: 0.0 | E4: 0.0 | F4: 0.0 | G4: 0.0 | H4: 0.0 | I4: 0.0 | J4: 0.0 | K4: 0.0 | L4: 0.0 | M4: 0.0 | N4: 0.0 | O4: 0.0 | P4: 0.0 | Q4: 0.0 | R4: 0.0 | S4: 0.0 | T4: 0.0 | U4: 0.0 | V4: 0.0 | W4: 0.0 | X4: 0.0 | Y4: 0.0 | Z4: 0.0 | AA4: 0.0 | AB4: 0.0
A5: 193 | B5: 0 | D5: 0.0 | E5: 0.0 | F5: 0.0 | G5: 0.0 | H5: 0.0 | I5: 0.0 | J5: 0.0 | K5: 0.0 | L5: 0.0 | M5: 0.0 | N5: 0.0 | O5: 0.0 | P5: 0.0 | Q5: 0.0 | R5: 0.0 | S5: 0.0 | T5: 0.0 | U5: 0.0 | V5: 0.0 | W5: 0.0 | X5: 0.0 | Y5: 0.0 | Z5: 0.0 | AA5: 0.0 | AB5: 0.0
A6: 193 | B6: 0 | D6: 0.0 | E6: 0.0 | F6: 0.0 | G6: 0.0 | H6: 0.0 | I6: 0.0 | J6: 0.0 | K6: 0.0 | L6: 0.0 | M6: 0.0 | N6: 0.0 | O6: 0.0 | P6: 0.0 | Q6: 0.0 | R6: 0.0 | S6: 0.0 | T6: 0.0 | U6: 0.0 | V6: 0.0 | W6: 0.0 | X6: 0.0 | Y6: 0.0 | Z6: 0.0 | AA6: 0.0 | AB6: 0.0
A7: 193 | B7: 0 | D7: 0.0 | E7: 0.0 | F7: 0.0 | G7: 0.0 | H7: 0.0 | I7: 0.0 | J7: 0.0 | K7: 0.0 | L7: 0.0 | M7: 0.0 | N7: 0.0 | O7: 0.0 | P7: 0.0 | Q7: 0.0 | R7: 0.0 | S7: 0.0 | T7: 0.0 | U7: 0.0 | V7: 0.0 | W7: 0.0 | X7: 0.0 | Y7: 0.0 | Z7: 0.0 | AA7: 0.0 | AB7: 0.0
A8: 193 | B8: 0 | D8: 0.0 | E8: 0.0 | F8: 0.0 | G8: 0.0 | H8: 0.0 | I8: 0.0 | J8: 0.0 | K8: 0.0 | L8: 0.0 | M8: 0.0 | N8: 0.0 | O8: 0.0 | P8: 0.0 | Q8: 0.0 | R8: 0.0 | S8: 0.0 | T8: 0.0 | U8: 0.0 | V8: 0.0 | W8: 0.0 | X8: 0.0 | Y8: 0.0 | Z8: 0.0 | AA8: 0.0 | AB8: 0.0
A9: 193 | B9: 0 | D9: 0.0 | E9: 0.0 | F9: 0.0 | G9: 0.0 | H9: 0.0 | I9: 0.0 | J9: 0.0 | K9: 0.0 | L9: 0.0 | M9: 0.0 | N9: 0.0 | O9: 0.0 | P9: 0.0 | Q9: 0.0 | R9: 0.0 | S9: 0.0 | T9: 0.0 | U9: 0.0 | V9: 0.0 | W9: 0.0 | X9: 0.0 | Y9: 0.0 | Z9: 0.0 | AA9: 0.0 | AB9: 0.0
A10: 193 | B10: 0 | D10: 0.0 | E10: 0.0 | F10: 0.0 | G10: 0.0 | H10: 0.0 | I10: 0.0 | J10: 0.0 | K10: 0.0 | L10: 0.0 | M10: 0.0 | N10: 0.0 | O10: 0.0 | P10: 0.0 | Q10: 0.0 | R10: 0.0 | S10: 0.0 | T10: 0.0 | U10: 0.0 | V10: 0.0 | W10: 0.0 | X10: 0.0 | Y10: 0.0 | Z10: 0.0 | AA10: 0.0 | AB10: 0.0
A11: 193 | B11: 0 | D11: 0.0 | E11: 0.0 | F11: 0.0 | G11: 0.0 | H11: 0.0 | I11: 0.0 | J11: 0.0 | K11: 0.0 | L11: 0.0 | M11: 0.0 | N11: 0.0 | O11: 0.0 | P11: 0.0 | Q11: 0.0 | R11: 0.0 | S11: 0.0 | T11: 0.0 | U11: 0.0 | V11: 0.0 | W11: 0.0 | X11: 0.0 | Y11: 0.0 | Z11: 0.0 | AA11: 0.0 | AB11: 0.0
A12: 193 | B12: 0 | D12: 0.0 | E12: 0.0 | F12: 0.0 | G12: 0.0 | H12: 0.0 | I12: 0.0 | J12: 0.0 | K12: 0.0 | L12: 0.0 | M12: 0.0 | N12: 0.0 | O12: 0.0 | P12: 0.0 | Q12: 0.0 | R12: 0.0 | S12: 0.0 | T12: 0.0 | U12: 0.0 | V12: 0.0 | W12: 0.0 | X12: 0.0 | Y12: 0.0 | Z12: 0.0 | AA12: 0.0 | AB12: 0.0
A13: 193 | B13: 0 | D13: 0.0 | E13: 0.0 | F13: 0.0 | G13: 0.0 | H13: 0.0 | I13: 0.0 | J13: 0.0 | K13: 0.0 | L13: 0.0 | M13: 0.0 | N13: 0.0 | O13: 0.0 | P13: 0.0 | Q13: 0.0 | R13: 0.0 | S13: 0.0 | T13: 0.0 | U13: 0.0 | V13: 0.0 | W13: 0.0 | X13: 0.0 | Y13: 0.0 | Z13: 0.0 | AA13: 0.0 | AB13: 0.0
A14: 193 | B14: 0 | D14: 0.0 | E14: 0.0 | F14: 0.0 | G14: 0.0 | H14: 0.0 | I14: 0.0 | J14: 0.0 | K14: 0.0 | L14: 0.0 | M14: 0.0 | N14: 0.0 | O14: 0.0 | P14: 0.0 | Q14: 0.0 | R14: 0.0 | S14: 0.0 | T14: 0.0 | U14: 0.0 | V14: 0.0 | W14: 0.0 | X14: 0.0 | Y14: 0.0 | Z14: 0.0 | AA14: 0.0 | AB14: 0.0
A15: 193 | B15: 0 | D15: 0.0 | E15: 0.0 | F15: 0.0 | G15: 0.0 | H15: 0.0 | I15: 0.0 | J15: 0.0 | K15: 0.0 | L15: 0.0 | M15: 0.0 | N15: 0.0 | O15: 0.0 | P15: 0.0 | Q15: 0.0 | R15: 0.0 | S15: 0.0 | T15: 0.0 | U15: 0.0 | V15: 0.0 | W15: 0.0 | X15: 0.0 | Y15: 0.0 | Z15: 0.0 | AA15: 0.0 | AB15: 0.0
A16: 193 | B16: 0 | D16: 0.0 | E16: 0.0 | F16: 0.0 | G16: 0.0 | H16: 0.0 | I16: 0.0 | J16: 0.0 | K16: 0.0 | L16: 0.0 | M16: 0.0 | N16: 0.0 | O16: 0.0 | P16: 0.0 | Q16: 0.0 | R16: 0.0 | S16: 0.0 | T16: 0.0 | U16: 0.0 | V16: 0.0 | W16: 0.0 | X16: 0.0 | Y16: 0.0 | Z16: 0.0 | AA16: 0.0 | AB16: 0.0
A17: 193 | B17: 0 | D17: 0.0 | E17: 0.0 | F17: 0.0 | G17: 0.0 | H17: 0.0 | I17: 0.0 | J17: 0.0 | K17: 0.0 | L17: 0.0 | M17: 0.0 | N17: 0.0 | O17: 0.0 | P17: 0.0 | Q17: 0.0 | R17: 0.0 | S17: 0.0 | T17: =INDEX(Tabelle,$A18,18) -> 0.0 | U17: 0.0 | V17: 0.0 | W17: 0.0 | X17: 0.0 | Y17: 0.0 | Z17: 0.0 | AA17: 0.0 | AB17: 0.0
A18: 193 | B18: 0 | D18: 0.0 | E18: 0.0 | F18: 0.0 | G18: 0.0 | H18: 0.0 | I18: 0.0 | J18: 0.0 | K18: 0.0 | L18: 0.0 | M18: 0.0 | N18: 0.0 | O18: 0.0 | P18: 0.0 | Q18: 0.0 | R18: 0.0 | S18: 0.0 | T18: =INDEX(Tabelle,$A18,18) -> 0.0 | U18: 0.0 | V18: 0.0 | W18: 0.0 | X18: 0.0 | Y18: 0.0 | Z18: 0.0 | AA18: 0.0 | AB18: 0.0
A19: 193 | B19: 0 | D19: 0.0 | E19: 0.0 | F19: 0.0 | G19: 0.0 | H19: 0.0 | I19: 0.0 | J19: 0.0 | K19: 0.0 | L19: 0.0 | M19: 0.0 | N19: 0.0 | O19: 0.0 | P19: 0.0 | Q19: 0.0 | R19: 0.0 | S19: 0.0 | T19: =INDEX(Tabelle,$A19,18) -> 0.0 | U19: 0.0 | V19: 0.0 | W19: 0.0 | X19: 0.0 | Y19: 0.0 | Z19: 0.0 | AA19: 0.0 | AB19: 0.0
A20: 193 | B20: 0 | D20: 0.0 | E20: 0.0 | F20: 0.0 | G20: 0.0 | H20: 0.0 | I20: 0.0 | J20: 0.0 | K20: 0.0 | L20: 0.0 | M20: 0.0 | N20: 0.0 | O20: 0.0 | P20: 0.0 | Q20: 0.0 | R20: 0.0 | S20: 0.0 | T20: =INDEX(Tabelle,$A20,18) -> 0.0 | U20: 0.0 | V20: 0.0 | W20: 0.0 | X20: 0.0 | Y20: 0.0 | Z20: 0.0 | AA20: 0.0 | AB20: 0.0
C21: Summe | AC21: =SUM(AC3:AC20) -> 0.0% | AD21: =SUM(AD3:AD20) -> 0.0% | AE21: 0.0% | AF21: 0.0% | AG21: 0.0% | AH21: 0.0% | AI21: 0.0% | AJ21: 0.0% | AK21: 0.0%
C23: ESt | AC23: =IF(AC24=0,"",IF(AC24<=6.45,"II",IF(AC24<=6.95,"III","IV"))) ->  | AD23: =IF(AD24=0,"",IF(AD24<=6.45,"II",IF(AD24<=6.95,"III","IV"))) -> 
C24: NEL MJ /kg FM | AC24: =AC28*AC27/100 -> 0.00 | AD24: =AD28*AD27/100 -> 0.00 | AE24: 0.00 | AF24: 0.00 | AG24: 0.00 | AH24: 0.00 | AI24: 0.00 | AJ24: 0.00 | AK24: 0.00
C25: XP, g/kg FM | AC25: =AC30*AC27/100 -> 0 | AD25: =AD30*AD27/100 -> 0 | AE25: 0 | AF25: 0 | AG25: 0 | AH25: 0 | AI25: 0 | AJ25: 0 | AK25: 0
C26: Kosten €/dt | AC26: =ROUND(AC$3*$AB$3+AC$4*$AB$4+AC$5*$AB$5+AC$6*$AB$6+AC$7*$AB$7+AC$8*$AB$8+AC$9*$AB$9+AC$10*$AB$10+AC$11*$AB$11+AC$12*$AB$12+AC$13*$AB$13+AC$14*$AB$14+AC$15*$AB$15+AC$16*$AB$16+AC$17*$AB$17+AC$18*$AB$18+AC$19*$AB$19+AC$20*$AB$20,2) -> 0.00 | AD26: =ROUND(AD$3*$AB$3+AD$4*$AB$4+AD$5*$AB$5+AD$6*$AB$6+AD$7*$AB$7+AD$8*$AB$8+AD$9*$AB$9+AD$10*$AB$10+AD$11*$AB$11+AD$12*$AB$12+AD$13*$AB$13+AD$14*$AB$14+AD$15*$AB$15+AD$16*$AB$16+AD$17*$AB$17+AD$18*$AB$18+AD$19*$AB$19+AD$20*$AB$20,-1) -> 0.00 | AE26: 0.00 | AF26: 0.00 | AG26: 0.00 | AH26: 0.00 | AI26: 0.00 | AJ26: 0.00 | AK26: 0.00
C27: =D2&", %" -> TS, % | AC27: =ROUND(AC$3*$D$3+AC$4*$D$4+AC$5*$D$5+AC$6*$D$6+AC$7*$D$7+AC$8*$D$8+AC$9*$D$9+AC$10*$D$10+AC$11*$D$11+AC$12*$D$12+AC$13*$D$13+AC$14*$D$14+AC$15*$D$15+AC$16*$D$16+AC$17*$D$17+AC$18*$D$18+AC$19*$D$19+AC$20*$D$20,1) -> 0.0 | AD27: =ROUND(AD$3*$D$3+AD$4*$D$4+AD$5*$D$5+AD$6*$D$6+AD$7*$D$7+AD$8*$D$8+AD$9*$D$9+AD$10*$D$10+AD$11*$D$11+AD$12*$D$12+AD$13*$D$13+AD$14*$D$14+AD$15*$D$15+AD$16*$D$16+AD$17*$D$17+AD$18*$D$18+AD$19*$D$19+AD$20*$D$20,1) -> 0.0 | AE27: 0.0 | AF27: 0.0 | AG27: 0.0 | AH27: 0.0 | AI27: 0.0 | AJ27: 0.0 | AK27: 0.0
C28: =E2&", MJ" -> NEL, MJ | AC28: =ROUND(AC$3*$E$3+AC$4*$E$4+AC$5*$E$5+AC$6*$E$6+AC$7*$E$7+AC$8*$E$8+AC$9*$E$9+AC$10*$E$10+AC$11*$E$11+AC$12*$E$12+AC$13*$E$13+AC$14*$E$14+AC$15*$E$15+AC$16*$E$16+AC$17*$E$17+AC$18*$E$18+AC$19*$E$19+AC$20*$E$20,1) -> 0.0 | AD28: =ROUND(AD$3*$E$3+AD$4*$E$4+AD$5*$E$5+AD$6*$E$6+AD$7*$E$7+AD$8*$E$8+AD$9*$E$9+AD$10*$E$10+AD$11*$E$11+AD$12*$E$12+AD$13*$E$13+AD$14*$E$14+AD$15*$E$15+AD$16*$E$16+AD$17*$E$17+AD$18*$E$18+AD$19*$E$19+AD$20*$E$20,1) -> 0.0 | AE28: 0.0 | AF28: 0.0 | AG28: 0.0 | AH28: 0.0 | AI28: 0.0 | AJ28: 0.0 | AK28: 0.0
C29: =F2&", MJ" -> ME, MJ | AC29: =AC$3*$F$3+AC$4*$F$4+AC$5*$F$5+AC$6*$F$6+AC$7*$F$7+AC$8*$F$8+AC$9*$F$9+AC$10*$F$10+AC$11*$F$11+AC$12*$F$12+AC$13*$F$13+AC$14*$F$14+AC$15*$F$15+AC$16*$F$16+AC$17*$F$17+AC$18*$F$18+AC$19*$F$19+AC$20*$F$20 -> 0.0 | AD29: 0.0 | AE29: 0.0 | AF29: 0.0 | AG29: 0.0 | AH29: 0.0 | AI29: 0.0 | AJ29: 0.0 | AK29: 0.0
C30: =G2&", g/kg TM" -> XP, g/kg TM | AC30: =AC$3*$G$3+AC$4*$G$4+AC$5*$G$5+AC$6*$G$6+AC$7*$G$7+AC$8*$G$8+AC$9*$G$9+AC$10*$G$10+AC$11*$G$11+AC$12*$G$12+AC$13*$G$13+AC$14*$G$14+AC$15*$G$15+AC$16*$G$16+AC$17*$G$17+AC$18*$G$18+AC$19*$G$19+AC$20*$G$20 -> 0 | AD30: 0 | AE30: 0 | AF30: 0 | AG30: 0 | AH30: 0 | AI30: 0 | AJ30: 0 | AK30: 0
C31: =H2 -> UDP | AC31: =AC$3*$H$3+AC$4*$H$4+AC$5*$H$5+AC$6*$H$6+AC$7*$H$7+AC$8*$H$8+AC$9*$H$9+AC$10*$H$10+AC$11*$H$11+AC$12*$H$12+AC$13*$H$13+AC$14*$H$14+AC$15*$H$15+AC$16*$H$16+AC$17*$H$17+AC$18*$H$18+AC$19*$H$19+AC$20*$H$20 -> 0% | AD31: 0% | AE31: 0% | AF31: 0% | AG31: 0% | AH31: 0% | AI31: 0% | AJ31: 0% | AK31: 0%
C32: =I2&", g/kg TM" -> nXP, g/kg TM | AC32: =AC$3*$I$3+AC$4*$I$4+AC$5*$I$5+AC$6*$I$6+AC$7*$I$7+AC$8*$I$8+AC$9*$I$9+AC$10*$I$10+AC$11*$I$11+AC$12*$I$12+AC$13*$I$13+AC$14*$I$14+AC$15*$I$15+AC$16*$I$16+AC$17*$I$17+AC$18*$I$18+AC$19*$I$19+AC$20*$I$20 -> 0 | AD32: 0 | AE32: 0 | AF32: 0 | AG32: 0 | AH32: 0 | AI32: 0 | AJ32: 0 | AK32: 0
C33: =J2&", g/kg TM" -> RNB, g/kg TM | AC33: =AC$3*$J$3+AC$4*$J$4+AC$5*$J$5+AC$6*$J$6+AC$7*$J$7+AC$8*$J$8+AC$9*$J$9+AC$10*$J$10+AC$11*$J$11+AC$12*$J$12+AC$13*$J$13+AC$14*$J$14+AC$15*$J$15+AC$16*$J$16+AC$17*$J$17+AC$18*$J$18+AC$19*$J$19+AC$20*$J$20 -> 0.0 | AD33: 0.0 | AE33: 0.0 | AF33: 0.0 | AG33: 0.0 | AH33: 0.0 | AI33: 0.0 | AJ33: 0.0 | AK33: 0.0
C34: =K2&", g/kg TM" -> SW, g/kg TM | AC34: =AC$3*$K$3+AC$4*$K$4+AC$5*$K$5+AC$6*$K$6+AC$7*$K$7+AC$8*$K$8+AC$9*$K$9+AC$10*$K$10+AC$11*$K$11+AC$12*$K$12+AC$13*$K$13+AC$14*$K$14+AC$15*$K$15+AC$16*$K$16+AC$17*$K$17+AC$18*$K$18+AC$19*$K$19+AC$20*$K$20 -> 0.0 | AD34: 0.0 | AE34: 0.0 | AF34: 0.0 | AG34: 0.0 | AH34: 0.0 | AI34: 0.0 | AJ34: 0.0 | AK34: 0.0
C35: =L2&", g/kg TM" -> ADF, g/kg TM | AC35: =AC$3*$L$3+AC$4*$L$4+AC$5*$L$5+AC$6*$L$6+AC$7*$L$7+AC$8*$L$8+AC$9*$L$9+AC$10*$L$10+AC$11*$L$11+AC$12*$L$12+AC$13*$L$13+AC$14*$L$14+AC$15*$L$15+AC$16*$L$16+AC$17*$L$17+AC$18*$L$18+AC$19*$L$19+AC$20*$L$20 -> 0 | AD35: 0 | AE35: 0 | AF35: 0 | AG35: 0 | AH35: 0 | AI35: 0 | AJ35: 0 | AK35: 0
C36: =M2&", g/kg TM" -> NDF, g/kg TM | AC36: =AC$3*$M$3+AC$4*$M$4+AC$5*$M$5+AC$6*$M$6+AC$7*$M$7+AC$8*$M$8+AC$9*$M$9+AC$10*$M$10+AC$11*$M$11+AC$12*$M$12+AC$13*$M$13+AC$14*$M$14+AC$15*$M$15+AC$16*$M$16+AC$17*$M$17+AC$18*$M$18+AC$19*$M$19+AC$20*$M$20 -> 0 | AD36: 0 | AE36: 0 | AF36: 0 | AG36: 0 | AH36: 0 | AI36: 0 | AJ36: 0 | AK36: 0
C37: =N2&", g/kg TM" -> NFC, g/kg TM | AC37: =AC$3*$N$3+AC$4*$N$4+AC$5*$N$5+AC$6*$N$6+AC$7*$N$7+AC$8*$N$8+AC$9*$N$9+AC$10*$N$10+AC$11*$N$11+AC$12*$N$12+AC$13*$N$13+AC$14*$N$14+AC$15*$N$15+AC$16*$N$16+AC$17*$N$17+AC$18*$N$18+AC$19*$N$19+AC$20*$N$20 -> 0 | AD37: =AD$3*$N$3+AD$4*$N$4+AD$5*$N$5+AD$6*$N$6+AD$7*$N$7+AD$8*$N$8+AD$9*$N$9+AD$10*$N$10+AD$11*$N$11+AD$12*$N$12+AD$13*$N$13+AD$14*$N$14+AD$15*$N$15+AD$16*$N$16+AD$17*$N$17+AD$18*$N$18+AD$19*$N$19+AD$20*$N$20 -> 0 | AE37: 0 | AF37: 0 | AG37: 0 | AH37: 0 | AI37: 0 | AJ37: 0 | AK37: 0
C38: =O2&", g/kg TM" -> XS, g/kg TM | AC38: =AC$3*$O$3+AC$4*$O$4+AC$5*$O$5+AC$6*$O$6+AC$7*$O$7+AC$8*$O$8+AC$9*$O$9+AC$10*$O$10+AC$11*$O$11+AC$12*$O$12+AC$13*$O$13+AC$14*$O$14+AC$15*$O$15+AC$16*$O$16+AC$17*$O$17+AC$18*$O$18+AC$19*$O$19+AC$20*$O$20 -> 0 | AD38: =AD$3*$O$3+AD$4*$O$4+AD$5*$O$5+AD$6*$O$6+AD$7*$O$7+AD$8*$O$8+AD$9*$O$9+AD$10*$O$10+AD$11*$O$11+AD$12*$O$12+AD$13*$O$13+AD$14*$O$14+AD$15*$O$15+AD$16*$O$16+AD$17*$O$17+AD$18*$O$18+AD$19*$O$19+AD$20*$O$20 -> 0 | AE38: 0 | AF38: 0 | AG38: 0 | AH38: 0 | AI38: 0 | AJ38: 0 | AK38: 0
C39: =P2&", g/kg TM" -> XZ, g/kg TM | AC39: =AC$3*$P$3+AC$4*$P$4+AC$5*$P$5+AC$6*$P$6+AC$7*$P$7+AC$8*$P$8+AC$9*$P$9+AC$10*$P$10+AC$11*$P$11+AC$12*$P$12+AC$13*$P$13+AC$14*$P$14+AC$15*$P$15+AC$16*$P$16+AC$17*$P$17+AC$18*$P$18+AC$19*$P$19+AC$20*$P$20 -> 0 | AD39: 0 | AE39: 0 | AF39: 0 | AG39: 0 | AH39: 0 | AI39: 0 | AJ39: 0 | AK39: 0
C40: =Q2&", g/kg TM" -> XL, g/kg TM | AC40: =AC$3*$Q$3+AC$4*$Q$4+AC$5*$Q$5+AC$6*$Q$6+AC$7*$Q$7+AC$8*$Q$8+AC$9*$Q$9+AC$10*$Q$10+AC$11*$Q$11+AC$12*$Q$12+AC$13*$Q$13+AC$14*$Q$14+AC$15*$Q$15+AC$16*$Q$16+AC$17*$Q$17+AC$18*$Q$18+AC$19*$Q$19+AC$20*$Q$20 -> 0 | AD40: 0 | AE40: 0 | AF40: 0 | AG40: 0 | AH40: 0 | AI40: 0 | AJ40: 0 | AK40: 0
C41: =R2&", g/kg TM" -> XF, g/kg TM | AC41: =AC$3*$R$3+AC$4*$R$4+AC$5*$R$5+AC$6*$R$6+AC$7*$R$7+AC$8*$R$8+AC$9*$R$9+AC$10*$R$10+AC$11*$R$11+AC$12*$R$12+AC$13*$R$13+AC$14*$R$14+AC$15*$R$15+AC$16*$R$16+AC$17*$R$17+AC$18*$R$18+AC$19*$R$19+AC$20*$R$20 -> 0 | AD41: 0 | AE41: 0 | AF41: 0 | AG41: 0 | AH41: 0 | AI41: 0 | AJ41: 0 | AK41: 0
C42: =S2 -> sXF | AC42: =AC$3*$S$3+AC$4*$S$4+AC$5*$S$5+AC$6*$S$6+AC$7*$S$7+AC$8*$S$8+AC$9*$S$9+AC$10*$S$10+AC$11*$S$11+AC$12*$S$12+AC$13*$S$13+AC$14*$S$14+AC$15*$S$15+AC$16*$S$16+AC$17*$S$17+AC$18*$S$18+AC$19*$S$19+AC$20*$S$20 -> 0% | AD42: 0% | AE42: 0% | AF42: 0% | AG42: 0% | AH42: 0% | AI42: 0% | AJ42: 0% | AK42: 0%
C43: =T2&", g/kg TM" -> XA, g/kg TM | AC43: =AC$3*$T$3+AC$4*$T$4+AC$5*$T$5+AC$6*$T$6+AC$7*$T$7+AC$8*$T$8+AC$9*$T$9+AC$10*$T$10+AC$11*$T$11+AC$12*$T$12+AC$13*$T$13+AC$14*$T$14+AC$15*$T$15+AC$16*$T$16+AC$17*$T$17+AC$18*$T$18+AC$19*$T$19+AC$20*$T$20 -> 0 | AD43: 0 | AE43: 0 | AF43: 0 | AG43: 0 | AH43: 0 | AI43: 0 | AJ43: 0 | AK43: 0
C44: =U2&", g/kg TM" -> Ca, g/kg TM | AC44: =AC$3*$U$3+AC$4*$U$4+AC$5*$U$5+AC$6*$U$6+AC$7*$U$7+AC$8*$U$8+AC$9*$U$9+AC$10*$U$10+AC$11*$U$11+AC$12*$U$12+AC$13*$U$13+AC$14*$U$14+AC$15*$U$15+AC$16*$U$16+AC$17*$U$17+AC$18*$U$18+AC$19*$U$19+AC$20*$U$20 -> 0.0 | AD44: 0.0 | AE44: 0.0 | AF44: 0.0 | AG44: 0.0 | AH44: 0.0 | AI44: 0.0 | AJ44: 0.0 | AK44: 0.0
C45: =V2&", g/kg TM" -> P, g/kg TM | AC45: =AC$3*$V$3+AC$4*$V$4+AC$5*$V$5+AC$6*$V$6+AC$7*$V$7+AC$8*$V$8+AC$9*$V$9+AC$10*$V$10+AC$11*$V$11+AC$12*$V$12+AC$13*$V$13+AC$14*$V$14+AC$15*$V$15+AC$16*$V$16+AC$17*$V$17+AC$18*$V$18+AC$19*$V$19+AC$20*$V$20 -> 0.0 | AD45: 0.0 | AE45: 0.0 | AF45: 0.0 | AG45: 0.0 | AH45: 0.0 | AI45: 0.0 | AJ45: 0.0 | AK45: 0.0
C46: =W2&", g/kg TM" -> Na, g/kg TM | AC46: =AC$3*$W$3+AC$4*$W$4+AC$5*$W$5+AC$6*$W$6+AC$7*$W$7+AC$8*$W$8+AC$9*$W$9+AC$10*$W$10+AC$11*$W$11+AC$12*$W$12+AC$13*$W$13+AC$14*$W$14+AC$15*$W$15+AC$16*$W$16+AC$17*$W$17+AC$18*$W$18+AC$19*$W$19+AC$20*$W$20 -> 0.0 | AD46: 0.0 | AE46: 0.0 | AF46: 0.0 | AG46: 0.0 | AH46: 0.0 | AI46: 0.0 | AJ46: 0.0 | AK46: 0.0
C47: =X2&", g/kg TM" -> Mg, g/kg TM | AC47: =AC$3*$X$3+AC$4*$X$4+AC$5*$X$5+AC$6*$X$6+AC$7*$X$7+AC$8*$X$8+AC$9*$X$9+AC$10*$X$10+AC$11*$X$11+AC$12*$X$12+AC$13*$X$13+AC$14*$X$14+AC$15*$X$15+AC$16*$X$16+AC$17*$X$17+AC$18*$X$18+AC$19*$X$19+AC$20*$X$20 -> 0.0 | AD47: 0.0 | AE47: 0.0 | AF47: 0.0 | AG47: 0.0 | AH47: 0.0 | AI47: 0.0 | AJ47: 0.0 | AK47: 0.0
C48: =Y2&", g/kg TM" -> K, g/kg TM | AC48: =AC$3*$Y$3+AC$4*$Y$4+AC$5*$Y$5+AC$6*$Y$6+AC$7*$Y$7+AC$8*$Y$8+AC$9*$Y$9+AC$10*$Y$10+AC$11*$Y$11+AC$12*$Y$12+AC$13*$Y$13+AC$14*$Y$14+AC$15*$Y$15+AC$16*$Y$16+AC$17*$Y$17+AC$18*$Y$18+AC$19*$Y$19+AC$20*$Y$20 -> 0.0 | AD48: =AD$3*$Y$3+AD$4*$Y$4+AD$5*$Y$5+AD$6*$Y$6+AD$7*$Y$7+AD$8*$Y$8+AD$9*$Y$9+AD$10*$Y$10+AD$11*$Y$11+AD$12*$Y$12+AD$13*$Y$13+AD$14*$Y$14+AD$15*$Y$15+AD$16*$Y$16+AD$17*$Y$17+AD$18*$Y$18+AD$19*$Y$19+AD$20*$Y$20 -> 0.0 | AE48: =AE$3*$Y$3+AE$4*$Y$4+AE$5*$Y$5+AE$6*$Y$6+AE$7*$Y$7+AE$8*$Y$8+AE$9*$Y$9+AE$10*$Y$10+AE$11*$Y$11+AE$12*$Y$12+AE$13*$Y$13+AE$14*$Y$14+AE$15*$Y$15+AE$16*$Y$16+AE$17*$Y$17+AE$18*$Y$18+AE$19*$Y$19+AE$20*$Y$20 -> 0.0 | AF48: 0.0 | AG48: 0.0 | AH48: 0.0 | AI48: 0.0 | AJ48: 0.0 | AK48: 0.0
C49: =Z2&", mg/kg TM" -> Se, mg/kg TM | AC49: =AC$3*$Z$3+AC$4*$Z$4+AC$5*$Z$5+AC$6*$Z$6+AC$7*$Z$7+AC$8*$Z$8+AC$9*$Z$9+AC$10*$Z$10+AC$11*$Z$11+AC$12*$Z$12+AC$13*$Z$13+AC$14*$Z$14+AC$15*$Z$15+AC$16*$Z$16+AC$17*$Z$17+AC$18*$Z$18+AC$19*$Z$19+AC$20*$Z$20 -> 0.0 | AD49: 0.0 | AE49: 0.0 | AF49: 0.0 | AG49: 0.0 | AH49: 0.0 | AI49: 0.0 | AJ49: 0.0 | AK49: 0.0
C50: =AA2&", mg/kg TM" -> DCAB, mg/kg TM | AC50: =AC$3*$AA$3+AC$4*$AA$4+AC$5*$AA$5+AC$6*$AA$6+AC$7*$AA$7+AC$8*$AA$8+AC$9*$AA$9+AC$10*$AA$10+AC$11*$AA$11+AC$12*$AA$12+AC$13*$AA$13+AC$14*$AA$14+AC$15*$AA$15+AC$16*$AA$16+AC$17*$AA$17+AC$18*$AA$18+AC$19*$AA$19+AC$20*$AA$20 -> 0.0 | AD50: =AD$3*$AA$3+AD$4*$AA$4+AD$5*$AA$5+AD$6*$AA$6+AD$7*$AA$7+AD$8*$AA$8+AD$9*$AA$9+AD$10*$AA$10+AD$11*$AA$11+AD$12*$AA$12+AD$13*$AA$13+AD$14*$AA$14+AD$15*$AA$15+AD$16*$AA$16+AD$17*$AA$17+AD$18*$AA$18+AD$19*$AA$19+AD$20*$AA$20 -> 0.0 | AE50: 0.0 | AF50: 0.0 | AG50: 0.0 | AH50: 0.0 | AI50: 0.0 | AJ50: 0.0 | AK50: 0.0
A52: ='Ration Milch-Mineralstoffe'!A42:U42 -> UniRat 2022, © W. Sekul, LAZBW Aulendorf Die Daten sind auf Plausibilität zu prüfen, um Eingabe- und Berechnungsfehler auszuschließen. Es wird keine Gewähr zur Richtigkeit der Daten übernommen. | AJ52: =Einstellungen!C1 -> Bearbeiter*in: | AK52: =Einstellungen!E1 -> E. Gerster

Sheet Ration Milch
J2: ="Futterberechnung für "&IF(Art=1,"Milchkühe",IF(Art=2,"Milchschafe",IF(Art=3,"Milchziegen",""))) -> Futterberechnung für Milchkühe
C3: 1 | F3: 2
D4: Milchkühe | H4: Dateneingabe
D5: Milchschafe | H5: 1 | I5: Trockenmasse
D6: Milchziegen | I6: Frischmasse
D8: Rationsbezeichnung | E8: Rationsbezeichnung | F8: Tierzahl | G8: Laktationen | H8: Laktations-tag | I8: Gewicht | J8: Milchleistung
J9: (trocken= "T") | K9: Fett | L9: Eiweiß | W9: ="Bedarf de"&IF(Art=1,"r Kuh",IF(Art=2,"s Schafes",IF(Art=3,"r Ziege",""))) -> Bedarf der Kuh
F10: =IF(Art=1,"Holstein",IF(Art=2,"Milchschaf",IF(Art=3,"Milchziege"))) -> Holstein | G10: Anzahl | H10: Tage | I10: kg | J10: kg/Tag | K10: % | L10: % | W10: =W18 -> TM | X10: =X18 -> NEL | Y10: nXP | Z10: RNB | AA10: NFC | AB10: SW | AC10: ADF | AD10: NDF | AE10: =AE18 -> XS | AF10: XZ | AG10: XL | AH10: XF | AI10: sXF
C11: 1 | D11: 2 | F11: =IF(Art=1,"Fleckvieh","") -> Fleckvieh | W11: kg | X11: =H19 -> MJ | Y11: =I19 -> g | Z11: -20 bis +50 g | AA11: =IF(W40=0,"<"&NFCmax&"g/kg","<"&ROUND(W40*NFCmax,0)&" g") -> <400g/kg | AB11: =IF(Art=1,">"&SWmin,"") -> >1,2 | AC11: =IF(W40=0,">"&ADFmin,">"&ROUND(W40*ADFmin,0)&" g") -> >200 | AD11: =IF(V40=0,">"&NDFmin,">"&ROUND(W40*NDFmin,0)&" g") -> >300 | AE11: =IF($W$40=0,"<"&XSmax,"<"&ROUND($W$40*XSmax,0)&" g") -> <350 | AF11: =IF($W$40=0,"<"&XSmax,"<"&ROUND($W$40*XSmax,0)&" g") -> <350 | AG11: =IF($W$40=0,"<"&XLmax,"<"&ROUND($W$40*XLmax,0)&" g") -> <40 | AH11: =IF($V$40=0,">"&XFmin,">"&ROUND($W$40*XFmin,0)&" g") -> >160 | AI11: =IF($V$40=0,">"&sXFmin,">"&ROUND($W$40*sXFmin,0)&" g") -> >100
F12: =IF(Art=1,"Braunvieh","") -> Braunvieh | M12: =IF(Art=1,"4,0 % Fett 3,4 % Eiweiß -> 3,28MJ NEL/kg, 85 g nXP","") -> 4,0 % Fett 3,4 % Eiweiß -> 3,28MJ NEL/kg, 85 g nXP | X12: =ROUND(IF(OR(F_vH=0,E_vH=0),0,IF(M_kg="t",0,IF(Art=1,F_vH*0.38+E_vH*0.21+1.05,IF(Art=2,(F_vH*0.38+E_vH*0.21+0.95)/0.63,IF(Art=3,(F_vH*0.38+E_vH*0.21+0.95)/0.63,""))))),2) -> 0.00 | Y12: =ROUND(IF(M_kg="t",0,IF(E_vH=0,0,IF(Art=1,(E_vH-3.4)*20+85,IF(Art=2,(E_vH-3.4)*20+85,IF(Art=3,(E_vH-3.4)*20+85,""))))),0) -> 0 | Z12: je kg Milch | AA12: k | AB12: =IF(TMR=1,2.274,3.878) -> 3.878 | AC12: LM | AD12: =IF(TMR=1,LG*(0.0173-0.0000514*LaktTag+0.0000000999*LaktTag^2),LG*(0.0148-0.0000474*LaktTag+0.0000000904*LaktTag^2)) -> 0
C13: Leistungsbedarf | H13: =IF(H11>36000,H11,TODAY()-H11) -> 45048 | X13: =ROUND(IF(Art=1,IF(M_kg="t",13,M_kg*X12),IF(Art=2,IF(M_kg="t",7,M_kg*X12),IF(Art=3,IF(M_kg="t",3.8,M_kg*X12),""))),1) -> 0.0 | Y13: =ROUND(IF(Art=1,IF(M_kg="t",675,M_kg*Y12),IF(Art=2,IF(M_kg="t",7,M_kg*Y12),IF(Art=3,IF(M_kg="t",3.8,M_kg*Y12),""))),0) -> 0 | AA13: Rasse | AB13: =IF(TMR=1,IF(Rasse=1,-1.449,IF(Rasse=2,-2.169,-1.391)),IF(Rasse=1,-2.194,IF(Rasse=2,-2.631,-1.826))) -> -2.631 | AC13: ECM | AD13: =IF(M_kg="t",0,IF(TMR=1,(1.05+0.38*F_vH+0.21*E_vH)/3.28*M_kg*(0.201+0.000808*LaktTag-0.000001299*LaktTag^2),(1.05+0.38*F_vH+0.21*E_vH)/3.28*M_kg*(0.0825+0.0008098*LaktTag-0.00000096*LaktTag^2))) -> 0
C14: Erhaltungsbedarf | J14: =IF(Art=1,"650 kg LG, BCS 3,5 -> 37,7 MJ NEL, 450 g nXP","") -> 650 kg LG, BCS 3,5 -> 37,7 MJ NEL, 450 g nXP | X14: =ROUND(IF(LG=0,0,IF(Art=1,LG^0.75*0.293,IF(Art=2,LG^0.75*0.43,IF(Art=3,LG^0.75*0.43,"")))),1) -> 0 | Y14: =ROUND(IF(LG=0,0,IF(Art=1,190+LG*0.4,IF(Art=2,LG^0.75*3+15,IF(Art=3,LG^0.75*3.25,"")))),0) -> 0 | AA14: Laktation | AB14: =IF(TMR=1,IF(LakNr=1,-0.658,0.236),IF(LakNr=1,-0.728,0.218)) -> 0.218 | AC14: KF | AD14: =IF(TMR=1,SUM(W29:W32,W37:W38)/TS*100*(0.0631-0.0002096*LaktTag+0.0000001213*LaktTag^2),SUM(W29:W32,W37:W38)*(0.6962-0.0023289*LaktTag+0.0000040634*LaktTag^2)) -> 0
W15: =IF(OR(LakNr="",LaktTag="",LG="",M_kg=""),"Daten?",IF(Art=1,IF(M_kg="t",4*NEL_kg-11,AB12+AB13+AB14+AB15+AD12+AD13+AD14+AD15),IF(Art=2,0.9+(LG*0.01)+(IF(M_kg="t",0,M_kg-1)*0.4),IF(Art=3,0.9+(LG*0.01)+(IF(M_kg="t",0,M_kg-1)*0.4),"")))) -> Daten? | X15: =X13+X14 -> 0.0 | Y15: =Y13+Y14 -> 0 | AA15: LTag | AB15: =IF(TMR=1,-5.445+5.298*(1-EXP(-0.01838*LaktTag)),-4.287+4.153*(1-EXP(-0.01486*LaktTag))) -> -4.287 | AC15: GF_NEL | AD15: =IF(TM_GF=0,"",IF(TMR=1,0.609*MJ_GF/TM_GF,0.858*MJ_GF/TM_GF)) -> 
C17: Futterart | H17: Gehalt je kg TM im Futter | V17: Gehalt der Ration | AJ17: Kosten | AK17: Futter-bedarf
B18: =IF(TM_FM=1,"TM",IF(TM_FM=2,"FM","")) -> TM | G18: TS | H18: =IF($C$3=1,"NEL","ME") -> NEL | I18: =IF($C$3=1,"nXP","XP") -> nXP | J18: =IF($C$3=1,"RNB","") -> RNB | K18: =INDEX(Tabelle_Kopf,4,12) -> NFC | L18: =IF(Art=1,"SW","") -> SW | M18: =INDEX(Tabelle_Kopf,4,10) -> ADF | N18: =INDEX(Tabelle_Kopf,4,11) -> NDF | O18: =INDEX(Tabelle_Kopf,4,13) -> XS | P18: =INDEX(Tabelle_Kopf,4,14) -> XZ | Q18: =INDEX(Tabelle_Kopf,4,15) -> XL | R18: =INDEX(Tabelle_Kopf,4,16) -> XF | S18: =INDEX(Tabelle_Kopf,4,17) -> sXF | T18: =INDEX(Tabelle_Kopf,4,25) -> DCAB | U18: Kosten | V18: FM | W18: TM | X18: =+H18 -> NEL | Y18: =+I18 -> nXP | Z18: =+J18 -> RNB | AA18: =+K18 -> NFC | AB18: =+L18 -> SW | AC18: =+M18 -> ADF | AD18: NDF | AE18: =+O18 -> XS | AF18: XZ | AG18: XL | AH18: XF | AI18: sXF | AK18: FM
B19: kg | D19: Grobfutter | G19: % | H19: MJ | I19: g | J19: =IF(J18="","","g") -> g | K19: g | M19: =IF(M18="","","g") -> g | N19: g | O19: g | P19: g | Q19: g | R19: g | S19: g | T19: meq | U19: €/kg | V19: kg | W19: kg | X19: MJ | Y19: g | Z19: =J19 -> g | AA19: g | AC19: g | AD19: g | AE19: g | AF19: g | AG19: g | AH19: g | AI19: g | AJ19: € | AK19: kg
C20: 47 | D20: =INDEX(Tabelle,$C20,1) -> 0 | F20: =IF(INDEX(Tabelle,$C20,22)="","",1) ->  | G20: =IF(INDEX(Tabelle,$C20,2)="","",INDEX(Tabelle,$C20,2)/10) ->  | H20: =ROUND(IF(Art=1,INDEX(Tabelle,$C20,3),INDEX(Tabelle,$C20,4)),2) -> 0.0 | I20: =ROUND(IF(Art=1,INDEX(Tabelle,$C20,7),INDEX(Tabelle,$C20,5)),2) -> 0 | J20: =IF(Art=1,INDEX(Tabelle,$C20,8),0) -> 0 | K20: =INDEX(Tabelle,$C20,12) -> 0 | L20: =IF(Art=1,INDEX(Tabelle,$C20,9),0) -> 0.00 | M20: =INDEX(Tabelle,$C20,10) -> 0 | N20: =INDEX(Tabelle,$C20,11) -> 0 | O20: =INDEX(Tabelle,$C20,13) -> 0 | P20: =INDEX(Tabelle,$C20,14) -> 0 | Q20: =INDEX(Tabelle,$C20,15) -> 0 | R20: =INDEX(Tabelle,$C20,16) -> 0 | S20: =INDEX(Tabelle,$C20,17)*R20 -> 0 | T20: =INDEX(Tabelle,$C20,25) -> 0 | U20: =INDEX(Tabelle,$C20,26) -> 0 | V20: =IF(G20="",0,IF(TM_FM=2,B20,B20/G20*100)) -> 0.00 | W20: =IF(G20="",0,IF(TM_FM=1,B20,B20*G20/100)) -> 0.00 | X20: =W20*H20 -> 0.0 | Y20: =W20*I20 -> 0 | Z20: =W20*J20 -> 0.0 | AA20: =+W20*K20 -> 0 | AB20: =+W20*L20 -> 0.0 | AC20: =IF(M20="-","k.A.",M20*$W20) -> 0 | AD20: 0 | AE20: =+W20*O20 -> 0 | AF20: =+W20*P20 -> 0 | AG20: =+W20*Q20 -> 0 | AH20: =W20*R20 -> 0 | AI20: =+S20*W20 -> 0 | AJ20: =IF(V20=0,0,V20*U20/100) -> 0.00 | AK20: =IF(Tiere>0,Tiere*V20,"") ->  | AL20: =IF(B20="","",IF(COUNTIF(G20:N20,0)>0,"?","")) -> 
C21: 243 | D21: 0 | H21: 0.0 | I21: 0 | J21: 0 | K21: 0 | L21: 0.00 | M21: 0 | N21: 0 | O21: 0 | P21: 0 | Q21: 0 | R21: 0 | S21: 0 | T21: 0 | U21: 0 | V21: 0.00 | W21: 0.00 | X21: 0.0 | Y21: 0 | Z21: 0.0 | AA21: 0 | AB21: 0.0 | AC21: 0 | AD21: 0 | AE21: 0 | AF21: 0 | AG21: 0 | AH21: 0 | AI21: 0 | AJ21: 0.00
C22: 47 | D22: 0 | H22: 0.0 | I22: 0 | J22: 0 | K22: 0 | L22: 0.00 | M22: 0 | N22: 0 | O22: 0 | P22: 0 | Q22: 0 | R22: 0 | S22: 0 | T22: 0 | U22: 0 | V22: 0.00 | W22: 0.00 | X22: 0.0 | Y22: 0 | Z22: 0.0 | AA22: 0 | AB22: 0.0 | AC22: 0 | AD22: 0 | AE22: 0 | AF22: 0 | AG22: 0 | AH22: 0 | AI22: 0 | AJ22: 0.00
C23: 3 | D23: 0 | H23: 0.0 | I23: 0 | J23: 0 | K23: 0 | L23: 0.00 | M23: 0 | N23: 0 | O23: 0 | P23: 0 | Q23: 0 | R23: 0 | S23: 0 | T23: 0 | U23: 0 | V23: 0.00 | W23: 0.00 | X23: 0.0 | Y23: 0 | Z23: 0.0 | AA23: 0 | AB23: 0.0 | AC23: 0 | AD23: 0 | AE23: 0 | AF23: 0 | AG23: 0 | AH23: 0 | AI23: 0 | AJ23: 0.00
C24: 3 | D24: 0 | H24: 0.0 | I24: 0 | J24: 0 | K24: 0 | L24: 0.00 | M24: 0 | N24: 0 | O24: 0 | P24: 0 | Q24: 0 | R24: 0 | S24: 0 | T24: 0 | U24: 0 | V24: 0.00 | W24: 0.00 | X24: 0.0 | Y24: 0 | Z24: 0.0 | AA24: 0 | AB24: 0.0 | AC24: 0 | AD24: 0 | AE24: 0 | AF24: 0 | AG24: 0 | AH24: 0 | AI24: 0 | AJ24: 0.00
C25: 3 | D25: 0 | H25: 0.0 | I25: 0 | J25: 0 | K25: 0 | L25: 0.00 | M25: 0 | N25: 0 | O25: 0 | P25: 0 | Q25: 0 | R25: 0 | S25: 0 | T25: 0 | U25: 0 | V25: 0.00 | W25: 0.00 | X25: 0.0 | Y25: 0 | Z25: 0.0 | AA25: 0 | AB25: 0.0 | AC25: 0 | AD25: 0 | AE25: 0 | AF25: 0 | AG25: 0 | AH25: 0 | AI25: 0 | AJ25: 0.00
N26: Summe | V26: =SUM(V20:V25) -> 0.00 | W26: 0.00 | X26: 0.0 | Y26: 0 | Z26: 0.0 | AA26: 0 | AB26: 0 | AC26: 0 | AD26: 0 | AE26: 0 | AF26: 0 | AG26: 0 | AH26: 0 | AI26: 0 | AJ26: =SUM(AJ20:AJ25) -> 0.00 | AK26: 0
D27: Rationsausgleich/Mineralfutter | V27: je kg TM | W27: =IF(W26=0,"",TM_GF/V26) ->  | X27: =IF($W$26>0,X26/TM_GF,"") -> 
C29: 3 | D29: =INDEX(Tabelle,$C29,1) -> 0 | F29: =IF(INDEX(Tabelle,$C29,22)="","",1) ->  | G29: =IF(INDEX(Tabelle,$C29,2)="","",INDEX(Tabelle,$C29,2)/10) ->  | H29: =ROUND(IF(Art=1,INDEX(Tabelle,$C29,3),INDEX(Tabelle,$C29,4)),2) -> 0.0 | I29: =ROUND(IF(Art=1,INDEX(Tabelle,$C29,7),INDEX(Tabelle,$C29,6)),2) -> 0 | J29: =IF(Art=1,INDEX(Tabelle,$C29,8),0) -> 0 | K29: =INDEX(Tabelle,$C29,12) -> 0 | L29: =IF(Art=1,INDEX(Tabelle,$C29,9),0) -> 0.00 | M29: =INDEX(Tabelle,$C29,10) -> 0 | N29: =INDEX(Tabelle,$C29,11) -> 0 | O29: =INDEX(Tabelle,$C29,13) -> 0 | P29: =INDEX(Tabelle,$C29,14) -> 0 | Q29: =INDEX(Tabelle,$C29,15) -> 0 | R29: =INDEX(Tabelle,$C29,16) -> 0 | S29: =INDEX(Tabelle,$C29,17)*R29 -> 0 | T29: =INDEX(Tabelle,$C29,25) -> 0 | U29: =INDEX(Tabelle,$C29,26) -> 0 | V29: =IF(G29="",0,IF(TM_FM=2,B29,B29/G29*100)) -> 0.00 | W29: =IF(G29="",0,IF(TM_FM=1,B29,B29*G29/100)) -> 0.00 | X29: =W29*H29 -> 0.0 | Y29: =W29*I29 -> 0 | Z29: =W29*J29 -> 0.0 | AA29: =+W29*K29 -> 0 | AB29: =+W29*L29 -> 0.0 | AC29: =IF(M29="-","k.A.",M29*$W29) -> 0 | AD29: 0 | AE29: =+W29*O29 -> 0 | AF29: =+W29*P29 -> 0 | AG29: =+W29*Q29 -> 0 | AH29: =W29*R29 -> 0 | AI29: =+S29*W29 -> 0 | AJ29: =IF(V29=0,0,V29*U29/100) -> 0.00 | AK29: =IF(Tiere>0,Tiere*V29,"") ->  | AL29: =IF(B29="","",IF(COUNTIF(G29:N29,0)>0,"?","")) -> 
C30: 3 | D30: =INDEX(Tabelle,$C30,1) -> 0 | F30: =IF(INDEX(Tabelle,$C30,22)="","",1) ->  | G30: =IF(INDEX(Tabelle,$C30,2)="","",INDEX(Tabelle,$C30,2)/10) ->  | H30: =ROUND(IF(Art=1,INDEX(Tabelle,$C30,3),INDEX(Tabelle,$C30,4)),2) -> 0.0 | I30: =ROUND(IF(Art=1,INDEX(Tabelle,$C30,7),INDEX(Tabelle,$C30,6)),2) -> 0 | J30: =IF(Art=1,INDEX(Tabelle,$C30,8),0) -> 0 | K30: =INDEX(Tabelle,$C30,12) -> 0 | L30: =IF(Art=1,INDEX(Tabelle,$C30,9),0) -> 0.00 | M30: =INDEX(Tabelle,$C30,10) -> 0 | N30: =INDEX(Tabelle,$C30,11) -> 0 | O30: =INDEX(Tabelle,$C30,13) -> 0 | P30: =INDEX(Tabelle,$C30,14) -> 0 | Q30: =INDEX(Tabelle,$C30,15) -> 0 | R30: =INDEX(Tabelle,$C30,16) -> 0 | S30: =INDEX(Tabelle,$C30,17)*R30 -> 0 | T30: =INDEX(Tabelle,$C30,25) -> 0 | U30: =INDEX(Tabelle,$C30,26) -> 0 | V30: =IF(G30="",0,IF(TM_FM=2,B30,B30/G30*100)) -> 0.00 | W30: =IF(G30="",0,IF(TM_FM=1,B30,B30*G30/100)) -> 0.00 | X30: =W30*H30 -> 0.0 | Y30: =W30*I30 -> 0 | Z30: =W30*J30 -> 0.0 | AA30: =+W30*K30 -> 0 | AB30: =+W30*L30 -> 0.0 | AC30: 0 | AD30: 0 | AE30: =+W30*O30 -> 0 | AF30: =+W30*P30 -> 0 | AG30: =+W30*Q30 -> 0 | AH30: =W30*R30 -> 0 | AI30: =+S30*W30 -> 0 | AJ30: 0.00 | AK30: =IF(Tiere>0,Tiere*V30,"") ->  | AL30: =IF(B30="","",IF(COUNTIF(G30:N30,0)>0,"?","")) -> 
C31: 3 | D31: =INDEX(Tabelle,$C31,1) -> 0 | F31: =IF(INDEX(Tabelle,$C31,22)="","",1) ->  | G31: =IF(INDEX(Tabelle,$C31,2)="","",INDEX(Tabelle,$C31,2)/10) ->  | H31: =ROUND(IF(Art=1,INDEX(Tabelle,$C31,3),INDEX(Tabelle,$C31,4)),2) -> 0.0 | I31: =ROUND(IF(Art=1,INDEX(Tabelle,$C31,7),INDEX(Tabelle,$C31,6)),2) -> 0 | J31: =IF(Art=1,INDEX(Tabelle,$C31,8),0) -> 0 | K31: =INDEX(Tabelle,$C31,12) -> 0 | L31: =IF(Art=1,INDEX(Tabelle,$C31,9),0) -> 0.00 | M31: =INDEX(Tabelle,$C31,10) -> 0 | N31: =INDEX(Tabelle,$C31,11) -> 0 | O31: =INDEX(Tabelle,$C31,13) -> 0 | P31: =INDEX(Tabelle,$C31,14) -> 0 | Q31: =INDEX(Tabelle,$C31,15) -> 0 | R31: =INDEX(Tabelle,$C31,16) -> 0 | S31: =INDEX(Tabelle,$C31,17)*R31 -> 0 | T31: =INDEX(Tabelle,$C31,25) -> 0 | U31: =INDEX(Tabelle,$C31,26) -> 0 | V31: =IF(G31="",0,IF(TM_FM=2,B31,B31/G31*100)) -> 0.00 | W31: =IF(G31="",0,IF(TM_FM=1,B31,B31*G31/100)) -> 0.00 | X31: =W31*H31 -> 0.0 | Y31: =W31*I31 -> 0 | Z31: =W31*J31 -> 0.0 | AA31: =+W31*K31 -> 0 | AB31: =+W31*L31 -> 0.0 | AC31: 0 | AD31: 0 | AE31: =+W31*O31 -> 0 | AF31: =+W31*P31 -> 0 | AG31: =+W31*Q31 -> 0 | AH31: =W31*R31 -> 0 | AI31: =+S31*W31 -> 0 | AJ31: 0.00 | AK31: =IF(Tiere>0,Tiere*V31,"") ->  | AL31: =IF(B31="","",IF(COUNTIF(G31:N31,0)>0,"?","")) -> 
C32: 3 | D32: =INDEX(Tabelle,$C32,1) -> 0 | F32: =IF(INDEX(Tabelle,$C32,22)="","",1) ->  | G32: =IF(INDEX(Tabelle,$C32,2)="","",INDEX(Tabelle,$C32,2)/10) ->  | H32: =ROUND(IF(Art=1,INDEX(Tabelle,$C32,3),INDEX(Tabelle,$C32,4)),2) -> 0.0 | I32: =ROUND(IF(Art=1,INDEX(Tabelle,$C32,7),INDEX(Tabelle,$C32,6)),2) -> 0 | J32: =IF(Art=1,INDEX(Tabelle,$C32,8),0) -> 0 | K32: =INDEX(Tabelle,$C32,12) -> 0 | L32: =IF(Art=1,INDEX(Tabelle,$C32,9),0) -> 0.00 | M32: =INDEX(Tabelle,$C32,10) -> 0 | N32: =INDEX(Tabelle,$C32,11) -> 0 | O32: =INDEX(Tabelle,$C32,13) -> 0 | P32: =INDEX(Tabelle,$C32,14) -> 0 | Q32: =INDEX(Tabelle,$C32,15) -> 0 | R32: =INDEX(Tabelle,$C32,16) -> 0 | S32: =INDEX(Tabelle,$C32,17)*R32 -> 0 | T32: =INDEX(Tabelle,$C32,25) -> 0 | U32: =INDEX(Tabelle,$C32,26) -> 0 | V32: =IF(G32="",0,IF(TM_FM=2,B32,B32/G32*100)) -> 0.00 | W32: =IF(G32="",0,IF(TM_FM=1,B32,B32*G32/100)) -> 0.00 | X32: =W32*H32 -> 0.0 | Y32: =W32*I32 -> 0 | Z32: =W32*J32 -> 0.0 | AA32: =+W32*K32 -> 0 | AB32: =+W32*L32 -> 0.0 | AC32: 0 | AD32: 0 | AE32: =+W32*O32 -> 0 | AF32: =+W32*P32 -> 0 | AG32: =+W32*Q32 -> 0 | AH32: =W32*R32 -> 0 | AI32: =+S32*W32 -> 0 | AJ32: 0.00 | AK32: =IF(Tiere>0,Tiere*V32,"") ->  | AL32: =IF(B32="","",IF(COUNTIF(G32:N32,0)>0,"?","")) -> 
N33: Summe | V33: =SUM(V29:V32,V20:V25) -> 0.00 | W33: =SUM(W29:W32,W20:W25) -> 0.00 | X33: 0.0 | Y33: 0 | Z33: 0.0 | AA33: 0 | AB33: 0 | AC33: 0 | AD33: 0 | AE33: =SUM(AE29:AE32,AE20:AE25) -> 0 | AF33: 0 | AG33: 0 | AH33: 0 | AI33: 0 | AJ33: 0.00 | AK33: 0
V34: je kg TM | W34: =IF(W33=0,"",TM_Grundration/V33) ->  | X34: =IF($W$33>0,X33/$W$33,"") ->  | Y34: =IF($W$33>0,Y33/$W$33,"") ->  | AE34: =IF($W$33>0,AE33/$W$33,"") -> 
D35: Milchleistungsfutter (Abruffütterung!) | X35: =IF(X12=0,0,(X33-X14)/X12) -> 0.0 | Y35: =IF(Y12=0,0,(Y33-Y14)/Y12) -> 0.0 | Z35: kg Milch | AA35: =+IF(X33=0,"",AA33/$V33*0.001) ->  | AB35: =IF(V33=0,"",SUM(AB27:AB32)/V33) ->  | AC35: =IF(OR(AC33="k.A.",V33=0),"",+AC33/$V33*0.001) ->  | AD35: =IF(OR(AD33="k.A.",V33=0),"",+AD33/$V33*0.001) ->  | AF35: =+IF(V33=0,"",AF34/$V33*0.001) ->  | AG35: =+IF(Y33=0,"",AG34/$V33*0.001) ->  | AH35: =+IF(Y33=0,"",AH34/$V33*0.001) ->  | AI35: =+IF(Z33=0,"",AI34/$V33*0.001) -> 
C37: 3 | D37: =INDEX(Tabelle,$C37,1) -> 0 | F37: =IF(INDEX(Tabelle,$C37,22)="","",1) ->  | G37: =IF(INDEX(Tabelle,$C37,2)="","",INDEX(Tabelle,$C37,2)/10) ->  | H37: =ROUND(IF(Art=1,INDEX(Tabelle,$C37,3),INDEX(Tabelle,$C37,4)),2) -> 0.0 | I37: =ROUND(IF(Art=1,INDEX(Tabelle,$C37,7),INDEX(Tabelle,$C37,6)),2) -> 0 | J37: =IF(Art=1,INDEX(Tabelle,$C37,8),0) -> 0 | K37: =INDEX(Tabelle,$C37,12) -> 0 | L37: =IF(Art=1,INDEX(Tabelle,$C37,9),0) -> 0.00 | M37: =INDEX(Tabelle,$C37,10) -> 0 | N37: =INDEX(Tabelle,$C37,11) -> 0 | O37: =INDEX(Tabelle,$C37,13) -> 0 | P37: =INDEX(Tabelle,$C37,14) -> 0 | Q37: =INDEX(Tabelle,$C37,15) -> 0 | R37: =INDEX(Tabelle,$C37,16) -> 0 | S37: =INDEX(Tabelle,$C37,17)*R37 -> 0 | T37: =INDEX(Tabelle,$C37,25) -> 0 | U37: =INDEX(Tabelle,$C37,26) -> 0 | V37: =IF(G37="",0,IF(TM_FM=2,B37,B37/G37*100)) -> 0.00 | W37: =IF(G37="",0,IF(TM_FM=1,B37,B37*G37/100)) -> 0.00 | X37: =W37*H37 -> 0.0 | Y37: =W37*I37 -> 0 | Z37: =W37*J37 -> 0.0 | AA37: =+W37*K37 -> 0 | AB37: =+W37*L37 -> 0.0 | AC37: =IF(M37="-","k.A.",M37*$W37) -> 0 | AD37: =IF(N37="-","k.A.",N37*$W37) -> 0 | AE37: =+W37*O37 -> 0 | AF37: =+W37*P37 -> 0 | AG37: =+W37*Q37 -> 0 | AH37: =W37*R37 -> 0 | AI37: =+S37*W37 -> 0 | AJ37: =IF(V37=0,0,V37*U37/100) -> 0.00 | AK37: =IF(Tiere>0,Tiere*V37,"") ->  | AL37: =IF(B37="","",IF(COUNTIF(G37:N37,0)>0,"?","")) -> 
C38: 3 | D38: =INDEX(Tabelle,$C38,1) -> 0 | F38: =IF(INDEX(Tabelle,$C38,22)="","",1) ->  | G38: =IF(INDEX(Tabelle,$C38,2)="","",INDEX(Tabelle,$C38,2)/10) ->  | H38: =ROUND(IF(Art=1,INDEX(Tabelle,$C38,3),INDEX(Tabelle,$C38,4)),2) -> 0.0 | I38: =ROUND(IF(Art=1,INDEX(Tabelle,$C38,7),INDEX(Tabelle,$C38,6)),2) -> 0 | J38: =IF(Art=1,INDEX(Tabelle,$C38,8),0) -> 0 | K38: =INDEX(Tabelle,$C38,12) -> 0 | L38: =IF(Art=1,INDEX(Tabelle,$C38,9),0) -> 0.00 | M38: =INDEX(Tabelle,$C38,10) -> 0 | N38: =INDEX(Tabelle,$C38,11) -> 0 | O38: =INDEX(Tabelle,$C38,13) -> 0 | P38: =INDEX(Tabelle,$C38,14) -> 0 | Q38: =INDEX(Tabelle,$C38,15) -> 0 | R38: =INDEX(Tabelle,$C38,16) -> 0 | S38: =INDEX(Tabelle,$C38,17)*R38 -> 0 | T38: =INDEX(Tabelle,$C38,25) -> 0 | U38: =INDEX(Tabelle,$C38,26) -> 0 | V38: =IF(G38="",0,IF(TM_FM=2,B38,B38/G38*100)) -> 0.00 | W38: =IF(G38="",0,IF(TM_FM=1,B38,B38*G38/100)) -> 0.00 | X38: =W38*H38 -> 0.0 | Y38: =W38*I38 -> 0 | Z38: =W38*J38 -> 0.0 | AA38: =+W38*K38 -> 0 | AB38: =+W38*L38 -> 0.0 | AC38: =IF(M38="-","k.A.",M38*$W38) -> 0 | AD38: =IF(N38="-","k.A.",N38*$W38) -> 0 | AE38: =+W38*O38 -> 0 | AF38: =+W38*P38 -> 0 | AG38: =+W38*Q38 -> 0 | AH38: =W38*R38 -> 0 | AI38: =+S38*W38 -> 0 | AJ38: =IF(V38=0,0,V38*U38/100) -> 0.00 | AK38: =IF(Tiere>0,Tiere*V38,"") ->  | AL38: =IF(B38="","",IF(COUNTIF(G38:N38,0)>0,"?","")) -> 
B39: =B18&", "&B19 -> TM, kg | S39: =IF(OR(LakNr=0,LaktTag=0,LG=0,M_kg=0,TS=0),0,(2.274-0.898+IF(LakNr=1,-0.658,0)+(-5.445+5.298*(1-EXP(-0.0184*LaktTag)))+(LG*(0.0173-0.0000514*LaktTag+0.0000000999*LaktTag^2))+ (IF(M_kg="t",0,M_kg*(0.201+0.000808*LaktTag-0.000001299*LaktTag^2)))+(((TS-TM_GF)/TS*100)*0.0631-0.0002096*LaktTag+0.0000001213*LaktTag^2)+(0.609*MJ_GF/TM_GF))*0.92+0.71) -> 0 | V39: FM kg | W39: TM kg | X39: =+X10&" "&X11 -> NEL MJ | Y39: =+Y10&" "&Y11 -> nXP g | Z39: =" "&Z10&" "&Z11 -> RNB -20 bis +50 g | AA39: =+AA10&" "&AA11 -> NFC <400g/kg | AB39: =+AB10&" "&AB11 -> SW >1,2 | AC39: =+AC10&" "&AC11 -> ADF >200 | AD39: =+AD10&" "&AD11 -> NDF >300 | AE39: =+AE10&" "&AE11 -> XS <350 | AF39: =+AF10&" "&AF11 -> XZ <350 | AG39: =+AG10&" "&AG11 -> XL <40 | AH39: =+AH10&" "&AH11 -> XF >160 | AI39: =+AI10&" "&AI11 -> sXF >100 | AK39: Gesamt-menge kg FM
B40: =SUM(B20:B25,B29:B32,B37:B38) -> 0.00 | N40: Summe | V40: =V33+V37+V38 -> 0.0 | W40: 0.0 | X40: 0.0 | Y40: 0 | Z40: 0.0 | AA40: 0 | AB40: 0.0 | AC40: =IF( OR(,AC33="k.A.",AC37="k.A.",AC38="k.A."),"k.A.",SUM(AC33,AC37:AC38)) -> 0 | AD40: 0 | AE40: 0 | AF40: 0 | AG40: 0 | AH40: 0 | AI40: 0 | AJ40: 0.00 | AK40: =SUM(AK37:AK38,AK33) -> 0
R41: TMR HF | S41: =IF(OR(LakNr=0,LaktTag=0,LG=0,M_kg=0,TS=0),0,(2.274-1.391+IF(LakNr=1,-0.658,0)+(-5.445+5.298*(1-EXP(-0.0184*LaktTag)))+(LG*(0.0173-0.0000514*LaktTag+0.0000000999*LaktTag^2))+ (IF(M_kg="t",0,M_kg*(0.201+0.000808*LaktTag-0.000001299*LaktTag^2)))+(((TS-TM_GF)/TS*100)*0.0631-0.0002096*LaktTag+0.0000001213*LaktTag^2)+(0.609*MJ_GF/TM_GF))*0.92+0.71) -> 0 | V41: je kg TM | W41: =IF(W40=0,"",TS/V40) ->  | X41: =IF($W$40>0,X40/$W$40,"") -> 
R42: TMR HF | S42: =IF(OR(LakNr=0,LaktTag=0,LG=0,M_kg=0,TS=0),0,(2.274-1.391+IF(LakNr=1,-0.658,0)+(-5.445+5.298*(1-EXP(-0.0184*LaktTag)))+(LG*(0.0173-0.0000514*LaktTag+0.0000000999*LaktTag^2))+ (IF(M_kg="t",0,M_kg*(0.201+0.000808*LaktTag-0.000001299*LaktTag^2)))+(((TS-TM_GF)/TS*100)*0.0631-0.0002096*LaktTag+0.0000001213*LaktTag^2)+(0.609*MJ_GF/TM_GF))*0.92+0.71) -> 0 | V42: Abw. V. Ziel | W42: =IF(TS=0,"",IF(W40<ITmin*W15,ROUND((W40-W15)/W15,0),IF(W40<ITmin*1.05*W15,"!",IF(W40>ITmax*W15,"+"&ROUND((W40-W15)/W15*100,0)&"%",IF(W40>ITmax*0.95*W15,"!",""))))) ->  | X42: =IF(X40<NELmin*X15,ROUND((X40-X15)/X15,0),IF(X40<NELmin*1.05*X15,"!",IF(X40>NELmax*X15,"+"&ROUND((X40-X15)/X15*100,0)&"%",IF(X40>NELmax*0.95*X15,"!","")))) ->  | Y42: =IF(Y40<nXPmin*Y15,ROUND((Y40-Y15)/Y15,0),IF(Y40<nXPmin*1.05*Y15,"!",IF(Y40>nXPmax*Y15,"+"&ROUND((Y40-Y15)/Y15*100,0)&"%",IF(Y40>nXPmax*0.95*Y15,"!","")))) ->  | Z42: =IF(M_kg="T",IF(Z40>RNB_t_max+10,Z40-RNB_t_max,IF(Z40<RNB_t_min-10,IF(Z40<RNB_t_min-10,Z40-RNB_t_min),IF(OR(Z40<RNB_t_min,Z40>RNB_t_max),"!",""))),IF(Z40<RNBmin-5,Z40-RNBmin,IF(Z40>RNBmax+15,Z40-RNBmax,IF(OR(Z40<RNBmin,Z40>RNBmax),"!","")))) ->  | AA42: =IF(W40=0,"",IF(AA41>NFCmax,"+"&ROUND((AA41-NFCmax)/NFCmax*100,0)&"%",IF(AA41>NFCmax*0.95,"!",""))) ->  | AB42: =IF(AB41<SWmin,ROUND((AB41-SWmin)/SWmin*100&"%",0),IF(AB41<SWmin*1.05,"!","")) ->  | AC42: =IF(AC41<ADFmin,ROUND((AC41-ADFmin)/ADFmin*100,0)&"%",IF(AC41<ADFmin*1.05,"!","")) ->  | AD42: =IF(AD41<NDFmin,ROUND((AD41-NDFmin)/NDFmin*100,0)&"%",IF(AD41<NDFmin*1.05,"!","")) ->  | AE42: =IF(AE41>XSmax,"+"&ROUND((AE41-XSmax)/XSmax*100,0)&"%",IF(AE41>XSmax*0.95,"!","")) ->  | AF42: =IF(AF41>XZmax,"+"&ROUND((AF41-XZmax)/XZmax*100,0)&"%",IF(AF41>XZmax*0.95,"!","")) ->  | AG42: =IF(AG41>XLmax,"+"&ROUND((AG41-XLmax)/XLmax*100,0)&"%",IF(AG41>XLmax*0.95,"!","")) ->  | AH42: =IF(AH41<XFmin,ROUND((AH41-XFmin)/XFmin*100,0)&"%",IF(AH41<XFmin*1.05,"!","")) ->  | AI42: =IF(AI41<sXFmin,ROUND((AI41-sXFmin)/sXFmin*100,0)&"%",IF(AI41<sXFmin*1.05,"!","")) -> 
R43: Einzel HF | S43: =IF(OR(LakNr=0,LaktTag=0,LG=0,M_kg=0,TS=0),0,(3.878-1.826+IF(LakNr=1,-0.728,0)+(-4.287+4.153*(1-EXP(-0.01486*LaktTag)))+(LG*(0.0148-0.0000474*LaktTag+0.0000000904*LaktTag^2))+(IF(M_kg="t",0,M_kg*(0.0825+0.0008098*LaktTag-0.000000966*LaktTag^2)))+((TS-TM_GF)*(0.6962-0.0023289*LaktTag+0.0000040634*LaktTag^2))+(0.858*MJ_GF/TM_GF))*0.93+0.47) -> 0 | W43: =IF(W15="Daten?","",IF(OR(W40>1.1*W15,W40<0.9*W15),"Die TM-Aufnahme sollte überprüft werden!","Soll "&ROUND(W15,1))) ->  | X43: =IF(X12=0,0,(X40-X14)/X12) -> 0.0 | Y43: =IF(Y12=0,0,(Y40-Y14)/Y12) -> 0.0 | Z43: kg Milch | AA43: =+AB41 ->  | AC43: =IF(OR(AD40="k.A.",V40=0),"",+AD40/$V40*0.001) ->  | AD43: =IF(X40=0,"",+AA40/$V40*0.001) ->  | AF43: =IF(V40=0,"",+AF40/$V40*0.001) ->  | AH43: =IF(Y40=0,"",+AH40/$V40*0.001) ->  | AI43: =IF(Z40=0,"",+AI40/$V40*0.001) -> 
V45: Mineralstoffbilanzierung | X45: ='Ration Milch-Mineralstoffe'!N14 -> Ca | Y45: ='Ration Milch-Mineralstoffe'!O14 -> P | Z45: ='Ration Milch-Mineralstoffe'!P14 -> Na | AA45: ='Ration Milch-Mineralstoffe'!Q14 -> Mg | AB45: ='Ration Milch-Mineralstoffe'!R14 -> K | AC45: ='Ration Milch-Mineralstoffe'!S14 -> Se | AD45: ='Ration Milch-Mineralstoffe'!T14 -> DCAB | AE45: Ca:P | AF45: Na:K | AK45: Kosten
W46: Bedarf | X46: ='Ration Milch-Mineralstoffe'!N11/'Ration Milch-Mineralstoffe'!M7 ->  | Y46: ='Ration Milch-Mineralstoffe'!O11/'Ration Milch-Mineralstoffe'!M7 ->  | Z46: ='Ration Milch-Mineralstoffe'!P11/'Ration Milch-Mineralstoffe'!M7 ->  | AA46: ='Ration Milch-Mineralstoffe'!Q11/'Ration Milch-Mineralstoffe'!M7 ->  | AB46: ='Ration Milch-Mineralstoffe'!R11/'Ration Milch-Mineralstoffe'!M7 ->  | AC46: ='Ration Milch-Mineralstoffe'!S11/'Ration Milch-Mineralstoffe'!M7 ->  | AD46: ='Ration Milch-Mineralstoffe'!T11&" meq/kg TM" -> 200-350 meq/kg TM | AE46: ="1 : "&FIXED((CaPmin+CaPmax)/2,2) -> 1 : 0,63 | AF46: ="1 : "&FIXED((NaKmin+NaKmax)/2,1) -> 1 : 10,0 | AK46: ct/kg MEW
W47: IST | X47: ='Ration Milch-Mineralstoffe'!N38 ->  | Y47: ='Ration Milch-Mineralstoffe'!O38 ->  | Z47: ='Ration Milch-Mineralstoffe'!P38 ->  | AA47: ='Ration Milch-Mineralstoffe'!Q38 ->  | AB47: ='Ration Milch-Mineralstoffe'!R38 ->  | AC47: =IF('Ration Milch-Mineralstoffe'!S38=0,"k.A.",'Ration Milch-Mineralstoffe'!S38) ->  | AD47: ='Ration Milch-Mineralstoffe'!T38 ->  | AE47: ="1 : "&FIXED('Ration Milch-Mineralstoffe'!O38/'Ration Milch-Mineralstoffe'!N38,2) ->  | AF47: ="1 : "&FIXED('Ration Milch-Mineralstoffe'!R38/'Ration Milch-Mineralstoffe'!P38,1) ->  | AK47: =IF(X43<>0,AJ40/X43*100,"") -> 
X48: =IF(X47<Camin*X46,ROUND((X47/X46-1),2),IF(X47<Camin*1.05*X46,"!",IF(X47>Camax*X46,"+"&ROUND((X47/X46-1)*100,0)&"%",IF(X47>Camax*0.95*X46,"!","")))) ->  | Y48: =IF(Y47<Pmin*Y46,ROUND((Y47/Y46-1),2),IF(Y47<Pmin*1.05*Y46,"!",IF(Y47>Pmax*Y46,"+"&ROUND((Y47/Y46-1)*100,0)&"%",IF(Y47>Pmax*0.95*Y46,"!","")))) ->  | Z48: =IF(Z47<Namin*Z46,ROUND((Z47/Z46-1),2),IF(Z47<Namin*1.05*Z46,"!",IF(Z47>Namax*Z46,"+"&ROUND((Z47/Z46-1)*100,0)&"%",IF(Z47>Namax*0.95*Z46,"!","")))) ->  | AA48: =IF(AA47<Mgmin*AA46,ROUND((AA47/AA46-1),2),IF(AA47<Mgmin*1.05*AA46,"!",IF(AA47>Mgmax*AA46,"+"&ROUND((AA47/AA46-1)*100,0)&"%",IF(AA47>Mgmax*0.95*AA46,"!","")))) ->  | AB48: =IF(AB47<Kmin*AB46,ROUND((AB47/AB46-1),2),IF(AB47<Kmin*1.05*AB46,"!",IF(AB47>Kmax*AB46,"+"&ROUND((AB47/AB46-1)*100,0)&"%",IF(AB47>Kmax*0.95*AB46,"!","")))) ->  | AC48: =IF(AC47="k.A.","k.A.",IF(AC47<Semin*AC46,ROUND((AC47-AC46)/AC46,0),IF(AC47<Semin*1.05*AC46,"!",IF(AC47>Semax*AC46,"+"&ROUND((AC47-AC46)/AC46*100,0)&"%",IF(AC47>Semax*0.95*AC46,"!",""))))) ->  | AD48: =IF(M_kg="T",IF(AD47>DCAB_t_max+100,AD47-100,IF(AD47>DCAB_t_max,"!","")),IF(AD47<DCAB_lakt_min-50,AD47-DCAB_lakt_min,IF(AD47>DCAB_lakt_max+50,AD47-DCAB_lakt_max,IF(OR(AD47<DCAB_lakt_min,AD47>DCAB_lakt_max),"!","")))) ->  | AE48: =IF(RIGHT(AE47,4)*1<CaPmin,RIGHT(AE47,4)/RIGHT(AE46,4)-1,IF(RIGHT(AE47,4)*1<CaPmin*1.1,"!",IF(RIGHT(AE47,4)*1>CaPmax,"+"&ROUND((RIGHT(AE47,4)/RIGHT(AE46,4)-1)*100,2)&"%",IF(RIGHT(AE47,4)*1>CaPmax*0.9,"!","")))) ->  | AF48: =IF(RIGHT(AF47,4)*1<NaKmin,RIGHT(AF47,4)/RIGHT(AF46,4)-1,IF(RIGHT(AF47,4)*1<NaKmin*1.1,"!",IF(RIGHT(AF47,4)*1>NaKmax,"+"&ROUND((RIGHT(AF47,4)/RIGHT(AF46,4)-1)*100,2)&"%",IF(RIGHT(AF47,4)*1>NaKmax*0.9,"!","")))) ->  | AK48: =IF(COUNTIF(AJ20:AJ38,">0")<>COUNTIF(AK20:AK38,">0"),"!","") -> 
B50: =' '!B4&", © W. Sekul, LAZBW Aulendorf" -> UniRat 2022, © W. Sekul, LAZBW Aulendorf | AC50: =Einstellungen!C1 -> Bearbeiter*in: | AD50: =Einstellungen!E1 -> E. Gerster

Sheet Ration Milch-Mineralstoffe
A1: Mineralstoffbilanzierung
D3: Laktationen | E3: ='Ration Milch'!H8 -> Laktations-tag | F3: Gewicht | G3: Milchleistung
G4: (tr. ="T") | H4: Fett | I4: Eiweiß | M4: Bedarf der Kuh
D5: Anzahl | E5: Datum | F5: kg | G5: kg/Tag | H5: % | I5: % | M5: TM | N5: =+N14 -> Ca | O5: =+O14 -> P | P5: Na | Q5: Mg | R5: =+R14 -> K | S5: Se | T5: =+T14 -> DCAB
D6: =[0]!LakNr -> 0 | E6: =LaktTag -> 0 | F6: =+'Ration Milch'!I11 -> 0 | G6: =M_kg -> 0 | H6: =+'Ration Milch'!K11 -> 0.0 | I6: =+'Ration Milch'!L11 -> 0.0 | M6: kg | N6: =+N15 -> g | O6: g | P6: g | Q6: g | R6: =+R15 -> g | S6: mg | T6: =+T15 -> meq
I7: Erhaltungsbedarf (je kg TM) | M7: =+M37 -> 0.0 | N7: 2.0 | O7: 1.4 | P7: 0.7 | Q7: 0.8 | R7: 1.8 | S7: 0.2
L8: Summe Erhaltung | N8: =+N7*$M$7 -> 0 | O8: 0 | P8: 0 | Q8: 0 | R8: 0 | S8: 0
C9: 0 | I9: Leistungsbedarf (je kg Milch) | N9: 2.5 | O9: 1.4 | P9: 0.5 | Q9: 0.4 | R9: 1.4
L10: Summe Leistung | N10: =+IF($G$6="t",13,$G$6*N9) -> 0 | O10: =+IF($G$6="t",7,$G$6*O9) -> 0 | P10: =+IF($G$6="t",9,$G$6*P9) -> 0 | Q10: =+IF($G$6="t",2,$G$6*Q9) -> 0 | R10: =+IF($G$6="t",2,$G$6*R9) -> 0 | S10: =+IF($G$6="t",0,$G$6*S9) -> 0
N11: =N10+N8 -> 0 | O11: 0 | P11: 0 | Q11: 0 | R11: 0 | S11: 0 | T11: =IF(M_kg="T","<"&DCAB_t_max,DCAB_lakt_min&"-"&DCAB_lakt_max) -> 200-350
B13: Futterart | E13: Gehalt je kg TM im Futter | M13: Gehalt der Ration
D14: TS | E14: =Futterwerte!T6 -> Ca | F14: =Futterwerte!U6 -> P | G14: =Futterwerte!V6 -> Na | H14: =Futterwerte!W6 -> Mg | I14: =Futterwerte!X6 -> K | J14: =Futterwerte!Y6 -> Se | K14: =Futterwerte!Z6 -> DCAB | L14: ='Ration Milch'!V18 -> FM | M14: ='Ration Milch'!W18 -> TM | N14: =+E14 -> Ca | O14: =+F14 -> P | P14: Na | Q14: Mg | R14: K | S14: Se | T14: =+K14 -> DCAB
C15: Grobfutter | D15: % | E15: g | F15: g | G15: g | H15: g | I15: g | J15: mg | K15: meq | L15: ='Ration Milch'!V19 -> kg | M15: ='Ration Milch'!W19 -> kg | N15: =E15 -> g | O15: =F15 -> g | P15: g | Q15: g | R15: g | S15: mg | T15: meq
B16: =+'Ration Milch'!C20 -> 47 | C16: =INDEX(Tabelle,$B16,1) -> 0 | D16: =IF(INDEX(Tabelle,$B16,2)="","",INDEX(Tabelle,$B16,2)/10) ->  | E16: =ROUND(INDEX(Tabelle,$B16,19),1) -> 0.0 | F16: =ROUND(INDEX(Tabelle,$B16,20),1) -> 0.0 | G16: =ROUND(INDEX(Tabelle,$B16,21),1) -> 0.0 | H16: =ROUND(INDEX(Tabelle,$B16,22),1) -> 0.0 | I16: =ROUND(INDEX(Tabelle,$B16,23),1) -> 0.0 | J16: =ROUND(INDEX(Tabelle,$B16,24),1) -> 0.0 | K16: =ROUND(INDEX(Tabelle,$B16,25),1) -> 0.0 | L16: ='Ration Milch'!V20 -> 0.00 | M16: ='Ration Milch'!W20 -> 0.00 | N16: =M16*E16 -> 0.0 | O16: =M16*F16 -> 0.0 | P16: =M16*G16 -> 0.0 | Q16: =+M16*H16 -> 0.0 | R16: =+M16*I16 -> 0.0 | S16: =+M16*J16 -> 0.0 | T16: =+M16*K16 -> 0.0 | U16: =IF(M16=0,"",IF(COUNTIF(C16:J16,0)>0,"?","")) -> 
B17: =+'Ration Milch'!C21 -> 243 | C17: 0 | E17: 0.0 | F17: 0.0 | G17: 0.0 | H17: 0.0 | I17: 0.0 | J17: 0.0 | K17: 0.0 | L17: ='Ration Milch'!V21 -> 0.00 | M17: ='Ration Milch'!W21 -> 0.00 | N17: 0.0 | O17: 0.0 | P17: 0.0 | Q17: 0.0 | R17: 0.0 | S17: 0.0 | T17: 0.0
B18: =+'Ration Milch'!C22 -> 47 | C18: 0 | E18: 0.0 | F18: 0.0 | G18: 0.0 | H18: 0.0 | I18: 0.0 | J18: 0.0 | K18: 0.0 | L18: ='Ration Milch'!V22 -> 0.00 | M18: ='Ration Milch'!W22 -> 0.00 | N18: 0.0 | O18: 0.0 | P18: 0.0 | Q18: 0.0 | R18: 0.0 | S18: 0.0 | T18: 0.0
B19: =+'Ration Milch'!C23 -> 3 | C19: 0 | E19: 0.0 | F19: 0.0 | G19: 0.0 | H19: 0.0 | I19: 0.0 | J19: 0.0 | K19: 0.0 | L19: ='Ration Milch'!V23 -> 0.00 | M19: ='Ration Milch'!W23 -> 0.00 | N19: 0.0 | O19: 0.0 | P19: 0.0 | Q19: 0.0 | R19: 0.0 | S19: 0.0 | T19: 0.0
B20: =+'Ration Milch'!C24 -> 3 | C20: 0 | E20: 0.0 | F20: 0.0 | G20: 0.0 | H20: 0.0 | I20: 0.0 | J20: 0.0 | K20: 0.0 | L20: ='Ration Milch'!V24 -> 0.00 | M20: ='Ration Milch'!W24 -> 0.00 | N20: 0.0 | O20: 0.0 | P20: 0.0 | Q20: 0.0 | R20: 0.0 | S20: 0.0 | T20: 0.0
B21: =+'Ration Milch'!C25 -> 3 | C21: 0 | E21: 0.0 | F21: 0.0 | G21: 0.0 | H21: 0.0 | I21: 0.0 | J21: 0.0 | K21: 0.0 | L21: ='Ration Milch'!V25 -> 0.00 | M21: ='Ration Milch'!W25 -> 0.00 | N21: 0.0 | O21: 0.0 | P21: 0.0 | Q21: 0.0 | R21: 0.0 | S21: 0.0 | T21: 0.0
K22: Summe | L22: ='Ration Milch'!V26 -> 0.0 | M22: ='Ration Milch'!W26 -> 0.0 | N22: =SUM(N16:N21) -> 0.0 | O22: 0.0 | P22: 0.0 | Q22: 0.0 | R22: =SUM(R16:R21) -> 0.0 | S22: 0.0 | T22: =SUM(T16:T21) -> 0.0
M23: je kg TM | N23: =IF($M$22>0,N22/$M$22,"") ->  | T23: =IF($M$22>0,T22/$M$22,"") -> 
C24: Rationsausgleich/Mineralfutter | N24: =IF(N9=0,0,(N22-N8)/N9) -> 0 | O24: =IF(O9=0,0,(O22-O8)/O9) -> 0 | P24: =IF(P9=0,0,(P22-P8)/P9) -> 0 | Q24: =IF(Q9=0,0,(Q22-Q8)/Q9) -> 0 | R24: kg Milch
B26: =+'Ration Milch'!C29 -> 3 | C26: =INDEX(Tabelle,$B26,1) -> 0 | D26: =IF(INDEX(Tabelle,$B26,2)="","",INDEX(Tabelle,$B26,2)/10) ->  | E26: =ROUND(INDEX(Tabelle,$B26,19),1) -> 0.0 | F26: =ROUND(INDEX(Tabelle,$B26,20),1) -> 0.0 | G26: =ROUND(INDEX(Tabelle,$B26,21),1) -> 0.0 | H26: =ROUND(INDEX(Tabelle,$B26,22),1) -> 0.0 | I26: =ROUND(INDEX(Tabelle,$B26,23),1) -> 0.0 | J26: =ROUND(INDEX(Tabelle,$B26,24),1) -> 0.0 | K26: =ROUND(INDEX(Tabelle,$B26,25),1) -> 0.0 | L26: ='Ration Milch'!V29 -> 0.00 | M26: ='Ration Milch'!W29 -> 0.00 | N26: =M26*E26 -> 0.0 | O26: =M26*F26 -> 0.0 | P26: =M26*G26 -> 0.0 | Q26: =+M26*H26 -> 0.0 | R26: =+M26*I26 -> 0.0 | S26: =+M26*J26 -> 0.0 | T26: =+M26*K26 -> 0.0 | U26: =IF(M26=0,"",IF(COUNTIF(C26:J26,0)>0,"?","")) -> 
B27: =+'Ration Milch'!C30 -> 3 | C27: =INDEX(Tabelle,$B27,1) -> 0 | D27: =IF(INDEX(Tabelle,$B27,2)="","",INDEX(Tabelle,$B27,2)/10) ->  | E27: =ROUND(INDEX(Tabelle,$B27,19),1) -> 0.0 | F27: =ROUND(INDEX(Tabelle,$B27,20),1) -> 0.0 | G27: =ROUND(INDEX(Tabelle,$B27,21),1) -> 0.0 | H27: =ROUND(INDEX(Tabelle,$B27,22),1) -> 0.0 | I27: =ROUND(INDEX(Tabelle,$B27,23),1) -> 0.0 | J27: =ROUND(INDEX(Tabelle,$B27,24),1) -> 0.0 | K27: =ROUND(INDEX(Tabelle,$B27,25),1) -> 0.0 | L27: ='Ration Milch'!V30 -> 0.00 | M27: ='Ration Milch'!W30 -> 0.00 | N27: =M27*E27 -> 0.0 | O27: =M27*F27 -> 0.0 | P27: =M27*G27 -> 0.0 | Q27: =+M27*H27 -> 0.0 | R27: =+M27*I27 -> 0.0 | S27: =+M27*J27 -> 0.0 | T27: 0.0 | U27: =IF(M27=0,"",IF(COUNTIF(C27:J27,0)>0,"?","")) -> 
B28: =+'Ration Milch'!C31 -> 3 | C28: =INDEX(Tabelle,$B28,1) -> 0 | D28: =IF(INDEX(Tabelle,$B28,2)="","",INDEX(Tabelle,$B28,2)/10) ->  | E28: =ROUND(INDEX(Tabelle,$B28,19),1) -> 0.0 | F28: =ROUND(INDEX(Tabelle,$B28,20),1) -> 0.0 | G28: =ROUND(INDEX(Tabelle,$B28,21),1) -> 0.0 | H28: =ROUND(INDEX(Tabelle,$B28,22),1) -> 0.0 | I28: =ROUND(INDEX(Tabelle,$B28,23),1) -> 0.0 | J28: =ROUND(INDEX(Tabelle,$B28,24),1) -> 0.0 | K28: =ROUND(INDEX(Tabelle,$B28,25),1) -> 0.0 | L28: ='Ration Milch'!V31 -> 0.00 | M28: ='Ration Milch'!W31 -> 0.00 | N28: =M28*E28 -> 0.0 | O28: =M28*F28 -> 0.0 | P28: =M28*G28 -> 0.0 | Q28: =+M28*H28 -> 0.0 | R28: =+M28*I28 -> 0.0 | S28: =+M28*J28 -> 0.0 | T28: 0.0 | U28: =IF(M28=0,"",IF(COUNTIF(C28:J28,0)>0,"?","")) -> 
B29: =+'Ration Milch'!C32 -> 3 | C29: =INDEX(Tabelle,$B29,1) -> 0 | D29: =IF(INDEX(Tabelle,$B29,2)="","",INDEX(Tabelle,$B29,2)/10) ->  | E29: =ROUND(INDEX(Tabelle,$B29,19),1) -> 0.0 | F29: =ROUND(INDEX(Tabelle,$B29,20),1) -> 0.0 | G29: =ROUND(INDEX(Tabelle,$B29,21),1) -> 0.0 | H29: =ROUND(INDEX(Tabelle,$B29,22),1) -> 0.0 | I29: =ROUND(INDEX(Tabelle,$B29,23),1) -> 0.0 | J29: =ROUND(INDEX(Tabelle,$B29,24),1) -> 0.0 | K29: =ROUND(INDEX(Tabelle,$B29,25),1) -> 0.0 | L29: ='Ration Milch'!V32 -> 0.00 | M29: ='Ration Milch'!W32 -> 0.00 | N29: =M29*E29 -> 0.0 | O29: =M29*F29 -> 0.0 | P29: =M29*G29 -> 0.0 | Q29: =+M29*H29 -> 0.0 | R29: =+M29*I29 -> 0.0 | S29: =+M29*J29 -> 0.0 | T29: 0.0 | U29: =IF(M29=0,"",IF(COUNTIF(C29:J29,0)>0,"?","")) -> 
K30: Summe | L30: ='Ration Milch'!V33 -> 0.0 | M30: ='Ration Milch'!W33 -> 0.0 | N30: =SUM(N26:N29)+N22 -> 0.0 | O30: 0.0 | P30: 0.0 | Q30: 0.0 | R30: 0.0 | S30: 0.0 | T30: =SUM(T26:T29)+T22 -> 0.0
M31: je kg TM | N31: =IF($M$30>0,N30/$M$30,"") ->  | T31: =IF($M$30>0,T30/$M$30,"") -> 
C32: Milchleistungsfutter | N32: =IF(N$9=0,0,(N30-N$8)/N$9) -> 0 | O32: =IF(O$9=0,0,(O30-O$8)/O$9) -> 0 | P32: =IF(P$9=0,0,(P30-P$8)/P$9) -> 0 | Q32: =IF(Q$9=0,0,(Q30-Q$8)/Q$9) -> 0 | R32: kg Milch
B34: =+'Ration Milch'!C37 -> 3 | C34: =INDEX(Tabelle,$B34,1) -> 0 | D34: =IF(INDEX(Tabelle,$B34,2)="","",INDEX(Tabelle,$B34,2)/10) ->  | E34: =ROUND(INDEX(Tabelle,$B34,19),1) -> 0.0 | F34: =ROUND(INDEX(Tabelle,$B34,20),1) -> 0.0 | G34: =ROUND(INDEX(Tabelle,$B34,21),1) -> 0.0 | H34: =ROUND(INDEX(Tabelle,$B34,22),1) -> 0.0 | I34: =ROUND(INDEX(Tabelle,$B34,23),1) -> 0.0 | J34: =ROUND(INDEX(Tabelle,$B34,24),1) -> 0.0 | K34: =ROUND(INDEX(Tabelle,$B34,25),1) -> 0.0 | L34: ='Ration Milch'!V37 -> 0.00 | M34: ='Ration Milch'!W37 -> 0.00 | N34: =M34*E34 -> 0.0 | O34: =M34*F34 -> 0.0 | P34: =M34*G34 -> 0.0 | Q34: =+M34*H34 -> 0.0 | R34: =+M34*I34 -> 0.0 | S34: =+M34*J34 -> 0.0 | T34: =+M34*K34 -> 0.0 | U34: =IF(M34=0,"",IF(COUNTIF(C34:J34,0)>0,"?","")) -> 
B35: =+'Ration Milch'!C38 -> 3 | C35: =INDEX(Tabelle,$B35,1) -> 0 | D35: =IF(INDEX(Tabelle,$B35,2)="","",INDEX(Tabelle,$B35,2)/10) ->  | E35: =ROUND(INDEX(Tabelle,$B35,19),1) -> 0.0 | F35: =ROUND(INDEX(Tabelle,$B35,20),1) -> 0.0 | G35: =ROUND(INDEX(Tabelle,$B35,21),1) -> 0.0 | H35: =ROUND(INDEX(Tabelle,$B35,22),1) -> 0.0 | I35: =ROUND(INDEX(Tabelle,$B35,23),1) -> 0.0 | J35: =ROUND(INDEX(Tabelle,$B35,24),1) -> 0.0 | K35: =ROUND(INDEX(Tabelle,$B35,25),1) -> 0.0 | L35: ='Ration Milch'!V38 -> 0.00 | M35: ='Ration Milch'!W38 -> 0.00 | N35: =M35*E35 -> 0.0 | O35: =M35*F35 -> 0.0 | P35: =M35*G35 -> 0.0 | Q35: =+M35*H35 -> 0.0 | R35: =+M35*I35 -> 0.0 | S35: =+M35*J35 -> 0.0 | T35: 0.0 | U35: =IF(M35=0,"",IF(COUNTIF(C35:J35,0)>0,"?","")) -> 
L36: ='Ration Milch'!V39 -> FM kg | M36: ='Ration Milch'!W39 -> TM kg | N36: =N14&" "&N15 -> Ca g | O36: =O14&" "&O15 -> P g | P36: Na g | Q36: Mg g | R36: K g | S36: =S14&" "&S15 -> Se mg | T36: =T14&" "&T15 -> DCAB meq
K37: Summe | L37: ='Ration Milch'!V40 -> 0.0 | M37: ='Ration Milch'!W40 -> 0.0 | N37: =N30+N34+N35 -> 0 | O37: 0 | P37: 0 | Q37: 0 | R37: =R30+R34+R35 -> 0 | S37: =S30+S34+S35 -> 0 | T37: =T30+T34+T35 -> 0
M38: je kg TM | N38: =IF($M$37>0,N37/$M$37,"") ->  | T38: =IF($M$37>0,T37/$M$37,"") -> 
M39: reicht für ... kg Milch | N39: =IF(N$9=0,0,(N37-N$8)/N$9) -> 0 | O39: 0 | P39: 0 | Q39: 0 | R39: 0 | S39: 0 | T39: =IF(T$9=0,0,(T37-T$8)/T$9) -> 0
M40: Bedarfsdeckung | N40: =IF(N11=0,"",+N37/N11) ->  | T40: -
A42: ='Zuteilung-Milchleistungsfutter'!$A$50 -> UniRat 2022, © W. Sekul, LAZBW Aulendorf Die Daten sind auf Plausibilität zu prüfen, um Eingabe- und Berechnungsfehler auszuschließen. Es wird keine Gewähr zur Richtigkeit der Daten übernommen.

Sheet Zuteilung-Milchleistungsfutter
A1: Kraftfutterliste - Abruffütterung
AF3: ='Ration Milch'!$Z$34 -> 
A4: Rasse (HF, FV, BV) | J4: FV | AD4: Milchleistungsfutter (Abruffütterung) | AF4: 191
AF5: =INDEX(Tabelle,AF$4,3) -> 4
A6: Leistungsniveau, kg ECM | J6: 9000 | AD6: Ausgleichskraftfutter (Abruffütterung) | AF6: 191
A8: Laktationsnr. | J8: 2 | AD8: Ausgleich ab kg Milch
A10: Lebendmasse, kg | J10: 650 | AD10: Ausgleichskraftfutter, kg/Tag (fix)
AF11: =INDEX(Tabelle,AF$4,2)/1000 -> 0.86
A12: Fett % | J12: 4 | AD12: NFCmax | AF12: 380g/kg TM
AF13: 0
A14: Eiweiß % | J14: 3.6 | AD14: MLFmin (AMS) | AF14: =AF13*100 -> 0 g
AF15: 30
AD16: MLFmax, i.d.TM (Abruffütterung) | AF16: =AF15/100 -> 30%
J17: =INDEX(Tabelle,AF$6,3) -> 4 | AF17: 100
A18: Grundration, incl. Rationsausgleich (Trogration, "Ration Milch") | J18: ='Ration Milch'!X34 ->  | L18: ='Ration Milch'!AA34 ->  | AD18: Korrektur TM-Aufnahme | AF18: =AF17/100 -> 100%
J19: =INDEX(Tabelle,AF$6,2)/1000 -> 0.86
A20: Milchleistung | B20: ECM | C20: Lakttag | D20: Konz.pred. | E20: MLFTransges. | F20: TM-Aufnahme | G20: TM-Trogration | H20: TM-Grobfutter | I20: KF-Anteil Trogration | J20: AusgleichsKF (FM) | K20: MLF-Transponder (FM) | N20: KF-Gesamt | O20: NEL MJ/kg TM | P20: nXP g/kg TM | Q20: RNB g/Tag | R20: NFC g/kg TM | S20: SW /kg TM | T20: ADF g/kg TM | U20: NDF g/kg TM | W20: Ca g | X20: P g | Y20: Na g | Z20: Mg g | AA20: K g | AB20: Se g | AC20: NEL-Bilanz MJ | AD20: LM-Veränderung g/Tag | AE20: Kosten | AF20: KF-Effizienz
A21: =IF(MLF_LakTag1=7000,14,IF(MLF_LakTag1=9000,16,IF(MLF_LakTag1=11000,18, "Eingabefehler - ECM"))) -> 16 kg | B21: =A21*(MLF_Fett1*0.38+MLF_Prot1*0.21+1.05)/3.28 -> 16.2 kg | C21: =IF(MLF_LakTag1=7000,273,IF(MLF_LakTag1=9000,301,336)) -> 301.00 | D21: =MAX(IF(MLF_LakTag1=7000,0.00000240679*B21^5-0.00034272276*B21^4+0.01751018612*B21^3-0.38414129327*B21^2+3.70025873859*B21-12.83588,IF(MLF_LakTag1=9000,0.00000227834*B21^5-0.00033174803*B21^4+0.01734743992*B21^3-0.38912715564*B21^2+3.8067140359*B21-13.1978,IF(MLF_LakTag1=11000,0.00000354922*B21^5-0.00053511787*B21^4+0.02970736291*B21^3-0.74031250256*B21^2+8.39997601052*B21-35.30319754533))),J21) -> 0 | E21: =IF(IF(MLF_KFmax1/MLF_Kf_TS1*$F21<((($B21*3.28+MLF_LM1^0.75*0.293)/$F21)-MLF_GF_NEL1)/(MLF_KF_NEL1-MLF_GF_NEL1)*$F21/MLF_Kf_TS1,MLF_KFmax1/MLF_Kf_TS1*$F21,IF(((($B21*3.28+MLF_LM1^0.75*0.293)/$F21)-MLF_GF_NEL1)/(MLF_KF_NEL1-MLF_GF_NEL1)*$F21/MLF_Kf_TS1<0,0,((($B21*3.28+MLF_LM1^0.75*0.293)/$F21)-MLF_GF_NEL1)/(MLF_KF_NEL1-MLF_GF_NEL1)*$F21/MLF_Kf_TS1))<MLF_KFmin1/1000,MLF_KFmin1/1000,IF(MLF_KFmax1/MLF_Kf_TS1*$F21<((($B21*3.28+MLF_LM1^0.75*0.293)/$F21)-MLF_GF_NEL1)/(MLF_KF_NEL1-MLF_GF_NEL1)*$F21/MLF_Kf_TS1,MLF_KFmax1/MLF_Kf_TS1*$F21,IF(((($B21*3.28+MLF_LM1^0.75*0.293)/$F21)-MLF_GF_NEL1)/(MLF_KF_NEL1-MLF_GF_NEL1)*$F21/MLF_Kf_TS1<0,0,((($B21*3.28+MLF_LM1^0.75*0.293)/$F21)-MLF_GF_NEL1)/(MLF_KF_NEL1-MLF_GF_NEL1)*$F21/MLF_Kf_TS1))) ->  | F21: =IF(OR(MLF_LakNr1="",C21="",MLF_LM1="",MLF_Rasse1="",MLF_Fett1="",MLF_Prot1=""),"",(3.878+IF(MLF_Rasse1="HF",-2.19,IF(MLF_Rasse1="FV",-2.631,-1.826))+IF(MLF_LakNr1=1,-0.728,0.218)+(-4.287+4.153*(1-EXP(-0.01486*C21)))+MLF_LM1*(0.0148-0.0000474*C21+0.0000000904*C21^2)+B21*(0.0825+0.0008098*C21-0.000000966*C21^2)+D21*(0.6962-0.0023289*C21+0.0000040634*C21^2)+0.858*MLF_GF_NEL1)*0.93+0.47)*MLF_ITkorr1 ->  | G21: =(F21-MLF_Kf_TS1*E21) ->  | H21: =F21-N21 ->  | I21: =((TM_Grundration-TM_GF)/TM_Grundration)*G21 ->  | J21: =IF(A21<MLF_AF_Milch1,0,MLF_AF_max1) -> 0.0 kg | K21: =R21 ->  | L21: =IF(($E21*MLF_Kf_TS1*MLF_KF_NEL1-$J21*MLF_AF_NEL1*MLF_AF_TS1)/(MLF_KF_NEL1*MLF_Kf_TS1)<0,0,($E21*MLF_Kf_TS1*MLF_KF_NEL1-$J21*MLF_AF_NEL1*MLF_AF_TS1)/(MLF_KF_NEL1*MLF_Kf_TS1)) ->  | M21: =R21 ->  | N21: =I21+J21*INDEX(Tabelle,MLF_AF_Art1,2)/1000+L21*INDEX(Tabelle,MLF_Art_1,2)/1000 ->  | O21: =($G21*MLF_GF_NEL1+$J21*INDEX(Tabelle,MLF_AF_Art1,3)/AF_TS1+$L21*INDEX(Tabelle,MLF_Art_1,3)/MLF_Kf_TS1)/$F21 ->  | P21: =($G21*GR_nXP+$J21*INDEX(Tabelle,MLF_AF_Art1,7)*$J$19+$L21*INDEX(Tabelle,MLF_Art_1,7)*MLF_Kf_TS1)/$F21 ->  | Q21: =$G21*GR_RNB+$J21*INDEX(Tabelle,MLF_AF_Art1,8)*$J$19+$L21*INDEX(Tabelle,MLF_Art_1,8)*MLF_Kf_TS1 ->  | R21: =($G21*GR_NFC+$J21*INDEX(Tabelle,MLF_AF_Art1,12)*$J$19+$L21*INDEX(Tabelle,MLF_Art_1,12)*MLF_Kf_TS1)/$F21 ->  | S21: =($G21*GR_SW+$J21*INDEX(Tabelle,MLF_AF_Art1,9)*AF_TS1+$L21*INDEX(Tabelle,MLF_Art_1,9)*MLF_Kf_TS1)/$F21 ->  | T21: =($G21*GR_ADF+$J21*INDEX(Tabelle,MLF_AF_Art1,10)*$J$19+$L21*INDEX(Tabelle,MLF_Art_1,10)*MLF_Kf_TS1)/$F21 ->  | U21: =($G21*GR_NDF+$J21*INDEX(Tabelle,MLF_AF_Art1,11)*$J$19+$L21*INDEX(Tabelle,MLF_Art_1,11)*MLF_Kf_TS1)/$F21 ->  | W21: =($G21*GR_Ca+$J21*INDEX(Tabelle,MLF_AF_Art1,19)*$J$19+$L21*INDEX(Tabelle,MLF_Art_1,19)*MLF_Kf_TS1)/$F21 ->  | X21: =($G21*GR_P+$J21*INDEX(Tabelle,MLF_AF_Art1,20)*$J$19+$L21*INDEX(Tabelle,MLF_Art_1,20)*MLF_Kf_TS1)/$F21 ->  | Y21: =($G21*GR_Na+$J21*INDEX(Tabelle,MLF_AF_Art1,21)*$J$19+$L21*INDEX(Tabelle,MLF_Art_1,21)*MLF_Kf_TS1)/$F21 ->  | Z21: =($G21*GR_Mg+$J21*INDEX(Tabelle,MLF_AF_Art1,22)*$J$19+$L21*INDEX(Tabelle,MLF_Art_1,22)*MLF_Kf_TS1)/$F21 ->  | AA21: =($G21*GR_K+$J21*INDEX(Tabelle,MLF_AF_Art1,23)*$J$19+$L21*INDEX(Tabelle,MLF_Art_1,23)*MLF_Kf_TS1)/$F21 ->  | AB21: =($G21*GR_Se+$J21*INDEX(Tabelle,MLF_AF_Art1,24)*$J$19+$L21*INDEX(Tabelle,MLF_Art_1,24)*MLF_Kf_TS1)/$F21 ->  | AC21: =G21*MLF_GF_NEL1+J21*MLF_AF_NEL1*MLF_AF_TS1+L21*MLF_KF_NEL1*MLF_Kf_TS1-B21*3.28-MLF_LM1^0.75*0.293 ->  | AD21: =IF(AC21>0,AC21/25.5*1000,AC21/21*1000) ->  | AE21: =G21*Kosten_TM+J21*INDEX(Tabelle,MLF_AF_Art1,25)/100+L21*INDEX(Tabelle,MLF_Art_1,25)/100 ->  | AF21: =N21/0.88/(A21*(J$12*0.38+J$14*0.21+1.05)/3.28)*1000 -> 
A22: =A21+1 -> 17 kg | B22: 17.2 kg | C22: =AVERAGE(C21,C23) -> 294.00 | D22: 0 | I22: =((TM_Grundration-TM_GF)/TM_Grundration)*G22 ->  | J22: 0.0 kg | K22: =R22 ->  | M22: =R22 ->  | AD22: =IF(AC22>0,AC22/25.5*1000,AC22/21*1000) ->  | AF22: =N22/0.88/(A22*(J$12*0.38+J$14*0.21+1.05)/3.28)*1000 -> 
A23: =A22+1 -> 18 kg | B23: 18.3 kg | C23: =IF(MLF_LakTag1=7000,252,IF(MLF_LakTag1=9000,287,336)) -> 287.00 | D23: 0 | J23: 0.0 kg | K23: =R23 ->  | M23: =R23 -> 
A24: 19 kg | B24: 19.3 kg | C24: =AVERAGE(C23,C25) -> 280.00 | D24: 0.10 | J24: 0.0 kg
A25: 20 kg | B25: 20.3 kg | C25: =IF(MLF_LakTag1=7000,231,IF(MLF_LakTag1=9000,273,336)) -> 273.00 | D25: 0.35 | J25: 0.0 kg
A26: 21 kg | B26: 21.3 kg | C26: =AVERAGE(C25,C27) -> 266.00 | D26: 0.68 | J26: 0.0 kg
A27: 22 kg | B27: 22.3 kg | C27: =IF(MLF_LakTag1=7000,203,IF(MLF_LakTag1=9000,259,336)) -> 259.00 | D27: 1.09 | J27: 0.0 kg
A28: 23 kg | B28: 23.3 kg | C28: =AVERAGE(C27,C29) -> 248.50 | D28: 1.56 | J28: 0.0 kg
A29: 24 kg | B29: 24.3 kg | C29: =IF(MLF_LakTag1=7000,175,IF(MLF_LakTag1=9000,238,336)) -> 238.00 | D29: 2.10 | J29: 0.0 kg
A30: 25 kg | B30: 25.4 kg | C30: =AVERAGE(C29,C31) -> 227.50 | D30: 2.69 | J30: 0.0 kg
A31: 26 kg | B31: 26.4 kg | C31: =IF(MLF_LakTag1=7000,140,IF(MLF_LakTag1=9000,217,329)) -> 217.00 | D31: 3.33 | J31: 0.0 kg
A32: 27 kg | B32: 27.4 kg | C32: =AVERAGE(C31,C33) -> 203.00 | D32: 4.00 | J32: 0.0 kg
A33: 28 kg | B33: 28.4 kg | C33: =IF(MLF_LakTag1=7000,119,IF(MLF_LakTag1=9000,189,315)) -> 189.00 | D33: 4.70 | J33: 0.0 kg | N33: =I33+J33*INDEX(Tabelle,MLF_AF_Art1,2)/1000+L33*INDEX(Tabelle,MLF_Art_1,2)/1000 -> 
A34: 29 kg | B34: 29.4 kg | C34: =AVERAGE(C33,C35) -> 171.50 | D34: 5.40 | J34: 0.0 kg
A35: 30 kg | B35: 30.4 kg | C35: =IF(MLF_LakTag1=7000,98,IF(MLF_LakTag1=9000,154,294)) -> 154.00 | D35: 6.11 | J35: 0.0 kg
A36: 31 kg | B36: 31.4 kg | C36: =AVERAGE(C35,C37) -> 140.00 | D36: 6.80 | J36: 0.0 kg
A37: 32 kg | B37: 32.4 kg | C37: =IF(MLF_LakTag1=7000,77,IF(MLF_LakTag1=9000,126,266)) -> 126.00 | D37: 7.47 | J37: 0.0 kg
A38: 33 kg | B38: 33.5 kg | C38: =AVERAGE(C37,C39) -> 115.50 | D38: 8.10 | J38: 0.0 kg
A39: 34 kg | B39: 34.5 kg | C39: =IF(MLF_LakTag1=7000,63,IF(MLF_LakTag1=9000,105,231)) -> 105.00 | D39: 8.68 | J39: 0.0 kg
A40: 35 kg | B40: 35.5 kg | C40: =AVERAGE(C39,C41) -> 98.00 | D40: 9.21 | J40: 0.0 kg
A41: 36 kg | B41: 36.5 kg | C41: =IF(MLF_LakTag1=7000,42,IF(MLF_LakTag1=9000,91,161)) -> 91.00 | D41: 9.67 | J41: 0.0 kg
A42: 37 kg | B42: 37.5 kg | C42: =AVERAGE(C41,C43) -> 84.00 | D42: 10.07 | J42: 0.0 kg
A43: 38 kg | B43: 38.5 kg | C43: =IF(MLF_LakTag1=7000,42,IF(MLF_LakTag1=9000,77,126)) -> 77.00 | D43: 10.39 | J43: 0.0 kg
A44: 39 kg | B44: 39.5 kg | C44: =AVERAGE(C43,C45) -> 70.00 | D44: 10.64 | J44: 0.0 kg
A45: 40 kg | B45: 40.6 kg | C45: =IF(MLF_LakTag1=7000,42,IF(MLF_LakTag1=9000,63,91)) -> 63.00 | D45: 10.82 | J45: 0.0 kg
A46: 41 kg | B46: 41.6 kg | C46: =AVERAGE(C45,C47) -> 56.00 | D46: 10.93 | J46: 0.0 kg
A47: 42 kg | B47: 42.6 kg | C47: =IF(MLF_LakTag1=7000,42,IF(MLF_LakTag1=9000,49,56)) -> 49.00 | D47: 10.99 | J47: 0.0 kg
A48: 43 kg | B48: 43.6 kg | C48: =AVERAGE(C47,C49) -> 49.00 | D48: 10.99 | J48: 0.0 kg
A49: 44 kg | B49: 44.6 kg | C49: =IF(MLF_LakTag1=7000,42,IF(MLF_LakTag1=9000,49,42)) -> 49.00 | D49: 10.96 | J49: 0.0 kg
A50: ='Ration Milch'!B50& " Die Daten sind auf Plausibilität zu prüfen, um Eingabe- und Berechnungsfehler auszuschließen. Es wird keine Gewähr zur Richtigkeit der Daten übernommen." -> UniRat 2022, © W. Sekul, LAZBW Aulendorf Die Daten sind auf Plausibilität zu prüfen, um Eingabe- und Berechnungsfehler auszuschließen. Es wird keine Gewähr zur Richtigkeit der Daten übernommen.

Sheet Modul1 (hidden)

Sheet TMR-Mischplan
AM1: Mischplan
D2: =Futterwerte!C6 -> TS | E2: =Futterwerte!D6 -> NEL | F2: =Futterwerte!E6 -> ME | G2: =Futterwerte!F6 -> XP | H2: =Futterwerte!G6 -> UDP | I2: =Futterwerte!H6 -> nXP | J2: =Futterwerte!I6 -> RNB | K2: =Futterwerte!G6 -> UDP | L2: =Futterwerte!J6 -> SW | M2: =Futterwerte!K6 -> ADF | N2: =Futterwerte!L6 -> NDF | O2: =Futterwerte!M6 -> NFC | P2: =Futterwerte!O6 -> XZ | Q2: =Futterwerte!P6 -> XL | R2: =Futterwerte!Q6 -> XF | S2: =Futterwerte!R6 -> sXF | T2: =Futterwerte!S6 -> XA | U2: =Futterwerte!T6 -> Ca | V2: =Futterwerte!U6 -> P | W2: =Futterwerte!V6 -> Na | X2: =Futterwerte!W6 -> Mg | Y2: =Futterwerte!X6 -> K | Z2: =Futterwerte!Y6 -> Se | AA2: =Futterwerte!Z6 -> DCAB | AB2: =Futterwerte!AA6 -> Kosten | AC2: Mischung 1 | AD2: Mischung 2 | AE2: Mischung 3 | AF2: Mischung 4 | AG2: Mischung 5 | AH2: Mischung 6 | AI2: Mischung 7 | AJ2: Mischung 8 | AK2: Mischung 9 | AN2: =AC2 -> Mischung 1 | AO2: Mischung 2 | AP2: Mischung 3 | AQ2: Mischung 4 | AR2: Mischung 5 | AS2: Mischung 6 | AT2: Mischung 7 | AU2: Mischung 8 | AV2: Mischung 9 | AX2: =AN2 -> Mischung 1 | AY2: =AO2 -> Mischung 2 | AZ2: Mischung 3 | BA2: Mischung 4 | BB2: Mischung 5 | BC2: Mischung 6 | BD2: Mischung 7 | BE2: =AU2 -> Mischung 8 | BF2: =AV2 -> Mischung 9 | BG2: Gesamt-verbrauch, kg/Tag
B3: Eingabemodus FM/TM | AC3: TM | AD3: TM | AE3: TM | AF3: TM | AG3: TM | AH3: TM | AI3: TM | AJ3: TM | AK3: TM | AM3: Tierzahl | AN3: =AC25 -> 0 | AO3: 0 | AP3: 0 | AQ3: 0 | AR3: 0 | AS3: 0 | AT3: 0 | AU3: 0 | AV3: =AK25 -> 0
A4: 47 | B4: =INDEX(Tabelle,$A4,1) -> 0 | D4: =IF(INDEX(Tabelle,$A4,2)=0,0,INDEX(Tabelle,$A4,2)/10) -> 0.0 | E4: =INDEX(Tabelle,$A4,3) -> 0.0 | F4: =INDEX(Tabelle,$A4,4) -> 0.0 | G4: =INDEX(Tabelle,$A4,5) -> 0 | H4: =INDEX(Tabelle,$A4,6) -> 0.0% | I4: =INDEX(Tabelle,$A4,7) -> 0 | J4: =INDEX(Tabelle,$A4,8) -> 0.0 | K4: =INDEX(Tabelle,$A4,6) -> 0.00 | L4: =INDEX(Tabelle,$A4,9) -> 0.0 | M4: =INDEX(Tabelle,$A4,10) -> 0 | N4: =INDEX(Tabelle,$A4,11) -> 0 | O4: =INDEX(Tabelle,$A4,12) -> 0 | P4: =INDEX(Tabelle,$A4,14) -> 0 | Q4: =INDEX(Tabelle,$A4,15) -> 0 | R4: =INDEX(Tabelle,$A4,16) -> 0 | S4: =INDEX(Tabelle,$A4,17) -> 0.0 | T4: =INDEX(Tabelle,$A4,18) -> 0 | U4: =INDEX(Tabelle,$A4,19) -> 0.0 | V4: =INDEX(Tabelle,$A4,20) -> 0.0 | W4: =INDEX(Tabelle,$A4,21) -> 0.0 | X4: =INDEX(Tabelle,$A4,22) -> 0.0 | Y4: =INDEX(Tabelle,$A4,23) -> 0.0 | Z4: =INDEX(Tabelle,$A4,24) -> 0.0 | AA4: =INDEX(Tabelle,$A4,25) -> 0.0 | AB4: =INDEX(Tabelle,$A4,26)/D4 ->  | AM4: =B4 -> 0.0 kg | AN4: =IF(AC4=0,0,IF(AC$3="TM",AC4/$D4*100,AC4)) -> 0.00 kg | AO4: =IF(AD4=0,0,IF(AD$3="TM",AD4/$D4*100,AD4)) -> 0.00 kg | AP4: 0.00 kg | AQ4: 0.00 kg | AR4: 0.00 kg | AS4: 0.00 kg | AT4: 0.00 kg | AU4: 0.00 kg | AV4: 0.00 kg | AX4: =AN$3*AN4 -> 0.0 kg | AY4: =AO$3*AO4 -> 0.0 kg | AZ4: 0.0 kg | BA4: 0.0 kg | BB4: 0.0 kg | BC4: 0.0 kg | BD4: 0.0 kg | BE4: 0.0 kg | BF4: 0.0 kg | BG4: =SUM(AX4:BF4) -> 0.0 kg
A5: 1 | B5: 0 | D5: 0.0 | E5: 0.0 | F5: 0.0 | G5: 0 | H5: 0.0% | I5: 0 | J5: 0.0 | K5: 0.00 | L5: 0.0 | M5: 0 | N5: 0 | O5: 0 | P5: 0 | Q5: 0 | R5: 0 | S5: 0.0 | T5: 0 | U5: 0.0 | V5: 0.0 | W5: 0.0 | X5: 0.0 | Y5: 0.0 | Z5: 0.0 | AA5: 0.0 | AB5: 0.000 | AM5: =B5 -> 0.0 kg | AN5: =IF(AC5=0,0,IF(AC$3="TM",AC5/$D5*100,AC5)) -> 0.00 kg | AO5: 0.00 kg | AP5: 0.00 kg | AQ5: 0.00 kg | AR5: 0.00 kg | AS5: 0.00 kg | AT5: 0.00 kg | AU5: 0.00 kg | AV5: 0.00 kg | AX5: =AN$3*AN5 -> 0.0 kg | AY5: =AO$3*AO5 -> 0.0 kg | AZ5: =AP$3*AP5 -> 0.0 kg | BA5: =AQ$3*AQ5 -> 0.0 kg | BB5: =AR$3*AR5 -> 0.0 kg | BC5: =AS$3*AS5 -> 0.0 kg | BD5: =AT$3*AT5 -> 0.0 kg | BE5: =AU$3*AU5 -> 0.0 kg | BF5: =AV$3*AV5 -> 0.0 kg | BG5: =SUM(AX5:BF5) -> 0.0 kg
A6: 2 | B6: 0 | D6: 0.0 | E6: 0.0 | F6: 0.0 | G6: 0 | H6: 0.0% | I6: 0 | J6: 0.0 | K6: 0.00 | L6: 0.0 | M6: 0 | N6: 0 | O6: 0 | P6: 0 | Q6: 0 | R6: 0 | S6: 0.0 | T6: 0 | U6: 0.0 | V6: 0.0 | W6: 0.0 | X6: 0.0 | Y6: 0.0 | Z6: 0.0 | AA6: 0.0 | AM6: 0.0 kg | AN6: 0.00 kg | AO6: 0.00 kg | AP6: 0.00 kg | AQ6: 0.00 kg | AR6: 0.00 kg | AS6: 0.00 kg | AT6: 0.00 kg | AU6: 0.00 kg | AV6: 0.00 kg | AX6: 0.0 kg | AY6: 0.0 kg | AZ6: 0.0 kg | BA6: 0.0 kg | BB6: 0.0 kg | BC6: 0.0 kg | BD6: 0.0 kg | BE6: 0.0 kg | BF6: 0.0 kg | BG6: 0.0 kg
A7: 2 | B7: 0 | D7: 0.0 | E7: 0.0 | F7: 0.0 | G7: 0 | H7: 0.0% | I7: 0 | J7: 0.0 | K7: 0.00 | L7: 0.0 | M7: 0 | N7: 0 | O7: 0 | P7: 0 | Q7: 0 | R7: 0 | S7: 0.0 | T7: 0 | U7: 0.0 | V7: 0.0 | W7: 0.0 | X7: 0.0 | Y7: 0.0 | Z7: 0.0 | AA7: 0.0 | AM7: 0.0 kg | AN7: 0.00 kg | AO7: 0.00 kg | AP7: 0.00 kg | AQ7: 0.00 kg | AR7: 0.00 kg | AS7: 0.00 kg | AT7: 0.00 kg | AU7: 0.00 kg | AV7: 0.00 kg | AX7: 0.0 kg | AY7: 0.0 kg | AZ7: 0.0 kg | BA7: 0.0 kg | BB7: 0.0 kg | BC7: 0.0 kg | BD7: 0.0 kg | BE7: 0.0 kg | BF7: 0.0 kg | BG7: 0.0 kg
A8: 2 | B8: 0 | D8: 0.0 | E8: 0.0 | F8: 0.0 | G8: 0 | H8: 0.0% | I8: 0 | J8: 0.0 | K8: 0.00 | L8: 0.0 | M8: 0 | N8: 0 | O8: 0 | P8: 0 | Q8: 0 | R8: 0 | S8: 0.0 | T8: 0 | U8: 0.0 | V8: 0.0 | W8: 0.0 | X8: 0.0 | Y8: 0.0 | Z8: 0.0 | AA8: 0.0 | AM8: 0.0 kg | AN8: 0.00 kg | AO8: 0.00 kg | AP8: 0.00 kg | AQ8: 0.00 kg | AR8: 0.00 kg | AS8: 0.00 kg | AT8: 0.00 kg | AU8: 0.00 kg | AV8: 0.00 kg | AX8: 0.0 kg | AY8: 0.0 kg | AZ8: 0.0 kg | BA8: 0.0 kg | BB8: 0.0 kg | BC8: 0.0 kg | BD8: 0.0 kg | BE8: 0.0 kg | BF8: 0.0 kg | BG8: 0.0 kg
A9: 2 | B9: 0 | D9: 0.0 | E9: 0.0 | F9: 0.0 | G9: 0 | H9: 0.0% | I9: 0 | J9: 0.0 | K9: 0.00 | L9: 0.0 | M9: 0 | N9: 0 | O9: 0 | P9: 0 | Q9: 0 | R9: 0 | S9: 0.0 | T9: 0 | U9: 0.0 | V9: 0.0 | W9: 0.0 | X9: 0.0 | Y9: 0.0 | Z9: 0.0 | AA9: 0.0 | AM9: 0.0 kg | AN9: 0.00 kg | AO9: 0.00 kg | AP9: 0.00 kg | AQ9: 0.00 kg | AR9: 0.00 kg | AS9: 0.00 kg | AT9: 0.00 kg | AU9: 0.00 kg | AV9: 0.00 kg | AX9: 0.0 kg | AY9: 0.0 kg | AZ9: 0.0 kg | BA9: 0.0 kg | BB9: 0.0 kg | BC9: 0.0 kg | BD9: 0.0 kg | BE9: 0.0 kg | BF9: 0.0 kg | BG9: 0.0 kg
A10: 2 | B10: 0 | D10: 0.0 | E10: 0.0 | F10: 0.0 | G10: 0 | H10: 0.0% | I10: 0 | J10: 0.0 | K10: 0.00 | L10: 0.0 | M10: 0 | N10: 0 | O10: 0 | P10: 0 | Q10: 0 | R10: 0 | S10: 0.0 | T10: 0 | U10: 0.0 | V10: 0.0 | W10: 0.0 | X10: 0.0 | Y10: 0.0 | Z10: 0.0 | AA10: 0.0 | AM10: 0.0 kg | AN10: 0.00 kg | AO10: 0.00 kg | AP10: 0.00 kg | AQ10: 0.00 kg | AR10: 0.00 kg | AS10: 0.00 kg | AT10: 0.00 kg | AU10: 0.00 kg | AV10: 0.00 kg | AX10: 0.0 kg | AY10: 0.0 kg | AZ10: 0.0 kg | BA10: 0.0 kg | BB10: 0.0 kg | BC10: 0.0 kg | BD10: 0.0 kg | BE10: 0.0 kg | BF10: 0.0 kg | BG10: 0.0 kg
A11: 2 | B11: 0 | D11: 0.0 | E11: 0.0 | F11: 0.0 | G11: 0 | H11: 0.0% | I11: 0 | J11: 0.0 | K11: 0.00 | L11: 0.0 | M11: 0 | N11: 0 | O11: 0 | P11: 0 | Q11: 0 | R11: 0 | S11: 0.0 | T11: 0 | U11: 0.0 | V11: 0.0 | W11: 0.0 | X11: 0.0 | Y11: 0.0 | Z11: 0.0 | AA11: 0.0 | AM11: 0.0 kg | AN11: 0.00 kg | AO11: 0.00 kg | AP11: 0.00 kg | AQ11: 0.00 kg | AR11: 0.00 kg | AS11: 0.00 kg | AT11: 0.00 kg | AU11: 0.00 kg | AV11: 0.00 kg | AX11: 0.0 kg | AY11: 0.0 kg | AZ11: 0.0 kg | BA11: 0.0 kg | BB11: 0.0 kg | BC11: 0.0 kg | BD11: 0.0 kg | BE11: 0.0 kg | BF11: 0.0 kg | BG11: 0.0 kg
A12: 2 | B12: 0 | D12: 0.0 | E12: 0.0 | F12: 0.0 | G12: 0 | H12: 0.0% | I12: 0 | J12: 0.0 | K12: 0.00 | L12: 0.0 | M12: 0 | N12: 0 | O12: 0 | P12: 0 | Q12: 0 | R12: 0 | S12: 0.0 | T12: 0 | U12: 0.0 | V12: 0.0 | W12: 0.0 | X12: 0.0 | Y12: 0.0 | Z12: 0.0 | AA12: 0.0 | AM12: 0.0 kg | AN12: =IF(AC12=0,0,IF(AC$3="TM",AC12/$D12*100,AC12)) -> 0.00 kg | AO12: 0.00 kg | AP12: 0.00 kg | AQ12: 0.00 kg | AR12: 0.00 kg | AS12: 0.00 kg | AT12: 0.00 kg | AU12: 0.00 kg | AV12: 0.00 kg | AX12: 0.0 kg | AY12: 0.0 kg | AZ12: 0.0 kg | BA12: 0.0 kg | BB12: 0.0 kg | BC12: 0.0 kg | BD12: 0.0 kg | BE12: 0.0 kg | BF12: 0.0 kg | BG12: 0.0 kg
A13: 2 | B13: 0 | D13: 0.0 | E13: 0.0 | F13: 0.0 | G13: 0 | H13: 0.0% | I13: 0 | J13: 0.0 | K13: 0.00 | L13: 0.0 | M13: 0 | N13: 0 | O13: 0 | P13: 0 | Q13: 0 | R13: 0 | S13: 0.0 | T13: 0 | U13: 0.0 | V13: 0.0 | W13: 0.0 | X13: 0.0 | Y13: 0.0 | Z13: 0.0 | AA13: 0.0 | AM13: 0.0 kg | AN13: 0.00 kg | AO13: 0.00 kg | AP13: 0.00 kg | AQ13: 0.00 kg | AR13: 0.00 kg | AS13: 0.00 kg | AT13: 0.00 kg | AU13: 0.00 kg | AV13: 0.00 kg | AX13: 0.0 kg | AY13: 0.0 kg | AZ13: 0.0 kg | BA13: 0.0 kg | BB13: 0.0 kg | BC13: 0.0 kg | BD13: 0.0 kg | BE13: 0.0 kg | BF13: 0.0 kg | BG13: 0.0 kg
A14: 2 | B14: 0 | D14: 0.0 | E14: 0.0 | F14: 0.0 | G14: 0 | H14: 0.0% | I14: 0 | J14: 0.0 | K14: 0.00 | L14: 0.0 | M14: 0 | N14: 0 | O14: 0 | P14: 0 | Q14: 0 | R14: 0 | S14: 0.0 | T14: 0 | U14: 0.0 | V14: 0.0 | W14: 0.0 | X14: 0.0 | Y14: 0.0 | Z14: 0.0 | AA14: 0.0 | AM14: 0.0 kg | AN14: 0.00 kg | AO14: 0.00 kg | AP14: 0.00 kg | AQ14: 0.00 kg | AR14: 0.00 kg | AS14: 0.00 kg | AT14: 0.00 kg | AU14: 0.00 kg | AV14: 0.00 kg | AX14: 0.0 kg | AY14: 0.0 kg | AZ14: 0.0 kg | BA14: 0.0 kg | BB14: 0.0 kg | BC14: 0.0 kg | BD14: 0.0 kg | BE14: 0.0 kg | BF14: 0.0 kg | BG14: 0.0 kg
A15: 2 | B15: 0 | D15: 0.0 | E15: 0.0 | F15: 0.0 | G15: 0 | H15: 0.0% | I15: 0 | J15: 0.0 | K15: 0.00 | L15: 0.0 | M15: 0 | N15: 0 | O15: 0 | P15: 0 | Q15: 0 | R15: 0 | S15: 0.0 | T15: 0 | U15: 0.0 | V15: 0.0 | W15: 0.0 | X15: 0.0 | Y15: 0.0 | Z15: 0.0 | AA15: 0.0 | AM15: 0.0 kg | AN15: 0.00 kg | AO15: 0.00 kg | AP15: 0.00 kg | AQ15: 0.00 kg | AR15: 0.00 kg | AS15: 0.00 kg | AT15: 0.00 kg | AU15: 0.00 kg | AV15: 0.00 kg | AX15: 0.0 kg | AY15: 0.0 kg | AZ15: 0.0 kg | BA15: 0.0 kg | BB15: 0.0 kg | BC15: 0.0 kg | BD15: 0.0 kg | BE15: 0.0 kg | BF15: 0.0 kg | BG15: 0.0 kg
A16: 2 | B16: 0 | D16: 0.0 | E16: 0.0 | F16: 0.0 | G16: 0 | H16: 0.0% | I16: 0 | J16: 0.0 | K16: 0.00 | L16: 0.0 | M16: 0 | N16: 0 | O16: 0 | P16: 0 | Q16: 0 | R16: 0 | S16: 0.0 | T16: 0 | U16: 0.0 | V16: 0.0 | W16: 0.0 | X16: 0.0 | Y16: 0.0 | Z16: 0.0 | AA16: 0.0 | AM16: 0.0 kg | AN16: 0.00 kg | AO16: 0.00 kg | AP16: 0.00 kg | AQ16: 0.00 kg | AR16: 0.00 kg | AS16: 0.00 kg | AT16: 0.00 kg | AU16: 0.00 kg | AV16: 0.00 kg | AX16: 0.0 kg | AY16: 0.0 kg | AZ16: 0.0 kg | BA16: 0.0 kg | BB16: 0.0 kg | BC16: 0.0 kg | BD16: 0.0 kg | BE16: 0.0 kg | BF16: 0.0 kg | BG16: 0.0 kg
A17: 2 | B17: 0 | D17: 0.0 | E17: 0.0 | F17: 0.0 | G17: 0 | H17: 0.0% | I17: 0 | J17: 0.0 | K17: 0.00 | L17: 0.0 | M17: 0 | N17: 0 | O17: 0 | P17: 0 | Q17: 0 | R17: 0 | S17: 0.0 | T17: 0 | U17: 0.0 | V17: 0.0 | W17: 0.0 | X17: 0.0 | Y17: 0.0 | Z17: 0.0 | AA17: 0.0 | AM17: 0.0 kg | AN17: 0.00 kg | AO17: 0.00 kg | AP17: 0.00 kg | AQ17: 0.00 kg | AR17: 0.00 kg | AS17: 0.00 kg | AT17: 0.00 kg | AU17: 0.00 kg | AV17: 0.00 kg | AX17: 0.0 kg | AY17: 0.0 kg | AZ17: 0.0 kg | BA17: 0.0 kg | BB17: 0.0 kg | BC17: 0.0 kg | BD17: 0.0 kg | BE17: 0.0 kg | BF17: 0.0 kg | BG17: 0.0 kg
A18: 2 | B18: 0 | D18: 0.0 | E18: 0.0 | F18: 0.0 | G18: 0 | H18: 0.0% | I18: 0 | J18: 0.0 | K18: 0.00 | L18: 0.0 | M18: 0 | N18: 0 | O18: 0 | P18: 0 | Q18: 0 | R18: 0 | S18: 0.0 | T18: 0 | U18: 0.0 | V18: 0.0 | W18: 0.0 | X18: 0.0 | Y18: 0.0 | Z18: 0.0 | AA18: 0.0 | AM18: 0.0 kg | AN18: 0.00 kg | AO18: 0.00 kg | AP18: 0.00 kg | AQ18: 0.00 kg | AR18: 0.00 kg | AS18: 0.00 kg | AT18: 0.00 kg | AU18: 0.00 kg | AV18: 0.00 kg | AX18: 0.0 kg | AY18: 0.0 kg | AZ18: 0.0 kg | BA18: 0.0 kg | BB18: 0.0 kg | BC18: 0.0 kg | BD18: 0.0 kg | BE18: 0.0 kg | BF18: 0.0 kg | BG18: 0.0 kg
A19: 2 | B19: 0 | D19: 0.0 | E19: 0.0 | F19: 0.0 | G19: 0 | H19: 0.0% | I19: 0 | J19: 0.0 | K19: 0.00 | L19: 0.0 | M19: 0 | N19: 0 | O19: 0 | P19: 0 | Q19: 0 | R19: 0 | S19: 0.0 | T19: 0 | U19: 0.0 | V19: 0.0 | W19: 0.0 | X19: 0.0 | Y19: 0.0 | Z19: 0.0 | AA19: 0.0 | AM19: 0.0 kg | AN19: 0.00 kg | AO19: 0.00 kg | AP19: 0.00 kg | AQ19: 0.00 kg | AR19: 0.00 kg | AS19: 0.00 kg | AT19: 0.00 kg | AU19: 0.00 kg | AV19: 0.00 kg | AX19: 0.0 kg | AY19: 0.0 kg | AZ19: 0.0 kg | BA19: 0.0 kg | BB19: 0.0 kg | BC19: 0.0 kg | BD19: 0.0 kg | BE19: 0.0 kg | BF19: 0.0 kg | BG19: 0.0 kg
A20: 2 | B20: 0 | D20: 0.0 | E20: 0.0 | F20: 0.0 | G20: 0 | H20: 0.0% | I20: 0 | J20: 0.0 | K20: 0.00 | L20: 0.0 | M20: 0 | N20: 0 | O20: 0 | P20: 0 | Q20: 0 | R20: 0 | S20: 0.0 | T20: =INDEX(Tabelle,$A21,18) -> 0 | U20: 0.0 | V20: 0.0 | W20: 0.0 | X20: 0.0 | Y20: 0.0 | Z20: 0.0 | AA20: 0.0 | AM20: 0.0 kg | AN20: 0.00 kg | AO20: =IF(AD20=0,0,IF(AD$3="TM",AD20/$D20*100,AD20)) -> 0.00 kg | AP20: 0.00 kg | AQ20: 0.00 kg | AR20: 0.00 kg | AS20: 0.00 kg | AT20: 0.00 kg | AU20: 0.00 kg | AV20: 0.00 kg | AX20: 0.0 kg | AY20: 0.0 kg | AZ20: 0.0 kg | BA20: 0.0 kg | BB20: 0.0 kg | BC20: 0.0 kg | BD20: 0.0 kg | BE20: 0.0 kg | BF20: 0.0 kg | BG20: 0.0 kg
A21: 2 | B21: 0 | D21: 0.0 | E21: 0.0 | F21: 0.0 | G21: 0 | H21: 0.0% | I21: 0 | J21: 0.0 | K21: 0.00 | L21: 0.0 | M21: 0 | N21: 0 | O21: 0 | P21: 0 | Q21: 0 | R21: 0 | S21: 0.0 | T21: =INDEX(Tabelle,$A21,18) -> 0 | U21: 0.0 | V21: 0.0 | W21: 0.0 | X21: 0.0 | Y21: 0.0 | Z21: 0.0 | AA21: 0.0 | AM21: 0.0 kg | AN21: 0.00 kg | AO21: 0.00 kg | AP21: 0.00 kg | AQ21: 0.00 kg | AR21: 0.00 kg | AS21: 0.00 kg | AT21: 0.00 kg | AU21: 0.00 kg | AV21: 0.00 kg | AX21: 0.0 kg | AY21: 0.0 kg | AZ21: 0.0 kg | BA21: 0.0 kg | BB21: 0.0 kg | BC21: 0.0 kg | BD21: 0.0 kg | BE21: 0.0 kg | BF21: 0.0 kg | BG21: 0.0 kg
A22: 2 | B22: 0 | D22: 0.0 | E22: 0.0 | F22: 0.0 | G22: 0 | H22: 0.0% | I22: 0 | J22: 0.0 | K22: 0.00 | L22: 0.0 | M22: 0 | N22: 0 | O22: 0 | P22: 0 | Q22: 0 | R22: 0 | S22: 0.0 | T22: =INDEX(Tabelle,$A22,18) -> 0 | U22: 0.0 | V22: 0.0 | W22: 0.0 | X22: 0.0 | Y22: 0.0 | Z22: 0.0 | AA22: 0.0 | AM22: 0.0 kg | AN22: 0.00 kg | AO22: 0.00 kg | AP22: 0.00 kg | AQ22: 0.00 kg | AR22: 0.00 kg | AS22: 0.00 kg | AT22: 0.00 kg | AU22: 0.00 kg | AV22: 0.00 kg | AX22: 0.0 kg | AY22: 0.0 kg | AZ22: 0.0 kg | BA22: 0.0 kg | BB22: 0.0 kg | BC22: 0.0 kg | BD22: 0.0 kg | BE22: 0.0 kg | BF22: 0.0 kg | BG22: 0.0 kg
A23: 2 | B23: 0 | D23: 0.0 | E23: 0.0 | F23: 0.0 | G23: 0 | H23: 0.0% | I23: 0 | J23: 0.0 | K23: 0.00 | L23: 0.0 | M23: 0 | N23: 0 | O23: 0 | P23: 0 | Q23: 0 | R23: 0 | S23: 0.0 | T23: =INDEX(Tabelle,$A23,18) -> 0 | U23: 0.0 | V23: 0.0 | W23: 0.0 | X23: 0.0 | Y23: 0.0 | Z23: 0.0 | AA23: 0.0 | AM23: 0.0 kg | AN23: 0.00 kg | AO23: 0.00 kg | AP23: 0.00 kg | AQ23: 0.00 kg | AR23: 0.00 kg | AS23: 0.00 kg | AT23: 0.00 kg | AU23: 0.00 kg | AV23: 0.00 kg | AX23: 0.0 kg | AY23: 0.0 kg | AZ23: 0.0 kg | BA23: 0.0 kg | BB23: 0.0 kg | BC23: 0.0 kg | BD23: 0.0 kg | BE23: 0.0 kg | BF23: 0.0 kg | BG23: 0.0 kg
A24: 63 | B24: Wasser | D24: 0.0 | E24: 0.0 | F24: 0.0 | G24: 0 | H24: 0.0% | I24: 0 | J24: 0.0 | L24: 1.0 | M24: 0 | N24: 0 | O24: 0 | P24: 0 | Q24: 0 | R24: 0 | S24: 0.0 | T24: 0 | U24: 0.0 | V24: 0.0 | W24: 0.0 | X24: 0.0 | Y24: 0.0 | Z24: 0.0 | AA24: 500.0 | AB24: 0.000 | AM24: Wasser | AN24: 0.00 kg | AO24: 0.00 kg | AP24: 0.00 kg | AQ24: 0.00 kg | AR24: 0.00 kg | AS24: 0.00 kg | AT24: 0.00 kg | AU24: 0.00 kg | AV24: 0.00 kg | AX24: 0.0 kg | AY24: 0.0 kg | AZ24: 0.0 kg | BA24: 0.0 kg | BB24: 0.0 kg | BC24: 0.0 kg | BD24: 0.0 kg | BE24: 0.0 kg | BF24: 0.0 kg | BG24: 0.0 kg
B25: Tierzahl | AM25: Summe, kg FM | AN25: =SUM(AN4:AN24) -> 0.0 | AO25: =SUM(AO4:AO24) -> 0.0 | AP25: 0.0 | AQ25: 0.0 | AR25: 0.0 | AS25: 0.0 | AT25: 0.0 | AU25: 0.0 | AV25: 0.0 | AX25: =SUM(AX4:AX24) -> 0 | AY25: =SUM(AY4:AY24) -> 0 | AZ25: 0 | BA25: 0 | BB25: 0 | BC25: 0 | BD25: 0 | BE25: 0 | BF25: 0 | BG25: 0
AM26: Summe, kg TM | AN26: =(AN$4*$D$4+AN$5*$D$5+AN$6*$D$6+AN$7*$D$7+AN$8*$D$8+AN$9*$D$9+AN$10*$D$10+AN$11*$D$11+AN$12*$D$12+AN$13*$D$13+AN$14*$D$14+AN$15*$D$15+AN$16*$D$16+AN$17*$D$17+AN$18*$D$18+AN$19*$D$19+AN$20*$D$20+AN$21*$D$21+AN$22*$D$22+AN$23*$D$23+AN$24*$D$24)/100 -> 0.0 | AO26: =(AO$4*$D$4+AO$5*$D$5+AO$6*$D$6+AO$7*$D$7+AO$8*$D$8+AO$9*$D$9+AO$10*$D$10+AO$11*$D$11+AO$12*$D$12+AO$13*$D$13+AO$14*$D$14+AO$15*$D$15+AO$16*$D$16+AO$17*$D$17+AO$18*$D$18+AO$19*$D$19+AO$20*$D$20+AO$21*$D$21+AO$22*$D$22+AO$23*$D$23+AO$24*$D$24)/100 -> 0.0 | AP26: 0.0 | AQ26: 0.0 | AR26: 0.0 | AS26: 0.0 | AT26: 0.0 | AU26: 0.0 | AV26: 0.0 | AW26: NFC, g/kg TM | AX26: =IF(AN$26=0,0,AN54/AN$26) -> 0 | AY26: 0 | AZ26: 0 | BA26: 0 | BB26: 0 | BC26: 0 | BD26: 0 | BE26: 0 | BF26: 0
AM27: TM, % | AN27: =IF(AN26=0,"",AN26/AN25*100) ->  | AO27: =IF(AO26=0,"",AO26/AO25*100) ->  | AW27: XZ, g/kg TM | AX27: 0 | AY27: 0 | AZ27: 0 | BA27: 0 | BB27: 0 | BC27: 0 | BD27: 0 | BE27: 0 | BF27: 0
AM28: MEW NEL, kg ECM650 | AN28: =IF((AN43-37.7)/3.28<5,"-",(AN43-37.7)/3.28) -> - | AO28: - | AP28: - | AQ28: - | AR28: - | AS28: - | AT28: - | AU28: - | AV28: - | AW28: XL, g/kg TM | AX28: 0 | AY28: 0 | AZ28: 0 | BA28: 0 | BB28: 0 | BC28: 0 | BD28: 0 | BE28: 0 | BF28: 0
AM29: MEW nXP, kg ECM650 | AN29: =IF((AN48-450)/85<5,"-",(AN48-450)/85) -> - | AO29: - | AP29: - | AQ29: - | AR29: - | AS29: - | AT29: - | AU29: - | AV29: - | AW29: Ca, g/kg TM | AX29: =IF(AN$26=0,0,AN62/AN$26) -> 0.0 | AY29: 0.0 | AZ29: 0.0 | BA29: 0.0 | BB29: 0.0 | BC29: 0.0 | BD29: 0.0 | BE29: 0.0 | BF29: 0.0
AM30: NEL MJ /kg TM | AN30: =IF(AN$26=0,0,AN43/AN$26) -> 0.00 | AO30: 0.00 | AP30: 0.00 | AQ30: 0.00 | AR30: 0.00 | AS30: 0.00 | AT30: 0.00 | AU30: 0.00 | AV30: 0.00 | AW30: P, g/kg TM | AX30: 0.0 | AY30: 0.0 | AZ30: 0.0 | BA30: 0.0 | BB30: 0.0 | BC30: 0.0 | BD30: 0.0 | BE30: 0.0 | BF30: 0.0
AM31: ME MJ /kg TM | AN31: =IF(AN$26=0,0,AN44/AN$26) -> 0.00 | AO31: 0.00 | AP31: 0.00 | AQ31: 0.00 | AR31: 0.00 | AS31: 0.00 | AT31: 0.00 | AU31: 0.00 | AV31: 0.00 | AW31: Na, g/kg TM | AX31: 0.0 | AY31: 0.0 | AZ31: 0.0 | BA31: 0.0 | BB31: 0.0 | BC31: 0.0 | BD31: 0.0 | BE31: 0.0 | BF31: 0.0
AM32: nXP, g/kg TM | AN32: =IF(AN$26=0,0,AN48/AN$26) -> 0 | AO32: 0 | AP32: 0 | AQ32: 0 | AR32: 0 | AS32: 0 | AT32: 0 | AU32: 0 | AV32: 0 | AW32: Mg, g/kg TM | AX32: 0.0 | AY32: 0.0 | AZ32: 0.0 | BA32: 0.0 | BB32: 0.0 | BC32: 0.0 | BD32: 0.0 | BE32: 0.0 | BF32: 0.0
AM33: RNB, g/kg TM | AN33: =IF(AN$26=0,0,AN49/AN$26) -> 0.00 | AO33: 0.00 | AP33: 0.00 | AQ33: 0.00 | AR33: 0.00 | AS33: 0.00 | AT33: 0.00 | AU33: 0.00 | AV33: 0.00 | AW33: K, g/kg TM | AX33: 0.0 | AY33: 0.0 | AZ33: 0.0 | BA33: 0.0 | BB33: 0.0 | BC33: 0.0 | BD33: 0.0 | BE33: 0.0 | BF33: 0.0
AM34: UDP, % | AN34: =IF(AN$26=0,0,AN50/AN$26) -> 0 | AO34: 0 | AP34: 0 | AQ34: 0 | AR34: 0 | AS34: 0 | AT34: 0 | AU34: 0 | AV34: 0 | AW34: Se, mg/kg TM | AX34: =IF(AN$26=0,0,AN67/AN$26) -> 0.0 | AY34: =IF(AO$26=0,0,AO67/AO$26) -> 0.0 | AZ34: 0.0 | BA34: 0.0 | BB34: 0.0 | BC34: 0.0 | BD34: 0.0 | BE34: 0.0 | BF34: 0.0
AM35: ADF, g/kg TM | AN35: =IF(AN$26=0,0,AN52/AN$26) -> 0 | AO35: 0 | AP35: 0 | AQ35: 0 | AR35: 0 | AS35: 0 | AT35: 0 | AU35: 0 | AV35: 0 | AW35: =AM68 -> DCAB, meq | AX35: =IF(AN$26=0,0,AN68/AN$26) -> 0.0 | AY35: =IF(AO$26=0,0,AO68/AO$26) -> 0.0 | AZ35: 0.0 | BA35: 0.0 | BB35: 0.0 | BC35: 0.0 | BD35: 0.0 | BE35: 0.0 | BF35: 0.0
AM36: NDF, g/kg TM | AN36: =IF(AN$26=0,0,AN53/AN$26) -> 0 | AO36: 0 | AP36: 0 | AQ36: 0 | AR36: 0 | AS36: 0 | AT36: 0 | AU36: 0 | AV36: 0 | AW36: Kosten €/Tier | AX36: =IF(AN$26=0,0,AN69) -> 0.00 | AY36: =IF(AO$26=0,0,AO69) -> 0.00 | AZ36: 0.00 | BA36: 0.00 | BB36: 0.00 | BC36: 0.00 | BD36: 0.00 | BE36: 0.00 | BF36: 0.00
AM37: SW | AN37: =IF(AN$26=0,0,AN51/AN$26) -> 0.00 | AO37: 0.00 | AP37: 0.00 | AQ37: 0.00 | AR37: 0.00 | AS37: 0.00 | AT37: 0.00 | AU37: 0.00 | AV37: 0.00 | AW37: Kosten ct/kg MEW | AX37: =IF(AN28="-","-",AX36/AN28*100) -> - | AY37: - | AZ37: - | BA37: - | BB37: - | BC37: - | BD37: - | BE37: - | BF37: -
AM38: peNDF, g/kg
AM39: peNDF, g/kg | AW39: Bemerkungen:
AM40: peNDF, g/kg
AM41: =Eigenmischungen!A52 -> UniRat 2022, © W. Sekul, LAZBW Aulendorf Die Daten sind auf Plausibilität zu prüfen, um Eingabe- und Berechnungsfehler auszuschließen. Es wird keine Gewähr zur Richtigkeit der Daten übernommen. | BC41: =Einstellungen!C1 -> Bearbeiter*in: | BE41: =Einstellungen!E1 -> E. Gerster
AM42: =D2&", %" -> TS, % | AN42: =IF(AN26=0,0,AN26/AN25) -> 0.0% | AO42: 0.0% | AP42: 0.0% | AQ42: 0.0% | AR42: 0.0% | AS42: 0.0% | AT42: 0.0% | AU42: 0.0% | AV42: 0.0%
AM43: =E2&", MJ" -> NEL, MJ | AN43: =(AN$4*$E$4*$D$4+AN$5*$E$5*$D$5+AN$6*$E$6*$D$6+AN$7*$E$7*$D$7+AN$8*$E$8*$D$8+AN$9*$E$9*$D$9+AN$10*$E$10*$D$10+AN$11*$E$11*$D$11+AN$12*$E$12*$D$12+AN$13*$E$13*$D$13+AN$14*$E$14*$D$14+AN$15*$E$15*$D$15+AN$16*$E$16*$D$16+AN$17*$E$17*$D$17+AN$18*$E$18*$D$18+AN$19*$E$19*$D$19+AN$20*$E$20*$D$20+AN$21*$E$21*$D$21+AN$22*$E$22*$D$22+AN$23*$E$23*$D$23+AN$24*$E$24*$D$24)/100 -> 0.0 | AO43: =(AO$4*$E$4*$D$4+AO$5*$E$5*$D$5+AO$6*$E$6*$D$6+AO$7*$E$7*$D$7+AO$8*$E$8*$D$8+AO$9*$E$9*$D$9+AO$10*$E$10*$D$10+AO$11*$E$11*$D$11+AO$12*$E$12*$D$12+AO$13*$E$13*$D$13+AO$14*$E$14*$D$14+AO$15*$E$15*$D$15+AO$16*$E$16*$D$16+AO$17*$E$17*$D$17+AO$18*$E$18*$D$18+AO$19*$E$19*$D$19+AO$20*$E$20*$D$20+AO$21*$E$21*$D$21+AO$22*$E$22*$D$22+AO$23*$E$23*$D$23+AO$24*$E$24*$D$24)/100 -> 0.0 | AP43: =(AP$4*$E$4*$D$4+AP$5*$E$5*$D$5+AP$6*$E$6*$D$6+AP$7*$E$7*$D$7+AP$8*$E$8*$D$8+AP$9*$E$9*$D$9+AP$10*$E$10*$D$10+AP$11*$E$11*$D$11+AP$12*$E$12*$D$12+AP$13*$E$13*$D$13+AP$14*$E$14*$D$14+AP$15*$E$15*$D$15+AP$16*$E$16*$D$16+AP$17*$E$17*$D$17+AP$18*$E$18*$D$18+AP$19*$E$19*$D$19+AP$20*$E$20*$D$20+AP$21*$E$21*$D$21+AP$22*$E$22*$D$22+AP$23*$E$23*$D$23+AP$24*$E$24*$D$24)/100 -> 0.0 | AQ43: 0.0 | AR43: 0.0 | AS43: 0.0 | AT43: 0.0 | AU43: 0.0 | AV43: 0.0
AM44: =F2&", MJ" -> ME, MJ | AN44: =(AN$4*$F$4*$D$4+AN$5*$F$5*$D$5+AN$6*$F$6*$D$6+AN$7*$F$7*$D$7+AN$8*$F$8*$D$8+AN$9*$F$9*$D$9+AN$10*$F$10*$D$10+AN$11*$F$11*$D$11+AN$12*$F$12*$D$12+AN$13*$F$13*$D$13+AN$14*$F$14*$D$14+AN$15*$F$15*$D$15+AN$16*$F$16*$D$16+AN$17*$F$17*$D$17+AN$18*$F$18*$D$18+AN$19*$F$19*$D$19+AN$20*$F$20*$D$20+AN$21*$F$21*$D$21+AN$22*$F$22*$D$22+AN$23*$F$23*$D$23+AN$24*$F$24*$D$24)/100 -> 0.0 | AO44: =(AO$4*$F$4*$D$4+AO$5*$F$5*$D$5+AO$6*$F$6*$D$6+AO$7*$F$7*$D$7+AO$8*$F$8*$D$8+AO$9*$F$9*$D$9+AO$10*$F$10*$D$10+AO$11*$F$11*$D$11+AO$12*$F$12*$D$12+AO$13*$F$13*$D$13+AO$14*$F$14*$D$14+AO$15*$F$15*$D$15+AO$16*$F$16*$D$16+AO$17*$F$17*$D$17+AO$18*$F$18*$D$18+AO$19*$F$19*$D$19+AO$20*$F$20*$D$20+AO$21*$F$21*$D$21+AO$22*$F$22*$D$22+AO$23*$F$23*$D$23+AO$24*$F$24*$D$24)/100 -> 0.0 | AP44: =(AP$4*$F$4*$D$4+AP$5*$F$5*$D$5+AP$6*$F$6*$D$6+AP$7*$F$7*$D$7+AP$8*$F$8*$D$8+AP$9*$F$9*$D$9+AP$10*$F$10*$D$10+AP$11*$F$11*$D$11+AP$12*$F$12*$D$12+AP$13*$F$13*$D$13+AP$14*$F$14*$D$14+AP$15*$F$15*$D$15+AP$16*$F$16*$D$16+AP$17*$F$17*$D$17+AP$18*$F$18*$D$18+AP$19*$F$19*$D$19+AP$20*$F$20*$D$20+AP$21*$F$21*$D$21+AP$22*$F$22*$D$22+AP$23*$F$23*$D$23+AP$24*$F$24*$D$24)/100 -> 0.0 | AQ44: 0.0 | AR44: 0.0 | AS44: 0.0 | AT44: 0.0 | AU44: 0.0 | AV44: 0.0
AM45: =G2&", g" -> XP, g | AN45: =(AN$4*$G$4*$D$4+AN$5*$G$5*$D$5+AN$6*$G$6*$D$6+AN$7*$G$7*$D$7+AN$8*$G$8*$D$8+AN$9*$G$9*$D$9+AN$10*$G$10*$D$10+AN$11*$G$11*$D$11+AN$12*$G$12*$D$12+AN$13*$G$13*$D$13+AN$14*$G$14*$D$14+AN$15*$G$15*$D$15+AN$16*$G$16*$D$16+AN$17*$G$17*$D$17+AN$18*$G$18*$D$18+AN$19*$G$19*$D$19+AN$20*$G$20*$D$20+AN$21*$G$21*$D$21+AN$22*$G$22*$D$22+AN$23*$G$23*$D$23+AN$24*$G$24*$D$24)/100 -> 0 | AO45: =(AO$4*$G$4*$D$4+AO$5*$G$5*$D$5+AO$6*$G$6*$D$6+AO$7*$G$7*$D$7+AO$8*$G$8*$D$8+AO$9*$G$9*$D$9+AO$10*$G$10*$D$10+AO$11*$G$11*$D$11+AO$12*$G$12*$D$12+AO$13*$G$13*$D$13+AO$14*$G$14*$D$14+AO$15*$G$15*$D$15+AO$16*$G$16*$D$16+AO$17*$G$17*$D$17+AO$18*$G$18*$D$18+AO$19*$G$19*$D$19+AO$20*$G$20*$D$20+AO$21*$G$21*$D$21+AO$22*$G$22*$D$22+AO$23*$G$23*$D$23+AO$24*$G$24*$D$24)/100 -> 0 | AP45: =(AP$4*$G$4*$D$4+AP$5*$G$5*$D$5+AP$6*$G$6*$D$6+AP$7*$G$7*$D$7+AP$8*$G$8*$D$8+AP$9*$G$9*$D$9+AP$10*$G$10*$D$10+AP$11*$G$11*$D$11+AP$12*$G$12*$D$12+AP$13*$G$13*$D$13+AP$14*$G$14*$D$14+AP$15*$G$15*$D$15+AP$16*$G$16*$D$16+AP$17*$G$17*$D$17+AP$18*$G$18*$D$18+AP$19*$G$19*$D$19+AP$20*$G$20*$D$20+AP$21*$G$21*$D$21+AP$22*$G$22*$D$22+AP$23*$G$23*$D$23+AP$24*$G$24*$D$24)/100 -> 0 | AQ45: 0 | AR45: 0 | AS45: 0 | AT45: 0 | AU45: 0 | AV45: 0
AM46: =G2&"g/kg TM" -> XPg/kg TM | AN46: =IF(AN26=0,0,AN45/AN26) -> 0 | AO46: 0 | AP46: 0 | AQ46: 0 | AR46: 0 | AS46: 0 | AT46: 0 | AU46: 0 | AV46: 0
AM47: =H2 -> UDP | AN47: =IF(AN26=0,0,(AN$4*$H$4*$D$4+AN$5*$H$5*$D$5+AN$6*$H$6*$D$6+AN$7*$H$7*$D$7+AN$8*$H$8*$D$8+AN$9*$H$9*$D$9+AN$10*$H$10*$D$10+AN$11*$H$11*$D$11+AN$12*$H$12*$D$12+AN$13*$H$13*$D$13+AN$14*$H$14*$D$14+AN$15*$H$15*$D$15+AN$16*$H$16*$D$16+AN$17*$H$17*$D$17+AN$18*$H$18*$D$18+AN$19*$H$19*$D$19+AN$20*$H$20*$D$20+AN$21*$H$21*$D$21+AN$22*$H$22*$D$22+AN$23*$H$23*$D$23+AN$24*$H$24*$D$24)/100/AN26) -> 0% | AO47: 0% | AP47: 0% | AQ47: 0% | AR47: 0% | AS47: 0% | AT47: 0% | AU47: 0% | AV47: 0%
AM48: =I2&", g" -> nXP, g | AN48: =(AN$4*$I$4*$D$4+AN$5*$I$5*$D$5+AN$6*$I$6*$D$6+AN$7*$I$7*$D$7+AN$8*$I$8*$D$8+AN$9*$I$9*$D$9+AN$10*$I$10*$D$10+AN$11*$I$11*$D$11+AN$12*$I$12*$D$12+AN$13*$I$13*$D$13+AN$14*$I$14*$D$14+AN$15*$I$15*$D$15+AN$16*$I$16*$D$16+AN$17*$I$17*$D$17+AN$18*$I$18*$D$18+AN$19*$I$19*$D$19+AN$20*$I$20*$D$20+AN$21*$I$21*$D$21+AN$22*$I$22*$D$22+AN$23*$I$23*$D$23+AN$24*$I$24*$D$24)/100 -> 0 | AO48: =(AO$4*$I$4*$D$4+AO$5*$I$5*$D$5+AO$6*$I$6*$D$6+AO$7*$I$7*$D$7+AO$8*$I$8*$D$8+AO$9*$I$9*$D$9+AO$10*$I$10*$D$10+AO$11*$I$11*$D$11+AO$12*$I$12*$D$12+AO$13*$I$13*$D$13+AO$14*$I$14*$D$14+AO$15*$I$15*$D$15+AO$16*$I$16*$D$16+AO$17*$I$17*$D$17+AO$18*$I$18*$D$18+AO$19*$I$19*$D$19+AO$20*$I$20*$D$20+AO$21*$I$21*$D$21+AO$22*$I$22*$D$22+AO$23*$I$23*$D$23+AO$24*$I$24*$D$24)/100 -> 0 | AP48: =(AP$4*$I$4*$D$4+AP$5*$I$5*$D$5+AP$6*$I$6*$D$6+AP$7*$I$7*$D$7+AP$8*$I$8*$D$8+AP$9*$I$9*$D$9+AP$10*$I$10*$D$10+AP$11*$I$11*$D$11+AP$12*$I$12*$D$12+AP$13*$I$13*$D$13+AP$14*$I$14*$D$14+AP$15*$I$15*$D$15+AP$16*$I$16*$D$16+AP$17*$I$17*$D$17+AP$18*$I$18*$D$18+AP$19*$I$19*$D$19+AP$20*$I$20*$D$20+AP$21*$I$21*$D$21+AP$22*$I$22*$D$22+AP$23*$I$23*$D$23+AP$24*$I$24*$D$24)/100 -> 0 | AQ48: 0 | AR48: 0 | AS48: 0 | AT48: 0 | AU48: 0 | AV48: 0
AM49: =J2 -> RNB | AN49: =(AN$4*$J$4*$D$4+AN$5*$J$5*$D$5+AN$6*$J$6*$D$6+AN$7*$J$7*$D$7+AN$8*$J$8*$D$8+AN$9*$J$9*$D$9+AN$10*$J$10*$D$10+AN$11*$J$11*$D$11+AN$12*$J$12*$D$12+AN$13*$J$13*$D$13+AN$14*$J$14*$D$14+AN$15*$J$15*$D$15+AN$16*$J$16*$D$16+AN$17*$J$17*$D$17+AN$18*$J$18*$D$18+AN$19*$J$19*$D$19+AN$20*$J$20*$D$20+AN$21*$J$21*$D$21+AN$22*$J$22*$D$22+AN$23*$J$23*$D$23+AN$24*$J$24*$D$24)/100 -> 0.0 | AO49: =(AO$4*$J$4*$D$4+AO$5*$J$5*$D$5+AO$6*$J$6*$D$6+AO$7*$J$7*$D$7+AO$8*$J$8*$D$8+AO$9*$J$9*$D$9+AO$10*$J$10*$D$10+AO$11*$J$11*$D$11+AO$12*$J$12*$D$12+AO$13*$J$13*$D$13+AO$14*$J$14*$D$14+AO$15*$J$15*$D$15+AO$16*$J$16*$D$16+AO$17*$J$17*$D$17+AO$18*$J$18*$D$18+AO$19*$J$19*$D$19+AO$20*$J$20*$D$20+AO$21*$J$21*$D$21+AO$22*$J$22*$D$22+AO$23*$J$23*$D$23+AO$24*$J$24*$D$24)/100 -> 0.0 | AP49: =(AP$4*$J$4*$D$4+AP$5*$J$5*$D$5+AP$6*$J$6*$D$6+AP$7*$J$7*$D$7+AP$8*$J$8*$D$8+AP$9*$J$9*$D$9+AP$10*$J$10*$D$10+AP$11*$J$11*$D$11+AP$12*$J$12*$D$12+AP$13*$J$13*$D$13+AP$14*$J$14*$D$14+AP$15*$J$15*$D$15+AP$16*$J$16*$D$16+AP$17*$J$17*$D$17+AP$18*$J$18*$D$18+AP$19*$J$19*$D$19+AP$20*$J$20*$D$20+AP$21*$J$21*$D$21+AP$22*$J$22*$D$22+AP$23*$J$23*$D$23+AP$24*$J$24*$D$24)/100 -> 0.0 | AQ49: 0.0 | AR49: 0.0 | AS49: 0.0 | AT49: 0.0 | AU49: 0.0 | AV49: 0.0
AM50: =K2 -> UDP | AN50: =(AN$4*$K$4*$D$4+AN$5*$K$5*$D$5+AN$6*$K$6*$D$6+AN$7*$K$7*$D$7+AN$8*$K$8*$D$8+AN$9*$K$9*$D$9+AN$10*$K$10*$D$10+AN$11*$K$11*$D$11+AN$12*$K$12*$D$12+AN$13*$K$13*$D$13+AN$14*$K$14*$D$14+AN$15*$K$15*$D$15+AN$16*$K$16*$D$16+AN$17*$K$17*$D$17+AN$18*$K$18*$D$18+AN$19*$K$19*$D$19+AN$20*$K$20*$D$20+AN$21*$K$21*$D$21+AN$22*$K$22*$D$22+AN$23*$K$23*$D$23+AN$24*$K$24*$D$24) -> 0.0 | AO50: 0.0 | AP50: 0.0 | AQ50: 0.0 | AR50: 0.0 | AS50: 0.0 | AT50: 0.0 | AU50: 0.0 | AV50: 0.0
AM51: =L2 -> SW | AN51: =(AN$4*$L$4*$D$4+AN$5*$L$5*$D$5+AN$6*$L$6*$D$6+AN$7*$L$7*$D$7+AN$8*$L$8*$D$8+AN$9*$L$9*$D$9+AN$10*$L$10*$D$10+AN$11*$L$11*$D$11+AN$12*$L$12*$D$12+AN$13*$L$13*$D$13+AN$14*$L$14*$D$14+AN$15*$L$15*$D$15+AN$16*$L$16*$D$16+AN$17*$L$17*$D$17+AN$18*$L$18*$D$18+AN$19*$L$19*$D$19+AN$20*$L$20*$D$20+AN$21*$L$21*$D$21+AN$22*$L$22*$D$22+AN$23*$L$23*$D$23+AN$24*$L$24*$D$24)/100 -> 0.0 | AO51: 0.0 | AP51: 0.0 | AQ51: 0.0 | AR51: 0.0 | AS51: 0.0 | AT51: 0.0 | AU51: 0.0 | AV51: 0.0
AM52: =M2&", g" -> ADF, g | AN52: =(AN$4*$M$4*$D$4+AN$5*$M$5*$D$5+AN$6*$M$6*$D$6+AN$7*$M$7*$D$7+AN$8*$M$8*$D$8+AN$9*$M$9*$D$9+AN$10*$M$10*$D$10+AN$11*$M$11*$D$11+AN$12*$M$12*$D$12+AN$13*$M$13*$D$13+AN$14*$M$14*$D$14+AN$15*$M$15*$D$15+AN$16*$M$16*$D$16+AN$17*$M$17*$D$17+AN$18*$M$18*$D$18+AN$19*$M$19*$D$19+AN$20*$M$20*$D$20+AN$21*$M$21*$D$21+AN$22*$M$22*$D$22+AN$23*$M$23*$D$23+AN$24*$M$24*$D$24)/100 -> 0 | AO52: 0 | AP52: 0 | AQ52: 0 | AR52: 0 | AS52: 0 | AT52: 0 | AU52: 0 | AV52: 0
AM53: =N2&", g" -> NDF, g | AN53: =(AN$4*$N$4*$D$4+AN$5*$N$5*$D$5+AN$6*$N$6*$D$6+AN$7*$N$7*$D$7+AN$8*$N$8*$D$8+AN$9*$N$9*$D$9+AN$10*$N$10*$D$10+AN$11*$N$11*$D$11+AN$12*$N$12*$D$12+AN$13*$N$13*$D$13+AN$14*$N$14*$D$14+AN$15*$N$15*$D$15+AN$16*$N$16*$D$16+AN$17*$N$17*$D$17+AN$18*$N$18*$D$18+AN$19*$N$19*$D$19+AN$20*$N$20*$D$20+AN$21*$N$21*$D$21+AN$22*$N$22*$D$22+AN$23*$N$23*$D$23+AN$24*$N$24*$D$24)/100 -> 0 | AO53: 0 | AP53: 0 | AQ53: 0 | AR53: 0 | AS53: 0 | AT53: 0 | AU53: 0 | AV53: 0
AM54: =O2&", g" -> NFC, g | AN54: =(AN$4*$O$4*$D$4+AN$5*$O$5*$D$5+AN$6*$O$6*$D$6+AN$7*$O$7*$D$7+AN$8*$O$8*$D$8+AN$9*$O$9*$D$9+AN$10*$O$10*$D$10+AN$11*$O$11*$D$11+AN$12*$O$12*$D$12+AN$13*$O$13*$D$13+AN$14*$O$14*$D$14+AN$15*$O$15*$D$15+AN$16*$O$16*$D$16+AN$17*$O$17*$D$17+AN$18*$O$18*$D$18+AN$19*$O$19*$D$19+AN$20*$O$20*$D$20+AN$21*$O$21*$D$21+AN$22*$O$22*$D$22+AN$23*$O$23*$D$23+AN$24*$O$24*$D$24)/100 -> 0 | AO54: 0 | AP54: 0 | AQ54: 0 | AR54: 0 | AS54: 0 | AT54: 0 | AU54: 0 | AV54: 0
AM55: =P2&", g" -> XZ, g | AN55: =(AN$4*$P$4*$D$4+AN$5*$P$5*$D$5+AN$6*$P$6*$D$6+AN$7*$P$7*$D$7+AN$8*$P$8*$D$8+AN$9*$P$9*$D$9+AN$10*$P$10*$D$10+AN$11*$P$11*$D$11+AN$12*$P$12*$D$12+AN$13*$P$13*$D$13+AN$14*$P$14*$D$14+AN$15*$P$15*$D$15+AN$16*$P$16*$D$16+AN$17*$P$17*$D$17+AN$18*$P$18*$D$18+AN$19*$P$19*$D$19+AN$20*$P$20*$D$20+AN$21*$P$21*$D$21+AN$22*$P$22*$D$22+AN$23*$P$23*$D$23+AN$24*$P$24*$D$24)/100 -> 0 | AO55: 0 | AP55: 0 | AQ55: 0 | AR55: 0 | AS55: 0 | AT55: 0 | AU55: 0 | AV55: 0
AM56: =Q2&", g" -> XL, g | AN56: =(AN$4*$Q$4*$D$4+AN$5*$Q$5*$D$5+AN$6*$Q$6*$D$6+AN$7*$Q$7*$D$7+AN$8*$Q$8*$D$8+AN$9*$Q$9*$D$9+AN$10*$Q$10*$D$10+AN$11*$Q$11*$D$11+AN$12*$Q$12*$D$12+AN$13*$Q$13*$D$13+AN$14*$Q$14*$D$14+AN$15*$Q$15*$D$15+AN$16*$Q$16*$D$16+AN$17*$Q$17*$D$17+AN$18*$Q$18*$D$18+AN$19*$Q$19*$D$19+AN$20*$Q$20*$D$20+AN$21*$Q$21*$D$21+AN$22*$Q$22*$D$22+AN$23*$Q$23*$D$23+AN$24*$Q$24*$D$24)/100 -> 0 | AO56: 0 | AP56: 0 | AQ56: 0 | AR56: 0 | AS56: 0 | AT56: 0 | AU56: 0 | AV56: 0
AM57: =R2&", g" -> XF, g | AN57: =(AN$4*$R$4*$D$4+AN$5*$R$5*$D$5+AN$6*$R$6*$D$6+AN$7*$R$7*$D$7+AN$8*$R$8*$D$8+AN$9*$R$9*$D$9+AN$10*$R$10*$D$10+AN$11*$R$11*$D$11+AN$12*$R$12*$D$12+AN$13*$R$13*$D$13+AN$14*$R$14*$D$14+AN$15*$R$15*$D$15+AN$16*$R$16*$D$16+AN$17*$R$17*$D$17+AN$18*$R$18*$D$18+AN$19*$R$19*$D$19+AN$20*$R$20*$D$20+AN$21*$R$21*$D$21+AN$22*$R$22*$D$22+AN$23*$R$23*$D$23+AN$24*$R$24*$D$24)/100 -> 0 | AO57: 0 | AP57: 0 | AQ57: 0 | AR57: 0 | AS57: 0 | AT57: 0 | AU57: 0 | AV57: 0
AM58: =R2&", g" -> XF, g | AN58: =IF(AN26=0,0,AN57/AN26) -> 0 | AO58: 0 | AP58: 0 | AQ58: 0 | AR58: 0 | AS58: 0 | AT58: 0 | AU58: 0 | AV58: 0
AM59: =S2&"g/kg TM" -> sXFg/kg TM | AN59: =(AN$4*$S$4*$D$4+AN$5*$S$5*$D$5+AN$6*$S$6*$D$6+AN$7*$S$7*$D$7+AN$8*$S$8*$D$8+AN$9*$S$9*$D$9+AN$10*$S$10*$D$10+AN$11*$S$11*$D$11+AN$12*$S$12*$D$12+AN$13*$S$13*$D$13+AN$14*$S$14*$D$14+AN$15*$S$15*$D$15+AN$16*$S$16*$D$16+AN$17*$S$17*$D$17+AN$18*$S$18*$D$18+AN$19*$S$19*$D$19+AN$20*$S$20*$D$20+AN$21*$S$21*$D$21+AN$22*$S$22*$D$22+AN$23*$S$23*$D$23+AN$24*$S$24*$D$24)/100 -> 0 | AO59: 0 | AP59: 0 | AQ59: 0 | AR59: 0 | AS59: 0 | AT59: 0 | AU59: 0 | AV59: 0
AM60: =T2&", g " -> XA, g | AN60: =IF(AN26=0,0,AN61/AN26) -> 0 | AO60: 0 | AP60: 0 | AQ60: 0 | AR60: 0 | AS60: 0 | AT60: 0 | AU60: 0 | AV60: 0
AM61: =T2&", g" -> XA, g | AN61: =(AN$4*$T$4*$D$4+AN$5*$T$5*$D$5+AN$6*$T$6*$D$6+AN$7*$T$7*$D$7+AN$8*$T$8*$D$8+AN$9*$T$9*$D$9+AN$10*$T$10*$D$10+AN$11*$T$11*$D$11+AN$12*$T$12*$D$12+AN$13*$T$13*$D$13+AN$14*$T$14*$D$14+AN$15*$T$15*$D$15+AN$16*$T$16*$D$16+AN$17*$T$17*$D$17+AN$18*$T$18*$D$18+AN$19*$T$19*$D$19+AN$20*$T$20*$D$20+AN$21*$T$21*$D$21+AN$22*$T$22*$D$22+AN$23*$T$23*$D$23+AN$24*$T$24*$D$24)/100 -> 0 | AO61: 0 | AP61: 0 | AQ61: 0 | AR61: 0 | AS61: 0 | AT61: 0 | AU61: 0 | AV61: 0
AM62: =U2&", g" -> Ca, g | AN62: =(AN$4*$U$4*$D$4+AN$5*$U$5*$D$5+AN$6*$U$6*$D$6+AN$7*$U$7*$D$7+AN$8*$U$8*$D$8+AN$9*$U$9*$D$9+AN$10*$U$10*$D$10+AN$11*$U$11*$D$11+AN$12*$U$12*$D$12+AN$13*$U$13*$D$13+AN$14*$U$14*$D$14+AN$15*$U$15*$D$15+AN$16*$U$16*$D$16+AN$17*$U$17*$D$17+AN$18*$U$18*$D$18+AN$19*$U$19*$D$19+AN$20*$U$20*$D$20+AN$21*$U$21*$D$21+AN$22*$U$22*$D$22+AN$23*$U$23*$D$23+AN$24*$U$24*$D$24)/100 -> 0 | AO62: 0 | AP62: 0 | AQ62: 0 | AR62: 0 | AS62: 0 | AT62: 0 | AU62: 0 | AV62: 0
AM63: =V2&", g" -> P, g | AN63: =(AN$4*$V$4*$D$4+AN$5*$V$5*$D$5+AN$6*$V$6*$D$6+AN$7*$V$7*$D$7+AN$8*$V$8*$D$8+AN$9*$V$9*$D$9+AN$10*$V$10*$D$10+AN$11*$V$11*$D$11+AN$12*$V$12*$D$12+AN$13*$V$13*$D$13+AN$14*$V$14*$D$14+AN$15*$V$15*$D$15+AN$16*$V$16*$D$16+AN$17*$V$17*$D$17+AN$18*$V$18*$D$18+AN$19*$V$19*$D$19+AN$20*$V$20*$D$20+AN$21*$V$21*$D$21+AN$22*$V$22*$D$22+AN$23*$V$23*$D$23+AN$24*$V$24*$D$24)/100 -> 0 | AO63: 0 | AP63: 0 | AQ63: 0 | AR63: 0 | AS63: 0 | AT63: 0 | AU63: 0 | AV63: 0
AM64: =W2&", g" -> Na, g | AN64: =(AN$4*$W$4*$D$4+AN$5*$W$5*$D$5+AN$6*$W$6*$D$6+AN$7*$W$7*$D$7+AN$8*$W$8*$D$8+AN$9*$W$9*$D$9+AN$10*$W$10*$D$10+AN$11*$W$11*$D$11+AN$12*$W$12*$D$12+AN$13*$W$13*$D$13+AN$14*$W$14*$D$14+AN$15*$W$15*$D$15+AN$16*$W$16*$D$16+AN$17*$W$17*$D$17+AN$18*$W$18*$D$18+AN$19*$W$19*$D$19+AN$20*$W$20*$D$20+AN$21*$W$21*$D$21+AN$22*$W$22*$D$22+AN$23*$W$23*$D$23+AN$24*$W$24*$D$24)/100 -> 0.0 | AO64: 0.0 | AP64: 0.0 | AQ64: 0.0 | AR64: 0.0 | AS64: 0.0 | AT64: 0.0 | AU64: 0.0 | AV64: 0.0
AM65: =X2&", g" -> Mg, g | AN65: =(AN$4*$X$4*$D$4+AN$5*$X$5*$D$5+AN$6*$X$6*$D$6+AN$7*$X$7*$D$7+AN$8*$X$8*$D$8+AN$9*$X$9*$D$9+AN$10*$X$10*$D$10+AN$11*$X$11*$D$11+AN$12*$X$12*$D$12+AN$13*$X$13*$D$13+AN$14*$X$14*$D$14+AN$15*$X$15*$D$15+AN$16*$X$16*$D$16+AN$17*$X$17*$D$17+AN$18*$X$18*$D$18+AN$19*$X$19*$D$19+AN$20*$X$20*$D$20+AN$21*$X$21*$D$21+AN$22*$X$22*$D$22+AN$23*$X$23*$D$23+AN$24*$X$24*$D$24)/100 -> 0.0 | AO65: 0.0 | AP65: 0.0 | AQ65: 0.0 | AR65: 0.0 | AS65: 0.0 | AT65: 0.0 | AU65: 0.0 | AV65: 0.0
AM66: =Y2&", g" -> K, g | AN66: =(AN$4*$Y$4*$D$4+AN$5*$Y$5*$D$5+AN$6*$Y$6*$D$6+AN$7*$Y$7*$D$7+AN$8*$Y$8*$D$8+AN$9*$Y$9*$D$9+AN$10*$Y$10*$D$10+AN$11*$Y$11*$D$11+AN$12*$Y$12*$D$12+AN$13*$Y$13*$D$13+AN$14*$Y$14*$D$14+AN$15*$Y$15*$D$15+AN$16*$Y$16*$D$16+AN$17*$Y$17*$D$17+AN$18*$Y$18*$D$18+AN$19*$Y$19*$D$19+AN$20*$Y$20*$D$20+AN$21*$Y$21*$D$21+AN$22*$Y$22*$D$22+AN$23*$Y$23*$D$23+AN$24*$Y$24*$D$24)/100 -> 0 | AO66: 0 | AP66: 0 | AQ66: 0 | AR66: 0 | AS66: 0 | AT66: 0 | AU66: 0 | AV66: 0
AM67: =Z2&", g" -> Se, g | AN67: =(AN$4*$Z$4*$D$4+AN$5*$Z$5*$D$5+AN$6*$Z$6*$D$6+AN$7*$Z$7*$D$7+AN$8*$Z$8*$D$8+AN$9*$Z$9*$D$9+AN$10*$Z$10*$D$10+AN$11*$Z$11*$D$11+AN$12*$Z$12*$D$12+AN$13*$Z$13*$D$13+AN$14*$Z$14*$D$14+AN$15*$Z$15*$D$15+AN$16*$Z$16*$D$16+AN$17*$Z$17*$D$17+AN$18*$Z$18*$D$18+AN$19*$Z$19*$D$19+AN$20*$Z$20*$D$20+AN$21*$Z$21*$D$21+AN$22*$Z$22*$D$22+AN$23*$Z$23*$D$23+AN$24*$Z$24*$D$24)/100 -> 0.0 | AO67: 0.0 | AP67: 0.0 | AQ67: 0.0 | AR67: 0.0 | AS67: 0.0 | AT67: 0.0 | AU67: 0.0 | AV67: 0.0
AM68: =AA2&", meq" -> DCAB, meq | AN68: =(AN$4*$AA$4*$D$4+AN$5*$AA$5*$D$5+AN$6*$AA$6*$D$6+AN$7*$AA$7*$D$7+AN$8*$AA$8*$D$8+AN$9*$AA$9*$D$9+AN$10*$AA$10*$D$10+AN$11*$AA$11*$D$11+AN$12*$AA$12*$D$12+AN$13*$AA$13*$D$13+AN$14*$AA$14*$D$14+AN$15*$AA$15*$D$15+AN$16*$AA$16*$D$16+AN$17*$AA$17*$D$17+AN$18*$AA$18*$D$18+AN$19*$AA$19*$D$19+AN$20*$AA$20*$D$20+AN$21*$AA$21*$D$21+AN$22*$AA$22*$D$22+AN$23*$AA$23*$D$23+AN$24*$AA$24*$D$24)/100 -> 0.0 | AO68: =(AO$4*$AA$4*$D$4+AO$5*$AA$5*$D$5+AO$6*$AA$6*$D$6+AO$7*$AA$7*$D$7+AO$8*$AA$8*$D$8+AO$9*$AA$9*$D$9+AO$10*$AA$10*$D$10+AO$11*$AA$11*$D$11+AO$12*$AA$12*$D$12+AO$13*$AA$13*$D$13+AO$14*$AA$14*$D$14+AO$15*$AA$15*$D$15+AO$16*$AA$16*$D$16+AO$17*$AA$17*$D$17+AO$18*$AA$18*$D$18+AO$19*$AA$19*$D$19+AO$20*$AA$20*$D$20+AO$21*$AA$21*$D$21+AO$22*$AA$22*$D$22+AO$23*$AA$23*$D$23+AO$24*$AA$24*$D$24)/100 -> 0.0 | AP68: 0.0 | AQ68: 0.0 | AR68: 0.0 | AS68: 0.0 | AT68: 0.0 | AU68: 0.0 | AV68: 0.0
AM69: =AB2&", €/kg TM" -> Kosten, €/kg TM | AN69: =(AN$4*$AB$4*$D$4+AN$5*$AB$5*$D$5+AN$6*$AB$6*$D$6+AN$7*$AB$7*$D$7+AN$8*$AB$8*$D$8+AN$9*$AB$9*$D$9+AN$10*$AB$10*$D$10+AN$11*$AB$11*$D$11+AN$12*$AB$12*$D$12+AN$13*$AB$13*$D$13+AN$14*$AB$14*$D$14+AN$15*$AB$15*$D$15+AN$16*$AB$16*$D$16+AN$17*$AB$17*$D$17+AN$18*$AB$18*$D$18+AN$19*$AB$19*$D$19+AN$20*$AB$20*$D$20+AN$21*$AB$21*$D$21+AN$22*$AB$22*$D$22+AN$23*$AB$23*$D$23+AN$24*$AB$24*$D$24)/100 -> 
A73: 2
A74: 3

Sheet Ration Aufzucht-Mast
A1: =IF(G4=1, "Rationsberechnung für die Bullenmast","Rationsberechnung für die Rinderaufzucht") -> Rationsberechnung für die Rinderaufzucht
B3: Dateneingabe | G3: 1 | H3: Bullenmast | L3: Holstein Frisian | R3: Lebendmasse | U3: 350 kg | AL3: f(x)=a*epx(b*LM)
B4: 1 | D4: Trockenmasse | G4: 2 | K4: 3 | L4: Fleckvieh | R4: TagesZunahme (LMZ) | U4: 800 g | AK4: a | AL4: 6.5878 | AM4: 9.0924 | AN4: 11.7454 | AO4: 13.8731 | AP4: 16.5801
D5: Frischmasse | H5: Rinderaufzucht | L5: Färsen | R5: Futteraufnahme | U5: =V5/100 -> 100% | V5: 100 | AK5: b | AL5: 0.002125 | AM5: 0.002301 | AN5: 0.002485 | AO5: 0.002760 | AP5: 0.002911
AI6: Tabellen | AJ6: Sbt | AK6: Ansatz | AL6: =AL4*EXP(AL5*$U$3) -> 13.8594797 | AM6: =AM4*EXP(AM5*$U$3) -> 20.34405842 | AN6: =AN4*EXP(AN5*$U$3) -> 28.02821481 | AO6: =AO4*EXP(AO5*$U$3) -> 36.45037379 | AP6: =AP4*EXP(AP5*$U$3) -> 45.92700008 | BN6: IT | BU6: MJNEL
B7: Ration 1 | H7: Gehalt je kg TM im Futter | T7: Gehalt der Ration | AI7: LM | AJ7: Erhaltung | AL7: 600 | AM7: 800 | AN7: 1000 | AO7: 1200 | AP7: 1400 | AQ7: 1600 | AU7: =AL7 -> 600 | AV7: 800 | AW7: 1000 | AX7: 1200 | AY7: 1400 | AZ7: 1600 | BA7: Mittelwert | BN7: =AU7 -> 600 | BO7: =AV7 -> 800 | BP7: =AW7 -> 1000 | BQ7: =AX7 -> 1200 | BR7: =AY7 -> 1400 | BS7: 1600 | BV7: =BN7 -> 600 | BW7: =BO7 -> 800 | BX7: =BP7 -> 1000 | BY7: =BQ7 -> 1200 | BZ7: =BR7 -> 1400
B8: =IF(Mast_Eingabe=1,"TM",IF(Mast_Eingabe=2,"FM","")) -> TM | G8: TS | H8: ME | I8: nXP | J8: RNB | K8: NFC | L8: =IF(Art=1,"SW","") -> SW | M8: ADF | N8: NDF | O8: Ca | P8: P | Q8: Na | R8: Mg | S8: Kosten | T8: FM | U8: TM | V8: =+H8 -> ME | W8: nXP | X8: RNB | Y8: NFC | Z8: SW | AA8: ADF | AB8: NDF | AC8: Ca | AD8: P | AE8: Na | AF8: Mg | AG8: Kosten | AI8: 175 | AJ8: =AI8^0.75*0.53 -> 25.5 | AK8: =AI8 -> 175.0 | AL8: 9.6 | AM8: 13.9 | AN8: 18.9 | AU8: =AL8/AU$7*1000 -> 16.0 | AV8: 17.4 | AW8: 18.9 | BA8: =MEDIAN(AU8:AZ8) -> 17.4 | BM8: =AI8 -> 175 | BN8: =(-19.7+4.55*LN($BM8)+0.00066*BN$7)*$U$5 -> 4.20 | BO8: 4.33 | BP8: 4.46 | BQ8: 4.59 | BR8: 4.72 | BS8: 4.86 | BU8: =BM8 -> 175 | BV8: =AU8/BN8 -> 3.81 | BW8: 4.01 | BX8: 4.24
B9: kg | D9: Grobfutter, ad lib Komponenten | G9: % | H9: MJ | I9: g | J9: =IF(J8="","","g") -> g | K9: g | M9: =IF(M8="","","g") -> g | N9: g | O9: g | P9: g | Q9: g | R9: % d. XF | S9: €/kg FM | T9: kg | U9: kg | V9: MJ | W9: g | X9: =J9 -> g | Y9: g | AA9: g | AB9: g | AC9: g | AD9: g | AE9: g | AF9: g | AG9: € | AI9: 225 | AJ9: =AI9^0.75*0.53 -> 30.8 | AK9: =AI9 -> 225.0 | AL9: 10.6 | AM9: 15.2 | AN9: 20.4 | AO9: 26.3 | AU9: 17.7 | AV9: 19.0 | AW9: 20.4 | AX9: =AO9/AX$7*1000 -> 21.9 | BA9: =MEDIAN(AU9:AZ9) -> 19.7 | BM9: =AI9 -> 225 | BN9: 5.34 | BO9: 5.47 | BP9: 5.60 | BQ9: 5.74 | BR9: 5.87 | BS9: 6.00 | BU9: =BM9 -> 225 | BV9: 3.31 | BW9: 3.47 | BX9: 3.64 | BY9: =AX9/BQ9 -> 3.82
C10: 77 | D10: =INDEX(Tabelle,$C10,1) -> 0 | F10: =IF(INDEX(Tabelle,$C10,22)="","",1) -> 1 | G10: =IF(INDEX(Tabelle,$C10,2)="","fehlt",INDEX(Tabelle,$C10,2)/10) -> 0.0 | H10: =IF(INDEX(Tabelle,$C10,4)="","fehlt",INDEX(Tabelle,$C10,4)) -> 0.0 | I10: =IF(INDEX(Tabelle,$C10,7)="","fehlt",INDEX(Tabelle,$C10,7)) -> 0 | J10: =IF(INDEX(Tabelle,$C10,8)="","fehlt",INDEX(Tabelle,$C10,8)) -> 0.0 | K10: =IF(INDEX(Tabelle,$C10,12)="","fehlt",INDEX(Tabelle,$C10,12)) -> 0 | L10: =IF(INDEX(Tabelle,$C10,9)="","fehlt",INDEX(Tabelle,$C10,9)) -> 0.00 | M10: =IF(INDEX(Tabelle,$C10,10)="","fehlt",INDEX(Tabelle,$C10,10)) -> 0 | N10: =IF(INDEX(Tabelle,$C10,11)="","fehlt",INDEX(Tabelle,$C10,11)) -> 0 | O10: =IF(INDEX(Tabelle,$C10,19)="","fehlt",INDEX(Tabelle,$C10,19)) -> 0.0 | P10: =IF(INDEX(Tabelle,$C10,20)="","fehlt",INDEX(Tabelle,$C10,20)) -> 0.0 | Q10: =IF(INDEX(Tabelle,$C10,21)="","fehlt",INDEX(Tabelle,$C10,21)) -> 0.0 | R10: =IF(INDEX(Tabelle,$C10,22)="","fehlt",INDEX(Tabelle,$C10,22)) -> 0.0 | S10: =IF(INDEX(Tabelle,$C10,25)="","",INDEX(Tabelle,$C10,25)/100) ->  | T10: =IF(G10="",0,IF(Mast_Eingabe=2,B10,B10/G10*100)) -> 0.00 | U10: =IF(G10="",0,IF(Mast_Eingabe=1,B10,B10*G10/100)) -> 0.00 | V10: =$U10*H10 -> 0.0 | W10: 0.0 | X10: 0.0 | Y10: 0.0 | Z10: 0.0 | AA10: 0.0 | AB10: 0.0 | AC10: 0.0 | AD10: 0.0 | AE10: 0.0 | AF10: 0.0 | AG10: =IF(S10="","",$T10*S10) -> 
C11: 77 | D11: =INDEX(Tabelle,$C11,1) -> 0 | F11: =IF(INDEX(Tabelle,$C11,22)="","",1) -> 1 | G11: =IF(INDEX(Tabelle,$C11,2)="","fehlt",INDEX(Tabelle,$C11,2)/10) -> 0.0 | H11: =IF(INDEX(Tabelle,$C11,4)="","fehlt",INDEX(Tabelle,$C11,4)) -> 0.0 | I11: =IF(INDEX(Tabelle,$C11,7)="","fehlt",INDEX(Tabelle,$C11,7)) -> 0 | J11: =IF(INDEX(Tabelle,$C11,8)="","fehlt",INDEX(Tabelle,$C11,8)) -> 0.0 | K11: =IF(INDEX(Tabelle,$C11,12)="","fehlt",INDEX(Tabelle,$C11,12)) -> 0 | L11: =IF(INDEX(Tabelle,$C11,9)="","fehlt",INDEX(Tabelle,$C11,9)) -> 0.00 | M11: =IF(INDEX(Tabelle,$C11,10)="","fehlt",INDEX(Tabelle,$C11,10)) -> 0 | N11: =IF(INDEX(Tabelle,$C11,11)="","fehlt",INDEX(Tabelle,$C11,11)) -> 0 | O11: =IF(INDEX(Tabelle,$C11,19)="","fehlt",INDEX(Tabelle,$C11,19)) -> 0.0 | P11: =IF(INDEX(Tabelle,$C11,20)="","fehlt",INDEX(Tabelle,$C11,20)) -> 0.0 | Q11: =IF(INDEX(Tabelle,$C11,21)="","fehlt",INDEX(Tabelle,$C11,21)) -> 0.0 | R11: =IF(INDEX(Tabelle,$C11,22)="","fehlt",INDEX(Tabelle,$C11,22)) -> 0.0 | S11: =IF(INDEX(Tabelle,$C11,25)="","",INDEX(Tabelle,$C11,25)/100) ->  | T11: =IF(G11="",0,IF(Mast_Eingabe=2,B11,B11/G11*100)) -> 0.00 | U11: =IF(G11="",0,IF(Mast_Eingabe=1,B11,B11*G11/100)) -> 0.00 | V11: 0.0 | W11: 0.0 | X11: 0.0 | Y11: 0.0 | Z11: 0.0 | AA11: 0.0 | AB11: 0.0 | AC11: 0.0 | AD11: 0.0 | AE11: 0.0 | AF11: 0.0 | AG11: =IF(S11="","",$T11*S11) -> 
C12: 77 | D12: =INDEX(Tabelle,$C12,1) -> 0 | F12: =IF(INDEX(Tabelle,$C12,22)="","",1) -> 1 | G12: =IF(INDEX(Tabelle,$C12,2)="","fehlt",INDEX(Tabelle,$C12,2)/10) -> 0.0 | H12: =IF(INDEX(Tabelle,$C12,4)="","fehlt",INDEX(Tabelle,$C12,4)) -> 0.0 | I12: =IF(INDEX(Tabelle,$C12,7)="","fehlt",INDEX(Tabelle,$C12,7)) -> 0 | J12: =IF(INDEX(Tabelle,$C12,8)="","fehlt",INDEX(Tabelle,$C12,8)) -> 0.0 | K12: =IF(INDEX(Tabelle,$C12,12)="","fehlt",INDEX(Tabelle,$C12,12)) -> 0 | L12: =IF(INDEX(Tabelle,$C12,9)="","fehlt",INDEX(Tabelle,$C12,9)) -> 0.00 | M12: =IF(INDEX(Tabelle,$C12,10)="","fehlt",INDEX(Tabelle,$C12,10)) -> 0 | N12: =IF(INDEX(Tabelle,$C12,11)="","fehlt",INDEX(Tabelle,$C12,11)) -> 0 | O12: =IF(INDEX(Tabelle,$C12,19)="","fehlt",INDEX(Tabelle,$C12,19)) -> 0.0 | P12: =IF(INDEX(Tabelle,$C12,20)="","fehlt",INDEX(Tabelle,$C12,20)) -> 0.0 | Q12: =IF(INDEX(Tabelle,$C12,21)="","fehlt",INDEX(Tabelle,$C12,21)) -> 0.0 | R12: =IF(INDEX(Tabelle,$C12,22)="","fehlt",INDEX(Tabelle,$C12,22)) -> 0.0 | S12: =IF(INDEX(Tabelle,$C12,25)="","",INDEX(Tabelle,$C12,25)/100) ->  | T12: =IF(G12="",0,IF(Mast_Eingabe=2,B12,B12/G12*100)) -> 0.00 | U12: =IF(G12="",0,IF(Mast_Eingabe=1,B12,B12*G12/100)) -> 0.00 | V12: 0.0 | W12: 0.0 | X12: 0.0 | Y12: 0.0 | Z12: 0.0 | AA12: 0.0 | AB12: 0.0 | AC12: 0.0 | AD12: 0.0 | AE12: 0.0 | AF12: 0.0 | AG12: =IF(S12="","",$T12*S12) -> 
C13: 77 | D13: =INDEX(Tabelle,$C13,1) -> 0 | F13: =IF(INDEX(Tabelle,$C13,22)="","",1) -> 1 | G13: =IF(INDEX(Tabelle,$C13,2)="","fehlt",INDEX(Tabelle,$C13,2)/10) -> 0.0 | H13: =IF(INDEX(Tabelle,$C13,4)="","fehlt",INDEX(Tabelle,$C13,4)) -> 0.0 | I13: =IF(INDEX(Tabelle,$C13,7)="","fehlt",INDEX(Tabelle,$C13,7)) -> 0 | J13: =IF(INDEX(Tabelle,$C13,8)="","fehlt",INDEX(Tabelle,$C13,8)) -> 0.0 | K13: =IF(INDEX(Tabelle,$C13,12)="","fehlt",INDEX(Tabelle,$C13,12)) -> 0 | L13: =IF(INDEX(Tabelle,$C13,9)="","fehlt",INDEX(Tabelle,$C13,9)) -> 0.00 | M13: =IF(INDEX(Tabelle,$C13,10)="","fehlt",INDEX(Tabelle,$C13,10)) -> 0 | N13: =IF(INDEX(Tabelle,$C13,11)="","fehlt",INDEX(Tabelle,$C13,11)) -> 0 | O13: =IF(INDEX(Tabelle,$C13,19)="","fehlt",INDEX(Tabelle,$C13,19)) -> 0.0 | P13: =IF(INDEX(Tabelle,$C13,20)="","fehlt",INDEX(Tabelle,$C13,20)) -> 0.0 | Q13: =IF(INDEX(Tabelle,$C13,21)="","fehlt",INDEX(Tabelle,$C13,21)) -> 0.0 | R13: =IF(INDEX(Tabelle,$C13,22)="","fehlt",INDEX(Tabelle,$C13,22)) -> 0.0 | S13: =IF(INDEX(Tabelle,$C13,25)="","",INDEX(Tabelle,$C13,25)/100) ->  | T13: =IF(G13="",0,IF(Mast_Eingabe=2,B13,B13/G13*100)) -> 0.00 | U13: =IF(G13="",0,IF(Mast_Eingabe=1,B13,B13*G13/100)) -> 0.00 | V13: 0.0 | W13: 0.0 | X13: 0.0 | Y13: 0.0 | Z13: 0.0 | AA13: 0.0 | AB13: 0.0 | AC13: 0.0 | AD13: 0.0 | AE13: 0.0 | AF13: 0.0 | AG13: =IF(S13="","",$T13*S13) -> 
C14: 77 | D14: =INDEX(Tabelle,$C14,1) -> 0 | F14: =IF(INDEX(Tabelle,$C14,22)="","",1) -> 1 | G14: =IF(INDEX(Tabelle,$C14,2)="","fehlt",INDEX(Tabelle,$C14,2)/10) -> 0.0 | H14: =IF(INDEX(Tabelle,$C14,4)="","fehlt",INDEX(Tabelle,$C14,4)) -> 0.0 | I14: =IF(INDEX(Tabelle,$C14,7)="","fehlt",INDEX(Tabelle,$C14,7)) -> 0 | J14: =IF(INDEX(Tabelle,$C14,8)="","fehlt",INDEX(Tabelle,$C14,8)) -> 0.0 | K14: =IF(INDEX(Tabelle,$C14,12)="","fehlt",INDEX(Tabelle,$C14,12)) -> 0 | L14: =IF(INDEX(Tabelle,$C14,9)="","fehlt",INDEX(Tabelle,$C14,9)) -> 0.00 | M14: =IF(INDEX(Tabelle,$C14,10)="","fehlt",INDEX(Tabelle,$C14,10)) -> 0 | N14: =IF(INDEX(Tabelle,$C14,11)="","fehlt",INDEX(Tabelle,$C14,11)) -> 0 | O14: =IF(INDEX(Tabelle,$C14,19)="","fehlt",INDEX(Tabelle,$C14,19)) -> 0.0 | P14: =IF(INDEX(Tabelle,$C14,20)="","fehlt",INDEX(Tabelle,$C14,20)) -> 0.0 | Q14: =IF(INDEX(Tabelle,$C14,21)="","fehlt",INDEX(Tabelle,$C14,21)) -> 0.0 | R14: =IF(INDEX(Tabelle,$C14,22)="","fehlt",INDEX(Tabelle,$C14,22)) -> 0.0 | S14: =IF(INDEX(Tabelle,$C14,25)="","",INDEX(Tabelle,$C14,25)/100) ->  | T14: =IF(G14="",0,IF(Mast_Eingabe=2,B14,B14/G14*100)) -> 0.00 | U14: =IF(G14="",0,IF(Mast_Eingabe=1,B14,B14*G14/100)) -> 0.00 | V14: 0.0 | W14: 0.0 | X14: 0.0 | Y14: 0.0 | Z14: 0.0 | AA14: 0.0 | AB14: 0.0 | AC14: 0.0 | AD14: 0.0 | AE14: 0.0 | AF14: 0.0 | AG14: =IF(S14="","",$T14*S14) -> 
R15: Summe | S15: 1 | T15: =SUM(T10:T14) -> 0.00 | U15: =SUM(U10:U14) -> 0.00 | V15: 0.0 | W15: 0 | X15: 0.0 | Y15: 0 | Z15: 0 | AA15: 0 | AB15: 0 | AC15: 0 | AD15: 0 | AE15: 0 | AF15: =SUM(AF10:AF14) -> 0 | AG15: =SUM(AG10:AG14) -> 0.00 | AI15: 525 | AJ15: =AI15^0.75*0.53 -> 58.1 | AK15: =AI15 -> 525.0 | AL15: 20.1 | AM15: 30.8 | AN15: 44.4 | AU15: =AL15/AU$7*1000 -> 33.5 | AV15: =AM15/AV$7*1000 -> 38.5 | AW15: =AN15/AW$7*1000 -> 44.4 | BA15: =MEDIAN(AU15:AZ15) -> 38.5 | BM15: =AI15 -> 525 | BN15: =(-19.7+4.55*LN($BM15)+0.00066*BN$7)*$U$5 -> 9.19 | BO15: 9.33 | BP15: 9.46 | BQ15: 9.59 | BR15: 9.72 | BS15: 9.85 | BU15: =BM15 -> 525 | BV15: =AU15/BN15 -> 3.64 | BW15: =AV15/BO15 -> 4.13 | BX15: =AW15/BP15 -> 4.69
D16: Konzentrate, rationiert | S16: 1 | T16: je kg TM | U16: =IF(U15=0,"",U15/T15) ->  | V16: =IF($U15=0,0,V15/$U15) -> 0.00 | W16: =IF($U15=0,0,W15/$U15) -> 0.00 | X16: 0.00 | Y16: 0.00 | Z16: 0.00 | AA16: 0.00 | AB16: 0.00 | AC16: 0.00 | AD16: 0.00 | AE16: 0.00 | AF16: 0.00 | AG16: =IF(U15=0,0,AG15/$U15) -> 0.00
C18: 77 | D18: =INDEX(Tabelle,$C18,1) -> 0 | F18: =IF(INDEX(Tabelle,$C18,22)="","",1) -> 1 | G18: =IF(INDEX(Tabelle,$C18,2)="","fehlt",INDEX(Tabelle,$C18,2)/10) -> 0.0 | H18: =IF(INDEX(Tabelle,$C18,4)="","fehlt",INDEX(Tabelle,$C18,4)) -> 0.0 | I18: =IF(INDEX(Tabelle,$C18,7)="","fehlt",INDEX(Tabelle,$C18,7)) -> 0 | J18: =IF(INDEX(Tabelle,$C18,8)="","fehlt",INDEX(Tabelle,$C18,8)) -> 0.0 | K18: =IF(INDEX(Tabelle,$C18,12)="","fehlt",INDEX(Tabelle,$C18,12)) -> 0 | L18: =IF(INDEX(Tabelle,$C18,9)="","fehlt",INDEX(Tabelle,$C18,9)) -> 0.00 | M18: =IF(INDEX(Tabelle,$C18,10)="","fehlt",INDEX(Tabelle,$C18,10)) -> 0 | N18: =IF(INDEX(Tabelle,$C18,11)="","fehlt",INDEX(Tabelle,$C18,11)) -> 0 | O18: =IF(INDEX(Tabelle,$C18,19)="","fehlt",INDEX(Tabelle,$C18,19)) -> 0.0 | P18: =IF(INDEX(Tabelle,$C18,20)="","fehlt",INDEX(Tabelle,$C18,20)) -> 0.0 | Q18: =IF(INDEX(Tabelle,$C18,21)="","fehlt",INDEX(Tabelle,$C18,21)) -> 0.0 | R18: =IF(INDEX(Tabelle,$C18,22)="","fehlt",INDEX(Tabelle,$C18,22)) -> 0.0 | S18: =IF(INDEX(Tabelle,$C18,25)="","",INDEX(Tabelle,$C18,25)/100) ->  | T18: =IF(G18="",0,IF(Mast_Eingabe=2,B18,B18/G18*100)) -> 0.00 | U18: =IF(G18="",0,IF(Mast_Eingabe=1,B18,B18*G18/100)) -> 0.00 | V18: =$U18*H18 -> 0.0 | W18: 0.0 | X18: 0.0 | Y18: 0.0 | Z18: 0.0 | AA18: 0.0 | AB18: 0.0 | AC18: 0.0 | AD18: 0.0 | AE18: 0.0 | AF18: 0.0 | AG18: =IF(S18="","",$T18*S18) -> 
C19: 77 | D19: =INDEX(Tabelle,$C19,1) -> 0 | F19: =IF(INDEX(Tabelle,$C19,22)="","",1) -> 1 | G19: =IF(INDEX(Tabelle,$C19,2)="","fehlt",INDEX(Tabelle,$C19,2)/10) -> 0.0 | H19: =IF(INDEX(Tabelle,$C19,4)="","fehlt",INDEX(Tabelle,$C19,4)) -> 0.0 | I19: =IF(INDEX(Tabelle,$C19,7)="","fehlt",INDEX(Tabelle,$C19,7)) -> 0 | J19: =IF(INDEX(Tabelle,$C19,8)="","fehlt",INDEX(Tabelle,$C19,8)) -> 0.0 | K19: =IF(INDEX(Tabelle,$C19,12)="","fehlt",INDEX(Tabelle,$C19,12)) -> 0 | L19: =IF(INDEX(Tabelle,$C19,9)="","fehlt",INDEX(Tabelle,$C19,9)) -> 0.00 | M19: =IF(INDEX(Tabelle,$C19,10)="","fehlt",INDEX(Tabelle,$C19,10)) -> 0 | N19: =IF(INDEX(Tabelle,$C19,11)="","fehlt",INDEX(Tabelle,$C19,11)) -> 0 | O19: =IF(INDEX(Tabelle,$C19,19)="","fehlt",INDEX(Tabelle,$C19,19)) -> 0.0 | P19: =IF(INDEX(Tabelle,$C19,20)="","fehlt",INDEX(Tabelle,$C19,20)) -> 0.0 | Q19: =IF(INDEX(Tabelle,$C19,21)="","fehlt",INDEX(Tabelle,$C19,21)) -> 0.0 | R19: =IF(INDEX(Tabelle,$C19,22)="","fehlt",INDEX(Tabelle,$C19,22)) -> 0.0 | S19: =IF(INDEX(Tabelle,$C19,25)="","",INDEX(Tabelle,$C19,25)/100) ->  | T19: =IF(G19="",0,IF(Mast_Eingabe=2,B19,B19/G19*100)) -> 0.00 | U19: =IF(G19="",0,IF(Mast_Eingabe=1,B19,B19*G19/100)) -> 0.00 | V19: 0.0 | W19: 0.0 | X19: 0.0 | Y19: 0.0 | Z19: 0.0 | AA19: 0.0 | AB19: 0.0 | AC19: 0.0 | AD19: 0.0 | AE19: 0.0 | AF19: 0.0 | AG19: =IF(S19="","",$T19*S19) -> 
C20: 77 | D20: =INDEX(Tabelle,$C20,1) -> 0 | F20: =IF(INDEX(Tabelle,$C20,22)="","",1) -> 1 | G20: =IF(INDEX(Tabelle,$C20,2)="","fehlt",INDEX(Tabelle,$C20,2)/10) -> 0.0 | H20: =IF(INDEX(Tabelle,$C20,4)="","fehlt",INDEX(Tabelle,$C20,4)) -> 0.0 | I20: =IF(INDEX(Tabelle,$C20,7)="","fehlt",INDEX(Tabelle,$C20,7)) -> 0 | J20: =IF(INDEX(Tabelle,$C20,8)="","fehlt",INDEX(Tabelle,$C20,8)) -> 0.0 | K20: =IF(INDEX(Tabelle,$C20,12)="","fehlt",INDEX(Tabelle,$C20,12)) -> 0 | L20: =IF(INDEX(Tabelle,$C20,9)="","fehlt",INDEX(Tabelle,$C20,9)) -> 0.00 | M20: =IF(INDEX(Tabelle,$C20,10)="","fehlt",INDEX(Tabelle,$C20,10)) -> 0 | N20: =IF(INDEX(Tabelle,$C20,11)="","fehlt",INDEX(Tabelle,$C20,11)) -> 0 | O20: =IF(INDEX(Tabelle,$C20,19)="","fehlt",INDEX(Tabelle,$C20,19)) -> 0.0 | P20: =IF(INDEX(Tabelle,$C20,20)="","fehlt",INDEX(Tabelle,$C20,20)) -> 0.0 | Q20: =IF(INDEX(Tabelle,$C20,21)="","fehlt",INDEX(Tabelle,$C20,21)) -> 0.0 | R20: =IF(INDEX(Tabelle,$C20,22)="","fehlt",INDEX(Tabelle,$C20,22)) -> 0.0 | S20: =IF(INDEX(Tabelle,$C20,25)="","",INDEX(Tabelle,$C20,25)/100) ->  | T20: =IF(G20="",0,IF(Mast_Eingabe=2,B20,B20/G20*100)) -> 0.00 | U20: =IF(G20="",0,IF(Mast_Eingabe=1,B20,B20*G20/100)) -> 0.00 | V20: 0.0 | W20: 0.0 | X20: 0.0 | Y20: 0.0 | Z20: 0.0 | AA20: 0.0 | AB20: 0.0 | AC20: 0.0 | AD20: 0.0 | AE20: 0.0 | AF20: 0.0 | AG20: =IF(S20="","",$T20*S20) ->  | AK20: a | AL20: 18.1285 | AM20: 21.2061 | AN20: 26.1231 | AO20: 30.7674 | AP20: 35.8128
U21: =SUM(U18:U20) -> 0.00 | V21: =IF(U21=0,0,SUM(V18:V20)/U21) -> 0.0 | W21: =IF(U21=0,0,SUM(W18:W20)/U21) -> 0.0 | AG21: =SUM(AG16:AG20) -> 0.00
R22: Summe | S22: 1 | T22: =SUM(T18:T20,T10:T14) -> 0.00 | U22: 0.00 | V22: 0.0 | W22: 0 | X22: 0.0 | Y22: 0 | Z22: 0 | AA22: 0 | AB22: 0 | AC22: 0 | AD22: 0 | AE22: 0 | AF22: =SUM(AF18:AF20,AF10:AF14) -> 0 | AG22: =SUM(AG18:AG20) -> 0.00 | AK22: b | AL22: 0.000584 | AM22: 0.000653 | AN22: 0.00061 | AO22: 0.000415 | AP22: 0.00036
R23: ="Bedarf bei "&U3&" kg LM" -> Bedarf bei 350 kg LM | U23: =IF(Mast_GF_TM1=0,0,IF(Mast_Rasse=3,4.4*LN(Mast_LM)+$V$24*1.06-28.7,0.173+0.01372*Mast_LM+1.47*Mast_LMZ/1000)*$U$5) -> 0.0 | V23: =Mast_LM^0.75*0.53+IF(Mast_Rasse=1,Mast_LMZ/1000*(11.8738*EXP(0.00232*Mast_LM)),IF(Mast_Rasse=2,Mast_LMZ/1000*(21.156*EXP(0.00065*Mast_LM)),Mast_LMZ/1000*(12.0882*EXP(0.00248*Mast_LM)))) -> 65.9 | W23: =Mast_LM^0.524*16.9+IF(Mast_Rasse=1,Mast_LMZ/1000*(369+0.249*Mast_LM-0.0004*Mast_LM^2),IF(Mast_Rasse=2,Mast_LMZ/1000*(Mast_LM^0.1435*193),Mast_LMZ/1000*(264+0.492*Mast_LM-0.00103*Mast_LM^2))) -> 612 | X23: =(-19.7+4.55*LN($U$3)+0.00066*$U$4)*X5 -> 0 | Y23: ="< "&ROUND($U22*400,0) -> < 0 | Z23: ="> "&ROUND($U22*1.2,1) -> > 0 | AA23: ="> "&ROUND($U22*195,0) -> > 0 | AB23: ="> "&ROUND($U22*320,0) -> > 0 | AC23: =U23*2+0.0212*Mast_LMZ+5.8 -> 23 | AD23: =U23*1.4+Mast_LMZ*0.0095+1.3 -> 9 | AE23: =U23*1+Mast_LMZ*0.0024+0.1 -> 2 | AF23: =U23*0.7+Mast_LMZ*0.0017 -> 1 | AG23: €/kg KF | AI23: Tabellen | AJ23: FV | AK23: Ansatz | AL23: =AL20*EXP(AL22*$U$3) -> 22.23984023 | AM23: =AM20*EXP(AM22*$U$3) -> 26.65132522 | AN23: =AN20*EXP(AN22*$U$3) -> 32.34048919 | AO23: =AO20*EXP(AO22*$U$3) -> 35.57722507 | AP23: =AP20*EXP(AP22*$U$3) -> 40.62182044 | BN23: IT | BU23: MJNEL
R24: je kg TM | U24: =IF(U22=0,"",U22/T22) ->  | V24: =IF($U22=0,0,ROUND(V22/$U22,2)) -> 0.00 | W24: =IF($U22=0,0,ROUND(W22/$U22,2)) -> 0.00 | X24: 0.00 | Y24: 0.00 | Z24: 0.00 | AA24: 0.00 | AB24: 0.00 | AC24: 0.00 | AD24: 0.00 | AE24: 0.00 | AF24: 0.00 | AG24: =IF(AG22=0,0,AG22/SUM(U18:U20)) -> 0.00 | AI24: LM | AJ24: Erhaltung | AL24: 800 | AM24: 1000 | AN24: 1200 | AO24: 1400 | AP24: 1600 | AU24: =AL24 -> 800 | AV24: =AM24 -> 1000 | AW24: =AN24 -> 1200 | AX24: =AO24 -> 1400 | AY24: =AP24 -> 1600 | AZ24: Mittelwert | BN24: =AU24 -> 800 | BO24: =AV24 -> 1000 | BP24: =AW24 -> 1200 | BQ24: =AX24 -> 1400 | BR24: =AY24 -> 1600 | BS24: 1600 | BV24: =BN24 -> 800 | BW24: =BO24 -> 1000 | BX24: =BP24 -> 1200 | BY24: =BQ24 -> 1400 | BZ24: =BR24 -> 1600
R25: Lebendmasse | V25: 150 kg | W25: 200 kg | X25: 250 kg | Y25: 300 kg | Z25: 350 kg | AA25: 400 kg | AB25: 450 kg | AC25: 500 kg | AD25: 550 kg | AE25: 600 kg | AF25: 650 kg
R26: Futteraufnahme | V26: =IF($U22=0,0,IF(Mast_Rasse=3,4.4*LN(V25)+$V$24*1.06-28.7,0.173+0.01372*V25+1.47*Mast_LMZ/1000)*$U$5) -> 0.0 | W26: 0.0 | X26: 0.0 | Y26: 0.0 | Z26: 0.0 | AA26: 0.0 | AB26: 0.0 | AC26: 0.0 | AD26: 0.0 | AE26: 0.0 | AF26: 0.0
R27: MJ ME/kg TM reicht für ca. g LMZ | V27: =IF($U22=0,0,ROUND(((V26-Mast_KF_TM1)*Mast_GF_ME1+Mast_KF_TM1*Mast_KF_ME1-(V25^0.75*0.53))/(IF(Mast_Rasse=1,11.8738*EXP(0.00232*V25),IF(Mast_Rasse=2,21.156*EXP(0.00065*V25),12.0882*EXP(0.00248*V25))))*1000,-1)) -> 0 | W27: 0 | X27: 0 | Y27: 0 | Z27: 0 | AA27: 0 | AB27: 0 | AC27: 0 | AD27: 0 | AE27: 0 | AF27: 0
R28: nXP-Versorgung | V28: =IF($U22=0,0,((V26-Mast_KF_TM1)*Mast_GF_nXP1+Mast_KF_TM1*Mast_KF_nXP1-V25^0.524*16.9)/IF(Mast_Rasse=1,(369+0.249*V25-0.0004*V25^2),IF(Mast_Rasse=2,(193.4*V25^0.1435),(264+0.492*V25-0.00103*V25^2)))*1000) -> 0 | W28: 0 | X28: 0 | Y28: 0 | Z28: 0 | AA28: 0 | AB28: 0 | AC28: 0 | AD28: 0 | AE28: 0 | AF28: 0
R29: Kosten €/Tag | U29: =IF(Mast_GF_TM1=0,"",IF(COUNTIF(S10:S22,">0")<>COUNTIF(U10:U22,">0"),"Daten!","")) ->  | V29: =(V26-SUM($U$18:$U$20))*$AG$16+SUM($U$18:$U$20)*$AG$24 -> 0.00 | W29: 0.00 | X29: 0.00 | Y29: 0.00 | Z29: 0.00 | AA29: 0.00 | AB29: 0.00 | AC29: 0.00 | AD29: 0.00 | AE29: 0.00 | AF29: =(AF26-SUM($U$18:$U$20))*$AG$16+SUM($U$18:$U$20)*$AG$24 -> 0.00
AJ30: 325 | AK30: =AJ30^0.524*16.9 -> 350.0 | AL30: =AJ30 -> 325 | AM30: =(AU30*1.05-$AK30)/#REF!*1000 ->  | AN30: =(AV30*1.05-$AK30)/#REF!*1000 ->  | AO30: =(AW30*1.05-$AK30)/#REF!*1000 ->  | AP30: =(AX30*1.05-$AK30)/#REF!*1000 ->  | AQ30: =(AY30*1.05-$AK30)/#REF!*1000 ->  | AS30: =AVERAGE(AM30:AR30) ->  | AT30: =MAX(AM30:AR30)-AS30 ->  | AU30: 577 | AV30: 656 | AW30: 727 | AX30: 782 | AY30: 823
AK31: LMZ | AS31: 263.9
AK32: LMZ² | AS32: 0.492
AI33: Tabellen | AJ33: JV | AK33: Ansatz | AL33: =AL31*EXP(AL32*$U$3) -> 0 | AM33: 0 | AN33: 0 | AO33: 0 | AP33: 0 | AQ33: 0 | AR33: 0 | AS33: -0.00103
AI34: LM | AJ34: Erhaltung | AL34: 400 | AM34: 500 | AN34: 600 | AO34: 700 | AP34: 800 | AQ34: 900 | AR34: 1000 | AS34: Mittelwert | AU34: =AL34 -> 400 | AV34: 500 | AW34: 600 | AX34: 700 | AY34: 800 | AZ34: 900 | BA34: 1000
AI35: 150 | AJ35: =AI35^0.524*16.9 -> 233.4 | AK35: =AI35 -> 150.0 | AM35: =(AV35*1-$AJ35)/AM$34*1000 -> 301.1 | AP35: =(AY35*1-$AJ35)/AP$34*1000 -> 320.7 | AS35: =AVERAGE(AL35:AR35) -> 310.9 | AT35: =MAX(AM35:AR35)-AS35 -> 9.8 | AV35: 384 | AY35: 490
AI36: 200 | AJ36: =AI36^0.524*16.9 -> 271.4 | AK36: =AI36 -> 200.0 | AM36: 319.2 | AP36: 325.7 | AS36: =AVERAGE(AL36:AR36) -> 322.5 | AT36: =MAX(AM36:AR36)-AS36 -> 3.3 | AV36: 431 | AY36: 532
AI37: 250 | AJ37: 305.1 | AK37: 250.0 | AM37: 331.8 | AP37: 321.2 | AS37: 326.5 | AT37: 5.3 | AV37: 471 | AY37: 562
AI38: 300 | AJ38: 335.7 | AK38: 300.0 | AM38: 330.7 | AP38: 311.7 | AS38: 321.2 | AT38: 9.5 | AV38: 501 | AY38: 585
AI39: 350 | AJ39: 363.9 | AK39: 350.0 | AM39: 318.2 | AP39: 300.1 | AS39: 309.2 | AT39: 9.0 | AV39: 523 | AY39: 604
AI40: 400 | AJ40: 390.3 | AK40: 400.0 | AM40: 307.5 | AP40: 284.7 | AS40: 296.1 | AT40: 11.4 | AV40: 544 | AY40: 618
AI41: 450 | AJ41: 415.1 | AK41: 450.0 | AM41: 283.8 | AP41: 267.4 | AS41: 275.6 | AT41: 8.2 | AV41: 557 | AY41: 629
AI42: 500 | AJ42: 438.7 | AK42: 500.0 | AM42: 242.6 | AP42: 247.9 | AS42: 245.3 | AT42: 2.6 | AV42: 560 | AY42: 637
AI43: 550 | AJ43: 461.1 | AK43: 550.0 | AM43: 227.7 | AP43: 232.3 | AS43: 230.0 | AV43: 575 | AY43: 647
AI47: Ca | AK47: Erhaltung | AM47: 500 | AN47: 800 | AO47: 800 | AP47: 1000 | AQ47: 1200 | AR47: 1400 | AT47: =AM47 -> 500 | AU47: 800 | AV47: 800 | AW47: 1000 | AX47: 1200 | AY47: 1400
AI48: 175 | AJ48: =IF(Mast_Rasse=3,4.4*LN(AI48)+$V$24*1.06-28.7,0.173+0.01372*AI48+1.47*Mast_LMZ/1000)*$U$5 -> -6.0 | AK48: =AJ48*2 -> -11.94988343 | AL48: =AI48 -> 175 | AM48: 22 | AN48: 31 | AO48: 31 | AP48: 35 | AS48: =AI48 -> 175 | AT48: =AM48-$AK48 -> 33.94988343 | AU48: =AN48-$AK48 -> 42.94988343 | AV48: =AO48-$AK48 -> 42.94988343 | AW48: =AP48-$AK48 -> 46.94988343
AI49: 225 | AJ49: -4.9 | AK49: =AJ49*2 -> -9.738316461 | AL49: =AI49 -> 225 | AM49: 24 | AN49: 33 | AO49: 33 | AP49: 36 | AQ49: 39 | AS49: 225 | AT49: 33.73831646 | AU49: 42.73831646 | AV49: 42.73831646 | AW49: 45.73831646 | AX49: =AQ49-$AK49 -> 48.73831646
AI50: 275 | AJ50: -4.0 | AK50: -7.972414341 | AL50: 275 | AM50: 26 | AN50: 35 | AO50: 34 | AP50: 39 | AQ50: 42 | AR50: 46 | AS50: 275 | AT50: 33.97241434 | AU50: 42.97241434 | AV50: 41.97241434 | AW50: 46.97241434 | AX50: 49.97241434 | AY50: =AR50-$AK50 -> 53.97241434
AI51: 325 | AJ51: -3.3 | AK51: -6.502338395 | AL51: 325 | AM51: 27 | AN51: 36 | AO51: 35 | AP51: 39 | AQ51: 42 | AR51: 47 | AS51: 325 | AT51: 33.5023384 | AU51: 42.5023384 | AV51: 41.5023384 | AW51: 45.5023384 | AX51: 48.5023384 | AY51: 53.5023384
AI52: 375 | AJ52: -2.6 | AK52: -5.243050971 | AL52: 375 | AM52: 28 | AN52: 37 | AO52: 37 | AP52: 41 | AQ52: 43 | AR52: 48 | AS52: 375 | AT52: 33.24305097 | AU52: 42.24305097 | AV52: 42.24305097 | AW52: 46.24305097 | AX52: 48.24305097 | AY52: 53.24305097
AI53: 425 | AJ53: -2.1 | AK53: -4.141615313 | AL53: 425 | AM53: 29 | AN53: 38 | AO53: 38 | AP53: 41 | AQ53: 44 | AR53: 50 | AS53: 425 | AT53: 33.14161531 | AU53: 42.14161531 | AV53: 42.14161531 | AW53: 45.14161531 | AX53: 48.14161531 | AY53: 54.14161531
AI54: 475 | AJ54: -1.6 | AK54: -3.162829724 | AL54: 475 | AM54: 30 | AN54: 41 | AO54: 39 | AP54: 43 | AQ54: 45 | AR54: 50 | AS54: 475 | AT54: 33.16282972 | AU54: 44.16282972 | AV54: 42.16282972 | AW54: 46.16282972 | AX54: 48.16282972 | AY54: 53.16282972
AI55: 525 | AJ55: -1.1 | AK55: -2.282095289 | AL55: 525 | AM55: 30 | AN55: 42 | AO55: 39 | AP55: 43 | AQ55: 46 | AR55: 51 | AS55: 525 | AT55: 32.28209529 | AU55: 44.28209529 | AV55: 41.28209529 | AW55: 45.28209529 | AX55: 48.28209529 | AY55: 53.28209529
AI56: 575 | AJ56: -0.7 | AK56: -1.481543641 | AL56: 575 | AM56: 31 | AN56: 43 | AO56: 40 | AP56: 44 | AQ56: 47 | AS56: 575 | AT56: 32.48154364 | AU56: 44.48154364 | AV56: 41.48154364 | AW56: 45.48154364 | AX56: 48.48154364
AI57: 625 | AJ57: -0.4 | AK57: -0.7477854823 | AL57: 625 | AO57: 41 | AP57: 45 | AQ57: 48 | AS57: 625 | AV57: =AO57-$AK57 -> 41.74778548 | AW57: =AP57-$AK57 -> 45.74778548 | AX57: 48.74778548
AS58: Mittelwert Ca | AT58: =AVERAGE(AT48:AT57) -> 33.27489862 | AU58: 43.16378751 | AV58: 42.0221873 | AW58: 45.9221873 | AX58: 48.58577662 | AY58: 53.55072401
AI62: P | AK62: Erhaltung | AM62: 500 | AN62: 800 | AO62: 800 | AP62: 1000 | AQ62: 1200 | AR62: 1400 | AT62: =AM62 -> 500 | AU62: 800 | AV62: 800 | AW62: 1000 | AX62: 1200 | AY62: 1400
AI63: 175 | AJ63: =IF(Mast_Rasse=3,4.4*LN(AI63)+$V$24*1.06-28.7,0.173+0.01372*AI63+1.47*Mast_LMZ/1000)*$U$5 -> -6.0 | AK63: =AJ63*1.4 -> -8.364918401 | AL63: =AI63 -> 175 | AM63: 11 | AN63: 14 | AO63: 14 | AP63: 16 | AS63: =AI63 -> 175 | AT63: =AM63-$AK63 -> 19.3649184 | AU63: =AN63-$AK63 -> 22.3649184 | AV63: =AO63-$AK63 -> 22.3649184 | AW63: =AP63-$AK63 -> 24.3649184
AI64: 225 | AJ64: -4.9 | AK64: =AJ64*1.4 -> -6.816821522 | AL64: =AI64 -> 225 | AM64: 12 | AN64: 15 | AO64: 16 | AP64: 17 | AQ64: 19 | AS64: 225 | AT64: 18.81682152 | AU64: 21.81682152 | AV64: 22.81682152 | AW64: 23.81682152 | AX64: =AQ64-$AK64 -> 25.81682152
AI65: 275 | AJ65: -4.0 | AK65: -5.580690038 | AL65: 275 | AM65: 13 | AN65: 16 | AO65: 16 | AP65: 18 | AQ65: 20 | AR65: 22 | AS65: 275 | AT65: 18.58069004 | AU65: 21.58069004 | AV65: 21.58069004 | AW65: 23.58069004 | AX65: 25.58069004 | AY65: =AR65-$AK65 -> 27.58069004
AI66: 325 | AJ66: -3.3 | AK66: -4.551636877 | AL66: 325 | AM66: 14 | AN66: 17 | AO66: 17 | AP66: 19 | AQ66: 21 | AR66: 23 | AS66: 325 | AT66: 18.55163688 | AU66: 21.55163688 | AV66: 21.55163688 | AW66: 23.55163688 | AX66: 25.55163688 | AY66: 27.55163688
AI67: 375 | AJ67: -2.6 | AK67: -3.67013568 | AL67: 375 | AM67: 15 | AN67: 19 | AO67: 18 | AP67: 20 | AQ67: 22 | AR67: 24 | AS67: 375 | AT67: 18.67013568 | AU67: 22.67013568 | AV67: 21.67013568 | AW67: 23.67013568 | AX67: 25.67013568 | AY67: 27.67013568
AI68: 425 | AJ68: -2.1 | AK68: -2.899130719 | AL68: 425 | AM68: 16 | AN68: 20 | AO68: 19 | AP68: 21 | AQ68: 22 | AR68: 24 | AS68: 425 | AT68: 18.89913072 | AU68: 22.89913072 | AV68: 21.89913072 | AW68: 23.89913072 | AX68: 24.89913072 | AY68: 26.89913072
AI69: 475 | AJ69: -1.6 | AK69: -2.213980807 | AL69: 475 | AM69: 16 | AN69: 21 | AO69: 20 | AP69: 22 | AQ69: 23 | AR69: 25 | AS69: 475 | AT69: 18.21398081 | AU69: 23.21398081 | AV69: 22.21398081 | AW69: 24.21398081 | AX69: 25.21398081 | AY69: 27.21398081
AI70: 525 | AJ70: -1.1 | AK70: -1.597466702 | AL70: 525 | AM70: 17 | AN70: 22 | AO70: 20 | AP70: 22 | AQ70: 24 | AR70: 26 | AS70: 525 | AT70: 18.5974667 | AU70: 23.5974667 | AV70: 21.5974667 | AW70: 23.5974667 | AX70: 25.5974667 | AY70: 27.5974667
AI71: 575 | AJ71: -0.7 | AK71: -1.037080549 | AL71: 575 | AM71: 17 | AN71: 23 | AO71: 21 | AP71: 23 | AQ71: 24 | AS71: 575 | AT71: 18.03708055 | AU71: 24.03708055 | AV71: 22.03708055 | AW71: 24.03708055 | AX71: 25.03708055
AI72: 625 | AJ72: -0.4 | AK72: -0.5234498376 | AL72: 625 | AO72: 21 | AP72: 23 | AQ72: 25 | AS72: 625 | AV72: =AO72-$AK72 -> 21.52344984 | AW72: =AP72-$AK72 -> 23.52344984 | AX72: 25.52344984
AS73: Mittelwert P | AT73: =AVERAGE(AT63:AT72) -> 18.63687348 | AU73: 22.63687348 | AV73: 21.92553111 | AW73: 23.82553111 | AX73: 25.43226586 | AY73: 27.41884014
AI76: Mg | AK76: Erhaltung | AM76: 500 | AN76: 800 | AO76: 800 | AP76: 1000 | AQ76: 1200 | AR76: 1400 | AT76: =AM76 -> 500 | AU76: 800 | AV76: 800 | AW76: 1000 | AX76: 1200 | AY76: 1400
AI77: 175 | AJ77: =IF(Mast_Rasse=3,4.4*LN(AI77)+$V$24*1.06-28.7,0.173+0.01372*AI77+1.47*Mast_LMZ/1000)*$U$5 -> -6.0 | AK77: =AJ77*1 -> -5.974941715 | AL77: =AI77 -> 175 | AM77: 4 | AN77: 5 | AO77: 6 | AP77: 6 | AS77: =AI77 -> 175 | AT77: =AM77-$AK77 -> 9.974941715 | AU77: =AN77-$AK77 -> 10.97494171 | AV77: =AO77-$AK77 -> 11.97494171 | AW77: =AP77-$AK77 -> 11.97494171
AI78: 225 | AJ78: -4.9 | AK78: =AJ78*1 -> -4.86915823 | AL78: =AI78 -> 225 | AM78: 5 | AN78: 6 | AO78: 6 | AP78: 7 | AQ78: 7 | AS78: 225 | AT78: 9.86915823 | AU78: 10.86915823 | AV78: 10.86915823 | AW78: 11.86915823 | AX78: =AQ78-$AK78 -> 11.86915823
AI79: 275 | AJ79: -4.0 | AK79: -3.98620717 | AL79: 275 | AM79: 6 | AN79: 7 | AO79: 7 | AP79: 8 | AQ79: 8 | AR79: 8 | AS79: 275 | AT79: 9.98620717 | AU79: 10.98620717 | AV79: 10.98620717 | AW79: 11.98620717 | AX79: 11.98620717 | AY79: =AR79-$AK79 -> 11.98620717
AI80: 325 | AJ80: -3.3 | AK80: -3.251169198 | AL80: 325 | AM80: 7 | AN80: 8 | AO80: 8 | AP80: 8 | AQ80: 9 | AR80: 9 | AS80: 325 | AT80: 10.2511692 | AU80: 11.2511692 | AV80: 11.2511692 | AW80: 11.2511692 | AX80: 12.2511692 | AY80: 12.2511692
AI81: 375 | AJ81: -2.6 | AK81: -2.621525486 | AL81: 375 | AM81: 8 | AN81: 8 | AO81: 8 | AP81: 9 | AQ81: 9 | AR81: 10 | AS81: 375 | AT81: 10.62152549 | AU81: 10.62152549 | AV81: 10.62152549 | AW81: 11.62152549 | AX81: 11.62152549 | AY81: 12.62152549
AI82: 425 | AJ82: -2.1 | AK82: -2.070807657 | AL82: 425 | AM82: 8 | AN82: 9 | AO82: 9 | AP82: 9 | AQ82: 10 | AR82: 10 | AS82: 425 | AT82: 10.07080766 | AU82: 11.07080766 | AV82: 11.07080766 | AW82: 11.07080766 | AX82: 12.07080766 | AY82: 12.07080766
AI83: 475 | AJ83: -1.6 | AK83: -1.581414862 | AL83: 475 | AM83: 9 | AN83: 10 | AO83: 9 | AP83: 10 | AQ83: 10 | AR83: 11 | AS83: 475 | AT83: 10.58141486 | AU83: 11.58141486 | AV83: 10.58141486 | AW83: 11.58141486 | AX83: 11.58141486 | AY83: 12.58141486
AI84: 525 | AJ84: -1.1 | AK84: -1.141047645 | AL84: 525 | AM84: 9 | AN84: 11 | AO84: 10 | AP84: 10 | AQ84: 11 | AR84: 11 | AS84: 525 | AT84: 10.14104764 | AU84: 12.14104764 | AV84: 11.14104764 | AW84: 11.14104764 | AX84: 12.14104764 | AY84: 12.14104764
AI85: 575 | AJ85: -0.7 | AK85: -0.7407718205 | AL85: 575 | AM85: 9 | AN85: 12 | AO85: 10 | AP85: 11 | AQ85: 11 | AS85: 575 | AT85: 9.74077182 | AU85: 12.74077182 | AV85: 10.74077182 | AW85: 11.74077182 | AX85: 11.74077182
AI86: 625 | AJ86: -0.4 | AK86: -0.3738927412 | AL86: 625 | AO86: 11 | AP86: 11 | AQ86: 11 | AS86: 625 | AV86: =AO86-$AK86 -> 11.37389274 | AW86: =AP86-$AK86 -> 11.37389274 | AX86: 11.37389274
AS87: Mittelwert Mg | AT87: =AVERAGE(AT77:AT86) -> 10.13744931 | AU87: 11.35967153 | AV87: 11.06109365 | AW87: 11.56109365 | AX87: 11.84844387 | AY87: 12.275362
AI89: Na | AK89: Erhaltung | AM89: 500 | AN89: 800 | AO89: 800 | AP89: 1000 | AQ89: 1200 | AR89: 1400 | AT89: =AM89 -> 500 | AU89: 800 | AV89: 800 | AW89: 1000 | AX89: 1200 | AY89: 1400
AI90: 175 | AJ90: =IF(Mast_Rasse=3,4.4*LN(AI90)+$V$24*1.06-28.7,0.173+0.01372*AI90+1.47*Mast_LMZ/1000)*$U$5 -> -6.0 | AK90: =AJ90*0.7 -> -4.1824592 | AL90: =AI90 -> 175 | AM90: 3 | AN90: 4 | AO90: 4 | AP90: 4 | AS90: =AI90 -> 175 | AT90: =AM90-$AK90 -> 7.1824592 | AU90: =AN90-$AK90 -> 8.1824592 | AV90: =AO90-$AK90 -> 8.1824592 | AW90: =AP90-$AK90 -> 8.1824592
AI91: 225 | AJ91: -4.9 | AK91: =AJ91*0.7 -> -3.408410761 | AL91: =AI91 -> 225 | AM91: 4 | AN91: 4 | AO91: 5 | AP91: 5 | AQ91: 5 | AS91: 225 | AT91: 7.408410761 | AU91: 7.408410761 | AV91: 8.408410761 | AW91: 8.408410761 | AX91: =AQ91-$AK91 -> 8.408410761
AI92: 275 | AJ92: -4.0 | AK92: -2.790345019 | AL92: 275 | AM92: 4 | AN92: 5 | AO92: 5 | AP92: 5 | AQ92: 6 | AR92: 6 | AS92: 275 | AT92: 6.790345019 | AU92: 7.790345019 | AV92: 7.790345019 | AW92: 7.790345019 | AX92: 8.790345019 | AY92: =AR92-$AK92 -> 8.790345019
AI93: 325 | AJ93: -3.3 | AK93: -2.275818438 | AL93: 325 | AM93: 5 | AN93: 6 | AO93: 5 | AP93: 6 | AQ93: 6 | AR93: 7 | AS93: 325 | AT93: 7.275818438 | AU93: 8.275818438 | AV93: 7.275818438 | AW93: 8.275818438 | AX93: 8.275818438 | AY93: 9.275818438
AI94: 375 | AJ94: -2.6 | AK94: -1.83506784 | AL94: 375 | AM94: 5 | AN94: 6 | AO94: 6 | AP94: 6 | AQ94: 7 | AR94: 7 | AS94: 375 | AT94: 6.83506784 | AU94: 7.83506784 | AV94: 7.83506784 | AW94: 7.83506784 | AX94: 8.83506784 | AY94: 8.83506784
AI95: 425 | AJ95: -2.1 | AK95: -1.44956536 | AL95: 425 | AM95: 6 | AN95: 7 | AO95: 6 | AP95: 7 | AQ95: 7 | AR95: 7 | AS95: 425 | AT95: 7.44956536 | AU95: 8.44956536 | AV95: 7.44956536 | AW95: 8.44956536 | AX95: 8.44956536 | AY95: 8.44956536
AI96: 475 | AJ96: -1.6 | AK96: -1.106990404 | AL96: 475 | AM96: 6 | AN96: 7 | AO96: 7 | AP96: 7 | AQ96: 7 | AR96: 8 | AS96: 475 | AT96: 7.106990404 | AU96: 8.106990404 | AV96: 8.106990404 | AW96: 8.106990404 | AX96: 8.106990404 | AY96: 9.106990404
AI97: 525 | AJ97: -1.1 | AK97: -0.7987333512 | AL97: 525 | AM97: 7 | AN97: 8 | AO97: 7 | AP97: 7 | AQ97: 8 | AR97: 8 | AS97: 525 | AT97: 7.798733351 | AU97: 8.798733351 | AV97: 7.798733351 | AW97: 7.798733351 | AX97: 8.798733351 | AY97: 8.798733351
AI98: 575 | AJ98: -0.7 | AK98: -0.5185402743 | AL98: 575 | AM98: 7 | AN98: 9 | AO98: 7 | AP98: 7 | AQ98: 8 | AS98: 575 | AT98: 7.518540274 | AU98: 9.518540274 | AV98: 7.518540274 | AW98: 7.518540274 | AX98: 8.518540274
AI99: 625 | AJ99: -0.4 | AK99: -0.2617249188 | AL99: 625 | AO99: 7 | AP99: 8 | AQ99: 8 | AS99: 625 | AV99: =AO99-$AK99 -> 7.261724919 | AW99: =AP99-$AK99 -> 8.261724919 | AX99: 8.261724919
AS100: Mittelwert Na | AT100: =AVERAGE(AT90:AT99) -> 7.262881183 | AU100: 8.262881183 | AV100: 7.762765557 | AW100: 8.062765557 | AX100: 8.493910707 | AY100: 8.876086735

Sheet Info
A1: Quellen:
A3: Futterwerte
B4: Bestimmung des Futterwertes von ..., Landwirtschaftskammer Nordrhein-Westfalen, versch. Veröffentlichungen
B5: CVB Veevoedertabel
B6: DLG-Futterwerttabellen Wiederkäuer, 1997
B7: Grundfutterreport Baden-Württemberg 2014, LAZBW Aulendorf, 2015 & ergänzende Auswertungen
B8: LfL-Information: Gruber Tabelle
A11: Bedarfswerte
B12: Empfehlungen zur Energie- und Nährstoffversorgung der Milchkühe und Aufzuchtrinder, GfE, 2001
B13: Empfehlungen zur Energie- und Nährstoffversorgung der Mastrinder, GfE, 1995
B14: DLG-Information 1/2006 Schätzung der Futteraufnahme bei der Milchkuh, 2006
B15: Einfluss des Kraftfutterniveaus in der Stiermast auf die Mast- und Schlachtleistung bei Maissilage mit niedriger Energiekonzentration Gruber, L., in: 36. Viehwirtschaftliche Fachtagung 2009,S. 80
A19: Formeln
B20: Lehmann u. Kessler, 1994
B21: Gesamtfutteraufnahme Mastbullen | C21: IT= 0,173+0,01372*LM+1,470*LMZ
B22: DLG, 2006:
B23: Gesamtfutteraufnahme Milchkühe, getrennte Vorlage Standard | C23: IT=0,93*(3,878+Rasse(HF:-2,19;FV:-2,63;BV:-1,83)+Laktationszahl 1:-0,73;+0,22)+LTag(-4,287+4,153*(1-exp(-0,01486*LTag))+LM*(0,0148-0,0000474*LTag+0,0000000904*LTag²)+ML*(0,0825+0,0008098*LTag+0,000000966*LTag²)+KFTM*(0,6962-0,0023289*LTag+0,0000040634*LTag²)+NELgf*0,858)+0,47
C24: *KFTM=ECM*0,493-9,25
B26: Gesamtfutteraufnahme Milchkühe, TMR Standard | C26: IT=0,92*(2,274+Rasse(HF:-1,449;FV:-2,169;BV:-1,391)+Laktationszahl 1:-0,658;+0,236)+LTag*(-5,445+5,298*(1-exp(-0,01838*LTag))+LM*(0,0173-0,0000514*LTag+0,0000000999*LTag²)+ML*(0,2010+0,000808*LTag+0,000001299*LTag²)+KF%*(0,631-0,0002096*LTag+0,0000001213*LTag²)+NELgf*0,609)+0,71
B28: Gesamtfutteraufnahme Schafe | C28: IT=0,9+LM*0,01+(ML-1)*0,4
B30: Gesamtfutteraufnahme Ziege | C30: IT=0,9+LM*0,01+(ML-1)*0,4
A39: Formeln_2
B41: nXP-Mast und Aufzucht
B42: Nettobedarf am Duodenum
B43: MJ/ME
B44: f(x)=a*e^LM)
B45: B_sbt | C45: a | D45: 11.8738 | F45: Erh. Bedarf LM^0,75*0,53
C46: b | D46: 0.00232
B47: B_FV | C47: a | D47: 21.156 | F47: Erh. Bedarf LM^0,75*0,53
C48: b | D48: 0.00065
B49: F_sbt | C49: a | D49: 12.0882 | F49: Erh. Bedarf LM^0,75*0,53
C50: b | D50: 0.00248
B52: nXP
B53: B_sbt | C53: L_Bedarf | D53: f(x)=a+b*LM+c*LM²*LMZkg
C54: a | D54: 369 | F54: Erh.Bedarf | G54: LM^0,524*16,9
C55: b | D55: 0.249
C56: c | D56: -0.0004
B57: B_FV | C57: L-Bedarf | D57: f(x)=a*LM^b
C58: a | D58: 193.397 | F58: Erh.Bedarf | G58: LM^0,524*16,9
C59: b | D59: 0.1435
C60: c
B61: F_sbt | C61: L_Bedarf | D61: f(x)=a+b*LM+c*LM²
C62: a | D62: 263.9 | F62: Erh.Bedarf | G62: LM^0,524*16,9
C63: b | D63: 0.492
C64: c | D64: -0.00103
B66: Mineralstoffe
B67: f(x)=a*LMZ+b
B68: Ca | C68: a | D68: 0.0212 | F68: Erh. Bedarf 2
C69: b | D69: 5.8
B70: P | C70: a | D70: 0.0095 | F70: Erh. Bedarf LM^0,75*0,53
C71: b | D71: 1.3
B72: Mg | C72: a | D72: 0.0024 | F72: Erh. Bedarf LM^0,75*0,53
C73: b | D73: 0.1
B76: Na | C76: a | D76: 0.0017 | F76: Erh. Bedarf LM^0,75*0,53
C77: b | D77: 0

Sheet Einstellungen
A1: Grenzwerte | C1: Bearbeiter*in: | E1: E. Gerster
E2: min | F2: max
A3: Futteraufnahme | B3: DLG 2006, Lehmann u. Kessler, GfE 2001 | E3: 90% | F3: 110%
A4: NEL | E4: 95% | F4: 105%
A5: ME | E5: 95% | F5: 105%
A6: nXP | E6: 90% | F6: 110%
A7: XP | E7: 90% | F7: 110%
A8: RNB | B8: g | E8: -20 | F8: 40
A9: RNB trocken | B9: g | E9: -20 | F9: 0
A10: NFC | B10: g/kg TM | F10: 400
A11: SW | B11: / kg TM | E11: 1.2
A12: ADF | B12: g/kg TM | E12: 200
A13: NDF | B13: g/kg TM | E13: 300
A14: XS | B14: g/kg TM | F14: 350
A15: XZ | B15: g/kg TM | F15: 100
A16: XL | B16: g/kg TM | F16: 40
A17: XF | B17: g/kg TM | E17: 160
A18: sXF | B18: g/kg TM | E18: 100
C19: je kg TM | D19: je kg Milch
A20: Ca | B20: Bedarfsnorm (GfE 1996) | C20: 2.0 | D20: 2.5 | E20: 98% | F20: 150%
A21: P | B21: % v. Bedarfsnorm (GfE 1996) | C21: 1.4 | D21: 1.4 | E21: 100% | F21: 150%
A22: Na | B22: % v. Bedarfsnorm (GfE 1996) | C22: 0.7 | D22: 0.5 | E22: 100% | F22: 150%
A23: Mg | B23: % v. Bedarfsnorm (GfE 1996) | C23: 0.8 | D23: 0.4 | E23: 100% | F23: 150%
A24: K | B24: % v. Bedarfsnorm (GfE 1996) | C24: 1.8 | D24: 1.4 | E24: 100% | F24: 800%
A25: Se | B25: % v. Bedarfsnorm (GfE 1996) | C25: 0.2 | D25: 0.0 | E25: 100% | F25: 150%
A26: Ca:P | D26: 1: | E26: 0.45 | F26: 0.8
A27: Na:K | D27: 1: | E27: 6.5 | F27: 13.5
A28: DCAB lakt. | B28: meq (Staufenbiel 2007) | E28: 200 | F28: 350
A29: DCAB trocken | B29: meq (Staufenbiel 2007) | F29: 0
A30: LM-Veränderung | B30: g/Tag | E30: -1000 | F30: 500
